Workbook

Sheet GUIA PARA PREENCHIMENTO
A1: GUIA PARA PREENCHIMENTO
A3: 1 - Preencher apenas as guias azuis:
A5: 2 - Recomendamos preencher somente as células com fundo azul claro. As demais possuem fórmulas e sugerimos não alterá-las.

Sheet MODELO PROPOSTA
B2: MODELO DA PROPOSTA COMPLETA
B4: .
B5: I – FORMALIZAÇÃO
B7: PREGÃO ELETRÔNICO N. 103/22
B8: OBJETO: Prestação de serviços continuados, com dedicação exclusiva de profissionais, por empresa especializada na área de apoio à infraestrutura de TI, pelo período de 12 (doze) meses.
B9: LICITANTE: _____________________________________________________
B10: CNPJ: ________________________________________________________
B11: ENDEREÇO COMPLETO: _________________________________________
B12: TELEFONE:_____________________________________________________
B13: E-MAIL: ________________________________________________________
B15: Apresentamos nossa proposta para o item único da presente licitação, de acordo com as disposições do Edital.
B16: Decorre do conteúdo da presente proposta a explicitação do seguinte PREÇO DE JULGAMENTO (GLOBAL ANUAL) PARA O ITEM:
B17: =' RESUMO'!H106 -> 19856348.21
B18: =Extenso_Valor(B17) -> dezenove milhões, oitocentos e cinquenta e seis mil, trezentos e quarenta e oito reais e vinte e um centavos
B20: (por extenso)
B22: No valor proposto estão incluídos todos os custos e todas as despesas, diretas e indiretas, para a execução dos serviços objeto da licitação, em conformidade com as especificações e demais condições e exigências constantes do Edital.
B23: Informamos que eventuais rubricas dispostas em Acordo ou Convenção Coletiva de Trabalho que não se relacionem ao custo direto da venda do serviço, tais como “Participação nos Resultados” e “Abono substitutivo de Participação nos Resultados”, serão consideradas nos custos indiretos da proposta.
B24: O prazo de validade da presente proposta é de ______ (por extenso) dias. (observado o disposto no Título 11 do Edital).
B26: Convenção coletiva de trabalho ou a norma coletiva a que estamos obrigados:
B27: Data-Base:
B28: Número do Registro SRT:
B29: Regime de tributação da empresa:
B30: Empresa é beneficiada pela desoneração da folha de pagamento instituída pela Lei n. 12.546, de 2001, alterada pela Lei n. 13.161, de 2015?
B31: Empresa adere ao PAT (Programa de Alimentação do Trabalhador)?
B32: (Se adere ao PAT): Os valores do auxílio-alimentação apresentados na presente proposta correspondem somente aos efetivamente pagos pela empresa aos empregados?
B34: DECLARAÇÕES
B36: A SEREM PRESTADAS SOMENTE NA HIPÓTESE DE LICITANTE MICROEMPRESA OU EMPRESA DE PEQUENO PORTE, EM CONFORMIDADE COM OS ARTIGOS 17, 18, 30 E 31 DA LEI COMPLEMENTAR N. 123, de 2006, E O ACÓRDÃO TCU 2798/2010-PLENÁRIO
B37: Declaramos que:
B38: a) em se tratando dos serviços vedados descritos no artigo 17 da Lei Complementar n. 123, de 2006, notadamente os descritos no inciso XII (cessão ou locação de mão de obra), ressalvados os serviços listados nos parágrafos 5o-B a 5o-E do artigo 18 da referida Lei, a proposta apresentada não contempla qualquer benefício tributário referente ao SIMPLES NACIONAL, conforme os subitens 5.7 e 5.8 do Edital;
B39: b) na hipótese de contratação desta Microempresa ou Empresa de Pequeno Porte inscrita no SIMPLES NACIONAL e executora de atividade vedada, ficamos sujeitos à exclusão obrigatória no SIMPLES NACIONAL a contar do mês seguinte ao da contratação, em consequência do que dispõem o artigo 17, inciso XII e o artigo 31, inciso II da Lei Complementar n, 123, de 2006, devendo entregar à Câmara dos Deputados, à título de comprovação, cópia de ofício – com comprovante de entrega e recebimento, que comunique a assinatura do contrato de prestação de serviços mediante cessão de mão de obra e encaminhado pela contratada à Receita Federal do Brasil até o último dia útil do mês subsequente ao da contratação, consoante artigo 30, § 1º, inciso II da Lei Complementar n. 123, de 2006.
B41: A SEREM PRESTADAS SOMENTE NA HIPÓTESE DE LICITANTE BENEFICIADA PELA DESONERAÇÃO DA FOLHA DE PAGAMENTO INSTITUÍDA PELA LEI N. 12.546, DE 2011, ALTERADA PELA LEI N. 13.161, DE 2015.
B43: Declaramos, sob as penas da Lei, que:
B44: a) recolhemos a contribuição previdenciária incidente sobre o valor da receita bruta, em substituição às contribuições previdenciárias incidentes sobre a folha de pagamento, previstas nos incisos I e III do caput do artigo 22 da Lei n. 8.212, de 24 de julho de 1991, na forma do caput do artigo 7º (ou 8º) da Lei n. 12.546, de 14 de dezembro de 2011, alterada pela Lei n. 13.161, de 31 de agosto de 2015;
B45: b) temos ciência que nossa manifestação, conforme alínea “a” anterior, será remetida à Receita Federal do Brasil e que, em caso de constatação de falsidade, estará sujeita às sanções administrativas cabíveis, sem prejuízo do encaminhamento dos documentos ao Ministério Público para apuração de eventual responsabilidade criminal desta declarante.
B47: É OBRIGATÓRIA A COMPROVAÇÃO A QUE SE REFERE O SUBITEM 5.9.4 DO TÍTULO 5 DO EDITAL.
B49: DADOS PARA ASSINATURA DO CONTRATO
B50: Nome do signatário
B51: Cargo
B52: Qualificação (CPF, naturalidade e domicílio)
B53: OBS.: O signatário deve possuir poderes de administração estabelecidos em contrato social e/ou possuir procuração com poderes para assinar contratos em nome da empresa. A documentação comprobatória deverá ser encaminhada quando da assinatura do contrato.
B56: Brasília, de de 2022.
B58: Assinatura do representante legal da empresa
B61: Nome do representante legal da empresa

Sheet Remunerações
B1: QUADRO DE REMUNERAÇÕES
C3: ITEM | D3: POSTO DE TRABALHO | E3: QUANTIDADE | F3: SALÁRIO | G3: ADICIONAL DE PERICULOSIDADE | H3: ADICIONAL DE INSALUBRIDADE | I3: ADICIONAL NOTURNO | J3: OUTROS | K3: SALÁRIO COM ADICIONAIS
D4: POSTO DE TRABALHO - EQUIPE DE TRABALHO
C5: 1 | D5: =HLOOKUP($C5,'Dados Gerais'!$D$5:$O$68,6) -> TÉCNICO DE APOIO A OPERAÇÕES EM DATA CENTER (JORNADAS DE 7 ÀS 13H E DE 13 ÀS 19H) | E5: =HLOOKUP($C5,'Dados Gerais'!$D$5:$O$68,10) -> 6 | F5: =HLOOKUP($C5,'Dados Gerais'!$D$5:$O$68,8) -> 2627.81 | G5: =HLOOKUP($C5,'Dados Gerais'!$D$5:$O$68,25) -> 0 | H5: =HLOOKUP($C5,'Dados Gerais'!$D$5:$O$68,31) -> 0 | I5: =HLOOKUP($C5,'Dados Gerais'!$D$5:$O$68,46) -> 0 | J5: =HLOOKUP($C5,'Dados Gerais'!$D$5:$O$68,33) -> 0 | K5: =SUM(F5:J5) -> 2627.81 | M5: =E5*K5 -> 15766.86
C6: 2 | D6: =HLOOKUP($C6,'Dados Gerais'!$D$5:$O$68,6) -> TÉCNICO DE APOIO A OPERAÇÕES EM DATA CENTER (JORNADA DAS 19 À 1H) | E6: =HLOOKUP($C6,'Dados Gerais'!$D$5:$O$68,10) -> 3 | F6: =HLOOKUP($C6,'Dados Gerais'!$D$5:$O$68,8) -> 2627.81 | G6: =HLOOKUP($C6,'Dados Gerais'!$D$5:$O$68,25) -> 0 | H6: =HLOOKUP($C6,'Dados Gerais'!$D$5:$O$68,31) -> 0 | I6: =HLOOKUP($C6,'Dados Gerais'!$D$5:$O$68,46) -> 227.74 | J6: =HLOOKUP($C6,'Dados Gerais'!$D$5:$O$68,33) -> 0 | K6: =SUM(F6:J6) -> 2855.55 | M6: =E6*K6 -> 8566.65
C7: 3 | D7: =HLOOKUP($C7,'Dados Gerais'!$D$5:$O$68,6) -> TÉCNICO DE APOIO A OPERAÇÕES EM DATA CENTER (JORNADA DA 1H ÀS 7H) | E7: =HLOOKUP($C7,'Dados Gerais'!$D$5:$O$68,10) -> 3 | F7: =HLOOKUP($C7,'Dados Gerais'!$D$5:$O$68,8) -> 2627.81 | G7: =HLOOKUP($C7,'Dados Gerais'!$D$5:$O$68,25) -> 0 | H7: =HLOOKUP($C7,'Dados Gerais'!$D$5:$O$68,31) -> 0 | I7: =HLOOKUP($C7,'Dados Gerais'!$D$5:$O$68,46) -> 379.57 | J7: =HLOOKUP($C7,'Dados Gerais'!$D$5:$O$68,33) -> 0 | K7: 3007.38 | M7: 9022.14
C8: 4 | D8: =HLOOKUP($C8,'Dados Gerais'!$D$5:$O$68,6) -> TÉCNICO DE APOIO AO MONITORAMENTO DA INFRAESTRUTURA (JORNADAS DE 7 ÀS 13H E DE 13 ÀS 19H) | E8: =HLOOKUP($C8,'Dados Gerais'!$D$5:$O$68,10) -> 6 | F8: =HLOOKUP($C8,'Dados Gerais'!$D$5:$O$68,8) -> 2627.81 | G8: =HLOOKUP($C8,'Dados Gerais'!$D$5:$O$68,25) -> 0 | H8: =HLOOKUP($C8,'Dados Gerais'!$D$5:$O$68,31) -> 0 | I8: =HLOOKUP($C8,'Dados Gerais'!$D$5:$O$68,46) -> 0 | J8: =HLOOKUP($C8,'Dados Gerais'!$D$5:$O$68,33) -> 0 | K8: 2627.81 | M8: 15766.86
C9: 5 | D9: =HLOOKUP($C9,'Dados Gerais'!$D$5:$O$68,6) -> TÉCNICO DE APOIO AO MONITORAMENTO DA INFRAESTRUTURA (JORNADA DAS 19 À 1H) | E9: =HLOOKUP($C9,'Dados Gerais'!$D$5:$O$68,10) -> 3 | F9: =HLOOKUP($C9,'Dados Gerais'!$D$5:$O$68,8) -> 2627.81 | G9: =HLOOKUP($C9,'Dados Gerais'!$D$5:$O$68,25) -> 0 | H9: =HLOOKUP($C9,'Dados Gerais'!$D$5:$O$68,31) -> 0 | I9: =HLOOKUP($C9,'Dados Gerais'!$D$5:$O$68,46) -> 227.74 | J9: =HLOOKUP($C9,'Dados Gerais'!$D$5:$O$68,33) -> 0 | K9: 2855.55 | M9: 8566.65
C10: 6 | D10: =HLOOKUP($C10,'Dados Gerais'!$D$5:$O$68,6) -> TÉCNICO DE APOIO AO MONITORAMENTO DA INFRAESTRUTURA (JORNADA DA 1H ÀS 7H) | E10: =HLOOKUP($C10,'Dados Gerais'!$D$5:$O$68,10) -> 3 | F10: =HLOOKUP($C10,'Dados Gerais'!$D$5:$O$68,8) -> 2627.81 | G10: =HLOOKUP($C10,'Dados Gerais'!$D$5:$O$68,25) -> 0 | H10: =HLOOKUP($C10,'Dados Gerais'!$D$5:$O$68,31) -> 0 | I10: =HLOOKUP($C10,'Dados Gerais'!$D$5:$O$68,46) -> 379.57 | J10: =HLOOKUP($C10,'Dados Gerais'!$D$5:$O$68,33) -> 0 | K10: =SUM(F10:J10) -> 3007.38 | M10: 9022.14
C11: 7 | D11: =HLOOKUP($C11,'Dados Gerais'!$D$5:$O$68,6) -> TÉCNICO INSTALADOR DE CABEAMENTO | E11: =HLOOKUP($C11,'Dados Gerais'!$D$5:$O$68,10) -> 7 | F11: =HLOOKUP($C11,'Dados Gerais'!$D$5:$O$68,8) -> 2314.46 | G11: =HLOOKUP($C11,'Dados Gerais'!$D$5:$O$68,25) -> 0 | H11: =HLOOKUP($C11,'Dados Gerais'!$D$5:$O$68,31) -> 0 | I11: =HLOOKUP($C11,'Dados Gerais'!$D$5:$O$68,46) -> 0 | J11: =HLOOKUP($C11,'Dados Gerais'!$D$5:$O$68,33) -> 0 | K11: 2314.46 | M11: 16201.22
C12: 8 | D12: =HLOOKUP($C12,'Dados Gerais'!$D$5:$O$68,6) -> TÉCNICO DE MANUTENÇÃO DE INFRAESTRUTURA DE REDE | E12: =HLOOKUP($C12,'Dados Gerais'!$D$5:$O$68,10) -> 8 | F12: =HLOOKUP($C12,'Dados Gerais'!$D$5:$O$68,8) -> 3130.93 | G12: =HLOOKUP($C12,'Dados Gerais'!$D$5:$O$68,25) -> 0 | H12: =HLOOKUP($C12,'Dados Gerais'!$D$5:$O$68,31) -> 0 | I12: =HLOOKUP($C12,'Dados Gerais'!$D$5:$O$68,46) -> 0 | J12: =HLOOKUP($C12,'Dados Gerais'!$D$5:$O$68,33) -> 0 | K12: =SUM(F12:J12) -> 3130.93 | M12: 25047.44
C13: 9 | D13: =HLOOKUP($C13,'Dados Gerais'!$D$5:$O$68,6) -> ANALISTA DE INFRAESTRUTURA DE TI PLENO | E13: =HLOOKUP($C13,'Dados Gerais'!$D$5:$O$68,10) -> 6 | F13: =HLOOKUP($C13,'Dados Gerais'!$D$5:$O$68,8) -> 6192.84 | G13: =HLOOKUP($C13,'Dados Gerais'!$D$5:$O$68,25) -> 0 | H13: =HLOOKUP($C13,'Dados Gerais'!$D$5:$O$68,31) -> 0 | I13: =HLOOKUP($C13,'Dados Gerais'!$D$5:$O$68,46) -> 0 | J13: =HLOOKUP($C13,'Dados Gerais'!$D$5:$O$68,33) -> 0 | K13: 6192.84 | M13: 37157.04
C14: 10 | D14: =HLOOKUP($C14,'Dados Gerais'!$D$5:$O$68,6) -> ANALISTA DE INFRAESTRUTURA DE TI SÊNIOR | E14: =HLOOKUP($C14,'Dados Gerais'!$D$5:$O$68,10) -> 26 | F14: =HLOOKUP($C14,'Dados Gerais'!$D$5:$O$68,8) -> 8113.11 | G14: =HLOOKUP($C14,'Dados Gerais'!$D$5:$O$68,25) -> 0 | H14: =HLOOKUP($C14,'Dados Gerais'!$D$5:$O$68,31) -> 0 | I14: =HLOOKUP($C14,'Dados Gerais'!$D$5:$O$68,46) -> 0 | J14: =HLOOKUP($C14,'Dados Gerais'!$D$5:$O$68,33) -> 0 | K14: 8113.11 | M14: 210940.86
C15: 11 | D15: =HLOOKUP($C15,'Dados Gerais'!$D$5:$O$68,6) -> ANALISTA DE INFRAESTRUTURA DE TI MASTER | E15: =HLOOKUP($C15,'Dados Gerais'!$D$5:$O$68,10) -> 26 | F15: =HLOOKUP($C15,'Dados Gerais'!$D$5:$O$68,8) -> 10366.92 | G15: =HLOOKUP($C15,'Dados Gerais'!$D$5:$O$68,25) -> 0 | H15: =HLOOKUP($C15,'Dados Gerais'!$D$5:$O$68,31) -> 0 | I15: =HLOOKUP($C15,'Dados Gerais'!$D$5:$O$68,46) -> 0 | J15: =HLOOKUP($C15,'Dados Gerais'!$D$5:$O$68,33) -> 0 | K15: 10366.92 | M15: 269539.92
C16: 12 | D16: =HLOOKUP($C16,'Dados Gerais'!$D$5:$O$68,6) -> SUPERVISOR TÉCNICO | E16: =HLOOKUP($C16,'Dados Gerais'!$D$5:$O$68,10) -> 3 | F16: =HLOOKUP($C16,'Dados Gerais'!$D$5:$O$68,8) -> 13944.34 | G16: =HLOOKUP($C16,'Dados Gerais'!$D$5:$O$68,25) -> 0 | H16: =HLOOKUP($C16,'Dados Gerais'!$D$5:$O$68,31) -> 0 | I16: =HLOOKUP($C16,'Dados Gerais'!$D$5:$O$68,46) -> 0 | J16: =HLOOKUP($C16,'Dados Gerais'!$D$5:$O$68,33) -> 0 | K16: 13944.34 | M16: 41833.02
M17: 0
D18: TOTAL DE POSTOS | E18: =SUM(E5:E17) -> 100

Sheet RESUMO
B3: RESUMO - TOTAIS MENSAIS - FATURA ORDINÁRIA (SEM O 13º E SEM OS ITENS SOB DEMANDA)
C6: ITEM | D6: POSTO DE TRABALHO | E6: QUANTIDADE | F6: PREÇO UNIT (SEM O 13º) | G6: DESTAQUE DO 13º | H6: PREÇO POR EMPREGADO | I6: PREÇO TOTAL (MENSAL)
C7: 1 | D7: =HLOOKUP(C7,'Dados Gerais'!$D$5:$BK$10,6) -> TÉCNICO DE APOIO A OPERAÇÕES EM DATA CENTER (JORNADAS DE 7 ÀS 13H E DE 13 ÀS 19H) | E7: =HLOOKUP(C7,'Dados Gerais'!$D$5:$BK$14,10) -> 6 | F7: ='1'!$E$116 -> 7069.036975 | G7: 0 | H7: =G7+F7 -> 7069.036975 | I7: =H7*E7 -> 42414.22185
C8: 2 | D8: =HLOOKUP(C8,'Dados Gerais'!$D$5:$BK$10,6) -> TÉCNICO DE APOIO A OPERAÇÕES EM DATA CENTER (JORNADA DAS 19 À 1H) | E8: =HLOOKUP(C8,'Dados Gerais'!$D$5:$BK$14,10) -> 3 | F8: ='2'!$E$116 -> 7528.554187 | G8: 0 | H8: 7528.554187 | I8: 22585.66256
C9: 3 | D9: =HLOOKUP(C9,'Dados Gerais'!$D$5:$BK$10,6) -> TÉCNICO DE APOIO A OPERAÇÕES EM DATA CENTER (JORNADA DA 1H ÀS 7H) | E9: =HLOOKUP(C9,'Dados Gerais'!$D$5:$BK$14,10) -> 3 | F9: ='3'!$E$116 -> 7834.873893 | G9: 0 | H9: 7834.873893 | I9: 23504.62168
C10: 4 | D10: =HLOOKUP(C10,'Dados Gerais'!$D$5:$BK$10,6) -> TÉCNICO DE APOIO AO MONITORAMENTO DA INFRAESTRUTURA (JORNADAS DE 7 ÀS 13H E DE 13 ÀS 19H) | E10: =HLOOKUP(C10,'Dados Gerais'!$D$5:$BK$14,10) -> 6 | F10: ='4'!$E$116 -> 7069.036975 | G10: 0 | H10: 7069.036975 | I10: 42414.22185
C11: 5 | D11: =HLOOKUP(C11,'Dados Gerais'!$D$5:$BK$10,6) -> TÉCNICO DE APOIO AO MONITORAMENTO DA INFRAESTRUTURA (JORNADA DAS 19 À 1H) | E11: =HLOOKUP(C11,'Dados Gerais'!$D$5:$BK$14,10) -> 3 | F11: ='5'!$E$116 -> 7528.554187 | G11: 0 | H11: 7528.554187 | I11: 22585.66256
C12: 6 | D12: =HLOOKUP(C12,'Dados Gerais'!$D$5:$BK$10,6) -> TÉCNICO DE APOIO AO MONITORAMENTO DA INFRAESTRUTURA (JORNADA DA 1H ÀS 7H) | E12: =HLOOKUP(C12,'Dados Gerais'!$D$5:$BK$14,10) -> 3 | F12: ='6'!$E$116 -> 7834.873893 | G12: 0 | H12: 7834.873893 | I12: 23504.62168
C13: 7 | D13: =HLOOKUP(C13,'Dados Gerais'!$D$5:$BK$10,6) -> TÉCNICO INSTALADOR DE CABEAMENTO | E13: =HLOOKUP(C13,'Dados Gerais'!$D$5:$BK$14,10) -> 7 | F13: ='7'!$E$116 -> 6920.897522 | G13: 0 | H13: 6920.897522 | I13: 48446.28265
C14: 8 | D14: =HLOOKUP(C14,'Dados Gerais'!$D$5:$BK$10,6) -> TÉCNICO DE MANUTENÇÃO DE INFRAESTRUTURA DE REDE | E14: =HLOOKUP(C14,'Dados Gerais'!$D$5:$BK$14,10) -> 8 | F14: ='8'!$E$116 -> 8329.169926 | G14: 0 | H14: =G14+F14 -> 8329.169926 | I14: =H14*E14 -> 66633.35941
C15: 9 | D15: =HLOOKUP(C15,'Dados Gerais'!$D$5:$BK$10,6) -> ANALISTA DE INFRAESTRUTURA DE TI PLENO | E15: =HLOOKUP(C15,'Dados Gerais'!$D$5:$BK$14,10) -> 6 | F15: ='9'!$E$116 -> 13775.9776 | G15: 0 | H15: 13775.9776 | I15: 82655.8656
C16: 10 | D16: =HLOOKUP(C16,'Dados Gerais'!$D$5:$BK$10,6) -> ANALISTA DE INFRAESTRUTURA DE TI SÊNIOR | E16: =HLOOKUP(C16,'Dados Gerais'!$D$5:$BK$14,10) -> 26 | F16: ='10'!$E$116 -> 17650.5215 | G16: 0 | H16: =G16+F16 -> 17650.5215 | I16: =H16*E16 -> 458913.5591
C17: 11 | D17: =HLOOKUP(C17,'Dados Gerais'!$D$5:$BK$10,6) -> ANALISTA DE INFRAESTRUTURA DE TI MASTER | E17: =HLOOKUP(C17,'Dados Gerais'!$D$5:$BK$14,10) -> 26 | F17: ='11'!$E$116 -> 22198.06258 | G17: 0 | H17: 22198.06258 | I17: 577149.6271
C18: 12 | D18: =HLOOKUP(C18,'Dados Gerais'!$D$5:$BK$10,6) -> SUPERVISOR TÉCNICO | E18: =HLOOKUP(C18,'Dados Gerais'!$D$5:$BK$14,10) -> 3 | F18: ='12'!$E$116 -> 29416.29329 | G18: 0 | H18: 29416.29329 | I18: 88248.87987
D20: TOTAL MENSAL - SALÁRIOS | I20: =SUM(I7:I19) -> 1499056.586
B23: RESUMO - TOTAIS MENSAIS - DESTAQUE DO 13º SALÁRIO
C26: ITEM | D26: POSTO DE TRABALHO | E26: QUANTIDADE | F26: PREÇO UNIT (SEM O 13º) | G26: DESTAQUE DO 13º | H26: PREÇO POR EMPREGADO | I26: PREÇO TOTAL (MENSAL)
C27: 1 | D27: =HLOOKUP(C27,'Dados Gerais'!$D$5:$BK$10,6) -> TÉCNICO DE APOIO A OPERAÇÕES EM DATA CENTER (JORNADAS DE 7 ÀS 13H E DE 13 ÀS 19H) | E27: =HLOOKUP(C27,'Dados Gerais'!$D$5:$BK$14,10) -> 6 | F27: 0 | G27: ='1'!$E$117 -> 390.4 | H27: =G27+F27 -> 390.4 | I27: =H27*E27 -> 2342.4
C28: 2 | D28: =HLOOKUP(C28,'Dados Gerais'!$D$5:$BK$10,6) -> TÉCNICO DE APOIO A OPERAÇÕES EM DATA CENTER (JORNADA DAS 19 À 1H) | E28: =HLOOKUP(C28,'Dados Gerais'!$D$5:$BK$14,10) -> 3 | F28: 0 | G28: ='2'!$E$117 -> 424.23 | H28: =G28+F28 -> 424.23 | I28: 1272.69
C29: 3 | D29: =HLOOKUP(C29,'Dados Gerais'!$D$5:$BK$10,6) -> TÉCNICO DE APOIO A OPERAÇÕES EM DATA CENTER (JORNADA DA 1H ÀS 7H) | E29: =HLOOKUP(C29,'Dados Gerais'!$D$5:$BK$14,10) -> 3 | F29: 0 | G29: ='3'!$E$117 -> 446.8 | H29: 446.8 | I29: 1340.4
C30: 4 | D30: =HLOOKUP(C30,'Dados Gerais'!$D$5:$BK$10,6) -> TÉCNICO DE APOIO AO MONITORAMENTO DA INFRAESTRUTURA (JORNADAS DE 7 ÀS 13H E DE 13 ÀS 19H) | E30: =HLOOKUP(C30,'Dados Gerais'!$D$5:$BK$14,10) -> 6 | F30: 0 | G30: ='4'!$E$117 -> 390.4 | H30: 390.4 | I30: 2342.4
C31: 5 | D31: =HLOOKUP(C31,'Dados Gerais'!$D$5:$BK$10,6) -> TÉCNICO DE APOIO AO MONITORAMENTO DA INFRAESTRUTURA (JORNADA DAS 19 À 1H) | E31: =HLOOKUP(C31,'Dados Gerais'!$D$5:$BK$14,10) -> 3 | F31: 0 | G31: ='5'!$E$117 -> 424.23 | H31: 424.23 | I31: 1272.69
C32: 6 | D32: =HLOOKUP(C32,'Dados Gerais'!$D$5:$BK$10,6) -> TÉCNICO DE APOIO AO MONITORAMENTO DA INFRAESTRUTURA (JORNADA DA 1H ÀS 7H) | E32: =HLOOKUP(C32,'Dados Gerais'!$D$5:$BK$14,10) -> 3 | F32: 0 | G32: ='6'!$E$117 -> 446.8 | H32: 446.8 | I32: 1340.4
C33: 7 | D33: =HLOOKUP(C33,'Dados Gerais'!$D$5:$BK$10,6) -> TÉCNICO INSTALADOR DE CABEAMENTO | E33: =HLOOKUP(C33,'Dados Gerais'!$D$5:$BK$14,10) -> 7 | F33: 0 | G33: ='7'!$E$117 -> 343.84 | H33: =G33+F33 -> 343.84 | I33: 2406.88
C34: 8 | D34: =HLOOKUP(C34,'Dados Gerais'!$D$5:$BK$10,6) -> TÉCNICO DE MANUTENÇÃO DE INFRAESTRUTURA DE REDE | E34: =HLOOKUP(C34,'Dados Gerais'!$D$5:$BK$14,10) -> 8 | F34: 0 | G34: ='8'!$E$117 -> 465.15 | H34: =G34+F34 -> 465.15 | I34: =H34*E34 -> 3721.2
C35: 9 | D35: =HLOOKUP(C35,'Dados Gerais'!$D$5:$BK$10,6) -> ANALISTA DE INFRAESTRUTURA DE TI PLENO | E35: =HLOOKUP(C35,'Dados Gerais'!$D$5:$BK$14,10) -> 6 | F35: 0 | G35: ='9'!$E$117 -> 920.04 | H35: =G35+F35 -> 920.04 | I35: 5520.24
C36: 10 | D36: =HLOOKUP(C36,'Dados Gerais'!$D$5:$BK$10,6) -> ANALISTA DE INFRAESTRUTURA DE TI SÊNIOR | E36: =HLOOKUP(C36,'Dados Gerais'!$D$5:$BK$14,10) -> 26 | F36: 0 | G36: ='10'!$E$117 -> 1205.32 | H36: 1205.32 | I36: 31338.32
C37: 11 | D37: =HLOOKUP(C37,'Dados Gerais'!$D$5:$BK$10,6) -> ANALISTA DE INFRAESTRUTURA DE TI MASTER | E37: =HLOOKUP(C37,'Dados Gerais'!$D$5:$BK$14,10) -> 26 | F37: 0 | G37: ='11'!$E$117 -> 1540.17 | H37: 1540.17 | I37: 40044.42
C38: 12 | D38: =HLOOKUP(C38,'Dados Gerais'!$D$5:$BK$10,6) -> SUPERVISOR TÉCNICO | E38: =HLOOKUP(C38,'Dados Gerais'!$D$5:$BK$14,10) -> 3 | F38: 0 | G38: ='12'!$E$117 -> 2071.65 | H38: 2071.65 | I38: 6214.95
D40: TOTAL MENSAL - DESTAQUE DO 13º | I40: =SUM(I27:I39) -> 99156.99
B43: RESUMO - TOTAIS MENSAIS - FATURA ORDINÁRIA TOTAL
C46: ITEM | D46: POSTO DE TRABALHO | E46: QUANTIDADE | F46: PREÇO UNIT (SEM O 13º) | G46: DESTAQUE DO 13º | H46: PREÇO POR EMPREGADO | I46: PREÇO TOTAL (MENSAL)
C47: 1 | D47: =HLOOKUP(C47,'Dados Gerais'!$D$5:$BK$10,6) -> TÉCNICO DE APOIO A OPERAÇÕES EM DATA CENTER (JORNADAS DE 7 ÀS 13H E DE 13 ÀS 19H) | E47: =HLOOKUP(C47,'Dados Gerais'!$D$5:$BK$14,10) -> 6 | F47: =F7 -> 7069.036975 | G47: =G27 -> 390.4 | H47: =G47+F47 -> 7459.436975 | I47: =H47*E47 -> 44756.62185 | K47: =I47/$I$60 -> 0.02800415572 | L47: =$I$75*K47 -> 1581.73375
C48: 2 | D48: =HLOOKUP(C48,'Dados Gerais'!$D$5:$BK$10,6) -> TÉCNICO DE APOIO A OPERAÇÕES EM DATA CENTER (JORNADA DAS 19 À 1H) | E48: =HLOOKUP(C48,'Dados Gerais'!$D$5:$BK$14,10) -> 3 | F48: =F8 -> 7528.554187 | G48: =G28 -> 424.23 | H48: 7952.784187 | I48: 23858.35256 | K48: 0.01492813784 | L48: 843.172695
C49: 3 | D49: =HLOOKUP(C49,'Dados Gerais'!$D$5:$BK$10,6) -> TÉCNICO DE APOIO A OPERAÇÕES EM DATA CENTER (JORNADA DA 1H ÀS 7H) | E49: =HLOOKUP(C49,'Dados Gerais'!$D$5:$BK$14,10) -> 3 | F49: 7834.873893 | G49: 446.8 | H49: 8281.673893 | I49: 24845.02168 | K49: 0.01554549533 | L49: 878.0423473
C50: 4 | D50: =HLOOKUP(C50,'Dados Gerais'!$D$5:$BK$10,6) -> TÉCNICO DE APOIO AO MONITORAMENTO DA INFRAESTRUTURA (JORNADAS DE 7 ÀS 13H E DE 13 ÀS 19H) | E50: =HLOOKUP(C50,'Dados Gerais'!$D$5:$BK$14,10) -> 6 | F50: 7069.036975 | G50: 390.4 | H50: 7459.436975 | I50: 44756.62185 | K50: 0.02800415572 | L50: 1581.73375
C51: 5 | D51: =HLOOKUP(C51,'Dados Gerais'!$D$5:$BK$10,6) -> TÉCNICO DE APOIO AO MONITORAMENTO DA INFRAESTRUTURA (JORNADA DAS 19 À 1H) | E51: =HLOOKUP(C51,'Dados Gerais'!$D$5:$BK$14,10) -> 3 | F51: 7528.554187 | G51: 424.23 | H51: 7952.784187 | I51: 23858.35256 | K51: 0.01492813784 | L51: 843.172695
C52: 6 | D52: =HLOOKUP(C52,'Dados Gerais'!$D$5:$BK$10,6) -> TÉCNICO DE APOIO AO MONITORAMENTO DA INFRAESTRUTURA (JORNADA DA 1H ÀS 7H) | E52: =HLOOKUP(C52,'Dados Gerais'!$D$5:$BK$14,10) -> 3 | F52: 7834.873893 | G52: 446.8 | H52: 8281.673893 | I52: 24845.02168 | K52: 0.01554549533 | L52: 878.0423473
C53: 7 | D53: =HLOOKUP(C53,'Dados Gerais'!$D$5:$BK$10,6) -> TÉCNICO INSTALADOR DE CABEAMENTO | E53: =HLOOKUP(C53,'Dados Gerais'!$D$5:$BK$14,10) -> 7 | F53: 6920.897522 | G53: 343.84 | H53: 7264.737522 | I53: 50853.16265 | K53: 0.03181875278 | L53: 1797.190233
C54: 8 | D54: =HLOOKUP(C54,'Dados Gerais'!$D$5:$BK$10,6) -> TÉCNICO DE MANUTENÇÃO DE INFRAESTRUTURA DE REDE | E54: =HLOOKUP(C54,'Dados Gerais'!$D$5:$BK$14,10) -> 8 | F54: 8329.169926 | G54: 465.15 | H54: =G54+F54 -> 8794.319926 | I54: =H54*E54 -> 70354.55941 | K54: 0.04402074946 | L54: 2486.384729
C55: 9 | D55: =HLOOKUP(C55,'Dados Gerais'!$D$5:$BK$10,6) -> ANALISTA DE INFRAESTRUTURA DE TI PLENO | E55: =HLOOKUP(C55,'Dados Gerais'!$D$5:$BK$14,10) -> 6 | F55: 13775.9776 | G55: 920.04 | H55: 14696.0176 | I55: 88176.1056 | K55: 0.055171666 | L55: 3116.212002
C56: 10 | D56: =HLOOKUP(C56,'Dados Gerais'!$D$5:$BK$10,6) -> ANALISTA DE INFRAESTRUTURA DE TI SÊNIOR | E56: =HLOOKUP(C56,'Dados Gerais'!$D$5:$BK$14,10) -> 26 | F56: 17650.5215 | G56: 1205.32 | H56: 18855.8415 | I56: 490251.8791 | K56: 0.3067499153 | L56: 17325.88187
C57: 11 | D57: =HLOOKUP(C57,'Dados Gerais'!$D$5:$BK$10,6) -> ANALISTA DE INFRAESTRUTURA DE TI MASTER | E57: =HLOOKUP(C57,'Dados Gerais'!$D$5:$BK$14,10) -> 26 | F57: 22198.06258 | G57: 1540.17 | H57: 23738.23258 | I57: 617194.0471 | K57: 0.3861774524 | L57: 21812.1166
C58: 12 | D58: =HLOOKUP(C58,'Dados Gerais'!$D$5:$BK$10,6) -> SUPERVISOR TÉCNICO | E58: =HLOOKUP(C58,'Dados Gerais'!$D$5:$BK$14,10) -> 3 | F58: 29416.29329 | G58: 2071.65 | H58: =G58+F58 -> 31487.94329 | I58: =H58*E58 -> 94463.82987 | K58: 0.05910588628 | L58: 3338.425057
D60: TOTAL MENSAL - SALÁRIOS | I60: =SUM(I47:I59) -> 1598213.576
C62: ITEM | D62: DESCRIÇÃO | I62: PREÇO TOTAL (MENSAL)
C63: EQUIP | D63: EQUIPAMENTOS NÃO RELACIONADOS DIRETAMENTE A UM POSTO DE TRABALHO | I63: 0
C64: HEXTRA | D64: HORAS EXTRAS (SOB DEMANDA) | I64: ='Horas extras_Demanda'!G76 -> 0
C65: HNOT | D65: ADICIONAL DE HORAS NOTURNAS (SOB DEMANDA) | I65: ='Not. Demanda'!G48 -> 2325.50155
C66: SOBREAV | D66: HORAS DE SOBREAVISO (SOB DEMANDA) | I66: =SOBREAVISO!G42 -> 50384.77153
C67: SREP | D67: SISTEMA DE REGISTRO ELETRÔNICO DE PRESENÇA - SREP | I67: 0
C68: UNIFORMES - SOB DEMANDA | D68: UNIFORMES (SOB DEMANDA) | I68: ='Uniformes - SOB DEMANDA'!K17 -> 399.8166667
C69: EPI - N.REL | D69: EQUIPAMENTOS DE PROTEÇÃO INDIVIDUAL NÃO RELACIONADOS DIRETAMENTE A UM POSTO DE TRABALHO | I69: ='Não Rel - EPI'!K19 -> 863.7283333
C70: FERR - N.REL | D70: FERRAMENTAS NÃO RELACIONADAS DIRETAMENTE A UM POSTO DE TRABALHO | I70: ='Não Rel - Depr'!M65 -> 2508.29
C71: MAT SOB DEMANDA | D71: MATERIAIS NÃO RELACIONADOS DIRETAMENTE A UM POSTO DE TRABALHO - AQUISIÇÃO SOB DEMANDA | I71: ='Não Rel - Mat Consumo'!L56 -> 0
C72: MAT CONS DURAVEL SOB DEMANDA | D72: MATERIAIS DE CONSUMO DURÁVEL NÃO RELACIONADOS DIRETAMENTE A UM POSTO DE TRABALHO - AQUISIÇÃO SOB DEMANDA | I72: ='Não Rel - Mat Cons Durável'!L42 -> 0
C73: EQ SOB DEMANDA | D73: SERVIÇOS NÃO RELACIONADOS DIRETAMENTE A UM POSTO DE TRABALHO - AQUISIÇÃO SOB DEMANDA | I73: ='Não Rel - Serviços'!K18 -> 0
D75: TOTAL MENSAL - OUTROS ITENS | I75: =SUM(I63:I74) -> 56482.10808 | K75: =(I75+I60)*12 -> 19856348.21
D77: TOTAL MENSAL - ITENS ORDINÁRIOS
D78: DESCRIÇÃO | H78: VALOR
D79: Postos de Trabalho - Inclusive 13º Salário | H79: =I60 -> 1598213.576
D80: Adicional de Horas Noturnas | H80: 0
D81: Sistema de Registro Eletrônico de Presença - SREP | H81: 0
D82: Equipamentos de Proteção Individual não relacionados diretamente a um posto de trabalho | H82: =I69 -> 863.7283333
D83: Ferramentas não relacionadas diretamente a um posto de trabalho | H83: =I70 -> 2508.29
G85: TOTAL MENSAL DA CONTRATAÇÃO - ITENS ORDINÁRIOS | H85: =SUM(H79:H84) -> 1601585.594
D87: TOTAL ANUAL - ITENS ORDINÁRIOS
G89: 12 x TOTAL MENSAL | H89: =H85*12 -> 19219027.13
D91: TOTAL MENSAL - ITENS SOB DEMANDA
D92: DESCRIÇÃO | H92: VALOR
D93: HORAS EXTRAS (SOB DEMANDA) | H93: =I64 -> 0
D94: UNIFORMES (SOB DEMANDA) | H94: 399.8166667
D95: ADICIONAL DE HORAS NOTURNAS (SOB DEMANDA) | H95: 2325.50155
D96: HORAS DE SOBREAVISO (SOB DEMANDA) | H96: 50384.77153
G98: TOTAL MENSAL DA CONTRATAÇÃO - ITENS SOB DEMANDA | H98: =SUM(H93:H97) -> 53110.08974
D100: TOTAL ANUAL - ITENS SOB DEMANDA
G102: 12 x TOTAL MENSAL | H102: =H98*12 -> 637321.0769
D104: TOTAL ANUAL GLOBAL DA CONTRATAÇÃO
H106: =$H$102+$H$89 -> 19856348.21
D112: =Extenso_Valor(H112) -> um milhão, seiscentos e cinquenta e quatro mil, seiscentos e noventa e cinco reais e sessenta e oito centavos | H112: =H85+H98 -> 1654695.684

Sheet 1
B2: PLANILHA DE ESTIMATIVA DE CUSTOS
B3: Padrão IN 05/2017 e IN 07/2018 - MPDG
B5: 1 | D5: =HLOOKUP($B$5,'Dados Gerais'!$D$5:$BK$20,6) -> TÉCNICO DE APOIO A OPERAÇÕES EM DATA CENTER (JORNADAS DE 7 ÀS 13H E DE 13 ÀS 19H) | E5: QUANTIDADE | F5: =HLOOKUP($B$5,'Dados Gerais'!$D$5:$BK$20,10) -> 6
B6: CCT | D6: =HLOOKUP($B$5,'Dados Gerais'!$D$5:$BK$20,15) -> SINDPD/DF X SINDESEI/DF 2021/2022 Nº DF000608/2021 | E6: DATA-BASE | F6: ='Dados Gerais'!F20 -> 2021-05-01
B8: MÓDULO 1 - COMPOSIÇÃO DA REMUNERAÇÃO | F8: Valor
C9: A | D9: Salário-Base | F9: =HLOOKUP($B$5,'Dados Gerais'!$D$5:$BK$20,8) -> 2627.81
C10: B | D10: Adicional de Periculosidade | F10: =HLOOKUP($B$5,'Dados Gerais'!$D$5:$BK$37,25) -> 0
C11: C | D11: Adicional de Insalubridade | F11: =HLOOKUP($B$5,'Dados Gerais'!$D$5:$BK$37,31) -> 0
C12: D | D12: Adicional Noturno | F12: =HLOOKUP($B$5,'Dados Gerais'!$D$5:$BK$50,46) -> 0 | H12: * Nota 1 - O Módulo 1 refere-se ao valor mensal devido ao empregado pela prestação do serviço no período de 12 meses.
C13: E | D13: Adicional de Hora Extra | F13: =HLOOKUP($B$5,'Dados Gerais'!$D$5:$BK$67,63) -> 0 | H13: * Nota 2 - O adicional de hora extra no feriado trabalhado foi suprimido pela Lei 13.467/17
C14: F | D14: Outros (especificar) | F14: =HLOOKUP($B$5,'Dados Gerais'!$D$5:$BK$59,33) -> 0 | H14: * Nota 3 - ART. 7º, § 2º, DA LEI Nº 605/49.Sendo mensalista o obreiro, o adicional noturno pago de forma fixa já é considerado integrado para os efeitos do pagamento do repouso semanal remunerado, nos termos do art. 7º, § 2º, da Lei nº 605/49.
D16: TOTAL DA REMUNERAÇÃO | F16: =SUM(F9:F14) -> 2627.81
B18: MÓDULO 2 - ENCARGOS E BENEFÍCIOS ANUAIS, MENSAIS E DIÁRIOS | E18: Percentuais | F18: Valor
B19: Submódulo 2.1 - 13º Salário, Férias e Adicional de Férias
C20: A | D20: 13º Salário - Calculado no Módulo 7 - Destacado | E20: 0 | F20: =ROUND(E20*F$16,2) -> 0 | H20: * Nota 1 - Provisiona-se, mensalmente, o proporcional a 1/11 dos valores referentes a gratificação natalina, férias e adicional de férias.
C21: B | D21: Adicional de Férias | E21: ='Encargos Sociais'!E30 -> 0.0303030303 | F21: =ROUND(E21*F$16,2) -> 79.63 | H21: * Nota 2 - O adicional de férias contido no Submódulo 2.1 corresponde a 1/3 da remuneração que, por sua vez, é dividida por 11 contome Nota 1.
B23: Submódulo 2.2 - Encargos Previdenciários (GPS), Fundo de Garantia por Tempo de Serviço (FGTS) e Outras Contribuições
C24: A | D24: INSS (art. 22, inciso I, Lei nº 8.212/91) | E24: ='Encargos Sociais'!E13 -> 0.2 | F24: =ROUND(E24*($F$16+$F$41+$F$73),2) -> 599.8
C25: B | D25: Salário Educação (art. 3º, inciso I, Decreto nº 87.043/82) | E25: ='Encargos Sociais'!E14 -> 0.025 | F25: =ROUND(E25*($F$16+$F$41+$F$73),2) -> 74.97
C26: C | D26: SAT/RAT (art. 22, II, Lei 8.212/91 e Anexo V, Decreto 6.042/07) - Enquadramento 8211-3/00 | E26: ='Encargos Sociais'!E15 -> 0.01 | F26: 29.99
C27: D | D27: SESC ou SESI (art. 30, Lei nº 8.036/90 e art. 1º, Lei 8.154/90) | E27: ='Encargos Sociais'!E16 -> 0.015 | F27: 44.98
C28: E | D28: SENAI ou SENAC (Decreto nº 2.318/86) | E28: ='Encargos Sociais'!E17 -> 0.01 | F28: 29.99
C29: F | D29: SEBRAE (§ 3º, art. 8º, Lei 8.029/90, alterada pela Lei nº 8.154/90) | E29: ='Encargos Sociais'!E18 -> 0.006 | F29: 17.99
C30: G | D30: INCRA (art. 1º, I, Decreto Lei 1.146/70 e Lei 7.787, de 30/06/89) | E30: ='Encargos Sociais'!E19 -> 0.002 | F30: 6 | H30: * Nota 1 - Os percentuais dos encargos previdenciários, do FGTS e demais contribuições são estabelecidos por legislação vigente.
C31: H | D31: FGTS (Lei Complementar nº 110/01 e art. 30, Lei nº 8.036/90) | E31: ='Encargos Sociais'!E20 -> 0.08 | F31: 239.92 | H31: * Nota 2 - O SAT, a depender do grau de risco do serviço, irá variar entre 1%, para risco leve, de 2%, para risco médio, e de 3% para risco grave.
C32: I | D32: SECONCI (Convenções Coletivas de Trabalho da construção) | E32: ='Encargos Sociais'!E21 -> 0 | F32: 0 | H32: * Nota 3 - Os percentuais do Submódulo 2.2 incidem sobre o Módulo 1 e o Submódulo 2.1.
B34: Submódulo 2.3 - Benefícios Mensais e Diários
C35: A | D35: Auxílio Transporte | F35: =HLOOKUP($B$5,'Dados Gerais'!$D$5:$BK$93,82) -> 199.88
C36: B | D36: Auxílio Alimentação | F36: =HLOOKUP($B$5,'Dados Gerais'!$D$5:$BK$93,89) -> 910
C37: C | D37: Assistência Médica e Familiar | F37: =HLOOKUP($B$5,'Dados Gerais'!$D$5:$BK$101,97) -> 285.5
C38: D | D38: Outros (Seguro de vida e auxílio funeral e auxílio odontológico) | F38: =HLOOKUP($B$5,'Dados Gerais'!$D$5:$BK$118,114) -> 12.36 | H38: * Nota 1 - O valor informado deverá ser o custo real do benefício (descontado o valor eventualmente pago pelo empregado).
H39: * Nota 2 - Observar a previsão dos benefícios contidos em Acordos, Convenções e Dissídios Coletivos de Trabalho e o disposto no art. 6º da IN 5/2017
D40: QUADRO-RESUMO DO MÓDULO 2
D41: 2.1 - 13º Salário, Férias e Adicional de Férias - 13º Destacado - Calculado no Módulo 7 | E41: =SUM(E20:E21) -> 0.0303030303 | F41: =F20+F21 -> 79.63
D42: 2.2 - Encargos Previdenciários (GPS), Fundo de Garantia por Tempo de Serviço (FGTS) e Contribuições | E42: =SUM(E24:E32) -> 0.348 | F42: =SUM(F24:F32) -> 1043.64
D43: 2.3 - Benefícios Mensais e Diários | F43: =SUM(F35:F38) -> 1407.74
D45: TOTAL DOS ENCARGOS E BENEFÍCIOS | F45: =SUM(F41:F43) -> 2531.01
B47: MÓDULO 3 - PREVISÃO PARA RESCISÃO | E47: Percentuais | F47: Valor
C48: A | D48: Aviso Prévio Indenizado (Art. 7º, inciso XXI, da CF/1988 e arts. 477, 487, §1º, e 491 da CLT) | E48: ='Encargos Sociais'!E35 -> 0.008333333333 | F48: =ROUND(E48*($F$16+$F$59),2) -> 23.89
C49: B | D49: Incidência do FGTS sobre o Aviso Prévio Indenizado (Súmula 305 TST) | E49: ='Encargos Sociais'!E36 -> 0.0006666666667 | F49: =ROUND(E49*($F$16+$F$59),2) -> 1.91 | H49: * Nota 1 - Adotou-se os parâmetros do estudo do STF (http://www.stf.jus.br/arquivo/cms/sobrestfestudosci/anexo/encargos_sociais_03102007.pdf), onde 5% do pessoal é demitido pelo empregador no decurso do contrato (para estes, considerou-se o aviso prévio indenizado). Desprezou-se as demissões por justa causa e os pedidos de demissão.
C50: C | D50: Multa do FGTS e Contribuição Social sobre o Aviso Prévio Indenizado (Art. 18, §1º, da Lei 8.036/1990 e art. 1º da LC nº 110/2001) | E50: ='Encargos Sociais'!E37 -> 0.007717066667 | F50: 22.12 | H50: * Nota 2 - No cálculo do percentual, considerou-se 36 dias, correspondendo à metade da duração média dos contratos (2 anos)
C51: D | D51: Aviso Prévio Trabalhado (Art. 488, parágrafo único, CLT) | E51: ='Encargos Sociais'!E38 -> 0.01203703704 | F51: 34.51 | H51: * Nota 3 - Incide sobre a Remuneração + 13º salário (1/12) + Férias (1/12) + Adicional de Férias (1/36) x 50% multa (40% para o empregado e 10% de contribuição social) x 8% FGTS
C52: E | D52: Incidência de GPS, FGTS e outras contribuições sobre o Aviso Prévio Trabalhado | E52: ='Encargos Sociais'!E39 -> 0.004188888889 | F52: 12.01 | H52: * Nota 4 - Os 95% restantes do cálculo, a um prazo médio de contrato de 4 anos. Assim, calcula-se 7 dias para o 1º ano de contrato e mais 3 dias para os 3 anos seguintes.
C53: F | D53: Multa do FGTS e Contribuição Social sobre o Aviso Prévio Trabalhado | E53: ='Encargos Sociais'!E40 -> 0.03050515556 | F53: 87.45
D55: TOTAL DE PREVISÃO PARA RESCISÃO | F55: =SUM(F48:F53) -> 181.89
B57: MÓDULO 4 - CUSTO DO PROFISSIONAL AUSENTE | E57: Percentuais | F57: Valor
B58: Submódulo 4.1 - Ausências Legais
C59: A | D59: Férias (Arts. 129 e 130, inc. I, da CLT) | E59: ='Encargos Sociais'!E24 -> 0.09090909091 | F59: =ROUND(E59*$F$16,2) -> 238.89 | H59: * Nota 1 - As alíneas “A” a “F” referem-se somente ao custo que será pago ao repositor pelos dias trabalhados quando da necessidade de substituir a mão de obra alocada na prestação do serviço.
C60: B | D60: Ausências Legais (Arts. 131 e 473 da CLT) | E60: ='Encargos Sociais'!E25 -> 0.007936507937 | F60: 20.86 | H60: * Nota 2 - Adotou-se a estimativa do SINAPI de 2 dias por ano.
C61: C | D61: Licença-Paternidade (Art. 7º, XIX, e art. 10, §1º, do ADCT, CF/1988 e Art. 1º, II, da Lei 11.770/2008) | E61: ='Encargos Sociais'!E26 -> 0.0008277777778 | F61: 2.18 | H61: * Nota 3 - Utilizada a proporção de 50% para homens, 5 dias de afastamento, e a probabilidade de um trabalhador requerer a Licença Paternidade em 5,22%, conforme SINAPI (citando dados da PNAD 2015)
C62: D | D62: Ausência por Acidente de Trabalho (Art. 131, III, da CLT) | E62: ='Encargos Sociais'!E27 -> 0.0008541666667 | F62: 2.24 | H62: * Nota 4 - Utilzada a estatística de 1,96% dos contribuintes beneficiados com a emissão do auxílio, conforme Anuário Estatístico da Previdência Social. Afastamento de 15 dias a cargo da empresa.
C63: E | D63: Afastamento Maternidade (Art. 71 da Lei nº 8.213/1991) | E63: ='Encargos Sociais'!E28 -> 0.003292592593 | F63: 8.65 | H63: * Nota 5 - Utilizada a proporção de 50% para mulheres, 180 dias de afastamento, e a probabilidade de uma trabalhadora requerer a Licença Maternidade em 4,91%, conforme SINAPI (citando dados do IBGE 2016)
C64: F | D64: Auxílio Enfermidade - Doença (Art. 59 da Lei nº 8.213/1991) | E64: ='Encargos Sociais'!E29 -> 0.007122222222 | F64: 18.72 | H64: * Nota 6 - Utilizada a estatística de 3,37% dos contribuintes beneficiados com o auxílio, conforme Anuário Estatístico da Previdência Social de 2015 (acrescidos de 2 dias ao ano, para os quais o trabalhador nem requer o benefício da Previdência - conforme SINAPI)
B66: Submódulo 4.2 - Intrajornada
C67: A | D67: Intervalo para repouso ou alimentação | E67: ='Encargos Sociais'!E32 -> 0 | F67: =ROUND(E67*$F$16,2) -> 0
D69: QUADRO-RESUMO DO MÓDULO 4 | F69: Valor
D70: 4.1 - Ausências Legais | E70: =SUM(E59:E64) -> 0.1109423581 | F70: =ROUND(E70*$F$16,2) -> 291.54
D71: 4.2 - Intrajornada | E71: =E67 -> 0 | F71: =ROUND(E71*$F$16,2) -> 0
D73: TOTAL DE PREVISÃO PARA RESCISÃO E INTERVALO INTRAJORNADA | F73: =SUM(F70:F71) -> 291.54
B75: MÓDULO 5 - INSUMOS DIVERSOS | F75: Valor
C76: A | D76: Uniformes - aquisição | F76: =ROUND(HLOOKUP($B$5,Uniformes!K6:DZ172,3)/12,2) -> 0
C77: B | D77: Materiais de consumo relacionados ao posto - aquisição | F77: =ROUND(HLOOKUP(B5,'Mat Cons'!I11:DX13,3)/12,2) -> 0
C78: C | D78: Materiais permanentes relacionados ao posto - remuneração da sua depreciação / manutenção | F78: =HLOOKUP(B5,'Mat Perm'!Q11:EF13,3) -> 0
C79: D | D79: Equipamentos relacionados ao posto - remuneração da sua depreciação / manutenção | F79: =HLOOKUP(B5,'Equip Rel'!Q11:EF13,3) -> 0
C80: E | D80: Equipamentos de Proteção Individual - EPI - aquisição | F80: =ROUND(HLOOKUP(B5,EPI!I3:DX37,3)/12,2) -> 0
D82: TOTAL DE INSUMOS DIVERSOS | F82: =SUM(F76:F81) -> 0 | H82: * Nota - Valores mensais por empregado
B84: MÓDULO 6 - CUSTOS INDIRETOS, TRIBUTOS E LUCRO - BDI | E84: Percentuais | F84: Valor
C85: A | D85: Custos Indiretos | E85: =BDI!E6 -> 0.0584
C86: A.1 | D86: Administração Central | E86: =BDI!E7 -> 0.0216
C87: A.2 | D87: Seguros, Garantias e Riscos | E87: =BDI!E8 -> 0.0368
C88: B | D88: Lucro | E88: =BDI!E10 -> 0.0334
C89: C | D89: Tributos | E89: =SUM(E90:E91) -> 0.124
C90: C.1 | D90: Tributos Federais (COFINS, PIS e CPRB) | E90: =BDI!E18 -> 0.074
C91: C.2 | D91: Tributos Distritais (ISS) | E91: =BDI!E23 -> 0.05 | H91: * Nota - Utilizou-se o indicado pelo Sindicato da Arquitetura e da Engenharia (Sinaenco, 2008, p. 22), que adota um percentual redutor de 20% no cálculo dos custos tributários relativos às contribuições PIS e COFINS
C92: D | D92: Despesas Financeiras | E92: =BDI!E13 -> 0.005251960574
D94: TOTAL DE BDI | E94: =BDI!E26 -> 0.2551 | F94: =E94*E102 -> 1436.786975
D96: QUADRO-RESUMO DO CUSTO MENSAL POR EMPREGADO - SEM O 13º | E96: Valor
D97: Módulo 1 - Composição da Remuneração | E97: =F16 -> 2627.81
D98: Módulo 2 - Encargos e Benefícios Anuais, Mensais e Diários | E98: =F45 -> 2531.01
D99: Módulo 3 - Provisão para Rescisão | E99: =F55 -> 181.89
D100: Módulo 4 - Custo de Reposição do Profissional Ausente | E100: =F73 -> 291.54
D101: Módulo 5 - Insumos Diversos | E101: =F82 -> 0
D102: SUBTOTAL (A+B+C+D+E) | E102: =SUM(E97:E101) -> 5632.25
D103: Módulo 6 - Custos Indiretos, Tributos e Lucro | E103: =F94 -> 1436.786975
D105: TOTAL DO POSTO | E105: =SUM(E102:E103) -> 7069.036975
B107: MÓDULO 7 - DESTAQUE DO MÓDULO 2 - 13º SALÁRIO | E107: Percentuais | F107: Valor
C108: A | D108: 13º Salário | E108: ='Encargos Sociais'!E31 -> 0.08333333333 | F108: =ROUND(E108*F$16,2) -> 218.98
C109: B | D109: Encargos Sociais sobre o 13º Salário - Taxa calculada no SUBMÓDULO 2.2 | E109: =SUM($E$24:$E$32) -> 0.348 | F109: =ROUND(E109*$F$108,2) -> 76.21 | H109: * Nota 1 - Provisiona-se, mensalmente, o proporcional a 1/12 dos valores referentes a gratificação natalina e adicional de férias.
C110: C | D110: Reincidência de férias sobre o 13º Salário | E110: =E59 -> 0.09090909091 | F110: =ROUND(E110*$F$108,2) -> 19.91
C111: D | D111: BDI sobre o 13º Salário - Taxa calculada no MÓDULO 6 | E111: =E94 -> 0.2551 | F111: =ROUND(E111*($F$108+$F$109),2) -> 75.3
D113: TOTAL DO DESTAQUE DO 13º SALÁRIO | F113: =SUM(F108:F111) -> 390.4
D115: QUADRO-RESUMO DO CUSTO MENSAL POR EMPREGADO | E115: Valor
D116: Custo total - sem o 13º Salário | E116: =E105 -> 7069.036975
D117: Destaque do 13º Salário (valor mensal) | E117: =F113 -> 390.4
D119: TOTAL DO POSTO | E119: =E116+E117 -> 7459.436975

Sheet 2
B2: PLANILHA DE ESTIMATIVA DE CUSTOS
B3: Padrão IN 05/2017 e IN 07/2018 - MPDG
B5: 2 | D5: =HLOOKUP($B$5,'Dados Gerais'!$D$5:$BK$20,6) -> TÉCNICO DE APOIO A OPERAÇÕES EM DATA CENTER (JORNADA DAS 19 À 1H) | E5: QUANTIDADE | F5: =HLOOKUP($B$5,'Dados Gerais'!$D$5:$BK$20,10) -> 3
B6: CCT | D6: =HLOOKUP($B$5,'Dados Gerais'!$D$5:$BK$20,15) -> SINDPD/DF X SINDESEI/DF 2021/2022 Nº DF000608/2021 | E6: DATA-BASE | F6: ='Dados Gerais'!F20 -> 2021-05-01
B8: MÓDULO 1 - COMPOSIÇÃO DA REMUNERAÇÃO | F8: Valor
C9: A | D9: Salário-Base | F9: =HLOOKUP($B$5,'Dados Gerais'!$D$5:$BK$20,8) -> 2627.81
C10: B | D10: Adicional de Periculosidade | F10: =HLOOKUP($B$5,'Dados Gerais'!$D$5:$BK$37,25) -> 0
C11: C | D11: Adicional de Insalubridade | F11: =HLOOKUP($B$5,'Dados Gerais'!$D$5:$BK$37,31) -> 0
C12: D | D12: Adicional Noturno | F12: =HLOOKUP($B$5,'Dados Gerais'!$D$5:$BK$50,46) -> 227.74 | H12: * Nota 1 - O Módulo 1 refere-se ao valor mensal devido ao empregado pela prestação do serviço no período de 12 meses.
C13: E | D13: Adicional de Hora Extra | F13: =HLOOKUP($B$5,'Dados Gerais'!$D$5:$BK$67,63) -> 0 | H13: * Nota 2 - O adicional de hora extra no feriado trabalhado foi suprimido pela Lei 13.467/17
C14: F | D14: Outros (especificar) | F14: =HLOOKUP($B$5,'Dados Gerais'!$D$5:$BK$59,33) -> 0 | H14: * Nota 3 - ART. 7º, § 2º, DA LEI Nº 605/49.Sendo mensalista o obreiro, o adicional noturno pago de forma fixa já é considerado integrado para os efeitos do pagamento do repouso semanal remunerado, nos termos do art. 7º, § 2º, da Lei nº 605/49.
D16: TOTAL DA REMUNERAÇÃO | F16: =SUM(F9:F14) -> 2855.55
B18: MÓDULO 2 - ENCARGOS E BENEFÍCIOS ANUAIS, MENSAIS E DIÁRIOS | E18: Percentuais | F18: Valor
B19: Submódulo 2.1 - 13º Salário, Férias e Adicional de Férias
C20: A | D20: 13º Salário - Calculado no Módulo 7 - Destacado | E20: 0 | F20: =ROUND(E20*F$16,2) -> 0 | H20: * Nota 1 - Provisiona-se, mensalmente, o proporcional a 1/11 dos valores referentes a gratificação natalina, férias e adicional de férias.
C21: B | D21: Adicional de Férias | E21: ='Encargos Sociais'!E30 -> 0.0303030303 | F21: =ROUND(E21*F$16,2) -> 86.53 | H21: * Nota 2 - O adicional de férias contido no Submódulo 2.1 corresponde a 1/3 da remuneração que, por sua vez, é dividida por 11 contome Nota 1.
B23: Submódulo 2.2 - Encargos Previdenciários (GPS), Fundo de Garantia por Tempo de Serviço (FGTS) e Outras Contribuições
C24: A | D24: INSS (art. 22, inciso I, Lei nº 8.212/91) | E24: ='Encargos Sociais'!E13 -> 0.2 | F24: =ROUND(E24*($F$16+$F$41+$F$73),2) -> 651.78
C25: B | D25: Salário Educação (art. 3º, inciso I, Decreto nº 87.043/82) | E25: ='Encargos Sociais'!E14 -> 0.025 | F25: =ROUND(E25*($F$16+$F$41+$F$73),2) -> 81.47
C26: C | D26: SAT/RAT (art. 22, II, Lei 8.212/91 e Anexo V, Decreto 6.042/07) - Enquadramento 8211-3/00 | E26: ='Encargos Sociais'!E15 -> 0.01 | F26: 32.59
C27: D | D27: SESC ou SESI (art. 30, Lei nº 8.036/90 e art. 1º, Lei 8.154/90) | E27: ='Encargos Sociais'!E16 -> 0.015 | F27: 48.88
C28: E | D28: SENAI ou SENAC (Decreto nº 2.318/86) | E28: ='Encargos Sociais'!E17 -> 0.01 | F28: 32.59
C29: F | D29: SEBRAE (§ 3º, art. 8º, Lei 8.029/90, alterada pela Lei nº 8.154/90) | E29: ='Encargos Sociais'!E18 -> 0.006 | F29: 19.55
C30: G | D30: INCRA (art. 1º, I, Decreto Lei 1.146/70 e Lei 7.787, de 30/06/89) | E30: ='Encargos Sociais'!E19 -> 0.002 | F30: 6.52 | H30: * Nota 1 - Os percentuais dos encargos previdenciários, do FGTS e demais contribuições são estabelecidos por legislação vigente.
C31: H | D31: FGTS (Lei Complementar nº 110/01 e art. 30, Lei nº 8.036/90) | E31: ='Encargos Sociais'!E20 -> 0.08 | F31: 260.71 | H31: * Nota 2 - O SAT, a depender do grau de risco do serviço, irá variar entre 1%, para risco leve, de 2%, para risco médio, e de 3% para risco grave.
C32: I | D32: SECONCI (Convenções Coletivas de Trabalho da construção) | E32: ='Encargos Sociais'!E21 -> 0 | F32: 0 | H32: * Nota 3 - Os percentuais do Submódulo 2.2 incidem sobre o Módulo 1 e o Submódulo 2.1.
B34: Submódulo 2.3 - Benefícios Mensais e Diários
C35: A | D35: Auxílio Transporte | F35: =HLOOKUP($B$5,'Dados Gerais'!$D$5:$BK$93,82) -> 199.88
C36: B | D36: Auxílio Alimentação | F36: =HLOOKUP($B$5,'Dados Gerais'!$D$5:$BK$93,89) -> 910
C37: C | D37: Assistência Médica e Familiar | F37: =HLOOKUP($B$5,'Dados Gerais'!$D$5:$BK$101,97) -> 285.5
C38: D | D38: Outros (Seguro de vida e auxílio funeral e auxílio odontológico) | F38: =HLOOKUP($B$5,'Dados Gerais'!$D$5:$BK$118,114) -> 12.36 | H38: * Nota 1 - O valor informado deverá ser o custo real do benefício (descontado o valor eventualmente pago pelo empregado).
H39: * Nota 2 - Observar a previsão dos benefícios contidos em Acordos, Convenções e Dissídios Coletivos de Trabalho e o disposto no art. 6º da IN 5/2017
D40: QUADRO-RESUMO DO MÓDULO 2
D41: 2.1 - 13º Salário, Férias e Adicional de Férias - 13º Destacado - Calculado no Módulo 7 | E41: =SUM(E20:E21) -> 0.0303030303 | F41: =F20+F21 -> 86.53
D42: 2.2 - Encargos Previdenciários (GPS), Fundo de Garantia por Tempo de Serviço (FGTS) e Contribuições | E42: =SUM(E24:E32) -> 0.348 | F42: =SUM(F24:F32) -> 1134.09
D43: 2.3 - Benefícios Mensais e Diários | F43: =SUM(F35:F38) -> 1407.74
D45: TOTAL DOS ENCARGOS E BENEFÍCIOS | F45: =SUM(F41:F43) -> 2628.36
B47: MÓDULO 3 - PREVISÃO PARA RESCISÃO | E47: Percentuais | F47: Valor
C48: A | D48: Aviso Prévio Indenizado (Art. 7º, inciso XXI, da CF/1988 e arts. 477, 487, §1º, e 491 da CLT) | E48: ='Encargos Sociais'!E35 -> 0.008333333333 | F48: =ROUND(E48*($F$16+$F$59),2) -> 25.96
C49: B | D49: Incidência do FGTS sobre o Aviso Prévio Indenizado (Súmula 305 TST) | E49: ='Encargos Sociais'!E36 -> 0.0006666666667 | F49: =ROUND(E49*($F$16+$F$59),2) -> 2.08 | H49: * Nota 1 - Adotou-se os parâmetros do estudo do STF (http://www.stf.jus.br/arquivo/cms/sobrestfestudosci/anexo/encargos_sociais_03102007.pdf), onde 5% do pessoal é demitido pelo empregador no decurso do contrato (para estes, considerou-se o aviso prévio indenizado). Desprezou-se as demissões por justa causa e os pedidos de demissão.
C50: C | D50: Multa do FGTS e Contribuição Social sobre o Aviso Prévio Indenizado (Art. 18, §1º, da Lei 8.036/1990 e art. 1º da LC nº 110/2001) | E50: ='Encargos Sociais'!E37 -> 0.007717066667 | F50: 24.04 | H50: * Nota 2 - No cálculo do percentual, considerou-se 36 dias, correspondendo à metade da duração média dos contratos (2 anos)
C51: D | D51: Aviso Prévio Trabalhado (Art. 488, parágrafo único, CLT) | E51: ='Encargos Sociais'!E38 -> 0.01203703704 | F51: 37.5 | H51: * Nota 3 - Incide sobre a Remuneração + 13º salário (1/12) + Férias (1/12) + Adicional de Férias (1/36) x 50% multa (40% para o empregado e 10% de contribuição social) x 8% FGTS
C52: E | D52: Incidência de GPS, FGTS e outras contribuições sobre o Aviso Prévio Trabalhado | E52: ='Encargos Sociais'!E39 -> 0.004188888889 | F52: 13.05 | H52: * Nota 4 - Os 95% restantes do cálculo, a um prazo médio de contrato de 4 anos. Assim, calcula-se 7 dias para o 1º ano de contrato e mais 3 dias para os 3 anos seguintes.
C53: F | D53: Multa do FGTS e Contribuição Social sobre o Aviso Prévio Trabalhado | E53: ='Encargos Sociais'!E40 -> 0.03050515556 | F53: 95.03
D55: TOTAL DE PREVISÃO PARA RESCISÃO | F55: =SUM(F48:F53) -> 197.66
B57: MÓDULO 4 - CUSTO DO PROFISSIONAL AUSENTE | E57: Percentuais | F57: Valor
B58: Submódulo 4.1 - Ausências Legais
C59: A | D59: Férias (Arts. 129 e 130, inc. I, da CLT) | E59: ='Encargos Sociais'!E24 -> 0.09090909091 | F59: =ROUND(E59*$F$16,2) -> 259.6 | H59: * Nota 1 - As alíneas “A” a “F” referem-se somente ao custo que será pago ao repositor pelos dias trabalhados quando da necessidade de substituir a mão de obra alocada na prestação do serviço.
C60: B | D60: Ausências Legais (Arts. 131 e 473 da CLT) | E60: ='Encargos Sociais'!E25 -> 0.007936507937 | F60: 22.66 | H60: * Nota 2 - Adotou-se a estimativa do SINAPI de 2 dias por ano.
C61: C | D61: Licença-Paternidade (Art. 7º, XIX, e art. 10, §1º, do ADCT, CF/1988 e Art. 1º, II, da Lei 11.770/2008) | E61: ='Encargos Sociais'!E26 -> 0.0008277777778 | F61: 2.36 | H61: * Nota 3 - Utilizada a proporção de 50% para homens, 5 dias de afastamento, e a probabilidade de um trabalhador requerer a Licença Paternidade em 5,22%, conforme SINAPI (citando dados da PNAD 2015)
C62: D | D62: Ausência por Acidente de Trabalho (Art. 131, III, da CLT) | E62: ='Encargos Sociais'!E27 -> 0.0008541666667 | F62: 2.44 | H62: * Nota 4 - Utilzada a estatística de 1,96% dos contribuintes beneficiados com a emissão do auxílio, conforme Anuário Estatístico da Previdência Social. Afastamento de 15 dias a cargo da empresa.
C63: E | D63: Afastamento Maternidade (Art. 71 da Lei nº 8.213/1991) | E63: ='Encargos Sociais'!E28 -> 0.003292592593 | F63: 9.4 | H63: * Nota 5 - Utilizada a proporção de 50% para mulheres, 180 dias de afastamento, e a probabilidade de uma trabalhadora requerer a Licença Maternidade em 4,91%, conforme SINAPI (citando dados do IBGE 2016)
C64: F | D64: Auxílio Enfermidade - Doença (Art. 59 da Lei nº 8.213/1991) | E64: ='Encargos Sociais'!E29 -> 0.007122222222 | F64: 20.34 | H64: * Nota 6 - Utilizada a estatística de 3,37% dos contribuintes beneficiados com o auxílio, conforme Anuário Estatístico da Previdência Social de 2015 (acrescidos de 2 dias ao ano, para os quais o trabalhador nem requer o benefício da Previdência - conforme SINAPI)
B66: Submódulo 4.2 - Intrajornada
C67: A | D67: Intervalo para repouso ou alimentação | E67: ='Encargos Sociais'!E32 -> 0 | F67: =ROUND(E67*$F$16,2) -> 0
D69: QUADRO-RESUMO DO MÓDULO 4 | F69: Valor
D70: 4.1 - Ausências Legais | E70: =SUM(E59:E64) -> 0.1109423581 | F70: =ROUND(E70*$F$16,2) -> 316.8
D71: 4.2 - Intrajornada | E71: =E67 -> 0 | F71: =ROUND(E71*$F$16,2) -> 0
D73: TOTAL DE PREVISÃO PARA RESCISÃO E INTERVALO INTRAJORNADA | F73: =SUM(F70:F71) -> 316.8
B75: MÓDULO 5 - INSUMOS DIVERSOS | F75: Valor
C76: A | D76: Uniformes - aquisição | F76: =ROUND(HLOOKUP($B$5,Uniformes!K6:DZ172,3)/12,2) -> 0
C77: B | D77: Materiais de consumo relacionados ao posto - aquisição | F77: =ROUND(HLOOKUP(B5,'Mat Cons'!I11:DX13,3)/12,2) -> 0
C78: C | D78: Materiais permanentes relacionados ao posto - remuneração da sua depreciação / manutenção | F78: =HLOOKUP(B5,'Mat Perm'!Q11:EF13,3) -> 0
C79: D | D79: Equipamentos relacionados ao posto - remuneração da sua depreciação / manutenção | F79: =HLOOKUP(B5,'Equip Rel'!Q11:EF13,3) -> 0
C80: E | D80: Equipamentos de Proteção Individual - EPI - aquisição | F80: =ROUND(HLOOKUP(B5,EPI!I3:DX37,3)/12,2) -> 0
D82: TOTAL DE INSUMOS DIVERSOS | F82: =SUM(F76:F81) -> 0 | H82: * Nota - Valores mensais por empregado
B84: MÓDULO 6 - CUSTOS INDIRETOS, TRIBUTOS E LUCRO - BDI | E84: Percentuais | F84: Valor
C85: A | D85: Custos Indiretos | E85: =BDI!E6 -> 0.0584
C86: A.1 | D86: Administração Central | E86: =BDI!E7 -> 0.0216
C87: A.2 | D87: Seguros, Garantias e Riscos | E87: =BDI!E8 -> 0.0368
C88: B | D88: Lucro | E88: =BDI!E10 -> 0.0334
C89: C | D89: Tributos | E89: =SUM(E90:E91) -> 0.124
C90: C.1 | D90: Tributos Federais (COFINS, PIS e CPRB) | E90: =BDI!E18 -> 0.074
C91: C.2 | D91: Tributos Distritais (ISS) | E91: =BDI!E23 -> 0.05 | H91: * Nota - Utilizou-se o indicado pelo Sindicato da Arquitetura e da Engenharia (Sinaenco, 2008, p. 22), que adota um percentual redutor de 20% no cálculo dos custos tributários relativos às contribuições PIS e COFINS
C92: D | D92: Despesas Financeiras | E92: =BDI!E13 -> 0.005251960574
D94: TOTAL DE BDI | E94: =BDI!E26 -> 0.2551 | F94: =E94*E102 -> 1530.184187
D96: QUADRO-RESUMO DO CUSTO MENSAL POR EMPREGADO - SEM O 13º | E96: Valor
D97: Módulo 1 - Composição da Remuneração | E97: =F16 -> 2855.55
D98: Módulo 2 - Encargos e Benefícios Anuais, Mensais e Diários | E98: =F45 -> 2628.36
D99: Módulo 3 - Provisão para Rescisão | E99: =F55 -> 197.66
D100: Módulo 4 - Custo de Reposição do Profissional Ausente | E100: =F73 -> 316.8
D101: Módulo 5 - Insumos Diversos | E101: =F82 -> 0
D102: SUBTOTAL (A+B+C+D+E) | E102: =SUM(E97:E101) -> 5998.37
D103: Módulo 6 - Custos Indiretos, Tributos e Lucro | E103: =F94 -> 1530.184187
D105: TOTAL DO POSTO | E105: =SUM(E102:E103) -> 7528.554187
B107: MÓDULO 7 - DESTAQUE DO MÓDULO 2 - 13º SALÁRIO | E107: Percentuais | F107: Valor
C108: A | D108: 13º Salário | E108: ='Encargos Sociais'!E31 -> 0.08333333333 | F108: =ROUND(E108*F$16,2) -> 237.96
C109: B | D109: Encargos Sociais sobre o 13º Salário - Taxa calculada no SUBMÓDULO 2.2 | E109: =SUM($E$24:$E$32) -> 0.348 | F109: =ROUND(E109*$F$108,2) -> 82.81 | H109: * Nota 1 - Provisiona-se, mensalmente, o proporcional a 1/12 dos valores referentes a gratificação natalina e adicional de férias.
C110: C | D110: Reincidência de férias sobre o 13º Salário | E110: =E59 -> 0.09090909091 | F110: =ROUND(E110*$F$108,2) -> 21.63
C111: D | D111: BDI sobre o 13º Salário - Taxa calculada no MÓDULO 6 | E111: =E94 -> 0.2551 | F111: =ROUND(E111*($F$108+$F$109),2) -> 81.83
D113: TOTAL DO DESTAQUE DO 13º SALÁRIO | F113: =SUM(F108:F111) -> 424.23
D115: QUADRO-RESUMO DO CUSTO MENSAL POR EMPREGADO | E115: Valor
D116: Custo total - sem o 13º Salário | E116: =E105 -> 7528.554187
D117: Destaque do 13º Salário (valor mensal) | E117: =F113 -> 424.23
D119: TOTAL DO POSTO | E119: =E116+E117 -> 7952.784187

Sheet 3
B2: PLANILHA DE ESTIMATIVA DE CUSTOS
B3: Padrão IN 05/2017 e IN 07/2018 - MPDG
B5: 3 | D5: =HLOOKUP($B$5,'Dados Gerais'!$D$5:$BK$20,6) -> TÉCNICO DE APOIO A OPERAÇÕES EM DATA CENTER (JORNADA DA 1H ÀS 7H) | E5: QUANTIDADE | F5: =HLOOKUP($B$5,'Dados Gerais'!$D$5:$BK$20,10) -> 3
B6: CCT | D6: =HLOOKUP($B$5,'Dados Gerais'!$D$5:$BK$20,15) -> SINDPD/DF X SINDESEI/DF 2021/2022 Nº DF000608/2021 | E6: DATA-BASE | F6: ='Dados Gerais'!F20 -> 2021-05-01
B8: MÓDULO 1 - COMPOSIÇÃO DA REMUNERAÇÃO | F8: Valor
C9: A | D9: Salário-Base | F9: =HLOOKUP($B$5,'Dados Gerais'!$D$5:$BK$20,8) -> 2627.81
C10: B | D10: Adicional de Periculosidade | F10: =HLOOKUP($B$5,'Dados Gerais'!$D$5:$BK$37,25) -> 0
C11: C | D11: Adicional de Insalubridade | F11: =HLOOKUP($B$5,'Dados Gerais'!$D$5:$BK$37,31) -> 0
C12: D | D12: Adicional Noturno | F12: =HLOOKUP($B$5,'Dados Gerais'!$D$5:$BK$50,46) -> 379.57 | H12: * Nota 1 - O Módulo 1 refere-se ao valor mensal devido ao empregado pela prestação do serviço no período de 12 meses.
C13: E | D13: Adicional de Hora Extra | F13: =HLOOKUP($B$5,'Dados Gerais'!$D$5:$BK$67,63) -> 0 | H13: * Nota 2 - O adicional de hora extra no feriado trabalhado foi suprimido pela Lei 13.467/17
C14: F | D14: Outros (especificar) | F14: =HLOOKUP($B$5,'Dados Gerais'!$D$5:$BK$59,33) -> 0 | H14: * Nota 3 - ART. 7º, § 2º, DA LEI Nº 605/49.Sendo mensalista o obreiro, o adicional noturno pago de forma fixa já é considerado integrado para os efeitos do pagamento do repouso semanal remunerado, nos termos do art. 7º, § 2º, da Lei nº 605/49.
D16: TOTAL DA REMUNERAÇÃO | F16: =SUM(F9:F14) -> 3007.38
B18: MÓDULO 2 - ENCARGOS E BENEFÍCIOS ANUAIS, MENSAIS E DIÁRIOS | E18: Percentuais | F18: Valor
B19: Submódulo 2.1 - 13º Salário, Férias e Adicional de Férias
C20: A | D20: 13º Salário - Calculado no Módulo 7 - Destacado | E20: 0 | F20: =ROUND(E20*F$16,2) -> 0 | H20: * Nota 1 - Provisiona-se, mensalmente, o proporcional a 1/11 dos valores referentes a gratificação natalina, férias e adicional de férias.
C21: B | D21: Adicional de Férias | E21: ='Encargos Sociais'!E30 -> 0.0303030303 | F21: =ROUND(E21*F$16,2) -> 91.13 | H21: * Nota 2 - O adicional de férias contido no Submódulo 2.1 corresponde a 1/3 da remuneração que, por sua vez, é dividida por 11 contome Nota 1.
B23: Submódulo 2.2 - Encargos Previdenciários (GPS), Fundo de Garantia por Tempo de Serviço (FGTS) e Outras Contribuições
C24: A | D24: INSS (art. 22, inciso I, Lei nº 8.212/91) | E24: ='Encargos Sociais'!E13 -> 0.2 | F24: =ROUND(E24*($F$16+$F$41+$F$73),2) -> 686.43
C25: B | D25: Salário Educação (art. 3º, inciso I, Decreto nº 87.043/82) | E25: ='Encargos Sociais'!E14 -> 0.025 | F25: =ROUND(E25*($F$16+$F$41+$F$73),2) -> 85.8
C26: C | D26: SAT/RAT (art. 22, II, Lei 8.212/91 e Anexo V, Decreto 6.042/07) - Enquadramento 8211-3/00 | E26: ='Encargos Sociais'!E15 -> 0.01 | F26: 34.32
C27: D | D27: SESC ou SESI (art. 30, Lei nº 8.036/90 e art. 1º, Lei 8.154/90) | E27: ='Encargos Sociais'!E16 -> 0.015 | F27: 51.48
C28: E | D28: SENAI ou SENAC (Decreto nº 2.318/86) | E28: ='Encargos Sociais'!E17 -> 0.01 | F28: 34.32
C29: F | D29: SEBRAE (§ 3º, art. 8º, Lei 8.029/90, alterada pela Lei nº 8.154/90) | E29: ='Encargos Sociais'!E18 -> 0.006 | F29: 20.59
C30: G | D30: INCRA (art. 1º, I, Decreto Lei 1.146/70 e Lei 7.787, de 30/06/89) | E30: ='Encargos Sociais'!E19 -> 0.002 | F30: 6.86 | H30: * Nota 1 - Os percentuais dos encargos previdenciários, do FGTS e demais contribuições são estabelecidos por legislação vigente.
C31: H | D31: FGTS (Lei Complementar nº 110/01 e art. 30, Lei nº 8.036/90) | E31: ='Encargos Sociais'!E20 -> 0.08 | F31: 274.57 | H31: * Nota 2 - O SAT, a depender do grau de risco do serviço, irá variar entre 1%, para risco leve, de 2%, para risco médio, e de 3% para risco grave.
C32: I | D32: SECONCI (Convenções Coletivas de Trabalho da construção) | E32: ='Encargos Sociais'!E21 -> 0 | F32: 0 | H32: * Nota 3 - Os percentuais do Submódulo 2.2 incidem sobre o Módulo 1 e o Submódulo 2.1.
B34: Submódulo 2.3 - Benefícios Mensais e Diários
C35: A | D35: Auxílio Transporte | F35: =HLOOKUP($B$5,'Dados Gerais'!$D$5:$BK$93,82) -> 199.88
C36: B | D36: Auxílio Alimentação | F36: =HLOOKUP($B$5,'Dados Gerais'!$D$5:$BK$93,89) -> 910
C37: C | D37: Assistência Médica e Familiar | F37: =HLOOKUP($B$5,'Dados Gerais'!$D$5:$BK$101,97) -> 285.5
C38: D | D38: Outros (Seguro de vida e auxílio funeral e auxílio odontológico) | F38: =HLOOKUP($B$5,'Dados Gerais'!$D$5:$BK$118,114) -> 12.36 | H38: * Nota 1 - O valor informado deverá ser o custo real do benefício (descontado o valor eventualmente pago pelo empregado).
H39: * Nota 2 - Observar a previsão dos benefícios contidos em Acordos, Convenções e Dissídios Coletivos de Trabalho e o disposto no art. 6º da IN 5/2017
D40: QUADRO-RESUMO DO MÓDULO 2
D41: 2.1 - 13º Salário, Férias e Adicional de Férias - 13º Destacado - Calculado no Módulo 7 | E41: =SUM(E20:E21) -> 0.0303030303 | F41: =F20+F21 -> 91.13
D42: 2.2 - Encargos Previdenciários (GPS), Fundo de Garantia por Tempo de Serviço (FGTS) e Contribuições | E42: =SUM(E24:E32) -> 0.348 | F42: =SUM(F24:F32) -> 1194.37
D43: 2.3 - Benefícios Mensais e Diários | F43: =SUM(F35:F38) -> 1407.74
D45: TOTAL DOS ENCARGOS E BENEFÍCIOS | F45: =SUM(F41:F43) -> 2693.24
B47: MÓDULO 3 - PREVISÃO PARA RESCISÃO | E47: Percentuais | F47: Valor
C48: A | D48: Aviso Prévio Indenizado (Art. 7º, inciso XXI, da CF/1988 e arts. 477, 487, §1º, e 491 da CLT) | E48: ='Encargos Sociais'!E35 -> 0.008333333333 | F48: =ROUND(E48*($F$16+$F$59),2) -> 27.34
C49: B | D49: Incidência do FGTS sobre o Aviso Prévio Indenizado (Súmula 305 TST) | E49: ='Encargos Sociais'!E36 -> 0.0006666666667 | F49: =ROUND(E49*($F$16+$F$59),2) -> 2.19 | H49: * Nota 1 - Adotou-se os parâmetros do estudo do STF (http://www.stf.jus.br/arquivo/cms/sobrestfestudosci/anexo/encargos_sociais_03102007.pdf), onde 5% do pessoal é demitido pelo empregador no decurso do contrato (para estes, considerou-se o aviso prévio indenizado). Desprezou-se as demissões por justa causa e os pedidos de demissão.
C50: C | D50: Multa do FGTS e Contribuição Social sobre o Aviso Prévio Indenizado (Art. 18, §1º, da Lei 8.036/1990 e art. 1º da LC nº 110/2001) | E50: ='Encargos Sociais'!E37 -> 0.007717066667 | F50: 25.32 | H50: * Nota 2 - No cálculo do percentual, considerou-se 36 dias, correspondendo à metade da duração média dos contratos (2 anos)
C51: D | D51: Aviso Prévio Trabalhado (Art. 488, parágrafo único, CLT) | E51: ='Encargos Sociais'!E38 -> 0.01203703704 | F51: 39.49 | H51: * Nota 3 - Incide sobre a Remuneração + 13º salário (1/12) + Férias (1/12) + Adicional de Férias (1/36) x 50% multa (40% para o empregado e 10% de contribuição social) x 8% FGTS
C52: E | D52: Incidência de GPS, FGTS e outras contribuições sobre o Aviso Prévio Trabalhado | E52: ='Encargos Sociais'!E39 -> 0.004188888889 | F52: 13.74 | H52: * Nota 4 - Os 95% restantes do cálculo, a um prazo médio de contrato de 4 anos. Assim, calcula-se 7 dias para o 1º ano de contrato e mais 3 dias para os 3 anos seguintes.
C53: F | D53: Multa do FGTS e Contribuição Social sobre o Aviso Prévio Trabalhado | E53: ='Encargos Sociais'!E40 -> 0.03050515556 | F53: 100.08
D55: TOTAL DE PREVISÃO PARA RESCISÃO | F55: =SUM(F48:F53) -> 208.16
B57: MÓDULO 4 - CUSTO DO PROFISSIONAL AUSENTE | E57: Percentuais | F57: Valor
B58: Submódulo 4.1 - Ausências Legais
C59: A | D59: Férias (Arts. 129 e 130, inc. I, da CLT) | E59: ='Encargos Sociais'!E24 -> 0.09090909091 | F59: =ROUND(E59*$F$16,2) -> 273.4 | H59: * Nota 1 - As alíneas “A” a “F” referem-se somente ao custo que será pago ao repositor pelos dias trabalhados quando da necessidade de substituir a mão de obra alocada na prestação do serviço.
C60: B | D60: Ausências Legais (Arts. 131 e 473 da CLT) | E60: ='Encargos Sociais'!E25 -> 0.007936507937 | F60: 23.87 | H60: * Nota 2 - Adotou-se a estimativa do SINAPI de 2 dias por ano.
C61: C | D61: Licença-Paternidade (Art. 7º, XIX, e art. 10, §1º, do ADCT, CF/1988 e Art. 1º, II, da Lei 11.770/2008) | E61: ='Encargos Sociais'!E26 -> 0.0008277777778 | F61: 2.49 | H61: * Nota 3 - Utilizada a proporção de 50% para homens, 5 dias de afastamento, e a probabilidade de um trabalhador requerer a Licença Paternidade em 5,22%, conforme SINAPI (citando dados da PNAD 2015)
C62: D | D62: Ausência por Acidente de Trabalho (Art. 131, III, da CLT) | E62: ='Encargos Sociais'!E27 -> 0.0008541666667 | F62: 2.57 | H62: * Nota 4 - Utilzada a estatística de 1,96% dos contribuintes beneficiados com a emissão do auxílio, conforme Anuário Estatístico da Previdência Social. Afastamento de 15 dias a cargo da empresa.
C63: E | D63: Afastamento Maternidade (Art. 71 da Lei nº 8.213/1991) | E63: ='Encargos Sociais'!E28 -> 0.003292592593 | F63: 9.9 | H63: * Nota 5 - Utilizada a proporção de 50% para mulheres, 180 dias de afastamento, e a probabilidade de uma trabalhadora requerer a Licença Maternidade em 4,91%, conforme SINAPI (citando dados do IBGE 2016)
C64: F | D64: Auxílio Enfermidade - Doença (Art. 59 da Lei nº 8.213/1991) | E64: ='Encargos Sociais'!E29 -> 0.007122222222 | F64: 21.42 | H64: * Nota 6 - Utilizada a estatística de 3,37% dos contribuintes beneficiados com o auxílio, conforme Anuário Estatístico da Previdência Social de 2015 (acrescidos de 2 dias ao ano, para os quais o trabalhador nem requer o benefício da Previdência - conforme SINAPI)
B66: Submódulo 4.2 - Intrajornada
C67: A | D67: Intervalo para repouso ou alimentação | E67: ='Encargos Sociais'!E32 -> 0 | F67: =ROUND(E67*$F$16,2) -> 0
D69: QUADRO-RESUMO DO MÓDULO 4 | F69: Valor
D70: 4.1 - Ausências Legais | E70: =SUM(E59:E64) -> 0.1109423581 | F70: =ROUND(E70*$F$16,2) -> 333.65
D71: 4.2 - Intrajornada | E71: =E67 -> 0 | F71: =ROUND(E71*$F$16,2) -> 0
D73: TOTAL DE PREVISÃO PARA RESCISÃO E INTERVALO INTRAJORNADA | F73: =SUM(F70:F71) -> 333.65
B75: MÓDULO 5 - INSUMOS DIVERSOS | F75: Valor
C76: A | D76: Uniformes - aquisição | F76: =ROUND(HLOOKUP($B$5,Uniformes!K6:DZ172,3)/12,2) -> 0
C77: B | D77: Materiais de consumo relacionados ao posto - aquisição | F77: =ROUND(HLOOKUP(B5,'Mat Cons'!I11:DX13,3)/12,2) -> 0
C78: C | D78: Materiais permanentes relacionados ao posto - remuneração da sua depreciação / manutenção | F78: =HLOOKUP(B5,'Mat Perm'!Q11:EF13,3) -> 0
C79: D | D79: Equipamentos relacionados ao posto - remuneração da sua depreciação / manutenção | F79: =HLOOKUP(B5,'Equip Rel'!Q11:EF13,3) -> 0
C80: E | D80: Equipamentos de Proteção Individual - EPI - aquisição | F80: =ROUND(HLOOKUP(B5,EPI!I3:DX37,3)/12,2) -> 0
D82: TOTAL DE INSUMOS DIVERSOS | F82: =SUM(F76:F81) -> 0 | H82: * Nota - Valores mensais por empregado
B84: MÓDULO 6 - CUSTOS INDIRETOS, TRIBUTOS E LUCRO - BDI | E84: Percentuais | F84: Valor
C85: A | D85: Custos Indiretos | E85: =BDI!E6 -> 0.0584
C86: A.1 | D86: Administração Central | E86: =BDI!E7 -> 0.0216
C87: A.2 | D87: Seguros, Garantias e Riscos | E87: =BDI!E8 -> 0.0368
C88: B | D88: Lucro | E88: =BDI!E10 -> 0.0334
C89: C | D89: Tributos | E89: =SUM(E90:E91) -> 0.124
C90: C.1 | D90: Tributos Federais (COFINS, PIS e CPRB) | E90: =BDI!E18 -> 0.074
C91: C.2 | D91: Tributos Distritais (ISS) | E91: =BDI!E23 -> 0.05 | H91: * Nota - Utilizou-se o indicado pelo Sindicato da Arquitetura e da Engenharia (Sinaenco, 2008, p. 22), que adota um percentual redutor de 20% no cálculo dos custos tributários relativos às contribuições PIS e COFINS
C92: D | D92: Despesas Financeiras | E92: =BDI!E13 -> 0.005251960574
D94: TOTAL DE BDI | E94: =BDI!E26 -> 0.2551 | F94: =E94*E102 -> 1592.443893
D96: QUADRO-RESUMO DO CUSTO MENSAL POR EMPREGADO - SEM O 13º | E96: Valor
D97: Módulo 1 - Composição da Remuneração | E97: =F16 -> 3007.38
D98: Módulo 2 - Encargos e Benefícios Anuais, Mensais e Diários | E98: =F45 -> 2693.24
D99: Módulo 3 - Provisão para Rescisão | E99: =F55 -> 208.16
D100: Módulo 4 - Custo de Reposição do Profissional Ausente | E100: =F73 -> 333.65
D101: Módulo 5 - Insumos Diversos | E101: =F82 -> 0
D102: SUBTOTAL (A+B+C+D+E) | E102: =SUM(E97:E101) -> 6242.43
D103: Módulo 6 - Custos Indiretos, Tributos e Lucro | E103: =F94 -> 1592.443893
D105: TOTAL DO POSTO | E105: =SUM(E102:E103) -> 7834.873893
B107: MÓDULO 7 - DESTAQUE DO MÓDULO 2 - 13º SALÁRIO | E107: Percentuais | F107: Valor
C108: A | D108: 13º Salário | E108: ='Encargos Sociais'!E31 -> 0.08333333333 | F108: =ROUND(E108*F$16,2) -> 250.62
C109: B | D109: Encargos Sociais sobre o 13º Salário - Taxa calculada no SUBMÓDULO 2.2 | E109: =SUM($E$24:$E$32) -> 0.348 | F109: =ROUND(E109*$F$108,2) -> 87.22 | H109: * Nota 1 - Provisiona-se, mensalmente, o proporcional a 1/12 dos valores referentes a gratificação natalina e adicional de férias.
C110: C | D110: Reincidência de férias sobre o 13º Salário | E110: =E59 -> 0.09090909091 | F110: =ROUND(E110*$F$108,2) -> 22.78
C111: D | D111: BDI sobre o 13º Salário - Taxa calculada no MÓDULO 6 | E111: =E94 -> 0.2551 | F111: =ROUND(E111*($F$108+$F$109),2) -> 86.18
D113: TOTAL DO DESTAQUE DO 13º SALÁRIO | F113: =SUM(F108:F111) -> 446.8
D115: QUADRO-RESUMO DO CUSTO MENSAL POR EMPREGADO | E115: Valor
D116: Custo total - sem o 13º Salário | E116: =E105 -> 7834.873893
D117: Destaque do 13º Salário (valor mensal) | E117: =F113 -> 446.8
D119: TOTAL DO POSTO | E119: =E116+E117 -> 8281.673893

Sheet 4
B2: PLANILHA DE ESTIMATIVA DE CUSTOS
B3: Padrão IN 05/2017 e IN 07/2018 - MPDG
B5: 4 | D5: =HLOOKUP($B$5,'Dados Gerais'!$D$5:$BK$20,6) -> TÉCNICO DE APOIO AO MONITORAMENTO DA INFRAESTRUTURA (JORNADAS DE 7 ÀS 13H E DE 13 ÀS 19H) | E5: QUANTIDADE | F5: =HLOOKUP($B$5,'Dados Gerais'!$D$5:$BK$20,10) -> 6
B6: CCT | D6: =HLOOKUP($B$5,'Dados Gerais'!$D$5:$BK$20,15) -> SINDPD/DF X SINDESEI/DF 2021/2022 Nº DF000608/2021 | E6: DATA-BASE | F6: ='Dados Gerais'!F20 -> 2021-05-01
B8: MÓDULO 1 - COMPOSIÇÃO DA REMUNERAÇÃO | F8: Valor
C9: A | D9: Salário-Base | F9: =HLOOKUP($B$5,'Dados Gerais'!$D$5:$BK$20,8) -> 2627.81
C10: B | D10: Adicional de Periculosidade | F10: =HLOOKUP($B$5,'Dados Gerais'!$D$5:$BK$37,25) -> 0
C11: C | D11: Adicional de Insalubridade | F11: =HLOOKUP($B$5,'Dados Gerais'!$D$5:$BK$37,31) -> 0
C12: D | D12: Adicional Noturno | F12: =HLOOKUP($B$5,'Dados Gerais'!$D$5:$BK$50,46) -> 0 | H12: * Nota 1 - O Módulo 1 refere-se ao valor mensal devido ao empregado pela prestação do serviço no período de 12 meses.
C13: E | D13: Adicional de Hora Extra | F13: =HLOOKUP($B$5,'Dados Gerais'!$D$5:$BK$67,63) -> 0 | H13: * Nota 2 - O adicional de hora extra no feriado trabalhado foi suprimido pela Lei 13.467/17
C14: F | D14: Outros (especificar) | F14: =HLOOKUP($B$5,'Dados Gerais'!$D$5:$BK$59,33) -> 0 | H14: * Nota 3 - ART. 7º, § 2º, DA LEI Nº 605/49.Sendo mensalista o obreiro, o adicional noturno pago de forma fixa já é considerado integrado para os efeitos do pagamento do repouso semanal remunerado, nos termos do art. 7º, § 2º, da Lei nº 605/49.
D16: TOTAL DA REMUNERAÇÃO | F16: =SUM(F9:F14) -> 2627.81
B18: MÓDULO 2 - ENCARGOS E BENEFÍCIOS ANUAIS, MENSAIS E DIÁRIOS | E18: Percentuais | F18: Valor
B19: Submódulo 2.1 - 13º Salário, Férias e Adicional de Férias
C20: A | D20: 13º Salário - Calculado no Módulo 7 - Destacado | E20: 0 | F20: =ROUND(E20*F$16,2) -> 0 | H20: * Nota 1 - Provisiona-se, mensalmente, o proporcional a 1/11 dos valores referentes a gratificação natalina, férias e adicional de férias.
C21: B | D21: Adicional de Férias | E21: ='Encargos Sociais'!E30 -> 0.0303030303 | F21: =ROUND(E21*F$16,2) -> 79.63 | H21: * Nota 2 - O adicional de férias contido no Submódulo 2.1 corresponde a 1/3 da remuneração que, por sua vez, é dividida por 11 contome Nota 1.
B23: Submódulo 2.2 - Encargos Previdenciários (GPS), Fundo de Garantia por Tempo de Serviço (FGTS) e Outras Contribuições
C24: A | D24: INSS (art. 22, inciso I, Lei nº 8.212/91) | E24: ='Encargos Sociais'!E13 -> 0.2 | F24: =ROUND(E24*($F$16+$F$41+$F$73),2) -> 599.8
C25: B | D25: Salário Educação (art. 3º, inciso I, Decreto nº 87.043/82) | E25: ='Encargos Sociais'!E14 -> 0.025 | F25: =ROUND(E25*($F$16+$F$41+$F$73),2) -> 74.97
C26: C | D26: SAT/RAT (art. 22, II, Lei 8.212/91 e Anexo V, Decreto 6.042/07) - Enquadramento 8211-3/00 | E26: ='Encargos Sociais'!E15 -> 0.01 | F26: 29.99
C27: D | D27: SESC ou SESI (art. 30, Lei nº 8.036/90 e art. 1º, Lei 8.154/90) | E27: ='Encargos Sociais'!E16 -> 0.015 | F27: 44.98
C28: E | D28: SENAI ou SENAC (Decreto nº 2.318/86) | E28: ='Encargos Sociais'!E17 -> 0.01 | F28: 29.99
C29: F | D29: SEBRAE (§ 3º, art. 8º, Lei 8.029/90, alterada pela Lei nº 8.154/90) | E29: ='Encargos Sociais'!E18 -> 0.006 | F29: 17.99
C30: G | D30: INCRA (art. 1º, I, Decreto Lei 1.146/70 e Lei 7.787, de 30/06/89) | E30: ='Encargos Sociais'!E19 -> 0.002 | F30: 6 | H30: * Nota 1 - Os percentuais dos encargos previdenciários, do FGTS e demais contribuições são estabelecidos por legislação vigente.
C31: H | D31: FGTS (Lei Complementar nº 110/01 e art. 30, Lei nº 8.036/90) | E31: ='Encargos Sociais'!E20 -> 0.08 | F31: 239.92 | H31: * Nota 2 - O SAT, a depender do grau de risco do serviço, irá variar entre 1%, para risco leve, de 2%, para risco médio, e de 3% para risco grave.
C32: I | D32: SECONCI (Convenções Coletivas de Trabalho da construção) | E32: ='Encargos Sociais'!E21 -> 0 | F32: 0 | H32: * Nota 3 - Os percentuais do Submódulo 2.2 incidem sobre o Módulo 1 e o Submódulo 2.1.
B34: Submódulo 2.3 - Benefícios Mensais e Diários
C35: A | D35: Auxílio Transporte | F35: =HLOOKUP($B$5,'Dados Gerais'!$D$5:$BK$93,82) -> 199.88
C36: B | D36: Auxílio Alimentação | F36: =HLOOKUP($B$5,'Dados Gerais'!$D$5:$BK$93,89) -> 910
C37: C | D37: Assistência Médica e Familiar | F37: =HLOOKUP($B$5,'Dados Gerais'!$D$5:$BK$101,97) -> 285.5
C38: D | D38: Outros (Seguro de vida e auxílio funeral e auxílio odontológico) | F38: =HLOOKUP($B$5,'Dados Gerais'!$D$5:$BK$118,114) -> 12.36 | H38: * Nota 1 - O valor informado deverá ser o custo real do benefício (descontado o valor eventualmente pago pelo empregado).
H39: * Nota 2 - Observar a previsão dos benefícios contidos em Acordos, Convenções e Dissídios Coletivos de Trabalho e o disposto no art. 6º da IN 5/2017
D40: QUADRO-RESUMO DO MÓDULO 2
D41: 2.1 - 13º Salário, Férias e Adicional de Férias - 13º Destacado - Calculado no Módulo 7 | E41: =SUM(E20:E21) -> 0.0303030303 | F41: =F20+F21 -> 79.63
D42: 2.2 - Encargos Previdenciários (GPS), Fundo de Garantia por Tempo de Serviço (FGTS) e Contribuições | E42: =SUM(E24:E32) -> 0.348 | F42: =SUM(F24:F32) -> 1043.64
D43: 2.3 - Benefícios Mensais e Diários | F43: =SUM(F35:F38) -> 1407.74
D45: TOTAL DOS ENCARGOS E BENEFÍCIOS | F45: =SUM(F41:F43) -> 2531.01
B47: MÓDULO 3 - PREVISÃO PARA RESCISÃO | E47: Percentuais | F47: Valor
C48: A | D48: Aviso Prévio Indenizado (Art. 7º, inciso XXI, da CF/1988 e arts. 477, 487, §1º, e 491 da CLT) | E48: ='Encargos Sociais'!E35 -> 0.008333333333 | F48: =ROUND(E48*($F$16+$F$59),2) -> 23.89
C49: B | D49: Incidência do FGTS sobre o Aviso Prévio Indenizado (Súmula 305 TST) | E49: ='Encargos Sociais'!E36 -> 0.0006666666667 | F49: =ROUND(E49*($F$16+$F$59),2) -> 1.91 | H49: * Nota 1 - Adotou-se os parâmetros do estudo do STF (http://www.stf.jus.br/arquivo/cms/sobrestfestudosci/anexo/encargos_sociais_03102007.pdf), onde 5% do pessoal é demitido pelo empregador no decurso do contrato (para estes, considerou-se o aviso prévio indenizado). Desprezou-se as demissões por justa causa e os pedidos de demissão.
C50: C | D50: Multa do FGTS e Contribuição Social sobre o Aviso Prévio Indenizado (Art. 18, §1º, da Lei 8.036/1990 e art. 1º da LC nº 110/2001) | E50: ='Encargos Sociais'!E37 -> 0.007717066667 | F50: 22.12 | H50: * Nota 2 - No cálculo do percentual, considerou-se 36 dias, correspondendo à metade da duração média dos contratos (2 anos)
C51: D | D51: Aviso Prévio Trabalhado (Art. 488, parágrafo único, CLT) | E51: ='Encargos Sociais'!E38 -> 0.01203703704 | F51: 34.51 | H51: * Nota 3 - Incide sobre a Remuneração + 13º salário (1/12) + Férias (1/12) + Adicional de Férias (1/36) x 50% multa (40% para o empregado e 10% de contribuição social) x 8% FGTS
C52: E | D52: Incidência de GPS, FGTS e outras contribuições sobre o Aviso Prévio Trabalhado | E52: ='Encargos Sociais'!E39 -> 0.004188888889 | F52: 12.01 | H52: * Nota 4 - Os 95% restantes do cálculo, a um prazo médio de contrato de 4 anos. Assim, calcula-se 7 dias para o 1º ano de contrato e mais 3 dias para os 3 anos seguintes.
C53: F | D53: Multa do FGTS e Contribuição Social sobre o Aviso Prévio Trabalhado | E53: ='Encargos Sociais'!E40 -> 0.03050515556 | F53: 87.45
D55: TOTAL DE PREVISÃO PARA RESCISÃO | F55: =SUM(F48:F53) -> 181.89
B57: MÓDULO 4 - CUSTO DO PROFISSIONAL AUSENTE | E57: Percentuais | F57: Valor
B58: Submódulo 4.1 - Ausências Legais
C59: A | D59: Férias (Arts. 129 e 130, inc. I, da CLT) | E59: ='Encargos Sociais'!E24 -> 0.09090909091 | F59: =ROUND(E59*$F$16,2) -> 238.89 | H59: * Nota 1 - As alíneas “A” a “F” referem-se somente ao custo que será pago ao repositor pelos dias trabalhados quando da necessidade de substituir a mão de obra alocada na prestação do serviço.
C60: B | D60: Ausências Legais (Arts. 131 e 473 da CLT) | E60: ='Encargos Sociais'!E25 -> 0.007936507937 | F60: 20.86 | H60: * Nota 2 - Adotou-se a estimativa do SINAPI de 2 dias por ano.
C61: C | D61: Licença-Paternidade (Art. 7º, XIX, e art. 10, §1º, do ADCT, CF/1988 e Art. 1º, II, da Lei 11.770/2008) | E61: ='Encargos Sociais'!E26 -> 0.0008277777778 | F61: 2.18 | H61: * Nota 3 - Utilizada a proporção de 50% para homens, 5 dias de afastamento, e a probabilidade de um trabalhador requerer a Licença Paternidade em 5,22%, conforme SINAPI (citando dados da PNAD 2015)
C62: D | D62: Ausência por Acidente de Trabalho (Art. 131, III, da CLT) | E62: ='Encargos Sociais'!E27 -> 0.0008541666667 | F62: 2.24 | H62: * Nota 4 - Utilzada a estatística de 1,96% dos contribuintes beneficiados com a emissão do auxílio, conforme Anuário Estatístico da Previdência Social. Afastamento de 15 dias a cargo da empresa.
C63: E | D63: Afastamento Maternidade (Art. 71 da Lei nº 8.213/1991) | E63: ='Encargos Sociais'!E28 -> 0.003292592593 | F63: 8.65 | H63: * Nota 5 - Utilizada a proporção de 50% para mulheres, 180 dias de afastamento, e a probabilidade de uma trabalhadora requerer a Licença Maternidade em 4,91%, conforme SINAPI (citando dados do IBGE 2016)
C64: F | D64: Auxílio Enfermidade - Doença (Art. 59 da Lei nº 8.213/1991) | E64: ='Encargos Sociais'!E29 -> 0.007122222222 | F64: 18.72 | H64: * Nota 6 - Utilizada a estatística de 3,37% dos contribuintes beneficiados com o auxílio, conforme Anuário Estatístico da Previdência Social de 2015 (acrescidos de 2 dias ao ano, para os quais o trabalhador nem requer o benefício da Previdência - conforme SINAPI)
B66: Submódulo 4.2 - Intrajornada
C67: A | D67: Intervalo para repouso ou alimentação | E67: ='Encargos Sociais'!E32 -> 0 | F67: =ROUND(E67*$F$16,2) -> 0
D69: QUADRO-RESUMO DO MÓDULO 4 | F69: Valor
D70: 4.1 - Ausências Legais | E70: =SUM(E59:E64) -> 0.1109423581 | F70: =ROUND(E70*$F$16,2) -> 291.54
D71: 4.2 - Intrajornada | E71: =E67 -> 0 | F71: =ROUND(E71*$F$16,2) -> 0
D73: TOTAL DE PREVISÃO PARA RESCISÃO E INTERVALO INTRAJORNADA | F73: =SUM(F70:F71) -> 291.54
B75: MÓDULO 5 - INSUMOS DIVERSOS | F75: Valor
C76: A | D76: Uniformes - aquisição | F76: =ROUND(HLOOKUP($B$5,Uniformes!K6:DZ172,3)/12,2) -> 0
C77: B | D77: Materiais de consumo relacionados ao posto - aquisição | F77: =ROUND(HLOOKUP(B5,'Mat Cons'!I11:DX13,3)/12,2) -> 0
C78: C | D78: Materiais permanentes relacionados ao posto - remuneração da sua depreciação / manutenção | F78: =HLOOKUP(B5,'Mat Perm'!Q11:EF13,3) -> 0
C79: D | D79: Equipamentos relacionados ao posto - remuneração da sua depreciação / manutenção | F79: =HLOOKUP(B5,'Equip Rel'!Q11:EF13,3) -> 0
C80: E | D80: Equipamentos de Proteção Individual - EPI - aquisição | F80: =ROUND(HLOOKUP(B5,EPI!I3:DX37,3)/12,2) -> 0
D82: TOTAL DE INSUMOS DIVERSOS | F82: =SUM(F76:F81) -> 0 | H82: * Nota - Valores mensais por empregado
B84: MÓDULO 6 - CUSTOS INDIRETOS, TRIBUTOS E LUCRO - BDI | E84: Percentuais | F84: Valor
C85: A | D85: Custos Indiretos | E85: =BDI!E6 -> 0.0584
C86: A.1 | D86: Administração Central | E86: =BDI!E7 -> 0.0216
C87: A.2 | D87: Seguros, Garantias e Riscos | E87: =BDI!E8 -> 0.0368
C88: B | D88: Lucro | E88: =BDI!E10 -> 0.0334
C89: C | D89: Tributos | E89: =SUM(E90:E91) -> 0.124
C90: C.1 | D90: Tributos Federais (COFINS, PIS e CPRB) | E90: =BDI!E18 -> 0.074
C91: C.2 | D91: Tributos Distritais (ISS) | E91: =BDI!E23 -> 0.05 | H91: * Nota - Utilizou-se o indicado pelo Sindicato da Arquitetura e da Engenharia (Sinaenco, 2008, p. 22), que adota um percentual redutor de 20% no cálculo dos custos tributários relativos às contribuições PIS e COFINS
C92: D | D92: Despesas Financeiras | E92: =BDI!E13 -> 0.005251960574
D94: TOTAL DE BDI | E94: =BDI!E26 -> 0.2551 | F94: =E94*E102 -> 1436.786975
D96: QUADRO-RESUMO DO CUSTO MENSAL POR EMPREGADO - SEM O 13º | E96: Valor
D97: Módulo 1 - Composição da Remuneração | E97: =F16 -> 2627.81
D98: Módulo 2 - Encargos e Benefícios Anuais, Mensais e Diários | E98: =F45 -> 2531.01
D99: Módulo 3 - Provisão para Rescisão | E99: =F55 -> 181.89
D100: Módulo 4 - Custo de Reposição do Profissional Ausente | E100: =F73 -> 291.54
D101: Módulo 5 - Insumos Diversos | E101: =F82 -> 0
D102: SUBTOTAL (A+B+C+D+E) | E102: =SUM(E97:E101) -> 5632.25
D103: Módulo 6 - Custos Indiretos, Tributos e Lucro | E103: =F94 -> 1436.786975
D105: TOTAL DO POSTO | E105: =SUM(E102:E103) -> 7069.036975
B107: MÓDULO 7 - DESTAQUE DO MÓDULO 2 - 13º SALÁRIO | E107: Percentuais | F107: Valor
C108: A | D108: 13º Salário | E108: ='Encargos Sociais'!E31 -> 0.08333333333 | F108: =ROUND(E108*F$16,2) -> 218.98
C109: B | D109: Encargos Sociais sobre o 13º Salário - Taxa calculada no SUBMÓDULO 2.2 | E109: =SUM($E$24:$E$32) -> 0.348 | F109: =ROUND(E109*$F$108,2) -> 76.21 | H109: * Nota 1 - Provisiona-se, mensalmente, o proporcional a 1/12 dos valores referentes a gratificação natalina e adicional de férias.
C110: C | D110: Reincidência de férias sobre o 13º Salário | E110: =E59 -> 0.09090909091 | F110: =ROUND(E110*$F$108,2) -> 19.91
C111: D | D111: BDI sobre o 13º Salário - Taxa calculada no MÓDULO 6 | E111: =E94 -> 0.2551 | F111: =ROUND(E111*($F$108+$F$109),2) -> 75.3
D113: TOTAL DO DESTAQUE DO 13º SALÁRIO | F113: =SUM(F108:F111) -> 390.4
D115: QUADRO-RESUMO DO CUSTO MENSAL POR EMPREGADO | E115: Valor
D116: Custo total - sem o 13º Salário | E116: =E105 -> 7069.036975
D117: Destaque do 13º Salário (valor mensal) | E117: =F113 -> 390.4
D119: TOTAL DO POSTO | E119: =E116+E117 -> 7459.436975

Sheet 5
B2: PLANILHA DE ESTIMATIVA DE CUSTOS
B3: Padrão IN 05/2017 e IN 07/2018 - MPDG
B5: 5 | D5: =HLOOKUP($B$5,'Dados Gerais'!$D$5:$BK$20,6) -> TÉCNICO DE APOIO AO MONITORAMENTO DA INFRAESTRUTURA (JORNADA DAS 19 À 1H) | E5: QUANTIDADE | F5: =HLOOKUP($B$5,'Dados Gerais'!$D$5:$BK$20,10) -> 3
B6: CCT | D6: =HLOOKUP($B$5,'Dados Gerais'!$D$5:$BK$20,15) -> SINDPD/DF X SINDESEI/DF 2021/2022 Nº DF000608/2021 | E6: DATA-BASE | F6: ='Dados Gerais'!F20 -> 2021-05-01
B8: MÓDULO 1 - COMPOSIÇÃO DA REMUNERAÇÃO | F8: Valor
C9: A | D9: Salário-Base | F9: =HLOOKUP($B$5,'Dados Gerais'!$D$5:$BK$20,8) -> 2627.81
C10: B | D10: Adicional de Periculosidade | F10: =HLOOKUP($B$5,'Dados Gerais'!$D$5:$BK$37,25) -> 0
C11: C | D11: Adicional de Insalubridade | F11: =HLOOKUP($B$5,'Dados Gerais'!$D$5:$BK$37,31) -> 0
C12: D | D12: Adicional Noturno | F12: =HLOOKUP($B$5,'Dados Gerais'!$D$5:$BK$50,46) -> 227.74 | H12: * Nota 1 - O Módulo 1 refere-se ao valor mensal devido ao empregado pela prestação do serviço no período de 12 meses.
C13: E | D13: Adicional de Hora Extra | F13: =HLOOKUP($B$5,'Dados Gerais'!$D$5:$BK$67,63) -> 0 | H13: * Nota 2 - O adicional de hora extra no feriado trabalhado foi suprimido pela Lei 13.467/17
C14: F | D14: Outros (especificar) | F14: =HLOOKUP($B$5,'Dados Gerais'!$D$5:$BK$59,33) -> 0 | H14: * Nota 3 - ART. 7º, § 2º, DA LEI Nº 605/49.Sendo mensalista o obreiro, o adicional noturno pago de forma fixa já é considerado integrado para os efeitos do pagamento do repouso semanal remunerado, nos termos do art. 7º, § 2º, da Lei nº 605/49.
D16: TOTAL DA REMUNERAÇÃO | F16: =SUM(F9:F14) -> 2855.55
B18: MÓDULO 2 - ENCARGOS E BENEFÍCIOS ANUAIS, MENSAIS E DIÁRIOS | E18: Percentuais | F18: Valor
B19: Submódulo 2.1 - 13º Salário, Férias e Adicional de Férias
C20: A | D20: 13º Salário - Calculado no Módulo 7 - Destacado | E20: 0 | F20: =ROUND(E20*F$16,2) -> 0 | H20: * Nota 1 - Provisiona-se, mensalmente, o proporcional a 1/11 dos valores referentes a gratificação natalina, férias e adicional de férias.
C21: B | D21: Adicional de Férias | E21: ='Encargos Sociais'!E30 -> 0.0303030303 | F21: =ROUND(E21*F$16,2) -> 86.53 | H21: * Nota 2 - O adicional de férias contido no Submódulo 2.1 corresponde a 1/3 da remuneração que, por sua vez, é dividida por 11 contome Nota 1.
B23: Submódulo 2.2 - Encargos Previdenciários (GPS), Fundo de Garantia por Tempo de Serviço (FGTS) e Outras Contribuições
C24: A | D24: INSS (art. 22, inciso I, Lei nº 8.212/91) | E24: ='Encargos Sociais'!E13 -> 0.2 | F24: =ROUND(E24*($F$16+$F$41+$F$73),2) -> 651.78
C25: B | D25: Salário Educação (art. 3º, inciso I, Decreto nº 87.043/82) | E25: ='Encargos Sociais'!E14 -> 0.025 | F25: =ROUND(E25*($F$16+$F$41+$F$73),2) -> 81.47
C26: C | D26: SAT/RAT (art. 22, II, Lei 8.212/91 e Anexo V, Decreto 6.042/07) - Enquadramento 8211-3/00 | E26: ='Encargos Sociais'!E15 -> 0.01 | F26: 32.59
C27: D | D27: SESC ou SESI (art. 30, Lei nº 8.036/90 e art. 1º, Lei 8.154/90) | E27: ='Encargos Sociais'!E16 -> 0.015 | F27: 48.88
C28: E | D28: SENAI ou SENAC (Decreto nº 2.318/86) | E28: ='Encargos Sociais'!E17 -> 0.01 | F28: 32.59
C29: F | D29: SEBRAE (§ 3º, art. 8º, Lei 8.029/90, alterada pela Lei nº 8.154/90) | E29: ='Encargos Sociais'!E18 -> 0.006 | F29: 19.55
C30: G | D30: INCRA (art. 1º, I, Decreto Lei 1.146/70 e Lei 7.787, de 30/06/89) | E30: ='Encargos Sociais'!E19 -> 0.002 | F30: 6.52 | H30: * Nota 1 - Os percentuais dos encargos previdenciários, do FGTS e demais contribuições são estabelecidos por legislação vigente.
C31: H | D31: FGTS (Lei Complementar nº 110/01 e art. 30, Lei nº 8.036/90) | E31: ='Encargos Sociais'!E20 -> 0.08 | F31: 260.71 | H31: * Nota 2 - O SAT, a depender do grau de risco do serviço, irá variar entre 1%, para risco leve, de 2%, para risco médio, e de 3% para risco grave.
C32: I | D32: SECONCI (Convenções Coletivas de Trabalho da construção) | E32: ='Encargos Sociais'!E21 -> 0 | F32: 0 | H32: * Nota 3 - Os percentuais do Submódulo 2.2 incidem sobre o Módulo 1 e o Submódulo 2.1.
B34: Submódulo 2.3 - Benefícios Mensais e Diários
C35: A | D35: Auxílio Transporte | F35: =HLOOKUP($B$5,'Dados Gerais'!$D$5:$BK$93,82) -> 199.88
C36: B | D36: Auxílio Alimentação | F36: =HLOOKUP($B$5,'Dados Gerais'!$D$5:$BK$93,89) -> 910
C37: C | D37: Assistência Médica e Familiar | F37: =HLOOKUP($B$5,'Dados Gerais'!$D$5:$BK$101,97) -> 285.5
C38: D | D38: Outros (Seguro de vida e auxílio funeral e auxílio odontológico) | F38: =HLOOKUP($B$5,'Dados Gerais'!$D$5:$BK$118,114) -> 12.36 | H38: * Nota 1 - O valor informado deverá ser o custo real do benefício (descontado o valor eventualmente pago pelo empregado).
H39: * Nota 2 - Observar a previsão dos benefícios contidos em Acordos, Convenções e Dissídios Coletivos de Trabalho e o disposto no art. 6º da IN 5/2017
D40: QUADRO-RESUMO DO MÓDULO 2
D41: 2.1 - 13º Salário, Férias e Adicional de Férias - 13º Destacado - Calculado no Módulo 7 | E41: =SUM(E20:E21) -> 0.0303030303 | F41: =F20+F21 -> 86.53
D42: 2.2 - Encargos Previdenciários (GPS), Fundo de Garantia por Tempo de Serviço (FGTS) e Contribuições | E42: =SUM(E24:E32) -> 0.348 | F42: =SUM(F24:F32) -> 1134.09
D43: 2.3 - Benefícios Mensais e Diários | F43: =SUM(F35:F38) -> 1407.74
D45: TOTAL DOS ENCARGOS E BENEFÍCIOS | F45: =SUM(F41:F43) -> 2628.36
B47: MÓDULO 3 - PREVISÃO PARA RESCISÃO | E47: Percentuais | F47: Valor
C48: A | D48: Aviso Prévio Indenizado (Art. 7º, inciso XXI, da CF/1988 e arts. 477, 487, §1º, e 491 da CLT) | E48: ='Encargos Sociais'!E35 -> 0.008333333333 | F48: =ROUND(E48*($F$16+$F$59),2) -> 25.96
C49: B | D49: Incidência do FGTS sobre o Aviso Prévio Indenizado (Súmula 305 TST) | E49: ='Encargos Sociais'!E36 -> 0.0006666666667 | F49: =ROUND(E49*($F$16+$F$59),2) -> 2.08 | H49: * Nota 1 - Adotou-se os parâmetros do estudo do STF (http://www.stf.jus.br/arquivo/cms/sobrestfestudosci/anexo/encargos_sociais_03102007.pdf), onde 5% do pessoal é demitido pelo empregador no decurso do contrato (para estes, considerou-se o aviso prévio indenizado). Desprezou-se as demissões por justa causa e os pedidos de demissão.
C50: C | D50: Multa do FGTS e Contribuição Social sobre o Aviso Prévio Indenizado (Art. 18, §1º, da Lei 8.036/1990 e art. 1º da LC nº 110/2001) | E50: ='Encargos Sociais'!E37 -> 0.007717066667 | F50: 24.04 | H50: * Nota 2 - No cálculo do percentual, considerou-se 36 dias, correspondendo à metade da duração média dos contratos (2 anos)
C51: D | D51: Aviso Prévio Trabalhado (Art. 488, parágrafo único, CLT) | E51: ='Encargos Sociais'!E38 -> 0.01203703704 | F51: 37.5 | H51: * Nota 3 - Incide sobre a Remuneração + 13º salário (1/12) + Férias (1/12) + Adicional de Férias (1/36) x 50% multa (40% para o empregado e 10% de contribuição social) x 8% FGTS
C52: E | D52: Incidência de GPS, FGTS e outras contribuições sobre o Aviso Prévio Trabalhado | E52: ='Encargos Sociais'!E39 -> 0.004188888889 | F52: 13.05 | H52: * Nota 4 - Os 95% restantes do cálculo, a um prazo médio de contrato de 4 anos. Assim, calcula-se 7 dias para o 1º ano de contrato e mais 3 dias para os 3 anos seguintes.
C53: F | D53: Multa do FGTS e Contribuição Social sobre o Aviso Prévio Trabalhado | E53: ='Encargos Sociais'!E40 -> 0.03050515556 | F53: 95.03
D55: TOTAL DE PREVISÃO PARA RESCISÃO | F55: =SUM(F48:F53) -> 197.66
B57: MÓDULO 4 - CUSTO DO PROFISSIONAL AUSENTE | E57: Percentuais | F57: Valor
B58: Submódulo 4.1 - Ausências Legais
C59: A | D59: Férias (Arts. 129 e 130, inc. I, da CLT) | E59: ='Encargos Sociais'!E24 -> 0.09090909091 | F59: =ROUND(E59*$F$16,2) -> 259.6 | H59: * Nota 1 - As alíneas “A” a “F” referem-se somente ao custo que será pago ao repositor pelos dias trabalhados quando da necessidade de substituir a mão de obra alocada na prestação do serviço.
C60: B | D60: Ausências Legais (Arts. 131 e 473 da CLT) | E60: ='Encargos Sociais'!E25 -> 0.007936507937 | F60: 22.66 | H60: * Nota 2 - Adotou-se a estimativa do SINAPI de 2 dias por ano.
C61: C | D61: Licença-Paternidade (Art. 7º, XIX, e art. 10, §1º, do ADCT, CF/1988 e Art. 1º, II, da Lei 11.770/2008) | E61: ='Encargos Sociais'!E26 -> 0.0008277777778 | F61: 2.36 | H61: * Nota 3 - Utilizada a proporção de 50% para homens, 5 dias de afastamento, e a probabilidade de um trabalhador requerer a Licença Paternidade em 5,22%, conforme SINAPI (citando dados da PNAD 2015)
C62: D | D62: Ausência por Acidente de Trabalho (Art. 131, III, da CLT) | E62: ='Encargos Sociais'!E27 -> 0.0008541666667 | F62: 2.44 | H62: * Nota 4 - Utilzada a estatística de 1,96% dos contribuintes beneficiados com a emissão do auxílio, conforme Anuário Estatístico da Previdência Social. Afastamento de 15 dias a cargo da empresa.
C63: E | D63: Afastamento Maternidade (Art. 71 da Lei nº 8.213/1991) | E63: ='Encargos Sociais'!E28 -> 0.003292592593 | F63: 9.4 | H63: * Nota 5 - Utilizada a proporção de 50% para mulheres, 180 dias de afastamento, e a probabilidade de uma trabalhadora requerer a Licença Maternidade em 4,91%, conforme SINAPI (citando dados do IBGE 2016)
C64: F | D64: Auxílio Enfermidade - Doença (Art. 59 da Lei nº 8.213/1991) | E64: ='Encargos Sociais'!E29 -> 0.007122222222 | F64: 20.34 | H64: * Nota 6 - Utilizada a estatística de 3,37% dos contribuintes beneficiados com o auxílio, conforme Anuário Estatístico da Previdência Social de 2015 (acrescidos de 2 dias ao ano, para os quais o trabalhador nem requer o benefício da Previdência - conforme SINAPI)
B66: Submódulo 4.2 - Intrajornada
C67: A | D67: Intervalo para repouso ou alimentação | E67: ='Encargos Sociais'!E32 -> 0 | F67: =ROUND(E67*$F$16,2) -> 0
D69: QUADRO-RESUMO DO MÓDULO 4 | F69: Valor
D70: 4.1 - Ausências Legais | E70: =SUM(E59:E64) -> 0.1109423581 | F70: =ROUND(E70*$F$16,2) -> 316.8
D71: 4.2 - Intrajornada | E71: =E67 -> 0 | F71: =ROUND(E71*$F$16,2) -> 0
D73: TOTAL DE PREVISÃO PARA RESCISÃO E INTERVALO INTRAJORNADA | F73: =SUM(F70:F71) -> 316.8
B75: MÓDULO 5 - INSUMOS DIVERSOS | F75: Valor
C76: A | D76: Uniformes - aquisição | F76: =ROUND(HLOOKUP($B$5,Uniformes!K6:DZ172,3)/12,2) -> 0
C77: B | D77: Materiais de consumo relacionados ao posto - aquisição | F77: =ROUND(HLOOKUP(B5,'Mat Cons'!I11:DX13,3)/12,2) -> 0
C78: C | D78: Materiais permanentes relacionados ao posto - remuneração da sua depreciação / manutenção | F78: =HLOOKUP(B5,'Mat Perm'!Q11:EF13,3) -> 0
C79: D | D79: Equipamentos relacionados ao posto - remuneração da sua depreciação / manutenção | F79: =HLOOKUP(B5,'Equip Rel'!Q11:EF13,3) -> 0
C80: E | D80: Equipamentos de Proteção Individual - EPI - aquisição | F80: =ROUND(HLOOKUP(B5,EPI!I3:DX37,3)/12,2) -> 0
D82: TOTAL DE INSUMOS DIVERSOS | F82: =SUM(F76:F81) -> 0 | H82: * Nota - Valores mensais por empregado
B84: MÓDULO 6 - CUSTOS INDIRETOS, TRIBUTOS E LUCRO - BDI | E84: Percentuais | F84: Valor
C85: A | D85: Custos Indiretos | E85: =BDI!E6 -> 0.0584
C86: A.1 | D86: Administração Central | E86: =BDI!E7 -> 0.0216
C87: A.2 | D87: Seguros, Garantias e Riscos | E87: =BDI!E8 -> 0.0368
C88: B | D88: Lucro | E88: =BDI!E10 -> 0.0334
C89: C | D89: Tributos | E89: =SUM(E90:E91) -> 0.124
C90: C.1 | D90: Tributos Federais (COFINS, PIS e CPRB) | E90: =BDI!E18 -> 0.074
C91: C.2 | D91: Tributos Distritais (ISS) | E91: =BDI!E23 -> 0.05 | H91: * Nota - Utilizou-se o indicado pelo Sindicato da Arquitetura e da Engenharia (Sinaenco, 2008, p. 22), que adota um percentual redutor de 20% no cálculo dos custos tributários relativos às contribuições PIS e COFINS
C92: D | D92: Despesas Financeiras | E92: =BDI!E13 -> 0.005251960574
D94: TOTAL DE BDI | E94: =BDI!E26 -> 0.2551 | F94: =E94*E102 -> 1530.184187
D96: QUADRO-RESUMO DO CUSTO MENSAL POR EMPREGADO - SEM O 13º | E96: Valor
D97: Módulo 1 - Composição da Remuneração | E97: =F16 -> 2855.55
D98: Módulo 2 - Encargos e Benefícios Anuais, Mensais e Diários | E98: =F45 -> 2628.36
D99: Módulo 3 - Provisão para Rescisão | E99: =F55 -> 197.66
D100: Módulo 4 - Custo de Reposição do Profissional Ausente | E100: =F73 -> 316.8
D101: Módulo 5 - Insumos Diversos | E101: =F82 -> 0
D102: SUBTOTAL (A+B+C+D+E) | E102: =SUM(E97:E101) -> 5998.37
D103: Módulo 6 - Custos Indiretos, Tributos e Lucro | E103: =F94 -> 1530.184187
D105: TOTAL DO POSTO | E105: =SUM(E102:E103) -> 7528.554187
B107: MÓDULO 7 - DESTAQUE DO MÓDULO 2 - 13º SALÁRIO | E107: Percentuais | F107: Valor
C108: A | D108: 13º Salário | E108: ='Encargos Sociais'!E31 -> 0.08333333333 | F108: =ROUND(E108*F$16,2) -> 237.96
C109: B | D109: Encargos Sociais sobre o 13º Salário - Taxa calculada no SUBMÓDULO 2.2 | E109: =SUM($E$24:$E$32) -> 0.348 | F109: =ROUND(E109*$F$108,2) -> 82.81 | H109: * Nota 1 - Provisiona-se, mensalmente, o proporcional a 1/12 dos valores referentes a gratificação natalina e adicional de férias.
C110: C | D110: Reincidência de férias sobre o 13º Salário | E110: =E59 -> 0.09090909091 | F110: =ROUND(E110*$F$108,2) -> 21.63
C111: D | D111: BDI sobre o 13º Salário - Taxa calculada no MÓDULO 6 | E111: =E94 -> 0.2551 | F111: =ROUND(E111*($F$108+$F$109),2) -> 81.83
D113: TOTAL DO DESTAQUE DO 13º SALÁRIO | F113: =SUM(F108:F111) -> 424.23
D115: QUADRO-RESUMO DO CUSTO MENSAL POR EMPREGADO | E115: Valor
D116: Custo total - sem o 13º Salário | E116: =E105 -> 7528.554187
D117: Destaque do 13º Salário (valor mensal) | E117: =F113 -> 424.23
D119: TOTAL DO POSTO | E119: =E116+E117 -> 7952.784187

Sheet 6
B2: PLANILHA DE ESTIMATIVA DE CUSTOS
B3: Padrão IN 05/2017 e IN 07/2018 - MPDG
B5: 6 | D5: =HLOOKUP($B$5,'Dados Gerais'!$D$5:$BK$20,6) -> TÉCNICO DE APOIO AO MONITORAMENTO DA INFRAESTRUTURA (JORNADA DA 1H ÀS 7H) | E5: QUANTIDADE | F5: =HLOOKUP($B$5,'Dados Gerais'!$D$5:$BK$20,10) -> 3
B6: CCT | D6: =HLOOKUP($B$5,'Dados Gerais'!$D$5:$BK$20,15) -> SINDPD/DF X SINDESEI/DF 2021/2022 Nº DF000608/2021 | E6: DATA-BASE | F6: ='Dados Gerais'!F20 -> 2021-05-01
B8: MÓDULO 1 - COMPOSIÇÃO DA REMUNERAÇÃO | F8: Valor
C9: A | D9: Salário-Base | F9: =HLOOKUP($B$5,'Dados Gerais'!$D$5:$BK$20,8) -> 2627.81
C10: B | D10: Adicional de Periculosidade | F10: =HLOOKUP($B$5,'Dados Gerais'!$D$5:$BK$37,25) -> 0
C11: C | D11: Adicional de Insalubridade | F11: =HLOOKUP($B$5,'Dados Gerais'!$D$5:$BK$37,31) -> 0
C12: D | D12: Adicional Noturno | F12: =HLOOKUP($B$5,'Dados Gerais'!$D$5:$BK$50,46) -> 379.57 | H12: * Nota 1 - O Módulo 1 refere-se ao valor mensal devido ao empregado pela prestação do serviço no período de 12 meses.
C13: E | D13: Adicional de Hora Extra | F13: =HLOOKUP($B$5,'Dados Gerais'!$D$5:$BK$67,63) -> 0 | H13: * Nota 2 - O adicional de hora extra no feriado trabalhado foi suprimido pela Lei 13.467/17
C14: F | D14: Outros (especificar) | F14: =HLOOKUP($B$5,'Dados Gerais'!$D$5:$BK$59,33) -> 0 | H14: * Nota 3 - ART. 7º, § 2º, DA LEI Nº 605/49.Sendo mensalista o obreiro, o adicional noturno pago de forma fixa já é considerado integrado para os efeitos do pagamento do repouso semanal remunerado, nos termos do art. 7º, § 2º, da Lei nº 605/49.
D16: TOTAL DA REMUNERAÇÃO | F16: =SUM(F9:F14) -> 3007.38
B18: MÓDULO 2 - ENCARGOS E BENEFÍCIOS ANUAIS, MENSAIS E DIÁRIOS | E18: Percentuais | F18: Valor
B19: Submódulo 2.1 - 13º Salário, Férias e Adicional de Férias
C20: A | D20: 13º Salário - Calculado no Módulo 7 - Destacado | E20: 0 | F20: =ROUND(E20*F$16,2) -> 0 | H20: * Nota 1 - Provisiona-se, mensalmente, o proporcional a 1/11 dos valores referentes a gratificação natalina, férias e adicional de férias.
C21: B | D21: Adicional de Férias | E21: ='Encargos Sociais'!E30 -> 0.0303030303 | F21: =ROUND(E21*F$16,2) -> 91.13 | H21: * Nota 2 - O adicional de férias contido no Submódulo 2.1 corresponde a 1/3 da remuneração que, por sua vez, é dividida por 11 contome Nota 1.
B23: Submódulo 2.2 - Encargos Previdenciários (GPS), Fundo de Garantia por Tempo de Serviço (FGTS) e Outras Contribuições
C24: A | D24: INSS (art. 22, inciso I, Lei nº 8.212/91) | E24: ='Encargos Sociais'!E13 -> 0.2 | F24: =ROUND(E24*($F$16+$F$41+$F$73),2) -> 686.43
C25: B | D25: Salário Educação (art. 3º, inciso I, Decreto nº 87.043/82) | E25: ='Encargos Sociais'!E14 -> 0.025 | F25: =ROUND(E25*($F$16+$F$41+$F$73),2) -> 85.8
C26: C | D26: SAT/RAT (art. 22, II, Lei 8.212/91 e Anexo V, Decreto 6.042/07) - Enquadramento 8211-3/00 | E26: ='Encargos Sociais'!E15 -> 0.01 | F26: 34.32
C27: D | D27: SESC ou SESI (art. 30, Lei nº 8.036/90 e art. 1º, Lei 8.154/90) | E27: ='Encargos Sociais'!E16 -> 0.015 | F27: 51.48
C28: E | D28: SENAI ou SENAC (Decreto nº 2.318/86) | E28: ='Encargos Sociais'!E17 -> 0.01 | F28: 34.32
C29: F | D29: SEBRAE (§ 3º, art. 8º, Lei 8.029/90, alterada pela Lei nº 8.154/90) | E29: ='Encargos Sociais'!E18 -> 0.006 | F29: 20.59
C30: G | D30: INCRA (art. 1º, I, Decreto Lei 1.146/70 e Lei 7.787, de 30/06/89) | E30: ='Encargos Sociais'!E19 -> 0.002 | F30: 6.86 | H30: * Nota 1 - Os percentuais dos encargos previdenciários, do FGTS e demais contribuições são estabelecidos por legislação vigente.
C31: H | D31: FGTS (Lei Complementar nº 110/01 e art. 30, Lei nº 8.036/90) | E31: ='Encargos Sociais'!E20 -> 0.08 | F31: 274.57 | H31: * Nota 2 - O SAT, a depender do grau de risco do serviço, irá variar entre 1%, para risco leve, de 2%, para risco médio, e de 3% para risco grave.
C32: I | D32: SECONCI (Convenções Coletivas de Trabalho da construção) | E32: ='Encargos Sociais'!E21 -> 0 | F32: 0 | H32: * Nota 3 - Os percentuais do Submódulo 2.2 incidem sobre o Módulo 1 e o Submódulo 2.1.
B34: Submódulo 2.3 - Benefícios Mensais e Diários
C35: A | D35: Auxílio Transporte | F35: =HLOOKUP($B$5,'Dados Gerais'!$D$5:$BK$93,82) -> 199.88
C36: B | D36: Auxílio Alimentação | F36: =HLOOKUP($B$5,'Dados Gerais'!$D$5:$BK$93,89) -> 910
C37: C | D37: Assistência Médica e Familiar | F37: =HLOOKUP($B$5,'Dados Gerais'!$D$5:$BK$101,97) -> 285.5
C38: D | D38: Outros (Seguro de vida e auxílio funeral e auxílio odontológico) | F38: =HLOOKUP($B$5,'Dados Gerais'!$D$5:$BK$118,114) -> 12.36 | H38: * Nota 1 - O valor informado deverá ser o custo real do benefício (descontado o valor eventualmente pago pelo empregado).
H39: * Nota 2 - Observar a previsão dos benefícios contidos em Acordos, Convenções e Dissídios Coletivos de Trabalho e o disposto no art. 6º da IN 5/2017
D40: QUADRO-RESUMO DO MÓDULO 2
D41: 2.1 - 13º Salário, Férias e Adicional de Férias - 13º Destacado - Calculado no Módulo 7 | E41: =SUM(E20:E21) -> 0.0303030303 | F41: =F20+F21 -> 91.13
D42: 2.2 - Encargos Previdenciários (GPS), Fundo de Garantia por Tempo de Serviço (FGTS) e Contribuições | E42: =SUM(E24:E32) -> 0.348 | F42: =SUM(F24:F32) -> 1194.37
D43: 2.3 - Benefícios Mensais e Diários | F43: =SUM(F35:F38) -> 1407.74
D45: TOTAL DOS ENCARGOS E BENEFÍCIOS | F45: =SUM(F41:F43) -> 2693.24
B47: MÓDULO 3 - PREVISÃO PARA RESCISÃO | E47: Percentuais | F47: Valor
C48: A | D48: Aviso Prévio Indenizado (Art. 7º, inciso XXI, da CF/1988 e arts. 477, 487, §1º, e 491 da CLT) | E48: ='Encargos Sociais'!E35 -> 0.008333333333 | F48: =ROUND(E48*($F$16+$F$59),2) -> 27.34
C49: B | D49: Incidência do FGTS sobre o Aviso Prévio Indenizado (Súmula 305 TST) | E49: ='Encargos Sociais'!E36 -> 0.0006666666667 | F49: =ROUND(E49*($F$16+$F$59),2) -> 2.19 | H49: * Nota 1 - Adotou-se os parâmetros do estudo do STF (http://www.stf.jus.br/arquivo/cms/sobrestfestudosci/anexo/encargos_sociais_03102007.pdf), onde 5% do pessoal é demitido pelo empregador no decurso do contrato (para estes, considerou-se o aviso prévio indenizado). Desprezou-se as demissões por justa causa e os pedidos de demissão.
C50: C | D50: Multa do FGTS e Contribuição Social sobre o Aviso Prévio Indenizado (Art. 18, §1º, da Lei 8.036/1990 e art. 1º da LC nº 110/2001) | E50: ='Encargos Sociais'!E37 -> 0.007717066667 | F50: 25.32 | H50: * Nota 2 - No cálculo do percentual, considerou-se 36 dias, correspondendo à metade da duração média dos contratos (2 anos)
C51: D | D51: Aviso Prévio Trabalhado (Art. 488, parágrafo único, CLT) | E51: ='Encargos Sociais'!E38 -> 0.01203703704 | F51: 39.49 | H51: * Nota 3 - Incide sobre a Remuneração + 13º salário (1/12) + Férias (1/12) + Adicional de Férias (1/36) x 50% multa (40% para o empregado e 10% de contribuição social) x 8% FGTS
C52: E | D52: Incidência de GPS, FGTS e outras contribuições sobre o Aviso Prévio Trabalhado | E52: ='Encargos Sociais'!E39 -> 0.004188888889 | F52: 13.74 | H52: * Nota 4 - Os 95% restantes do cálculo, a um prazo médio de contrato de 4 anos. Assim, calcula-se 7 dias para o 1º ano de contrato e mais 3 dias para os 3 anos seguintes.
C53: F | D53: Multa do FGTS e Contribuição Social sobre o Aviso Prévio Trabalhado | E53: ='Encargos Sociais'!E40 -> 0.03050515556 | F53: 100.08
D55: TOTAL DE PREVISÃO PARA RESCISÃO | F55: =SUM(F48:F53) -> 208.16
B57: MÓDULO 4 - CUSTO DO PROFISSIONAL AUSENTE | E57: Percentuais | F57: Valor
B58: Submódulo 4.1 - Ausências Legais
C59: A | D59: Férias (Arts. 129 e 130, inc. I, da CLT) | E59: ='Encargos Sociais'!E24 -> 0.09090909091 | F59: =ROUND(E59*$F$16,2) -> 273.4 | H59: * Nota 1 - As alíneas “A” a “F” referem-se somente ao custo que será pago ao repositor pelos dias trabalhados quando da necessidade de substituir a mão de obra alocada na prestação do serviço.
C60: B | D60: Ausências Legais (Arts. 131 e 473 da CLT) | E60: ='Encargos Sociais'!E25 -> 0.007936507937 | F60: 23.87 | H60: * Nota 2 - Adotou-se a estimativa do SINAPI de 2 dias por ano.
C61: C | D61: Licença-Paternidade (Art. 7º, XIX, e art. 10, §1º, do ADCT, CF/1988 e Art. 1º, II, da Lei 11.770/2008) | E61: ='Encargos Sociais'!E26 -> 0.0008277777778 | F61: 2.49 | H61: * Nota 3 - Utilizada a proporção de 50% para homens, 5 dias de afastamento, e a probabilidade de um trabalhador requerer a Licença Paternidade em 5,22%, conforme SINAPI (citando dados da PNAD 2015)
C62: D | D62: Ausência por Acidente de Trabalho (Art. 131, III, da CLT) | E62: ='Encargos Sociais'!E27 -> 0.0008541666667 | F62: 2.57 | H62: * Nota 4 - Utilzada a estatística de 1,96% dos contribuintes beneficiados com a emissão do auxílio, conforme Anuário Estatístico da Previdência Social. Afastamento de 15 dias a cargo da empresa.
C63: E | D63: Afastamento Maternidade (Art. 71 da Lei nº 8.213/1991) | E63: ='Encargos Sociais'!E28 -> 0.003292592593 | F63: 9.9 | H63: * Nota 5 - Utilizada a proporção de 50% para mulheres, 180 dias de afastamento, e a probabilidade de uma trabalhadora requerer a Licença Maternidade em 4,91%, conforme SINAPI (citando dados do IBGE 2016)
C64: F | D64: Auxílio Enfermidade - Doença (Art. 59 da Lei nº 8.213/1991) | E64: ='Encargos Sociais'!E29 -> 0.007122222222 | F64: 21.42 | H64: * Nota 6 - Utilizada a estatística de 3,37% dos contribuintes beneficiados com o auxílio, conforme Anuário Estatístico da Previdência Social de 2015 (acrescidos de 2 dias ao ano, para os quais o trabalhador nem requer o benefício da Previdência - conforme SINAPI)
B66: Submódulo 4.2 - Intrajornada
C67: A | D67: Intervalo para repouso ou alimentação | E67: ='Encargos Sociais'!E32 -> 0 | F67: =ROUND(E67*$F$16,2) -> 0
D69: QUADRO-RESUMO DO MÓDULO 4 | F69: Valor
D70: 4.1 - Ausências Legais | E70: =SUM(E59:E64) -> 0.1109423581 | F70: =ROUND(E70*$F$16,2) -> 333.65
D71: 4.2 - Intrajornada | E71: =E67 -> 0 | F71: =ROUND(E71*$F$16,2) -> 0
D73: TOTAL DE PREVISÃO PARA RESCISÃO E INTERVALO INTRAJORNADA | F73: =SUM(F70:F71) -> 333.65
B75: MÓDULO 5 - INSUMOS DIVERSOS | F75: Valor
C76: A | D76: Uniformes - aquisição | F76: =ROUND(HLOOKUP($B$5,Uniformes!K6:DZ172,3)/12,2) -> 0
C77: B | D77: Materiais de consumo relacionados ao posto - aquisição | F77: =ROUND(HLOOKUP(B5,'Mat Cons'!I11:DX13,3)/12,2) -> 0
C78: C | D78: Materiais permanentes relacionados ao posto - remuneração da sua depreciação / manutenção | F78: =HLOOKUP(B5,'Mat Perm'!Q11:EF13,3) -> 0
C79: D | D79: Equipamentos relacionados ao posto - remuneração da sua depreciação / manutenção | F79: =HLOOKUP(B5,'Equip Rel'!Q11:EF13,3) -> 0
C80: E | D80: Equipamentos de Proteção Individual - EPI - aquisição | F80: =ROUND(HLOOKUP(B5,EPI!I3:DX37,3)/12,2) -> 0
D82: TOTAL DE INSUMOS DIVERSOS | F82: =SUM(F76:F81) -> 0 | H82: * Nota - Valores mensais por empregado
B84: MÓDULO 6 - CUSTOS INDIRETOS, TRIBUTOS E LUCRO - BDI | E84: Percentuais | F84: Valor
C85: A | D85: Custos Indiretos | E85: =BDI!E6 -> 0.0584
C86: A.1 | D86: Administração Central | E86: =BDI!E7 -> 0.0216
C87: A.2 | D87: Seguros, Garantias e Riscos | E87: =BDI!E8 -> 0.0368
C88: B | D88: Lucro | E88: =BDI!E10 -> 0.0334
C89: C | D89: Tributos | E89: =SUM(E90:E91) -> 0.124
C90: C.1 | D90: Tributos Federais (COFINS, PIS e CPRB) | E90: =BDI!E18 -> 0.074
C91: C.2 | D91: Tributos Distritais (ISS) | E91: =BDI!E23 -> 0.05 | H91: * Nota - Utilizou-se o indicado pelo Sindicato da Arquitetura e da Engenharia (Sinaenco, 2008, p. 22), que adota um percentual redutor de 20% no cálculo dos custos tributários relativos às contribuições PIS e COFINS
C92: D | D92: Despesas Financeiras | E92: =BDI!E13 -> 0.005251960574
D94: TOTAL DE BDI | E94: =BDI!E26 -> 0.2551 | F94: =E94*E102 -> 1592.443893
D96: QUADRO-RESUMO DO CUSTO MENSAL POR EMPREGADO - SEM O 13º | E96: Valor
D97: Módulo 1 - Composição da Remuneração | E97: =F16 -> 3007.38
D98: Módulo 2 - Encargos e Benefícios Anuais, Mensais e Diários | E98: =F45 -> 2693.24
D99: Módulo 3 - Provisão para Rescisão | E99: =F55 -> 208.16
D100: Módulo 4 - Custo de Reposição do Profissional Ausente | E100: =F73 -> 333.65
D101: Módulo 5 - Insumos Diversos | E101: =F82 -> 0
D102: SUBTOTAL (A+B+C+D+E) | E102: =SUM(E97:E101) -> 6242.43
D103: Módulo 6 - Custos Indiretos, Tributos e Lucro | E103: =F94 -> 1592.443893
D105: TOTAL DO POSTO | E105: =SUM(E102:E103) -> 7834.873893
B107: MÓDULO 7 - DESTAQUE DO MÓDULO 2 - 13º SALÁRIO | E107: Percentuais | F107: Valor
C108: A | D108: 13º Salário | E108: ='Encargos Sociais'!E31 -> 0.08333333333 | F108: =ROUND(E108*F$16,2) -> 250.62
C109: B | D109: Encargos Sociais sobre o 13º Salário - Taxa calculada no SUBMÓDULO 2.2 | E109: =SUM($E$24:$E$32) -> 0.348 | F109: =ROUND(E109*$F$108,2) -> 87.22 | H109: * Nota 1 - Provisiona-se, mensalmente, o proporcional a 1/12 dos valores referentes a gratificação natalina e adicional de férias.
C110: C | D110: Reincidência de férias sobre o 13º Salário | E110: =E59 -> 0.09090909091 | F110: =ROUND(E110*$F$108,2) -> 22.78
C111: D | D111: BDI sobre o 13º Salário - Taxa calculada no MÓDULO 6 | E111: =E94 -> 0.2551 | F111: =ROUND(E111*($F$108+$F$109),2) -> 86.18
D113: TOTAL DO DESTAQUE DO 13º SALÁRIO | F113: =SUM(F108:F111) -> 446.8
D115: QUADRO-RESUMO DO CUSTO MENSAL POR EMPREGADO | E115: Valor
D116: Custo total - sem o 13º Salário | E116: =E105 -> 7834.873893
D117: Destaque do 13º Salário (valor mensal) | E117: =F113 -> 446.8
D119: TOTAL DO POSTO | E119: =E116+E117 -> 8281.673893

Sheet 7
B2: PLANILHA DE ESTIMATIVA DE CUSTOS
B3: Padrão IN 05/2017 e IN 07/2018 - MPDG
B5: 7 | D5: =HLOOKUP($B$5,'Dados Gerais'!$D$5:$BK$20,6) -> TÉCNICO INSTALADOR DE CABEAMENTO | E5: QUANTIDADE | F5: =HLOOKUP($B$5,'Dados Gerais'!$D$5:$BK$20,10) -> 7
B6: CCT | D6: =HLOOKUP($B$5,'Dados Gerais'!$D$5:$BK$20,15) -> SINDPD/DF X SINDESEI/DF 2021/2022 Nº DF000608/2021 | E6: DATA-BASE | F6: ='Dados Gerais'!F20 -> 2021-05-01
B8: MÓDULO 1 - COMPOSIÇÃO DA REMUNERAÇÃO | F8: Valor
C9: A | D9: Salário-Base | F9: =HLOOKUP($B$5,'Dados Gerais'!$D$5:$BK$20,8) -> 2314.46
C10: B | D10: Adicional de Periculosidade | F10: =HLOOKUP($B$5,'Dados Gerais'!$D$5:$BK$37,25) -> 0
C11: C | D11: Adicional de Insalubridade | F11: =HLOOKUP($B$5,'Dados Gerais'!$D$5:$BK$37,31) -> 0
C12: D | D12: Adicional Noturno | F12: =HLOOKUP($B$5,'Dados Gerais'!$D$5:$BK$50,46) -> 0 | H12: * Nota 1 - O Módulo 1 refere-se ao valor mensal devido ao empregado pela prestação do serviço no período de 12 meses.
C13: E | D13: Adicional de Hora Extra | F13: =HLOOKUP($B$5,'Dados Gerais'!$D$5:$BK$67,63) -> 0 | H13: * Nota 2 - O adicional de hora extra no feriado trabalhado foi suprimido pela Lei 13.467/17
C14: F | D14: Outros (especificar) | F14: =HLOOKUP($B$5,'Dados Gerais'!$D$5:$BK$59,33) -> 0 | H14: * Nota 3 - ART. 7º, § 2º, DA LEI Nº 605/49.Sendo mensalista o obreiro, o adicional noturno pago de forma fixa já é considerado integrado para os efeitos do pagamento do repouso semanal remunerado, nos termos do art. 7º, § 2º, da Lei nº 605/49.
D16: TOTAL DA REMUNERAÇÃO | F16: =SUM(F9:F14) -> 2314.46
B18: MÓDULO 2 - ENCARGOS E BENEFÍCIOS ANUAIS, MENSAIS E DIÁRIOS | E18: Percentuais | F18: Valor
B19: Submódulo 2.1 - 13º Salário, Férias e Adicional de Férias
C20: A | D20: 13º Salário - Calculado no Módulo 7 - Destacado | E20: 0 | F20: =ROUND(E20*F$16,2) -> 0 | H20: * Nota 1 - Provisiona-se, mensalmente, o proporcional a 1/11 dos valores referentes a gratificação natalina, férias e adicional de férias.
C21: B | D21: Adicional de Férias | E21: ='Encargos Sociais'!E30 -> 0.0303030303 | F21: =ROUND(E21*F$16,2) -> 70.14 | H21: * Nota 2 - O adicional de férias contido no Submódulo 2.1 corresponde a 1/3 da remuneração que, por sua vez, é dividida por 11 contome Nota 1.
B23: Submódulo 2.2 - Encargos Previdenciários (GPS), Fundo de Garantia por Tempo de Serviço (FGTS) e Outras Contribuições
C24: A | D24: INSS (art. 22, inciso I, Lei nº 8.212/91) | E24: ='Encargos Sociais'!E13 -> 0.2 | F24: =ROUND(E24*($F$16+$F$41+$F$73),2) -> 528.27
C25: B | D25: Salário Educação (art. 3º, inciso I, Decreto nº 87.043/82) | E25: ='Encargos Sociais'!E14 -> 0.025 | F25: =ROUND(E25*($F$16+$F$41+$F$73),2) -> 66.03
C26: C | D26: SAT/RAT (art. 22, II, Lei 8.212/91 e Anexo V, Decreto 6.042/07) - Enquadramento 8211-3/00 | E26: ='Encargos Sociais'!E15 -> 0.01 | F26: 26.41
C27: D | D27: SESC ou SESI (art. 30, Lei nº 8.036/90 e art. 1º, Lei 8.154/90) | E27: ='Encargos Sociais'!E16 -> 0.015 | F27: 39.62
C28: E | D28: SENAI ou SENAC (Decreto nº 2.318/86) | E28: ='Encargos Sociais'!E17 -> 0.01 | F28: 26.41
C29: F | D29: SEBRAE (§ 3º, art. 8º, Lei 8.029/90, alterada pela Lei nº 8.154/90) | E29: ='Encargos Sociais'!E18 -> 0.006 | F29: 15.85
C30: G | D30: INCRA (art. 1º, I, Decreto Lei 1.146/70 e Lei 7.787, de 30/06/89) | E30: ='Encargos Sociais'!E19 -> 0.002 | F30: 5.28 | H30: * Nota 1 - Os percentuais dos encargos previdenciários, do FGTS e demais contribuições são estabelecidos por legislação vigente.
C31: H | D31: FGTS (Lei Complementar nº 110/01 e art. 30, Lei nº 8.036/90) | E31: ='Encargos Sociais'!E20 -> 0.08 | F31: 211.31 | H31: * Nota 2 - O SAT, a depender do grau de risco do serviço, irá variar entre 1%, para risco leve, de 2%, para risco médio, e de 3% para risco grave.
C32: I | D32: SECONCI (Convenções Coletivas de Trabalho da construção) | E32: ='Encargos Sociais'!E21 -> 0 | F32: 0 | H32: * Nota 3 - Os percentuais do Submódulo 2.2 incidem sobre o Módulo 1 e o Submódulo 2.1.
B34: Submódulo 2.3 - Benefícios Mensais e Diários
C35: A | D35: Auxílio Transporte | F35: =HLOOKUP($B$5,'Dados Gerais'!$D$5:$BK$93,82) -> 163.67
C36: B | D36: Auxílio Alimentação | F36: =HLOOKUP($B$5,'Dados Gerais'!$D$5:$BK$93,89) -> 770
C37: C | D37: Assistência Médica e Familiar | F37: =HLOOKUP($B$5,'Dados Gerais'!$D$5:$BK$101,97) -> 285.5
C38: D | D38: Outros (Seguro de vida e auxílio funeral e auxílio odontológico) | F38: =HLOOKUP($B$5,'Dados Gerais'!$D$5:$BK$118,114) -> 12.36 | H38: * Nota 1 - O valor informado deverá ser o custo real do benefício (descontado o valor eventualmente pago pelo empregado).
H39: * Nota 2 - Observar a previsão dos benefícios contidos em Acordos, Convenções e Dissídios Coletivos de Trabalho e o disposto no art. 6º da IN 5/2017
D40: QUADRO-RESUMO DO MÓDULO 2
D41: 2.1 - 13º Salário, Férias e Adicional de Férias - 13º Destacado - Calculado no Módulo 7 | E41: =SUM(E20:E21) -> 0.0303030303 | F41: =F20+F21 -> 70.14
D42: 2.2 - Encargos Previdenciários (GPS), Fundo de Garantia por Tempo de Serviço (FGTS) e Contribuições | E42: =SUM(E24:E32) -> 0.348 | F42: =SUM(F24:F32) -> 919.18
D43: 2.3 - Benefícios Mensais e Diários | F43: =SUM(F35:F38) -> 1231.53
D45: TOTAL DOS ENCARGOS E BENEFÍCIOS | F45: =SUM(F41:F43) -> 2220.85
B47: MÓDULO 3 - PREVISÃO PARA RESCISÃO | E47: Percentuais | F47: Valor
C48: A | D48: Aviso Prévio Indenizado (Art. 7º, inciso XXI, da CF/1988 e arts. 477, 487, §1º, e 491 da CLT) | E48: ='Encargos Sociais'!E35 -> 0.008333333333 | F48: =ROUND(E48*($F$16+$F$59),2) -> 21.04
C49: B | D49: Incidência do FGTS sobre o Aviso Prévio Indenizado (Súmula 305 TST) | E49: ='Encargos Sociais'!E36 -> 0.0006666666667 | F49: =ROUND(E49*($F$16+$F$59),2) -> 1.68 | H49: * Nota 1 - Adotou-se os parâmetros do estudo do STF (http://www.stf.jus.br/arquivo/cms/sobrestfestudosci/anexo/encargos_sociais_03102007.pdf), onde 5% do pessoal é demitido pelo empregador no decurso do contrato (para estes, considerou-se o aviso prévio indenizado). Desprezou-se as demissões por justa causa e os pedidos de demissão.
C50: C | D50: Multa do FGTS e Contribuição Social sobre o Aviso Prévio Indenizado (Art. 18, §1º, da Lei 8.036/1990 e art. 1º da LC nº 110/2001) | E50: ='Encargos Sociais'!E37 -> 0.007717066667 | F50: 19.48 | H50: * Nota 2 - No cálculo do percentual, considerou-se 36 dias, correspondendo à metade da duração média dos contratos (2 anos)
C51: D | D51: Aviso Prévio Trabalhado (Art. 488, parágrafo único, CLT) | E51: ='Encargos Sociais'!E38 -> 0.01203703704 | F51: 30.39 | H51: * Nota 3 - Incide sobre a Remuneração + 13º salário (1/12) + Férias (1/12) + Adicional de Férias (1/36) x 50% multa (40% para o empregado e 10% de contribuição social) x 8% FGTS
C52: E | D52: Incidência de GPS, FGTS e outras contribuições sobre o Aviso Prévio Trabalhado | E52: ='Encargos Sociais'!E39 -> 0.004188888889 | F52: 10.58 | H52: * Nota 4 - Os 95% restantes do cálculo, a um prazo médio de contrato de 4 anos. Assim, calcula-se 7 dias para o 1º ano de contrato e mais 3 dias para os 3 anos seguintes.
C53: F | D53: Multa do FGTS e Contribuição Social sobre o Aviso Prévio Trabalhado | E53: ='Encargos Sociais'!E40 -> 0.03050515556 | F53: 77.02
D55: TOTAL DE PREVISÃO PARA RESCISÃO | F55: =SUM(F48:F53) -> 160.19
B57: MÓDULO 4 - CUSTO DO PROFISSIONAL AUSENTE | E57: Percentuais | F57: Valor
B58: Submódulo 4.1 - Ausências Legais
C59: A | D59: Férias (Arts. 129 e 130, inc. I, da CLT) | E59: ='Encargos Sociais'!E24 -> 0.09090909091 | F59: =ROUND(E59*$F$16,2) -> 210.41 | H59: * Nota 1 - As alíneas “A” a “F” referem-se somente ao custo que será pago ao repositor pelos dias trabalhados quando da necessidade de substituir a mão de obra alocada na prestação do serviço.
C60: B | D60: Ausências Legais (Arts. 131 e 473 da CLT) | E60: ='Encargos Sociais'!E25 -> 0.007936507937 | F60: 18.37 | H60: * Nota 2 - Adotou-se a estimativa do SINAPI de 2 dias por ano.
C61: C | D61: Licença-Paternidade (Art. 7º, XIX, e art. 10, §1º, do ADCT, CF/1988 e Art. 1º, II, da Lei 11.770/2008) | E61: ='Encargos Sociais'!E26 -> 0.0008277777778 | F61: 1.92 | H61: * Nota 3 - Utilizada a proporção de 50% para homens, 5 dias de afastamento, e a probabilidade de um trabalhador requerer a Licença Paternidade em 5,22%, conforme SINAPI (citando dados da PNAD 2015)
C62: D | D62: Ausência por Acidente de Trabalho (Art. 131, III, da CLT) | E62: ='Encargos Sociais'!E27 -> 0.0008541666667 | F62: 1.98 | H62: * Nota 4 - Utilzada a estatística de 1,96% dos contribuintes beneficiados com a emissão do auxílio, conforme Anuário Estatístico da Previdência Social. Afastamento de 15 dias a cargo da empresa.
C63: E | D63: Afastamento Maternidade (Art. 71 da Lei nº 8.213/1991) | E63: ='Encargos Sociais'!E28 -> 0.003292592593 | F63: 7.62 | H63: * Nota 5 - Utilizada a proporção de 50% para mulheres, 180 dias de afastamento, e a probabilidade de uma trabalhadora requerer a Licença Maternidade em 4,91%, conforme SINAPI (citando dados do IBGE 2016)
C64: F | D64: Auxílio Enfermidade - Doença (Art. 59 da Lei nº 8.213/1991) | E64: ='Encargos Sociais'!E29 -> 0.007122222222 | F64: 16.48 | H64: * Nota 6 - Utilizada a estatística de 3,37% dos contribuintes beneficiados com o auxílio, conforme Anuário Estatístico da Previdência Social de 2015 (acrescidos de 2 dias ao ano, para os quais o trabalhador nem requer o benefício da Previdência - conforme SINAPI)
B66: Submódulo 4.2 - Intrajornada
C67: A | D67: Intervalo para repouso ou alimentação | E67: ='Encargos Sociais'!E32 -> 0 | F67: =ROUND(E67*$F$16,2) -> 0
D69: QUADRO-RESUMO DO MÓDULO 4 | F69: Valor
D70: 4.1 - Ausências Legais | E70: =SUM(E59:E64) -> 0.1109423581 | F70: =ROUND(E70*$F$16,2) -> 256.77
D71: 4.2 - Intrajornada | E71: =E67 -> 0 | F71: =ROUND(E71*$F$16,2) -> 0
D73: TOTAL DE PREVISÃO PARA RESCISÃO E INTERVALO INTRAJORNADA | F73: =SUM(F70:F71) -> 256.77
B75: MÓDULO 5 - INSUMOS DIVERSOS | F75: Valor
C76: A | D76: Uniformes - aquisição | F76: =ROUND(HLOOKUP($B$5,Uniformes!K6:DZ172,3)/12,2) -> 86.5
C77: B | D77: Materiais de consumo relacionados ao posto - aquisição | F77: =ROUND(HLOOKUP(B5,'Mat Cons'!I11:DX13,3)/12,2) -> 0
C78: C | D78: Materiais permanentes relacionados ao posto - remuneração da sua depreciação / manutenção | F78: =HLOOKUP(B5,'Mat Perm'!Q11:EF13,3) -> 0
C79: D | D79: Equipamentos relacionados ao posto - remuneração da sua depreciação / manutenção | F79: =HLOOKUP(B5,'Equip Rel'!Q11:EF13,3) -> 0
C80: E | D80: Equipamentos de Proteção Individual - EPI - aquisição | F80: =ROUND(HLOOKUP(B5,EPI!I3:DX37,3)/12,2) -> 475.45
D82: TOTAL DE INSUMOS DIVERSOS | F82: =SUM(F76:F81) -> 561.95 | H82: * Nota - Valores mensais por empregado
B84: MÓDULO 6 - CUSTOS INDIRETOS, TRIBUTOS E LUCRO - BDI | E84: Percentuais | F84: Valor
C85: A | D85: Custos Indiretos | E85: =BDI!E6 -> 0.0584
C86: A.1 | D86: Administração Central | E86: =BDI!E7 -> 0.0216
C87: A.2 | D87: Seguros, Garantias e Riscos | E87: =BDI!E8 -> 0.0368
C88: B | D88: Lucro | E88: =BDI!E10 -> 0.0334
C89: C | D89: Tributos | E89: =SUM(E90:E91) -> 0.124
C90: C.1 | D90: Tributos Federais (COFINS, PIS e CPRB) | E90: =BDI!E18 -> 0.074
C91: C.2 | D91: Tributos Distritais (ISS) | E91: =BDI!E23 -> 0.05 | H91: * Nota - Utilizou-se o indicado pelo Sindicato da Arquitetura e da Engenharia (Sinaenco, 2008, p. 22), que adota um percentual redutor de 20% no cálculo dos custos tributários relativos às contribuições PIS e COFINS
C92: D | D92: Despesas Financeiras | E92: =BDI!E13 -> 0.005251960574
D94: TOTAL DE BDI | E94: =BDI!E26 -> 0.2551 | F94: =E94*E102 -> 1406.677522
D96: QUADRO-RESUMO DO CUSTO MENSAL POR EMPREGADO - SEM O 13º | E96: Valor
D97: Módulo 1 - Composição da Remuneração | E97: =F16 -> 2314.46
D98: Módulo 2 - Encargos e Benefícios Anuais, Mensais e Diários | E98: =F45 -> 2220.85
D99: Módulo 3 - Provisão para Rescisão | E99: =F55 -> 160.19
D100: Módulo 4 - Custo de Reposição do Profissional Ausente | E100: =F73 -> 256.77
D101: Módulo 5 - Insumos Diversos | E101: =F82 -> 561.95
D102: SUBTOTAL (A+B+C+D+E) | E102: =SUM(E97:E101) -> 5514.22
D103: Módulo 6 - Custos Indiretos, Tributos e Lucro | E103: =F94 -> 1406.677522
D105: TOTAL DO POSTO | E105: =SUM(E102:E103) -> 6920.897522
B107: MÓDULO 7 - DESTAQUE DO MÓDULO 2 - 13º SALÁRIO | E107: Percentuais | F107: Valor
C108: A | D108: 13º Salário | E108: ='Encargos Sociais'!E31 -> 0.08333333333 | F108: =ROUND(E108*F$16,2) -> 192.87
C109: B | D109: Encargos Sociais sobre o 13º Salário - Taxa calculada no SUBMÓDULO 2.2 | E109: =SUM($E$24:$E$32) -> 0.348 | F109: =ROUND(E109*$F$108,2) -> 67.12 | H109: * Nota 1 - Provisiona-se, mensalmente, o proporcional a 1/12 dos valores referentes a gratificação natalina e adicional de férias.
C110: C | D110: Reincidência de férias sobre o 13º Salário | E110: =E59 -> 0.09090909091 | F110: =ROUND(E110*$F$108,2) -> 17.53
C111: D | D111: BDI sobre o 13º Salário - Taxa calculada no MÓDULO 6 | E111: =E94 -> 0.2551 | F111: =ROUND(E111*($F$108+$F$109),2) -> 66.32
D113: TOTAL DO DESTAQUE DO 13º SALÁRIO | F113: =SUM(F108:F111) -> 343.84
D115: QUADRO-RESUMO DO CUSTO MENSAL POR EMPREGADO | E115: Valor
D116: Custo total - sem o 13º Salário | E116: =E105 -> 6920.897522
D117: Destaque do 13º Salário (valor mensal) | E117: =F113 -> 343.84
D119: TOTAL DO POSTO | E119: =E116+E117 -> 7264.737522

Sheet 8
B2: PLANILHA DE ESTIMATIVA DE CUSTOS
B3: Padrão IN 05/2017 e IN 07/2018 - MPDG
B5: 8 | D5: =HLOOKUP($B$5,'Dados Gerais'!$D$5:$BK$20,6) -> TÉCNICO DE MANUTENÇÃO DE INFRAESTRUTURA DE REDE | E5: QUANTIDADE | F5: =HLOOKUP($B$5,'Dados Gerais'!$D$5:$BK$20,10) -> 8
B6: CCT | D6: =HLOOKUP($B$5,'Dados Gerais'!$D$5:$BK$20,15) -> SINDPD/DF X SINDESEI/DF 2021/2022 Nº DF000608/2021 | E6: DATA-BASE | F6: ='Dados Gerais'!F20 -> 2021-05-01
B8: MÓDULO 1 - COMPOSIÇÃO DA REMUNERAÇÃO | F8: Valor
C9: A | D9: Salário-Base | F9: =HLOOKUP($B$5,'Dados Gerais'!$D$5:$BK$20,8) -> 3130.93
C10: B | D10: Adicional de Periculosidade | F10: =HLOOKUP($B$5,'Dados Gerais'!$D$5:$BK$37,25) -> 0
C11: C | D11: Adicional de Insalubridade | F11: =HLOOKUP($B$5,'Dados Gerais'!$D$5:$BK$37,31) -> 0
C12: D | D12: Adicional Noturno | F12: =HLOOKUP($B$5,'Dados Gerais'!$D$5:$BK$50,46) -> 0 | H12: * Nota 1 - O Módulo 1 refere-se ao valor mensal devido ao empregado pela prestação do serviço no período de 12 meses.
C13: E | D13: Adicional de Hora Extra | F13: =HLOOKUP($B$5,'Dados Gerais'!$D$5:$BK$67,63) -> 0 | H13: * Nota 2 - O adicional de hora extra no feriado trabalhado foi suprimido pela Lei 13.467/17
C14: F | D14: Outros (especificar) | F14: =HLOOKUP($B$5,'Dados Gerais'!$D$5:$BK$59,33) -> 0 | H14: * Nota 3 - ART. 7º, § 2º, DA LEI Nº 605/49.Sendo mensalista o obreiro, o adicional noturno pago de forma fixa já é considerado integrado para os efeitos do pagamento do repouso semanal remunerado, nos termos do art. 7º, § 2º, da Lei nº 605/49.
D16: TOTAL DA REMUNERAÇÃO | F16: =SUM(F9:F14) -> 3130.93
B18: MÓDULO 2 - ENCARGOS E BENEFÍCIOS ANUAIS, MENSAIS E DIÁRIOS | E18: Percentuais | F18: Valor
B19: Submódulo 2.1 - 13º Salário, Férias e Adicional de Férias
C20: A | D20: 13º Salário - Calculado no Módulo 7 - Destacado | E20: 0 | F20: =ROUND(E20*F$16,2) -> 0 | H20: * Nota 1 - Provisiona-se, mensalmente, o proporcional a 1/11 dos valores referentes a gratificação natalina, férias e adicional de férias.
C21: B | D21: Adicional de Férias | E21: ='Encargos Sociais'!E30 -> 0.0303030303 | F21: =ROUND(E21*F$16,2) -> 94.88 | H21: * Nota 2 - O adicional de férias contido no Submódulo 2.1 corresponde a 1/3 da remuneração que, por sua vez, é dividida por 11 contome Nota 1.
B23: Submódulo 2.2 - Encargos Previdenciários (GPS), Fundo de Garantia por Tempo de Serviço (FGTS) e Outras Contribuições
C24: A | D24: INSS (art. 22, inciso I, Lei nº 8.212/91) | E24: ='Encargos Sociais'!E13 -> 0.2 | F24: =ROUND(E24*($F$16+$F$41+$F$73),2) -> 714.63
C25: B | D25: Salário Educação (art. 3º, inciso I, Decreto nº 87.043/82) | E25: ='Encargos Sociais'!E14 -> 0.025 | F25: =ROUND(E25*($F$16+$F$41+$F$73),2) -> 89.33
C26: C | D26: SAT/RAT (art. 22, II, Lei 8.212/91 e Anexo V, Decreto 6.042/07) - Enquadramento 8211-3/00 | E26: ='Encargos Sociais'!E15 -> 0.01 | F26: 35.73
C27: D | D27: SESC ou SESI (art. 30, Lei nº 8.036/90 e art. 1º, Lei 8.154/90) | E27: ='Encargos Sociais'!E16 -> 0.015 | F27: 53.6
C28: E | D28: SENAI ou SENAC (Decreto nº 2.318/86) | E28: ='Encargos Sociais'!E17 -> 0.01 | F28: 35.73
C29: F | D29: SEBRAE (§ 3º, art. 8º, Lei 8.029/90, alterada pela Lei nº 8.154/90) | E29: ='Encargos Sociais'!E18 -> 0.006 | F29: 21.44
C30: G | D30: INCRA (art. 1º, I, Decreto Lei 1.146/70 e Lei 7.787, de 30/06/89) | E30: ='Encargos Sociais'!E19 -> 0.002 | F30: 7.15 | H30: * Nota 1 - Os percentuais dos encargos previdenciários, do FGTS e demais contribuições são estabelecidos por legislação vigente.
C31: H | D31: FGTS (Lei Complementar nº 110/01 e art. 30, Lei nº 8.036/90) | E31: ='Encargos Sociais'!E20 -> 0.08 | F31: 285.85 | H31: * Nota 2 - O SAT, a depender do grau de risco do serviço, irá variar entre 1%, para risco leve, de 2%, para risco médio, e de 3% para risco grave.
C32: I | D32: SECONCI (Convenções Coletivas de Trabalho da construção) | E32: ='Encargos Sociais'!E21 -> 0 | F32: 0 | H32: * Nota 3 - Os percentuais do Submódulo 2.2 incidem sobre o Módulo 1 e o Submódulo 2.1.
B34: Submódulo 2.3 - Benefícios Mensais e Diários
C35: A | D35: Auxílio Transporte | F35: =HLOOKUP($B$5,'Dados Gerais'!$D$5:$BK$93,82) -> 114.68
C36: B | D36: Auxílio Alimentação | F36: =HLOOKUP($B$5,'Dados Gerais'!$D$5:$BK$93,89) -> 770
C37: C | D37: Assistência Médica e Familiar | F37: =HLOOKUP($B$5,'Dados Gerais'!$D$5:$BK$101,97) -> 285.5
C38: D | D38: Outros (Seguro de vida e auxílio funeral e auxílio odontológico) | F38: =HLOOKUP($B$5,'Dados Gerais'!$D$5:$BK$118,114) -> 12.36 | H38: * Nota 1 - O valor informado deverá ser o custo real do benefício (descontado o valor eventualmente pago pelo empregado).
H39: * Nota 2 - Observar a previsão dos benefícios contidos em Acordos, Convenções e Dissídios Coletivos de Trabalho e o disposto no art. 6º da IN 5/2017
D40: QUADRO-RESUMO DO MÓDULO 2
D41: 2.1 - 13º Salário, Férias e Adicional de Férias - 13º Destacado - Calculado no Módulo 7 | E41: =SUM(E20:E21) -> 0.0303030303 | F41: =F20+F21 -> 94.88
D42: 2.2 - Encargos Previdenciários (GPS), Fundo de Garantia por Tempo de Serviço (FGTS) e Contribuições | E42: =SUM(E24:E32) -> 0.348 | F42: =SUM(F24:F32) -> 1243.46
D43: 2.3 - Benefícios Mensais e Diários | F43: =SUM(F35:F38) -> 1182.54
D45: TOTAL DOS ENCARGOS E BENEFÍCIOS | F45: =SUM(F41:F43) -> 2520.88
B47: MÓDULO 3 - PREVISÃO PARA RESCISÃO | E47: Percentuais | F47: Valor
C48: A | D48: Aviso Prévio Indenizado (Art. 7º, inciso XXI, da CF/1988 e arts. 477, 487, §1º, e 491 da CLT) | E48: ='Encargos Sociais'!E35 -> 0.008333333333 | F48: =ROUND(E48*($F$16+$F$59),2) -> 28.46
C49: B | D49: Incidência do FGTS sobre o Aviso Prévio Indenizado (Súmula 305 TST) | E49: ='Encargos Sociais'!E36 -> 0.0006666666667 | F49: =ROUND(E49*($F$16+$F$59),2) -> 2.28 | H49: * Nota 1 - Adotou-se os parâmetros do estudo do STF (http://www.stf.jus.br/arquivo/cms/sobrestfestudosci/anexo/encargos_sociais_03102007.pdf), onde 5% do pessoal é demitido pelo empregador no decurso do contrato (para estes, considerou-se o aviso prévio indenizado). Desprezou-se as demissões por justa causa e os pedidos de demissão.
C50: C | D50: Multa do FGTS e Contribuição Social sobre o Aviso Prévio Indenizado (Art. 18, §1º, da Lei 8.036/1990 e art. 1º da LC nº 110/2001) | E50: ='Encargos Sociais'!E37 -> 0.007717066667 | F50: 26.36 | H50: * Nota 2 - No cálculo do percentual, considerou-se 36 dias, correspondendo à metade da duração média dos contratos (2 anos)
C51: D | D51: Aviso Prévio Trabalhado (Art. 488, parágrafo único, CLT) | E51: ='Encargos Sociais'!E38 -> 0.01203703704 | F51: 41.11 | H51: * Nota 3 - Incide sobre a Remuneração + 13º salário (1/12) + Férias (1/12) + Adicional de Férias (1/36) x 50% multa (40% para o empregado e 10% de contribuição social) x 8% FGTS
C52: E | D52: Incidência de GPS, FGTS e outras contribuições sobre o Aviso Prévio Trabalhado | E52: ='Encargos Sociais'!E39 -> 0.004188888889 | F52: 14.31 | H52: * Nota 4 - Os 95% restantes do cálculo, a um prazo médio de contrato de 4 anos. Assim, calcula-se 7 dias para o 1º ano de contrato e mais 3 dias para os 3 anos seguintes.
C53: F | D53: Multa do FGTS e Contribuição Social sobre o Aviso Prévio Trabalhado | E53: ='Encargos Sociais'!E40 -> 0.03050515556 | F53: 104.19
D55: TOTAL DE PREVISÃO PARA RESCISÃO | F55: =SUM(F48:F53) -> 216.71
B57: MÓDULO 4 - CUSTO DO PROFISSIONAL AUSENTE | E57: Percentuais | F57: Valor
B58: Submódulo 4.1 - Ausências Legais
C59: A | D59: Férias (Arts. 129 e 130, inc. I, da CLT) | E59: ='Encargos Sociais'!E24 -> 0.09090909091 | F59: =ROUND(E59*$F$16,2) -> 284.63 | H59: * Nota 1 - As alíneas “A” a “F” referem-se somente ao custo que será pago ao repositor pelos dias trabalhados quando da necessidade de substituir a mão de obra alocada na prestação do serviço.
C60: B | D60: Ausências Legais (Arts. 131 e 473 da CLT) | E60: ='Encargos Sociais'!E25 -> 0.007936507937 | F60: 24.85 | H60: * Nota 2 - Adotou-se a estimativa do SINAPI de 2 dias por ano.
C61: C | D61: Licença-Paternidade (Art. 7º, XIX, e art. 10, §1º, do ADCT, CF/1988 e Art. 1º, II, da Lei 11.770/2008) | E61: ='Encargos Sociais'!E26 -> 0.0008277777778 | F61: 2.59 | H61: * Nota 3 - Utilizada a proporção de 50% para homens, 5 dias de afastamento, e a probabilidade de um trabalhador requerer a Licença Paternidade em 5,22%, conforme SINAPI (citando dados da PNAD 2015)
C62: D | D62: Ausência por Acidente de Trabalho (Art. 131, III, da CLT) | E62: ='Encargos Sociais'!E27 -> 0.0008541666667 | F62: 2.67 | H62: * Nota 4 - Utilzada a estatística de 1,96% dos contribuintes beneficiados com a emissão do auxílio, conforme Anuário Estatístico da Previdência Social. Afastamento de 15 dias a cargo da empresa.
C63: E | D63: Afastamento Maternidade (Art. 71 da Lei nº 8.213/1991) | E63: ='Encargos Sociais'!E28 -> 0.003292592593 | F63: 10.31 | H63: * Nota 5 - Utilizada a proporção de 50% para mulheres, 180 dias de afastamento, e a probabilidade de uma trabalhadora requerer a Licença Maternidade em 4,91%, conforme SINAPI (citando dados do IBGE 2016)
C64: F | D64: Auxílio Enfermidade - Doença (Art. 59 da Lei nº 8.213/1991) | E64: ='Encargos Sociais'!E29 -> 0.007122222222 | F64: 22.3 | H64: * Nota 6 - Utilizada a estatística de 3,37% dos contribuintes beneficiados com o auxílio, conforme Anuário Estatístico da Previdência Social de 2015 (acrescidos de 2 dias ao ano, para os quais o trabalhador nem requer o benefício da Previdência - conforme SINAPI)
B66: Submódulo 4.2 - Intrajornada
C67: A | D67: Intervalo para repouso ou alimentação | E67: ='Encargos Sociais'!E32 -> 0 | F67: =ROUND(E67*$F$16,2) -> 0
D69: QUADRO-RESUMO DO MÓDULO 4 | F69: Valor
D70: 4.1 - Ausências Legais | E70: =SUM(E59:E64) -> 0.1109423581 | F70: =ROUND(E70*$F$16,2) -> 347.35
D71: 4.2 - Intrajornada | E71: =E67 -> 0 | F71: =ROUND(E71*$F$16,2) -> 0
D73: TOTAL DE PREVISÃO PARA RESCISÃO E INTERVALO INTRAJORNADA | F73: =SUM(F70:F71) -> 347.35
B75: MÓDULO 5 - INSUMOS DIVERSOS | F75: Valor
C76: A | D76: Uniformes - aquisição | F76: =ROUND(HLOOKUP($B$5,Uniformes!K6:DZ172,3)/12,2) -> 86.5
C77: B | D77: Materiais de consumo relacionados ao posto - aquisição | F77: =ROUND(HLOOKUP(B5,'Mat Cons'!I11:DX13,3)/12,2) -> 0
C78: C | D78: Materiais permanentes relacionados ao posto - remuneração da sua depreciação / manutenção | F78: =HLOOKUP(B5,'Mat Perm'!Q11:EF13,3) -> 0
C79: D | D79: Equipamentos relacionados ao posto - remuneração da sua depreciação / manutenção | F79: =HLOOKUP(B5,'Equip Rel'!Q11:EF13,3) -> 0
C80: E | D80: Equipamentos de Proteção Individual - EPI - aquisição | F80: =ROUND(HLOOKUP(B5,EPI!I3:DX37,3)/12,2) -> 333.89
D82: TOTAL DE INSUMOS DIVERSOS | F82: =SUM(F76:F81) -> 420.39 | H82: * Nota - Valores mensais por empregado
B84: MÓDULO 6 - CUSTOS INDIRETOS, TRIBUTOS E LUCRO - BDI | E84: Percentuais | F84: Valor
C85: A | D85: Custos Indiretos | E85: =BDI!E6 -> 0.0584
C86: A.1 | D86: Administração Central | E86: =BDI!E7 -> 0.0216
C87: A.2 | D87: Seguros, Garantias e Riscos | E87: =BDI!E8 -> 0.0368
C88: B | D88: Lucro | E88: =BDI!E10 -> 0.0334
C89: C | D89: Tributos | E89: =SUM(E90:E91) -> 0.124
C90: C.1 | D90: Tributos Federais (COFINS, PIS e CPRB) | E90: =BDI!E18 -> 0.074
C91: C.2 | D91: Tributos Distritais (ISS) | E91: =BDI!E23 -> 0.05 | H91: * Nota - Utilizou-se o indicado pelo Sindicato da Arquitetura e da Engenharia (Sinaenco, 2008, p. 22), que adota um percentual redutor de 20% no cálculo dos custos tributários relativos às contribuições PIS e COFINS
C92: D | D92: Despesas Financeiras | E92: =BDI!E13 -> 0.005251960574
D94: TOTAL DE BDI | E94: =BDI!E26 -> 0.2551 | F94: =E94*E102 -> 1692.909926
D96: QUADRO-RESUMO DO CUSTO MENSAL POR EMPREGADO - SEM O 13º | E96: Valor
D97: Módulo 1 - Composição da Remuneração | E97: =F16 -> 3130.93
D98: Módulo 2 - Encargos e Benefícios Anuais, Mensais e Diários | E98: =F45 -> 2520.88
D99: Módulo 3 - Provisão para Rescisão | E99: =F55 -> 216.71
D100: Módulo 4 - Custo de Reposição do Profissional Ausente | E100: =F73 -> 347.35
D101: Módulo 5 - Insumos Diversos | E101: =F82 -> 420.39
D102: SUBTOTAL (A+B+C+D+E) | E102: =SUM(E97:E101) -> 6636.26
D103: Módulo 6 - Custos Indiretos, Tributos e Lucro | E103: =F94 -> 1692.909926
D105: TOTAL DO POSTO | E105: =SUM(E102:E103) -> 8329.169926
B107: MÓDULO 7 - DESTAQUE DO MÓDULO 2 - 13º SALÁRIO | E107: Percentuais | F107: Valor
C108: A | D108: 13º Salário | E108: ='Encargos Sociais'!E31 -> 0.08333333333 | F108: =ROUND(E108*F$16,2) -> 260.91
C109: B | D109: Encargos Sociais sobre o 13º Salário - Taxa calculada no SUBMÓDULO 2.2 | E109: =SUM($E$24:$E$32) -> 0.348 | F109: =ROUND(E109*$F$108,2) -> 90.8 | H109: * Nota 1 - Provisiona-se, mensalmente, o proporcional a 1/12 dos valores referentes a gratificação natalina e adicional de férias.
C110: C | D110: Reincidência de férias sobre o 13º Salário | E110: =E59 -> 0.09090909091 | F110: =ROUND(E110*$F$108,2) -> 23.72
C111: D | D111: BDI sobre o 13º Salário - Taxa calculada no MÓDULO 6 | E111: =E94 -> 0.2551 | F111: =ROUND(E111*($F$108+$F$109),2) -> 89.72
D113: TOTAL DO DESTAQUE DO 13º SALÁRIO | F113: =SUM(F108:F111) -> 465.15
D115: QUADRO-RESUMO DO CUSTO MENSAL POR EMPREGADO | E115: Valor
D116: Custo total - sem o 13º Salário | E116: =E105 -> 8329.169926
D117: Destaque do 13º Salário (valor mensal) | E117: =F113 -> 465.15
D119: TOTAL DO POSTO | E119: =E116+E117 -> 8794.319926

Sheet 9
B2: PLANILHA DE ESTIMATIVA DE CUSTOS
B3: Padrão IN 05/2017 e IN 07/2018 - MPDG
B5: 9 | D5: =HLOOKUP($B$5,'Dados Gerais'!$D$5:$BK$20,6) -> ANALISTA DE INFRAESTRUTURA DE TI PLENO | E5: QUANTIDADE | F5: =HLOOKUP($B$5,'Dados Gerais'!$D$5:$BK$20,10) -> 6
B6: CCT | D6: =HLOOKUP($B$5,'Dados Gerais'!$D$5:$BK$20,15) -> SINDPD/DF X SINDESEI/DF 2021/2022 Nº DF000608/2021 | E6: DATA-BASE | F6: ='Dados Gerais'!F20 -> 2021-05-01
B8: MÓDULO 1 - COMPOSIÇÃO DA REMUNERAÇÃO | F8: Valor
C9: A | D9: Salário-Base | F9: =HLOOKUP($B$5,'Dados Gerais'!$D$5:$BK$20,8) -> 6192.84
C10: B | D10: Adicional de Periculosidade | F10: =HLOOKUP($B$5,'Dados Gerais'!$D$5:$BK$37,25) -> 0
C11: C | D11: Adicional de Insalubridade | F11: =HLOOKUP($B$5,'Dados Gerais'!$D$5:$BK$37,31) -> 0
C12: D | D12: Adicional Noturno | F12: =HLOOKUP($B$5,'Dados Gerais'!$D$5:$BK$50,46) -> 0 | H12: * Nota 1 - O Módulo 1 refere-se ao valor mensal devido ao empregado pela prestação do serviço no período de 12 meses.
C13: E | D13: Adicional de Hora Extra | F13: =HLOOKUP($B$5,'Dados Gerais'!$D$5:$BK$67,63) -> 0 | H13: * Nota 2 - O adicional de hora extra no feriado trabalhado foi suprimido pela Lei 13.467/17
C14: F | D14: Outros (especificar) | F14: =HLOOKUP($B$5,'Dados Gerais'!$D$5:$BK$59,33) -> 0 | H14: * Nota 3 - ART. 7º, § 2º, DA LEI Nº 605/49.Sendo mensalista o obreiro, o adicional noturno pago de forma fixa já é considerado integrado para os efeitos do pagamento do repouso semanal remunerado, nos termos do art. 7º, § 2º, da Lei nº 605/49.
D16: TOTAL DA REMUNERAÇÃO | F16: =SUM(F9:F14) -> 6192.84
B18: MÓDULO 2 - ENCARGOS E BENEFÍCIOS ANUAIS, MENSAIS E DIÁRIOS | E18: Percentuais | F18: Valor
B19: Submódulo 2.1 - 13º Salário, Férias e Adicional de Férias
C20: A | D20: 13º Salário - Calculado no Módulo 7 - Destacado | E20: 0 | F20: =ROUND(E20*F$16,2) -> 0 | H20: * Nota 1 - Provisiona-se, mensalmente, o proporcional a 1/11 dos valores referentes a gratificação natalina, férias e adicional de férias.
C21: B | D21: Adicional de Férias | E21: ='Encargos Sociais'!E30 -> 0.0303030303 | F21: =ROUND(E21*F$16,2) -> 187.66 | H21: * Nota 2 - O adicional de férias contido no Submódulo 2.1 corresponde a 1/3 da remuneração que, por sua vez, é dividida por 11 contome Nota 1.
B23: Submódulo 2.2 - Encargos Previdenciários (GPS), Fundo de Garantia por Tempo de Serviço (FGTS) e Outras Contribuições
C24: A | D24: INSS (art. 22, inciso I, Lei nº 8.212/91) | E24: ='Encargos Sociais'!E13 -> 0.2 | F24: =ROUND(E24*($F$16+$F$41+$F$73),2) -> 1413.51
C25: B | D25: Salário Educação (art. 3º, inciso I, Decreto nº 87.043/82) | E25: ='Encargos Sociais'!E14 -> 0.025 | F25: =ROUND(E25*($F$16+$F$41+$F$73),2) -> 176.69
C26: C | D26: SAT/RAT (art. 22, II, Lei 8.212/91 e Anexo V, Decreto 6.042/07) - Enquadramento 8211-3/00 | E26: ='Encargos Sociais'!E15 -> 0.01 | F26: 70.68
C27: D | D27: SESC ou SESI (art. 30, Lei nº 8.036/90 e art. 1º, Lei 8.154/90) | E27: ='Encargos Sociais'!E16 -> 0.015 | F27: 106.01
C28: E | D28: SENAI ou SENAC (Decreto nº 2.318/86) | E28: ='Encargos Sociais'!E17 -> 0.01 | F28: 70.68
C29: F | D29: SEBRAE (§ 3º, art. 8º, Lei 8.029/90, alterada pela Lei nº 8.154/90) | E29: ='Encargos Sociais'!E18 -> 0.006 | F29: 42.41
C30: G | D30: INCRA (art. 1º, I, Decreto Lei 1.146/70 e Lei 7.787, de 30/06/89) | E30: ='Encargos Sociais'!E19 -> 0.002 | F30: 14.14 | H30: * Nota 1 - Os percentuais dos encargos previdenciários, do FGTS e demais contribuições são estabelecidos por legislação vigente.
C31: H | D31: FGTS (Lei Complementar nº 110/01 e art. 30, Lei nº 8.036/90) | E31: ='Encargos Sociais'!E20 -> 0.08 | F31: 565.4 | H31: * Nota 2 - O SAT, a depender do grau de risco do serviço, irá variar entre 1%, para risco leve, de 2%, para risco médio, e de 3% para risco grave.
C32: I | D32: SECONCI (Convenções Coletivas de Trabalho da construção) | E32: ='Encargos Sociais'!E21 -> 0 | F32: 0 | H32: * Nota 3 - Os percentuais do Submódulo 2.2 incidem sobre o Módulo 1 e o Submódulo 2.1.
B34: Submódulo 2.3 - Benefícios Mensais e Diários
C35: A | D35: Auxílio Transporte | F35: =HLOOKUP($B$5,'Dados Gerais'!$D$5:$BK$93,82) -> 0
C36: B | D36: Auxílio Alimentação | F36: =HLOOKUP($B$5,'Dados Gerais'!$D$5:$BK$93,89) -> 770
C37: C | D37: Assistência Médica e Familiar | F37: =HLOOKUP($B$5,'Dados Gerais'!$D$5:$BK$101,97) -> 237.92
C38: D | D38: Outros (Seguro de vida e auxílio funeral e auxílio odontológico) | F38: =HLOOKUP($B$5,'Dados Gerais'!$D$5:$BK$118,114) -> 12.36 | H38: * Nota 1 - O valor informado deverá ser o custo real do benefício (descontado o valor eventualmente pago pelo empregado).
H39: * Nota 2 - Observar a previsão dos benefícios contidos em Acordos, Convenções e Dissídios Coletivos de Trabalho e o disposto no art. 6º da IN 5/2017
D40: QUADRO-RESUMO DO MÓDULO 2
D41: 2.1 - 13º Salário, Férias e Adicional de Férias - 13º Destacado - Calculado no Módulo 7 | E41: =SUM(E20:E21) -> 0.0303030303 | F41: =F20+F21 -> 187.66
D42: 2.2 - Encargos Previdenciários (GPS), Fundo de Garantia por Tempo de Serviço (FGTS) e Contribuições | E42: =SUM(E24:E32) -> 0.348 | F42: =SUM(F24:F32) -> 2459.52
D43: 2.3 - Benefícios Mensais e Diários | F43: =SUM(F35:F38) -> 1020.28
D45: TOTAL DOS ENCARGOS E BENEFÍCIOS | F45: =SUM(F41:F43) -> 3667.46
B47: MÓDULO 3 - PREVISÃO PARA RESCISÃO | E47: Percentuais | F47: Valor
C48: A | D48: Aviso Prévio Indenizado (Art. 7º, inciso XXI, da CF/1988 e arts. 477, 487, §1º, e 491 da CLT) | E48: ='Encargos Sociais'!E35 -> 0.008333333333 | F48: =ROUND(E48*($F$16+$F$59),2) -> 56.3
C49: B | D49: Incidência do FGTS sobre o Aviso Prévio Indenizado (Súmula 305 TST) | E49: ='Encargos Sociais'!E36 -> 0.0006666666667 | F49: =ROUND(E49*($F$16+$F$59),2) -> 4.5 | H49: * Nota 1 - Adotou-se os parâmetros do estudo do STF (http://www.stf.jus.br/arquivo/cms/sobrestfestudosci/anexo/encargos_sociais_03102007.pdf), onde 5% do pessoal é demitido pelo empregador no decurso do contrato (para estes, considerou-se o aviso prévio indenizado). Desprezou-se as demissões por justa causa e os pedidos de demissão.
C50: C | D50: Multa do FGTS e Contribuição Social sobre o Aviso Prévio Indenizado (Art. 18, §1º, da Lei 8.036/1990 e art. 1º da LC nº 110/2001) | E50: ='Encargos Sociais'!E37 -> 0.007717066667 | F50: 52.14 | H50: * Nota 2 - No cálculo do percentual, considerou-se 36 dias, correspondendo à metade da duração média dos contratos (2 anos)
C51: D | D51: Aviso Prévio Trabalhado (Art. 488, parágrafo único, CLT) | E51: ='Encargos Sociais'!E38 -> 0.01203703704 | F51: 81.32 | H51: * Nota 3 - Incide sobre a Remuneração + 13º salário (1/12) + Férias (1/12) + Adicional de Férias (1/36) x 50% multa (40% para o empregado e 10% de contribuição social) x 8% FGTS
C52: E | D52: Incidência de GPS, FGTS e outras contribuições sobre o Aviso Prévio Trabalhado | E52: ='Encargos Sociais'!E39 -> 0.004188888889 | F52: 28.3 | H52: * Nota 4 - Os 95% restantes do cálculo, a um prazo médio de contrato de 4 anos. Assim, calcula-se 7 dias para o 1º ano de contrato e mais 3 dias para os 3 anos seguintes.
C53: F | D53: Multa do FGTS e Contribuição Social sobre o Aviso Prévio Trabalhado | E53: ='Encargos Sociais'!E40 -> 0.03050515556 | F53: 206.09
D55: TOTAL DE PREVISÃO PARA RESCISÃO | F55: =SUM(F48:F53) -> 428.65
B57: MÓDULO 4 - CUSTO DO PROFISSIONAL AUSENTE | E57: Percentuais | F57: Valor
B58: Submódulo 4.1 - Ausências Legais
C59: A | D59: Férias (Arts. 129 e 130, inc. I, da CLT) | E59: ='Encargos Sociais'!E24 -> 0.09090909091 | F59: =ROUND(E59*$F$16,2) -> 562.99 | H59: * Nota 1 - As alíneas “A” a “F” referem-se somente ao custo que será pago ao repositor pelos dias trabalhados quando da necessidade de substituir a mão de obra alocada na prestação do serviço.
C60: B | D60: Ausências Legais (Arts. 131 e 473 da CLT) | E60: ='Encargos Sociais'!E25 -> 0.007936507937 | F60: 49.15 | H60: * Nota 2 - Adotou-se a estimativa do SINAPI de 2 dias por ano.
C61: C | D61: Licença-Paternidade (Art. 7º, XIX, e art. 10, §1º, do ADCT, CF/1988 e Art. 1º, II, da Lei 11.770/2008) | E61: ='Encargos Sociais'!E26 -> 0.0008277777778 | F61: 5.13 | H61: * Nota 3 - Utilizada a proporção de 50% para homens, 5 dias de afastamento, e a probabilidade de um trabalhador requerer a Licença Paternidade em 5,22%, conforme SINAPI (citando dados da PNAD 2015)
C62: D | D62: Ausência por Acidente de Trabalho (Art. 131, III, da CLT) | E62: ='Encargos Sociais'!E27 -> 0.0008541666667 | F62: 5.29 | H62: * Nota 4 - Utilzada a estatística de 1,96% dos contribuintes beneficiados com a emissão do auxílio, conforme Anuário Estatístico da Previdência Social. Afastamento de 15 dias a cargo da empresa.
C63: E | D63: Afastamento Maternidade (Art. 71 da Lei nº 8.213/1991) | E63: ='Encargos Sociais'!E28 -> 0.003292592593 | F63: 20.39 | H63: * Nota 5 - Utilizada a proporção de 50% para mulheres, 180 dias de afastamento, e a probabilidade de uma trabalhadora requerer a Licença Maternidade em 4,91%, conforme SINAPI (citando dados do IBGE 2016)
C64: F | D64: Auxílio Enfermidade - Doença (Art. 59 da Lei nº 8.213/1991) | E64: ='Encargos Sociais'!E29 -> 0.007122222222 | F64: 44.11 | H64: * Nota 6 - Utilizada a estatística de 3,37% dos contribuintes beneficiados com o auxílio, conforme Anuário Estatístico da Previdência Social de 2015 (acrescidos de 2 dias ao ano, para os quais o trabalhador nem requer o benefício da Previdência - conforme SINAPI)
B66: Submódulo 4.2 - Intrajornada
C67: A | D67: Intervalo para repouso ou alimentação | E67: ='Encargos Sociais'!E32 -> 0 | F67: =ROUND(E67*$F$16,2) -> 0
D69: QUADRO-RESUMO DO MÓDULO 4 | F69: Valor
D70: 4.1 - Ausências Legais | E70: =SUM(E59:E64) -> 0.1109423581 | F70: =ROUND(E70*$F$16,2) -> 687.05
D71: 4.2 - Intrajornada | E71: =E67 -> 0 | F71: =ROUND(E71*$F$16,2) -> 0
D73: TOTAL DE PREVISÃO PARA RESCISÃO E INTERVALO INTRAJORNADA | F73: =SUM(F70:F71) -> 687.05
B75: MÓDULO 5 - INSUMOS DIVERSOS | F75: Valor
C76: A | D76: Uniformes - aquisição | F76: =ROUND(HLOOKUP($B$5,Uniformes!K6:DZ172,3)/12,2) -> 0
C77: B | D77: Materiais de consumo relacionados ao posto - aquisição | F77: =ROUND(HLOOKUP(B5,'Mat Cons'!I11:DX13,3)/12,2) -> 0
C78: C | D78: Materiais permanentes relacionados ao posto - remuneração da sua depreciação / manutenção | F78: =HLOOKUP(B5,'Mat Perm'!Q11:EF13,3) -> 0
C79: D | D79: Equipamentos relacionados ao posto - remuneração da sua depreciação / manutenção | F79: =HLOOKUP(B5,'Equip Rel'!Q11:EF13,3) -> 0
C80: E | D80: Equipamentos de Proteção Individual - EPI - aquisição | F80: =ROUND(HLOOKUP(B5,EPI!I3:DX37,3)/12,2) -> 0
D82: TOTAL DE INSUMOS DIVERSOS | F82: =SUM(F76:F81) -> 0 | H82: * Nota - Valores mensais por empregado
B84: MÓDULO 6 - CUSTOS INDIRETOS, TRIBUTOS E LUCRO - BDI | E84: Percentuais | F84: Valor
C85: A | D85: Custos Indiretos | E85: =BDI!E6 -> 0.0584
C86: A.1 | D86: Administração Central | E86: =BDI!E7 -> 0.0216
C87: A.2 | D87: Seguros, Garantias e Riscos | E87: =BDI!E8 -> 0.0368
C88: B | D88: Lucro | E88: =BDI!E10 -> 0.0334
C89: C | D89: Tributos | E89: =SUM(E90:E91) -> 0.124
C90: C.1 | D90: Tributos Federais (COFINS, PIS e CPRB) | E90: =BDI!E18 -> 0.074
C91: C.2 | D91: Tributos Distritais (ISS) | E91: =BDI!E23 -> 0.05 | H91: * Nota - Utilizou-se o indicado pelo Sindicato da Arquitetura e da Engenharia (Sinaenco, 2008, p. 22), que adota um percentual redutor de 20% no cálculo dos custos tributários relativos às contribuições PIS e COFINS
C92: D | D92: Despesas Financeiras | E92: =BDI!E13 -> 0.005251960574
D94: TOTAL DE BDI | E94: =BDI!E26 -> 0.2551 | F94: =E94*E102 -> 2799.9776
D96: QUADRO-RESUMO DO CUSTO MENSAL POR EMPREGADO - SEM O 13º | E96: Valor
D97: Módulo 1 - Composição da Remuneração | E97: =F16 -> 6192.84
D98: Módulo 2 - Encargos e Benefícios Anuais, Mensais e Diários | E98: =F45 -> 3667.46
D99: Módulo 3 - Provisão para Rescisão | E99: =F55 -> 428.65
D100: Módulo 4 - Custo de Reposição do Profissional Ausente | E100: =F73 -> 687.05
D101: Módulo 5 - Insumos Diversos | E101: =F82 -> 0
D102: SUBTOTAL (A+B+C+D+E) | E102: =SUM(E97:E101) -> 10976
D103: Módulo 6 - Custos Indiretos, Tributos e Lucro | E103: =F94 -> 2799.9776
D105: TOTAL DO POSTO | E105: =SUM(E102:E103) -> 13775.9776
B107: MÓDULO 7 - DESTAQUE DO MÓDULO 2 - 13º SALÁRIO | E107: Percentuais | F107: Valor
C108: A | D108: 13º Salário | E108: ='Encargos Sociais'!E31 -> 0.08333333333 | F108: =ROUND(E108*F$16,2) -> 516.07
C109: B | D109: Encargos Sociais sobre o 13º Salário - Taxa calculada no SUBMÓDULO 2.2 | E109: =SUM($E$24:$E$32) -> 0.348 | F109: =ROUND(E109*$F$108,2) -> 179.59 | H109: * Nota 1 - Provisiona-se, mensalmente, o proporcional a 1/12 dos valores referentes a gratificação natalina e adicional de férias.
C110: C | D110: Reincidência de férias sobre o 13º Salário | E110: =E59 -> 0.09090909091 | F110: =ROUND(E110*$F$108,2) -> 46.92
C111: D | D111: BDI sobre o 13º Salário - Taxa calculada no MÓDULO 6 | E111: =E94 -> 0.2551 | F111: =ROUND(E111*($F$108+$F$109),2) -> 177.46
D113: TOTAL DO DESTAQUE DO 13º SALÁRIO | F113: =SUM(F108:F111) -> 920.04
D115: QUADRO-RESUMO DO CUSTO MENSAL POR EMPREGADO | E115: Valor
D116: Custo total - sem o 13º Salário | E116: =E105 -> 13775.9776
D117: Destaque do 13º Salário (valor mensal) | E117: =F113 -> 920.04
D119: TOTAL DO POSTO | E119: =E116+E117 -> 14696.0176

Sheet 10
B2: PLANILHA DE ESTIMATIVA DE CUSTOS
B3: Padrão IN 05/2017 e IN 07/2018 - MPDG
B5: 10 | D5: =HLOOKUP($B$5,'Dados Gerais'!$D$5:$BK$20,6) -> ANALISTA DE INFRAESTRUTURA DE TI SÊNIOR | E5: QUANTIDADE | F5: =HLOOKUP($B$5,'Dados Gerais'!$D$5:$BK$20,10) -> 26
B6: CCT | D6: =HLOOKUP($B$5,'Dados Gerais'!$D$5:$BK$20,15) -> SINDPD/DF X SINDESEI/DF 2021/2022 Nº DF000608/2021 | E6: DATA-BASE | F6: ='Dados Gerais'!F20 -> 2021-05-01
B8: MÓDULO 1 - COMPOSIÇÃO DA REMUNERAÇÃO | F8: Valor
C9: A | D9: Salário-Base | F9: =HLOOKUP($B$5,'Dados Gerais'!$D$5:$BK$20,8) -> 8113.11
C10: B | D10: Adicional de Periculosidade | F10: =HLOOKUP($B$5,'Dados Gerais'!$D$5:$BK$37,25) -> 0
C11: C | D11: Adicional de Insalubridade | F11: =HLOOKUP($B$5,'Dados Gerais'!$D$5:$BK$37,31) -> 0
C12: D | D12: Adicional Noturno | F12: =HLOOKUP($B$5,'Dados Gerais'!$D$5:$BK$50,46) -> 0 | H12: * Nota 1 - O Módulo 1 refere-se ao valor mensal devido ao empregado pela prestação do serviço no período de 12 meses.
C13: E | D13: Adicional de Hora Extra | F13: =HLOOKUP($B$5,'Dados Gerais'!$D$5:$BK$67,63) -> 0 | H13: * Nota 2 - O adicional de hora extra no feriado trabalhado foi suprimido pela Lei 13.467/17
C14: F | D14: Outros (especificar) | F14: =HLOOKUP($B$5,'Dados Gerais'!$D$5:$BK$59,33) -> 0 | H14: * Nota 3 - ART. 7º, § 2º, DA LEI Nº 605/49.Sendo mensalista o obreiro, o adicional noturno pago de forma fixa já é considerado integrado para os efeitos do pagamento do repouso semanal remunerado, nos termos do art. 7º, § 2º, da Lei nº 605/49.
D16: TOTAL DA REMUNERAÇÃO | F16: =SUM(F9:F14) -> 8113.11
B18: MÓDULO 2 - ENCARGOS E BENEFÍCIOS ANUAIS, MENSAIS E DIÁRIOS | E18: Percentuais | F18: Valor
B19: Submódulo 2.1 - 13º Salário, Férias e Adicional de Férias
C20: A | D20: 13º Salário - Calculado no Módulo 7 - Destacado | E20: 0 | F20: =ROUND(E20*F$16,2) -> 0 | H20: * Nota 1 - Provisiona-se, mensalmente, o proporcional a 1/11 dos valores referentes a gratificação natalina, férias e adicional de férias.
C21: B | D21: Adicional de Férias | E21: ='Encargos Sociais'!E30 -> 0.0303030303 | F21: =ROUND(E21*F$16,2) -> 245.85 | H21: * Nota 2 - O adicional de férias contido no Submódulo 2.1 corresponde a 1/3 da remuneração que, por sua vez, é dividida por 11 contome Nota 1.
B23: Submódulo 2.2 - Encargos Previdenciários (GPS), Fundo de Garantia por Tempo de Serviço (FGTS) e Outras Contribuições
C24: A | D24: INSS (art. 22, inciso I, Lei nº 8.212/91) | E24: ='Encargos Sociais'!E13 -> 0.2 | F24: =ROUND(E24*($F$16+$F$41+$F$73),2) -> 1851.81
C25: B | D25: Salário Educação (art. 3º, inciso I, Decreto nº 87.043/82) | E25: ='Encargos Sociais'!E14 -> 0.025 | F25: =ROUND(E25*($F$16+$F$41+$F$73),2) -> 231.48
C26: C | D26: SAT/RAT (art. 22, II, Lei 8.212/91 e Anexo V, Decreto 6.042/07) - Enquadramento 8211-3/00 | E26: ='Encargos Sociais'!E15 -> 0.01 | F26: 92.59
C27: D | D27: SESC ou SESI (art. 30, Lei nº 8.036/90 e art. 1º, Lei 8.154/90) | E27: ='Encargos Sociais'!E16 -> 0.015 | F27: 138.89
C28: E | D28: SENAI ou SENAC (Decreto nº 2.318/86) | E28: ='Encargos Sociais'!E17 -> 0.01 | F28: 92.59
C29: F | D29: SEBRAE (§ 3º, art. 8º, Lei 8.029/90, alterada pela Lei nº 8.154/90) | E29: ='Encargos Sociais'!E18 -> 0.006 | F29: 55.55
C30: G | D30: INCRA (art. 1º, I, Decreto Lei 1.146/70 e Lei 7.787, de 30/06/89) | E30: ='Encargos Sociais'!E19 -> 0.002 | F30: 18.52 | H30: * Nota 1 - Os percentuais dos encargos previdenciários, do FGTS e demais contribuições são estabelecidos por legislação vigente.
C31: H | D31: FGTS (Lei Complementar nº 110/01 e art. 30, Lei nº 8.036/90) | E31: ='Encargos Sociais'!E20 -> 0.08 | F31: 740.72 | H31: * Nota 2 - O SAT, a depender do grau de risco do serviço, irá variar entre 1%, para risco leve, de 2%, para risco médio, e de 3% para risco grave.
C32: I | D32: SECONCI (Convenções Coletivas de Trabalho da construção) | E32: ='Encargos Sociais'!E21 -> 0 | F32: 0 | H32: * Nota 3 - Os percentuais do Submódulo 2.2 incidem sobre o Módulo 1 e o Submódulo 2.1.
B34: Submódulo 2.3 - Benefícios Mensais e Diários
C35: A | D35: Auxílio Transporte | F35: =HLOOKUP($B$5,'Dados Gerais'!$D$5:$BK$93,82) -> 0
C36: B | D36: Auxílio Alimentação | F36: =HLOOKUP($B$5,'Dados Gerais'!$D$5:$BK$93,89) -> 770
C37: C | D37: Assistência Médica e Familiar | F37: =HLOOKUP($B$5,'Dados Gerais'!$D$5:$BK$101,97) -> 237.92
C38: D | D38: Outros (Seguro de vida e auxílio funeral e auxílio odontológico) | F38: =HLOOKUP($B$5,'Dados Gerais'!$D$5:$BK$118,114) -> 12.36 | H38: * Nota 1 - O valor informado deverá ser o custo real do benefício (descontado o valor eventualmente pago pelo empregado).
H39: * Nota 2 - Observar a previsão dos benefícios contidos em Acordos, Convenções e Dissídios Coletivos de Trabalho e o disposto no art. 6º da IN 5/2017
D40: QUADRO-RESUMO DO MÓDULO 2
D41: 2.1 - 13º Salário, Férias e Adicional de Férias - 13º Destacado - Calculado no Módulo 7 | E41: =SUM(E20:E21) -> 0.0303030303 | F41: =F20+F21 -> 245.85
D42: 2.2 - Encargos Previdenciários (GPS), Fundo de Garantia por Tempo de Serviço (FGTS) e Contribuições | E42: =SUM(E24:E32) -> 0.348 | F42: =SUM(F24:F32) -> 3222.15
D43: 2.3 - Benefícios Mensais e Diários | F43: =SUM(F35:F38) -> 1020.28
D45: TOTAL DOS ENCARGOS E BENEFÍCIOS | F45: =SUM(F41:F43) -> 4488.28
B47: MÓDULO 3 - PREVISÃO PARA RESCISÃO | E47: Percentuais | F47: Valor
C48: A | D48: Aviso Prévio Indenizado (Art. 7º, inciso XXI, da CF/1988 e arts. 477, 487, §1º, e 491 da CLT) | E48: ='Encargos Sociais'!E35 -> 0.008333333333 | F48: =ROUND(E48*($F$16+$F$59),2) -> 73.76
C49: B | D49: Incidência do FGTS sobre o Aviso Prévio Indenizado (Súmula 305 TST) | E49: ='Encargos Sociais'!E36 -> 0.0006666666667 | F49: =ROUND(E49*($F$16+$F$59),2) -> 5.9 | H49: * Nota 1 - Adotou-se os parâmetros do estudo do STF (http://www.stf.jus.br/arquivo/cms/sobrestfestudosci/anexo/encargos_sociais_03102007.pdf), onde 5% do pessoal é demitido pelo empregador no decurso do contrato (para estes, considerou-se o aviso prévio indenizado). Desprezou-se as demissões por justa causa e os pedidos de demissão.
C50: C | D50: Multa do FGTS e Contribuição Social sobre o Aviso Prévio Indenizado (Art. 18, §1º, da Lei 8.036/1990 e art. 1º da LC nº 110/2001) | E50: ='Encargos Sociais'!E37 -> 0.007717066667 | F50: 68.3 | H50: * Nota 2 - No cálculo do percentual, considerou-se 36 dias, correspondendo à metade da duração média dos contratos (2 anos)
C51: D | D51: Aviso Prévio Trabalhado (Art. 488, parágrafo único, CLT) | E51: ='Encargos Sociais'!E38 -> 0.01203703704 | F51: 106.54 | H51: * Nota 3 - Incide sobre a Remuneração + 13º salário (1/12) + Férias (1/12) + Adicional de Férias (1/36) x 50% multa (40% para o empregado e 10% de contribuição social) x 8% FGTS
C52: E | D52: Incidência de GPS, FGTS e outras contribuições sobre o Aviso Prévio Trabalhado | E52: ='Encargos Sociais'!E39 -> 0.004188888889 | F52: 37.07 | H52: * Nota 4 - Os 95% restantes do cálculo, a um prazo médio de contrato de 4 anos. Assim, calcula-se 7 dias para o 1º ano de contrato e mais 3 dias para os 3 anos seguintes.
C53: F | D53: Multa do FGTS e Contribuição Social sobre o Aviso Prévio Trabalhado | E53: ='Encargos Sociais'!E40 -> 0.03050515556 | F53: 269.99
D55: TOTAL DE PREVISÃO PARA RESCISÃO | F55: =SUM(F48:F53) -> 561.56
B57: MÓDULO 4 - CUSTO DO PROFISSIONAL AUSENTE | E57: Percentuais | F57: Valor
B58: Submódulo 4.1 - Ausências Legais
C59: A | D59: Férias (Arts. 129 e 130, inc. I, da CLT) | E59: ='Encargos Sociais'!E24 -> 0.09090909091 | F59: =ROUND(E59*$F$16,2) -> 737.56 | H59: * Nota 1 - As alíneas “A” a “F” referem-se somente ao custo que será pago ao repositor pelos dias trabalhados quando da necessidade de substituir a mão de obra alocada na prestação do serviço.
C60: B | D60: Ausências Legais (Arts. 131 e 473 da CLT) | E60: ='Encargos Sociais'!E25 -> 0.007936507937 | F60: 64.39 | H60: * Nota 2 - Adotou-se a estimativa do SINAPI de 2 dias por ano.
C61: C | D61: Licença-Paternidade (Art. 7º, XIX, e art. 10, §1º, do ADCT, CF/1988 e Art. 1º, II, da Lei 11.770/2008) | E61: ='Encargos Sociais'!E26 -> 0.0008277777778 | F61: 6.72 | H61: * Nota 3 - Utilizada a proporção de 50% para homens, 5 dias de afastamento, e a probabilidade de um trabalhador requerer a Licença Paternidade em 5,22%, conforme SINAPI (citando dados da PNAD 2015)
C62: D | D62: Ausência por Acidente de Trabalho (Art. 131, III, da CLT) | E62: ='Encargos Sociais'!E27 -> 0.0008541666667 | F62: 6.93 | H62: * Nota 4 - Utilzada a estatística de 1,96% dos contribuintes beneficiados com a emissão do auxílio, conforme Anuário Estatístico da Previdência Social. Afastamento de 15 dias a cargo da empresa.
C63: E | D63: Afastamento Maternidade (Art. 71 da Lei nº 8.213/1991) | E63: ='Encargos Sociais'!E28 -> 0.003292592593 | F63: 26.71 | H63: * Nota 5 - Utilizada a proporção de 50% para mulheres, 180 dias de afastamento, e a probabilidade de uma trabalhadora requerer a Licença Maternidade em 4,91%, conforme SINAPI (citando dados do IBGE 2016)
C64: F | D64: Auxílio Enfermidade - Doença (Art. 59 da Lei nº 8.213/1991) | E64: ='Encargos Sociais'!E29 -> 0.007122222222 | F64: 57.78 | H64: * Nota 6 - Utilizada a estatística de 3,37% dos contribuintes beneficiados com o auxílio, conforme Anuário Estatístico da Previdência Social de 2015 (acrescidos de 2 dias ao ano, para os quais o trabalhador nem requer o benefício da Previdência - conforme SINAPI)
B66: Submódulo 4.2 - Intrajornada
C67: A | D67: Intervalo para repouso ou alimentação | E67: ='Encargos Sociais'!E32 -> 0 | F67: =ROUND(E67*$F$16,2) -> 0
D69: QUADRO-RESUMO DO MÓDULO 4 | F69: Valor
D70: 4.1 - Ausências Legais | E70: =SUM(E59:E64) -> 0.1109423581 | F70: =ROUND(E70*$F$16,2) -> 900.09
D71: 4.2 - Intrajornada | E71: =E67 -> 0 | F71: =ROUND(E71*$F$16,2) -> 0
D73: TOTAL DE PREVISÃO PARA RESCISÃO E INTERVALO INTRAJORNADA | F73: =SUM(F70:F71) -> 900.09
B75: MÓDULO 5 - INSUMOS DIVERSOS | F75: Valor
C76: A | D76: Uniformes - aquisição | F76: =ROUND(HLOOKUP($B$5,Uniformes!K6:DZ172,3)/12,2) -> 0
C77: B | D77: Materiais de consumo relacionados ao posto - aquisição | F77: =ROUND(HLOOKUP(B5,'Mat Cons'!I11:DX13,3)/12,2) -> 0
C78: C | D78: Materiais permanentes relacionados ao posto - remuneração da sua depreciação / manutenção | F78: =HLOOKUP(B5,'Mat Perm'!Q11:EF13,3) -> 0
C79: D | D79: Equipamentos relacionados ao posto - remuneração da sua depreciação / manutenção | F79: =HLOOKUP(B5,'Equip Rel'!Q11:EF13,3) -> 0
C80: E | D80: Equipamentos de Proteção Individual - EPI - aquisição | F80: =ROUND(HLOOKUP(B5,EPI!I3:DX37,3)/12,2) -> 0
D82: TOTAL DE INSUMOS DIVERSOS | F82: =SUM(F76:F81) -> 0 | H82: * Nota - Valores mensais por empregado
B84: MÓDULO 6 - CUSTOS INDIRETOS, TRIBUTOS E LUCRO - BDI | E84: Percentuais | F84: Valor
C85: A | D85: Custos Indiretos | E85: =BDI!E6 -> 0.0584
C86: A.1 | D86: Administração Central | E86: =BDI!E7 -> 0.0216
C87: A.2 | D87: Seguros, Garantias e Riscos | E87: =BDI!E8 -> 0.0368
C88: B | D88: Lucro | E88: =BDI!E10 -> 0.0334
C89: C | D89: Tributos | E89: =SUM(E90:E91) -> 0.124
C90: C.1 | D90: Tributos Federais (COFINS, PIS e CPRB) | E90: =BDI!E18 -> 0.074
C91: C.2 | D91: Tributos Distritais (ISS) | E91: =BDI!E23 -> 0.05 | H91: * Nota - Utilizou-se o indicado pelo Sindicato da Arquitetura e da Engenharia (Sinaenco, 2008, p. 22), que adota um percentual redutor de 20% no cálculo dos custos tributários relativos às contribuições PIS e COFINS
C92: D | D92: Despesas Financeiras | E92: =BDI!E13 -> 0.005251960574
D94: TOTAL DE BDI | E94: =BDI!E26 -> 0.2551 | F94: =E94*E102 -> 3587.481504
D96: QUADRO-RESUMO DO CUSTO MENSAL POR EMPREGADO - SEM O 13º | E96: Valor
D97: Módulo 1 - Composição da Remuneração | E97: =F16 -> 8113.11
D98: Módulo 2 - Encargos e Benefícios Anuais, Mensais e Diários | E98: =F45 -> 4488.28
D99: Módulo 3 - Provisão para Rescisão | E99: =F55 -> 561.56
D100: Módulo 4 - Custo de Reposição do Profissional Ausente | E100: =F73 -> 900.09
D101: Módulo 5 - Insumos Diversos | E101: =F82 -> 0
D102: SUBTOTAL (A+B+C+D+E) | E102: =SUM(E97:E101) -> 14063.04
D103: Módulo 6 - Custos Indiretos, Tributos e Lucro | E103: =F94 -> 3587.481504
D105: TOTAL DO POSTO | E105: =SUM(E102:E103) -> 17650.5215
B107: MÓDULO 7 - DESTAQUE DO MÓDULO 2 - 13º SALÁRIO | E107: Percentuais | F107: Valor
C108: A | D108: 13º Salário | E108: ='Encargos Sociais'!E31 -> 0.08333333333 | F108: =ROUND(E108*F$16,2) -> 676.09
C109: B | D109: Encargos Sociais sobre o 13º Salário - Taxa calculada no SUBMÓDULO 2.2 | E109: =SUM($E$24:$E$32) -> 0.348 | F109: =ROUND(E109*$F$108,2) -> 235.28 | H109: * Nota 1 - Provisiona-se, mensalmente, o proporcional a 1/12 dos valores referentes a gratificação natalina e adicional de férias.
C110: C | D110: Reincidência de férias sobre o 13º Salário | E110: =E59 -> 0.09090909091 | F110: =ROUND(E110*$F$108,2) -> 61.46
C111: D | D111: BDI sobre o 13º Salário - Taxa calculada no MÓDULO 6 | E111: =E94 -> 0.2551 | F111: =ROUND(E111*($F$108+$F$109),2) -> 232.49
D113: TOTAL DO DESTAQUE DO 13º SALÁRIO | F113: =SUM(F108:F111) -> 1205.32
D115: QUADRO-RESUMO DO CUSTO MENSAL POR EMPREGADO | E115: Valor
D116: Custo total - sem o 13º Salário | E116: =E105 -> 17650.5215
D117: Destaque do 13º Salário (valor mensal) | E117: =F113 -> 1205.32
D119: TOTAL DO POSTO | E119: =E116+E117 -> 18855.8415

Sheet 11
B2: PLANILHA DE ESTIMATIVA DE CUSTOS
B3: Padrão IN 05/2017 e IN 07/2018 - MPDG
B5: 11 | D5: =HLOOKUP($B$5,'Dados Gerais'!$D$5:$BK$20,6) -> ANALISTA DE INFRAESTRUTURA DE TI MASTER | E5: QUANTIDADE | F5: =HLOOKUP($B$5,'Dados Gerais'!$D$5:$BK$20,10) -> 26
B6: CCT | D6: =HLOOKUP($B$5,'Dados Gerais'!$D$5:$BK$20,15) -> SINDPD/DF X SINDESEI/DF 2021/2022 Nº DF000608/2021 | E6: DATA-BASE | F6: ='Dados Gerais'!F20 -> 2021-05-01
B8: MÓDULO 1 - COMPOSIÇÃO DA REMUNERAÇÃO | F8: Valor
C9: A | D9: Salário-Base | F9: =HLOOKUP($B$5,'Dados Gerais'!$D$5:$BK$20,8) -> 10366.92
C10: B | D10: Adicional de Periculosidade | F10: =HLOOKUP($B$5,'Dados Gerais'!$D$5:$BK$37,25) -> 0
C11: C | D11: Adicional de Insalubridade | F11: =HLOOKUP($B$5,'Dados Gerais'!$D$5:$BK$37,31) -> 0
C12: D | D12: Adicional Noturno | F12: =HLOOKUP($B$5,'Dados Gerais'!$D$5:$BK$50,46) -> 0 | H12: * Nota 1 - O Módulo 1 refere-se ao valor mensal devido ao empregado pela prestação do serviço no período de 12 meses.
C13: E | D13: Adicional de Hora Extra | F13: =HLOOKUP($B$5,'Dados Gerais'!$D$5:$BK$67,63) -> 0 | H13: * Nota 2 - O adicional de hora extra no feriado trabalhado foi suprimido pela Lei 13.467/17
C14: F | D14: Outros (especificar) | F14: =HLOOKUP($B$5,'Dados Gerais'!$D$5:$BK$59,33) -> 0 | H14: * Nota 3 - ART. 7º, § 2º, DA LEI Nº 605/49.Sendo mensalista o obreiro, o adicional noturno pago de forma fixa já é considerado integrado para os efeitos do pagamento do repouso semanal remunerado, nos termos do art. 7º, § 2º, da Lei nº 605/49.
D16: TOTAL DA REMUNERAÇÃO | F16: =SUM(F9:F14) -> 10366.92
B18: MÓDULO 2 - ENCARGOS E BENEFÍCIOS ANUAIS, MENSAIS E DIÁRIOS | E18: Percentuais | F18: Valor
B19: Submódulo 2.1 - 13º Salário, Férias e Adicional de Férias
C20: A | D20: 13º Salário - Calculado no Módulo 7 - Destacado | E20: 0 | F20: =ROUND(E20*F$16,2) -> 0 | H20: * Nota 1 - Provisiona-se, mensalmente, o proporcional a 1/11 dos valores referentes a gratificação natalina, férias e adicional de férias.
C21: B | D21: Adicional de Férias | E21: ='Encargos Sociais'!E30 -> 0.0303030303 | F21: =ROUND(E21*F$16,2) -> 314.15 | H21: * Nota 2 - O adicional de férias contido no Submódulo 2.1 corresponde a 1/3 da remuneração que, por sua vez, é dividida por 11 contome Nota 1.
B23: Submódulo 2.2 - Encargos Previdenciários (GPS), Fundo de Garantia por Tempo de Serviço (FGTS) e Outras Contribuições
C24: A | D24: INSS (art. 22, inciso I, Lei nº 8.212/91) | E24: ='Encargos Sociais'!E13 -> 0.2 | F24: =ROUND(E24*($F$16+$F$41+$F$73),2) -> 2366.24
C25: B | D25: Salário Educação (art. 3º, inciso I, Decreto nº 87.043/82) | E25: ='Encargos Sociais'!E14 -> 0.025 | F25: =ROUND(E25*($F$16+$F$41+$F$73),2) -> 295.78
C26: C | D26: SAT/RAT (art. 22, II, Lei 8.212/91 e Anexo V, Decreto 6.042/07) - Enquadramento 8211-3/00 | E26: ='Encargos Sociais'!E15 -> 0.01 | F26: 118.31
C27: D | D27: SESC ou SESI (art. 30, Lei nº 8.036/90 e art. 1º, Lei 8.154/90) | E27: ='Encargos Sociais'!E16 -> 0.015 | F27: 177.47
C28: E | D28: SENAI ou SENAC (Decreto nº 2.318/86) | E28: ='Encargos Sociais'!E17 -> 0.01 | F28: 118.31
C29: F | D29: SEBRAE (§ 3º, art. 8º, Lei 8.029/90, alterada pela Lei nº 8.154/90) | E29: ='Encargos Sociais'!E18 -> 0.006 | F29: 70.99
C30: G | D30: INCRA (art. 1º, I, Decreto Lei 1.146/70 e Lei 7.787, de 30/06/89) | E30: ='Encargos Sociais'!E19 -> 0.002 | F30: 23.66 | H30: * Nota 1 - Os percentuais dos encargos previdenciários, do FGTS e demais contribuições são estabelecidos por legislação vigente.
C31: H | D31: FGTS (Lei Complementar nº 110/01 e art. 30, Lei nº 8.036/90) | E31: ='Encargos Sociais'!E20 -> 0.08 | F31: 946.5 | H31: * Nota 2 - O SAT, a depender do grau de risco do serviço, irá variar entre 1%, para risco leve, de 2%, para risco médio, e de 3% para risco grave.
C32: I | D32: SECONCI (Convenções Coletivas de Trabalho da construção) | E32: ='Encargos Sociais'!E21 -> 0 | F32: 0 | H32: * Nota 3 - Os percentuais do Submódulo 2.2 incidem sobre o Módulo 1 e o Submódulo 2.1.
B34: Submódulo 2.3 - Benefícios Mensais e Diários
C35: A | D35: Auxílio Transporte | F35: =HLOOKUP($B$5,'Dados Gerais'!$D$5:$BK$93,82) -> 0
C36: B | D36: Auxílio Alimentação | F36: =HLOOKUP($B$5,'Dados Gerais'!$D$5:$BK$93,89) -> 770
C37: C | D37: Assistência Médica e Familiar | F37: =HLOOKUP($B$5,'Dados Gerais'!$D$5:$BK$101,97) -> 237.92
C38: D | D38: Outros (Seguro de vida e auxílio funeral e auxílio odontológico) | F38: =HLOOKUP($B$5,'Dados Gerais'!$D$5:$BK$118,114) -> 12.36 | H38: * Nota 1 - O valor informado deverá ser o custo real do benefício (descontado o valor eventualmente pago pelo empregado).
H39: * Nota 2 - Observar a previsão dos benefícios contidos em Acordos, Convenções e Dissídios Coletivos de Trabalho e o disposto no art. 6º da IN 5/2017
D40: QUADRO-RESUMO DO MÓDULO 2
D41: 2.1 - 13º Salário, Férias e Adicional de Férias - 13º Destacado - Calculado no Módulo 7 | E41: =SUM(E20:E21) -> 0.0303030303 | F41: =F20+F21 -> 314.15
D42: 2.2 - Encargos Previdenciários (GPS), Fundo de Garantia por Tempo de Serviço (FGTS) e Contribuições | E42: =SUM(E24:E32) -> 0.348 | F42: =SUM(F24:F32) -> 4117.26
D43: 2.3 - Benefícios Mensais e Diários | F43: =SUM(F35:F38) -> 1020.28
D45: TOTAL DOS ENCARGOS E BENEFÍCIOS | F45: =SUM(F41:F43) -> 5451.69
B47: MÓDULO 3 - PREVISÃO PARA RESCISÃO | E47: Percentuais | F47: Valor
C48: A | D48: Aviso Prévio Indenizado (Art. 7º, inciso XXI, da CF/1988 e arts. 477, 487, §1º, e 491 da CLT) | E48: ='Encargos Sociais'!E35 -> 0.008333333333 | F48: =ROUND(E48*($F$16+$F$59),2) -> 94.24
C49: B | D49: Incidência do FGTS sobre o Aviso Prévio Indenizado (Súmula 305 TST) | E49: ='Encargos Sociais'!E36 -> 0.0006666666667 | F49: =ROUND(E49*($F$16+$F$59),2) -> 7.54 | H49: * Nota 1 - Adotou-se os parâmetros do estudo do STF (http://www.stf.jus.br/arquivo/cms/sobrestfestudosci/anexo/encargos_sociais_03102007.pdf), onde 5% do pessoal é demitido pelo empregador no decurso do contrato (para estes, considerou-se o aviso prévio indenizado). Desprezou-se as demissões por justa causa e os pedidos de demissão.
C50: C | D50: Multa do FGTS e Contribuição Social sobre o Aviso Prévio Indenizado (Art. 18, §1º, da Lei 8.036/1990 e art. 1º da LC nº 110/2001) | E50: ='Encargos Sociais'!E37 -> 0.007717066667 | F50: 87.28 | H50: * Nota 2 - No cálculo do percentual, considerou-se 36 dias, correspondendo à metade da duração média dos contratos (2 anos)
C51: D | D51: Aviso Prévio Trabalhado (Art. 488, parágrafo único, CLT) | E51: ='Encargos Sociais'!E38 -> 0.01203703704 | F51: 136.13 | H51: * Nota 3 - Incide sobre a Remuneração + 13º salário (1/12) + Férias (1/12) + Adicional de Férias (1/36) x 50% multa (40% para o empregado e 10% de contribuição social) x 8% FGTS
C52: E | D52: Incidência de GPS, FGTS e outras contribuições sobre o Aviso Prévio Trabalhado | E52: ='Encargos Sociais'!E39 -> 0.004188888889 | F52: 47.37 | H52: * Nota 4 - Os 95% restantes do cálculo, a um prazo médio de contrato de 4 anos. Assim, calcula-se 7 dias para o 1º ano de contrato e mais 3 dias para os 3 anos seguintes.
C53: F | D53: Multa do FGTS e Contribuição Social sobre o Aviso Prévio Trabalhado | E53: ='Encargos Sociais'!E40 -> 0.03050515556 | F53: 344.99
D55: TOTAL DE PREVISÃO PARA RESCISÃO | F55: =SUM(F48:F53) -> 717.55
B57: MÓDULO 4 - CUSTO DO PROFISSIONAL AUSENTE | E57: Percentuais | F57: Valor
B58: Submódulo 4.1 - Ausências Legais
C59: A | D59: Férias (Arts. 129 e 130, inc. I, da CLT) | E59: ='Encargos Sociais'!E24 -> 0.09090909091 | F59: =ROUND(E59*$F$16,2) -> 942.45 | H59: * Nota 1 - As alíneas “A” a “F” referem-se somente ao custo que será pago ao repositor pelos dias trabalhados quando da necessidade de substituir a mão de obra alocada na prestação do serviço.
C60: B | D60: Ausências Legais (Arts. 131 e 473 da CLT) | E60: ='Encargos Sociais'!E25 -> 0.007936507937 | F60: 82.28 | H60: * Nota 2 - Adotou-se a estimativa do SINAPI de 2 dias por ano.
C61: C | D61: Licença-Paternidade (Art. 7º, XIX, e art. 10, §1º, do ADCT, CF/1988 e Art. 1º, II, da Lei 11.770/2008) | E61: ='Encargos Sociais'!E26 -> 0.0008277777778 | F61: 8.58 | H61: * Nota 3 - Utilizada a proporção de 50% para homens, 5 dias de afastamento, e a probabilidade de um trabalhador requerer a Licença Paternidade em 5,22%, conforme SINAPI (citando dados da PNAD 2015)
C62: D | D62: Ausência por Acidente de Trabalho (Art. 131, III, da CLT) | E62: ='Encargos Sociais'!E27 -> 0.0008541666667 | F62: 8.86 | H62: * Nota 4 - Utilzada a estatística de 1,96% dos contribuintes beneficiados com a emissão do auxílio, conforme Anuário Estatístico da Previdência Social. Afastamento de 15 dias a cargo da empresa.
C63: E | D63: Afastamento Maternidade (Art. 71 da Lei nº 8.213/1991) | E63: ='Encargos Sociais'!E28 -> 0.003292592593 | F63: 34.13 | H63: * Nota 5 - Utilizada a proporção de 50% para mulheres, 180 dias de afastamento, e a probabilidade de uma trabalhadora requerer a Licença Maternidade em 4,91%, conforme SINAPI (citando dados do IBGE 2016)
C64: F | D64: Auxílio Enfermidade - Doença (Art. 59 da Lei nº 8.213/1991) | E64: ='Encargos Sociais'!E29 -> 0.007122222222 | F64: 73.84 | H64: * Nota 6 - Utilizada a estatística de 3,37% dos contribuintes beneficiados com o auxílio, conforme Anuário Estatístico da Previdência Social de 2015 (acrescidos de 2 dias ao ano, para os quais o trabalhador nem requer o benefício da Previdência - conforme SINAPI)
B66: Submódulo 4.2 - Intrajornada
C67: A | D67: Intervalo para repouso ou alimentação | E67: ='Encargos Sociais'!E32 -> 0 | F67: =ROUND(E67*$F$16,2) -> 0
D69: QUADRO-RESUMO DO MÓDULO 4 | F69: Valor
D70: 4.1 - Ausências Legais | E70: =SUM(E59:E64) -> 0.1109423581 | F70: =ROUND(E70*$F$16,2) -> 1150.13
D71: 4.2 - Intrajornada | E71: =E67 -> 0 | F71: =ROUND(E71*$F$16,2) -> 0
D73: TOTAL DE PREVISÃO PARA RESCISÃO E INTERVALO INTRAJORNADA | F73: =SUM(F70:F71) -> 1150.13
B75: MÓDULO 5 - INSUMOS DIVERSOS | F75: Valor
C76: A | D76: Uniformes - aquisição | F76: =ROUND(HLOOKUP($B$5,Uniformes!K6:DZ172,3)/12,2) -> 0
C77: B | D77: Materiais de consumo relacionados ao posto - aquisição | F77: =ROUND(HLOOKUP(B5,'Mat Cons'!I11:DX13,3)/12,2) -> 0
C78: C | D78: Materiais permanentes relacionados ao posto - remuneração da sua depreciação / manutenção | F78: =HLOOKUP(B5,'Mat Perm'!Q11:EF13,3) -> 0
C79: D | D79: Equipamentos relacionados ao posto - remuneração da sua depreciação / manutenção | F79: =HLOOKUP(B5,'Equip Rel'!Q11:EF13,3) -> 0
C80: E | D80: Equipamentos de Proteção Individual - EPI - aquisição | F80: =ROUND(HLOOKUP(B5,EPI!I3:DX37,3)/12,2) -> 0
D82: TOTAL DE INSUMOS DIVERSOS | F82: =SUM(F76:F81) -> 0 | H82: * Nota - Valores mensais por empregado
B84: MÓDULO 6 - CUSTOS INDIRETOS, TRIBUTOS E LUCRO - BDI | E84: Percentuais | F84: Valor
C85: A | D85: Custos Indiretos | E85: =BDI!E6 -> 0.0584
C86: A.1 | D86: Administração Central | E86: =BDI!E7 -> 0.0216
C87: A.2 | D87: Seguros, Garantias e Riscos | E87: =BDI!E8 -> 0.0368
C88: B | D88: Lucro | E88: =BDI!E10 -> 0.0334
C89: C | D89: Tributos | E89: =SUM(E90:E91) -> 0.124
C90: C.1 | D90: Tributos Federais (COFINS, PIS e CPRB) | E90: =BDI!E18 -> 0.074
C91: C.2 | D91: Tributos Distritais (ISS) | E91: =BDI!E23 -> 0.05 | H91: * Nota - Utilizou-se o indicado pelo Sindicato da Arquitetura e da Engenharia (Sinaenco, 2008, p. 22), que adota um percentual redutor de 20% no cálculo dos custos tributários relativos às contribuições PIS e COFINS
C92: D | D92: Despesas Financeiras | E92: =BDI!E13 -> 0.005251960574
D94: TOTAL DE BDI | E94: =BDI!E26 -> 0.2551 | F94: =E94*E102 -> 4511.772579
D96: QUADRO-RESUMO DO CUSTO MENSAL POR EMPREGADO - SEM O 13º | E96: Valor
D97: Módulo 1 - Composição da Remuneração | E97: =F16 -> 10366.92
D98: Módulo 2 - Encargos e Benefícios Anuais, Mensais e Diários | E98: =F45 -> 5451.69
D99: Módulo 3 - Provisão para Rescisão | E99: =F55 -> 717.55
D100: Módulo 4 - Custo de Reposição do Profissional Ausente | E100: =F73 -> 1150.13
D101: Módulo 5 - Insumos Diversos | E101: =F82 -> 0
D102: SUBTOTAL (A+B+C+D+E) | E102: =SUM(E97:E101) -> 17686.29
D103: Módulo 6 - Custos Indiretos, Tributos e Lucro | E103: =F94 -> 4511.772579
D105: TOTAL DO POSTO | E105: =SUM(E102:E103) -> 22198.06258
B107: MÓDULO 7 - DESTAQUE DO MÓDULO 2 - 13º SALÁRIO | E107: Percentuais | F107: Valor
C108: A | D108: 13º Salário | E108: ='Encargos Sociais'!E31 -> 0.08333333333 | F108: =ROUND(E108*F$16,2) -> 863.91
C109: B | D109: Encargos Sociais sobre o 13º Salário - Taxa calculada no SUBMÓDULO 2.2 | E109: =SUM($E$24:$E$32) -> 0.348 | F109: =ROUND(E109*$F$108,2) -> 300.64 | H109: * Nota 1 - Provisiona-se, mensalmente, o proporcional a 1/12 dos valores referentes a gratificação natalina e adicional de férias.
C110: C | D110: Reincidência de férias sobre o 13º Salário | E110: =E59 -> 0.09090909091 | F110: =ROUND(E110*$F$108,2) -> 78.54
C111: D | D111: BDI sobre o 13º Salário - Taxa calculada no MÓDULO 6 | E111: =E94 -> 0.2551 | F111: =ROUND(E111*($F$108+$F$109),2) -> 297.08
D113: TOTAL DO DESTAQUE DO 13º SALÁRIO | F113: =SUM(F108:F111) -> 1540.17
D115: QUADRO-RESUMO DO CUSTO MENSAL POR EMPREGADO | E115: Valor
D116: Custo total - sem o 13º Salário | E116: =E105 -> 22198.06258
D117: Destaque do 13º Salário (valor mensal) | E117: =F113 -> 1540.17
D119: TOTAL DO POSTO | E119: =E116+E117 -> 23738.23258

Sheet 12
B2: PLANILHA DE ESTIMATIVA DE CUSTOS
B3: Padrão IN 05/2017 e IN 07/2018 - MPDG
B5: 12 | D5: =HLOOKUP($B$5,'Dados Gerais'!$D$5:$BK$20,6) -> SUPERVISOR TÉCNICO | E5: QUANTIDADE | F5: =HLOOKUP($B$5,'Dados Gerais'!$D$5:$BK$20,10) -> 3
B6: CCT | D6: =HLOOKUP($B$5,'Dados Gerais'!$D$5:$BK$20,15) -> SINDPD/DF X SINDESEI/DF 2021/2022 Nº DF000608/2021 | E6: DATA-BASE | F6: ='Dados Gerais'!F20 -> 2021-05-01
B8: MÓDULO 1 - COMPOSIÇÃO DA REMUNERAÇÃO | F8: Valor
C9: A | D9: Salário-Base | F9: =HLOOKUP($B$5,'Dados Gerais'!$D$5:$BK$20,8) -> 13944.34
C10: B | D10: Adicional de Periculosidade | F10: =HLOOKUP($B$5,'Dados Gerais'!$D$5:$BK$37,25) -> 0
C11: C | D11: Adicional de Insalubridade | F11: =HLOOKUP($B$5,'Dados Gerais'!$D$5:$BK$37,31) -> 0
C12: D | D12: Adicional Noturno | F12: =HLOOKUP($B$5,'Dados Gerais'!$D$5:$BK$50,46) -> 0 | H12: * Nota 1 - O Módulo 1 refere-se ao valor mensal devido ao empregado pela prestação do serviço no período de 12 meses.
C13: E | D13: Adicional de Hora Extra | F13: =HLOOKUP($B$5,'Dados Gerais'!$D$5:$BK$67,63) -> 0 | H13: * Nota 2 - O adicional de hora extra no feriado trabalhado foi suprimido pela Lei 13.467/17
C14: F | D14: Outros (especificar) | F14: =HLOOKUP($B$5,'Dados Gerais'!$D$5:$BK$59,33) -> 0 | H14: * Nota 3 - ART. 7º, § 2º, DA LEI Nº 605/49.Sendo mensalista o obreiro, o adicional noturno pago de forma fixa já é considerado integrado para os efeitos do pagamento do repouso semanal remunerado, nos termos do art. 7º, § 2º, da Lei nº 605/49.
D16: TOTAL DA REMUNERAÇÃO | F16: =SUM(F9:F14) -> 13944.34
B18: MÓDULO 2 - ENCARGOS E BENEFÍCIOS ANUAIS, MENSAIS E DIÁRIOS | E18: Percentuais | F18: Valor
B19: Submódulo 2.1 - 13º Salário, Férias e Adicional de Férias
C20: A | D20: 13º Salário - Calculado no Módulo 7 - Destacado | E20: 0 | F20: =ROUND(E20*F$16,2) -> 0 | H20: * Nota 1 - Provisiona-se, mensalmente, o proporcional a 1/11 dos valores referentes a gratificação natalina, férias e adicional de férias.
C21: B | D21: Adicional de Férias | E21: ='Encargos Sociais'!E30 -> 0.0303030303 | F21: =ROUND(E21*F$16,2) -> 422.56 | H21: * Nota 2 - O adicional de férias contido no Submódulo 2.1 corresponde a 1/3 da remuneração que, por sua vez, é dividida por 11 contome Nota 1.
B23: Submódulo 2.2 - Encargos Previdenciários (GPS), Fundo de Garantia por Tempo de Serviço (FGTS) e Outras Contribuições
C24: A | D24: INSS (art. 22, inciso I, Lei nº 8.212/91) | E24: ='Encargos Sociais'!E13 -> 0.2 | F24: =ROUND(E24*($F$16+$F$41+$F$73),2) -> 3182.78
C25: B | D25: Salário Educação (art. 3º, inciso I, Decreto nº 87.043/82) | E25: ='Encargos Sociais'!E14 -> 0.025 | F25: =ROUND(E25*($F$16+$F$41+$F$73),2) -> 397.85
C26: C | D26: SAT/RAT (art. 22, II, Lei 8.212/91 e Anexo V, Decreto 6.042/07) - Enquadramento 8211-3/00 | E26: ='Encargos Sociais'!E15 -> 0.01 | F26: 159.14
C27: D | D27: SESC ou SESI (art. 30, Lei nº 8.036/90 e art. 1º, Lei 8.154/90) | E27: ='Encargos Sociais'!E16 -> 0.015 | F27: 238.71
C28: E | D28: SENAI ou SENAC (Decreto nº 2.318/86) | E28: ='Encargos Sociais'!E17 -> 0.01 | F28: 159.14
C29: F | D29: SEBRAE (§ 3º, art. 8º, Lei 8.029/90, alterada pela Lei nº 8.154/90) | E29: ='Encargos Sociais'!E18 -> 0.006 | F29: 95.48
C30: G | D30: INCRA (art. 1º, I, Decreto Lei 1.146/70 e Lei 7.787, de 30/06/89) | E30: ='Encargos Sociais'!E19 -> 0.002 | F30: 31.83 | H30: * Nota 1 - Os percentuais dos encargos previdenciários, do FGTS e demais contribuições são estabelecidos por legislação vigente.
C31: H | D31: FGTS (Lei Complementar nº 110/01 e art. 30, Lei nº 8.036/90) | E31: ='Encargos Sociais'!E20 -> 0.08 | F31: 1273.11 | H31: * Nota 2 - O SAT, a depender do grau de risco do serviço, irá variar entre 1%, para risco leve, de 2%, para risco médio, e de 3% para risco grave.
C32: I | D32: SECONCI (Convenções Coletivas de Trabalho da construção) | E32: ='Encargos Sociais'!E21 -> 0 | F32: 0 | H32: * Nota 3 - Os percentuais do Submódulo 2.2 incidem sobre o Módulo 1 e o Submódulo 2.1.
B34: Submódulo 2.3 - Benefícios Mensais e Diários
C35: A | D35: Auxílio Transporte | F35: =HLOOKUP($B$5,'Dados Gerais'!$D$5:$BK$93,82) -> 0
C36: B | D36: Auxílio Alimentação | F36: =HLOOKUP($B$5,'Dados Gerais'!$D$5:$BK$93,89) -> 770
C37: C | D37: Assistência Médica e Familiar | F37: =HLOOKUP($B$5,'Dados Gerais'!$D$5:$BK$101,97) -> 237.92
C38: D | D38: Outros (Seguro de vida e auxílio funeral e auxílio odontológico) | F38: =HLOOKUP($B$5,'Dados Gerais'!$D$5:$BK$118,114) -> 12.36 | H38: * Nota 1 - O valor informado deverá ser o custo real do benefício (descontado o valor eventualmente pago pelo empregado).
H39: * Nota 2 - Observar a previsão dos benefícios contidos em Acordos, Convenções e Dissídios Coletivos de Trabalho e o disposto no art. 6º da IN 5/2017
D40: QUADRO-RESUMO DO MÓDULO 2
D41: 2.1 - 13º Salário, Férias e Adicional de Férias - 13º Destacado - Calculado no Módulo 7 | E41: =SUM(E20:E21) -> 0.0303030303 | F41: =F20+F21 -> 422.56
D42: 2.2 - Encargos Previdenciários (GPS), Fundo de Garantia por Tempo de Serviço (FGTS) e Contribuições | E42: =SUM(E24:E32) -> 0.348 | F42: =SUM(F24:F32) -> 5538.04
D43: 2.3 - Benefícios Mensais e Diários | F43: =SUM(F35:F38) -> 1020.28
D45: TOTAL DOS ENCARGOS E BENEFÍCIOS | F45: =SUM(F41:F43) -> 6980.88
B47: MÓDULO 3 - PREVISÃO PARA RESCISÃO | E47: Percentuais | F47: Valor
C48: A | D48: Aviso Prévio Indenizado (Art. 7º, inciso XXI, da CF/1988 e arts. 477, 487, §1º, e 491 da CLT) | E48: ='Encargos Sociais'!E35 -> 0.008333333333 | F48: =ROUND(E48*($F$16+$F$59),2) -> 126.77
C49: B | D49: Incidência do FGTS sobre o Aviso Prévio Indenizado (Súmula 305 TST) | E49: ='Encargos Sociais'!E36 -> 0.0006666666667 | F49: =ROUND(E49*($F$16+$F$59),2) -> 10.14 | H49: * Nota 1 - Adotou-se os parâmetros do estudo do STF (http://www.stf.jus.br/arquivo/cms/sobrestfestudosci/anexo/encargos_sociais_03102007.pdf), onde 5% do pessoal é demitido pelo empregador no decurso do contrato (para estes, considerou-se o aviso prévio indenizado). Desprezou-se as demissões por justa causa e os pedidos de demissão.
C50: C | D50: Multa do FGTS e Contribuição Social sobre o Aviso Prévio Indenizado (Art. 18, §1º, da Lei 8.036/1990 e art. 1º da LC nº 110/2001) | E50: ='Encargos Sociais'!E37 -> 0.007717066667 | F50: 117.39 | H50: * Nota 2 - No cálculo do percentual, considerou-se 36 dias, correspondendo à metade da duração média dos contratos (2 anos)
C51: D | D51: Aviso Prévio Trabalhado (Art. 488, parágrafo único, CLT) | E51: ='Encargos Sociais'!E38 -> 0.01203703704 | F51: 183.11 | H51: * Nota 3 - Incide sobre a Remuneração + 13º salário (1/12) + Férias (1/12) + Adicional de Férias (1/36) x 50% multa (40% para o empregado e 10% de contribuição social) x 8% FGTS
C52: E | D52: Incidência de GPS, FGTS e outras contribuições sobre o Aviso Prévio Trabalhado | E52: ='Encargos Sociais'!E39 -> 0.004188888889 | F52: 63.72 | H52: * Nota 4 - Os 95% restantes do cálculo, a um prazo médio de contrato de 4 anos. Assim, calcula-se 7 dias para o 1º ano de contrato e mais 3 dias para os 3 anos seguintes.
C53: F | D53: Multa do FGTS e Contribuição Social sobre o Aviso Prévio Trabalhado | E53: ='Encargos Sociais'!E40 -> 0.03050515556 | F53: 464.04
D55: TOTAL DE PREVISÃO PARA RESCISÃO | F55: =SUM(F48:F53) -> 965.17
B57: MÓDULO 4 - CUSTO DO PROFISSIONAL AUSENTE | E57: Percentuais | F57: Valor
B58: Submódulo 4.1 - Ausências Legais
C59: A | D59: Férias (Arts. 129 e 130, inc. I, da CLT) | E59: ='Encargos Sociais'!E24 -> 0.09090909091 | F59: =ROUND(E59*$F$16,2) -> 1267.67 | H59: * Nota 1 - As alíneas “A” a “F” referem-se somente ao custo que será pago ao repositor pelos dias trabalhados quando da necessidade de substituir a mão de obra alocada na prestação do serviço.
C60: B | D60: Ausências Legais (Arts. 131 e 473 da CLT) | E60: ='Encargos Sociais'!E25 -> 0.007936507937 | F60: 110.67 | H60: * Nota 2 - Adotou-se a estimativa do SINAPI de 2 dias por ano.
C61: C | D61: Licença-Paternidade (Art. 7º, XIX, e art. 10, §1º, do ADCT, CF/1988 e Art. 1º, II, da Lei 11.770/2008) | E61: ='Encargos Sociais'!E26 -> 0.0008277777778 | F61: 11.54 | H61: * Nota 3 - Utilizada a proporção de 50% para homens, 5 dias de afastamento, e a probabilidade de um trabalhador requerer a Licença Paternidade em 5,22%, conforme SINAPI (citando dados da PNAD 2015)
C62: D | D62: Ausência por Acidente de Trabalho (Art. 131, III, da CLT) | E62: ='Encargos Sociais'!E27 -> 0.0008541666667 | F62: 11.91 | H62: * Nota 4 - Utilzada a estatística de 1,96% dos contribuintes beneficiados com a emissão do auxílio, conforme Anuário Estatístico da Previdência Social. Afastamento de 15 dias a cargo da empresa.
C63: E | D63: Afastamento Maternidade (Art. 71 da Lei nº 8.213/1991) | E63: ='Encargos Sociais'!E28 -> 0.003292592593 | F63: 45.91 | H63: * Nota 5 - Utilizada a proporção de 50% para mulheres, 180 dias de afastamento, e a probabilidade de uma trabalhadora requerer a Licença Maternidade em 4,91%, conforme SINAPI (citando dados do IBGE 2016)
C64: F | D64: Auxílio Enfermidade - Doença (Art. 59 da Lei nº 8.213/1991) | E64: ='Encargos Sociais'!E29 -> 0.007122222222 | F64: 99.31 | H64: * Nota 6 - Utilizada a estatística de 3,37% dos contribuintes beneficiados com o auxílio, conforme Anuário Estatístico da Previdência Social de 2015 (acrescidos de 2 dias ao ano, para os quais o trabalhador nem requer o benefício da Previdência - conforme SINAPI)
B66: Submódulo 4.2 - Intrajornada
C67: A | D67: Intervalo para repouso ou alimentação | E67: ='Encargos Sociais'!E32 -> 0 | F67: =ROUND(E67*$F$16,2) -> 0
D69: QUADRO-RESUMO DO MÓDULO 4 | F69: Valor
D70: 4.1 - Ausências Legais | E70: =SUM(E59:E64) -> 0.1109423581 | F70: =ROUND(E70*$F$16,2) -> 1547.02
D71: 4.2 - Intrajornada | E71: =E67 -> 0 | F71: =ROUND(E71*$F$16,2) -> 0
D73: TOTAL DE PREVISÃO PARA RESCISÃO E INTERVALO INTRAJORNADA | F73: =SUM(F70:F71) -> 1547.02
B75: MÓDULO 5 - INSUMOS DIVERSOS | F75: Valor
C76: A | D76: Uniformes - aquisição | F76: =ROUND(HLOOKUP($B$5,Uniformes!K6:DZ172,3)/12,2) -> 0
C77: B | D77: Materiais de consumo relacionados ao posto - aquisição | F77: =ROUND(HLOOKUP(B5,'Mat Cons'!I11:DX13,3)/12,2) -> 0
C78: C | D78: Materiais permanentes relacionados ao posto - remuneração da sua depreciação / manutenção | F78: =HLOOKUP(B5,'Mat Perm'!Q11:EF13,3) -> 0
C79: D | D79: Equipamentos relacionados ao posto - remuneração da sua depreciação / manutenção | F79: =HLOOKUP(B5,'Equip Rel'!Q11:EF13,3) -> 0
C80: E | D80: Equipamentos de Proteção Individual - EPI - aquisição | F80: =ROUND(HLOOKUP(B5,EPI!I3:DX37,3)/12,2) -> 0
D82: TOTAL DE INSUMOS DIVERSOS | F82: =SUM(F76:F81) -> 0 | H82: * Nota - Valores mensais por empregado
B84: MÓDULO 6 - CUSTOS INDIRETOS, TRIBUTOS E LUCRO - BDI | E84: Percentuais | F84: Valor
C85: A | D85: Custos Indiretos | E85: =BDI!E6 -> 0.0584
C86: A.1 | D86: Administração Central | E86: =BDI!E7 -> 0.0216
C87: A.2 | D87: Seguros, Garantias e Riscos | E87: =BDI!E8 -> 0.0368
C88: B | D88: Lucro | E88: =BDI!E10 -> 0.0334
C89: C | D89: Tributos | E89: =SUM(E90:E91) -> 0.124
C90: C.1 | D90: Tributos Federais (COFINS, PIS e CPRB) | E90: =BDI!E18 -> 0.074
C91: C.2 | D91: Tributos Distritais (ISS) | E91: =BDI!E23 -> 0.05 | H91: * Nota - Utilizou-se o indicado pelo Sindicato da Arquitetura e da Engenharia (Sinaenco, 2008, p. 22), que adota um percentual redutor de 20% no cálculo dos custos tributários relativos às contribuições PIS e COFINS
C92: D | D92: Despesas Financeiras | E92: =BDI!E13 -> 0.005251960574
D94: TOTAL DE BDI | E94: =BDI!E26 -> 0.2551 | F94: =E94*E102 -> 5978.883291
D96: QUADRO-RESUMO DO CUSTO MENSAL POR EMPREGADO - SEM O 13º | E96: Valor
D97: Módulo 1 - Composição da Remuneração | E97: =F16 -> 13944.34
D98: Módulo 2 - Encargos e Benefícios Anuais, Mensais e Diários | E98: =F45 -> 6980.88
D99: Módulo 3 - Provisão para Rescisão | E99: =F55 -> 965.17
D100: Módulo 4 - Custo de Reposição do Profissional Ausente | E100: =F73 -> 1547.02
D101: Módulo 5 - Insumos Diversos | E101: =F82 -> 0
D102: SUBTOTAL (A+B+C+D+E) | E102: =SUM(E97:E101) -> 23437.41
D103: Módulo 6 - Custos Indiretos, Tributos e Lucro | E103: =F94 -> 5978.883291
D105: TOTAL DO POSTO | E105: =SUM(E102:E103) -> 29416.29329
B107: MÓDULO 7 - DESTAQUE DO MÓDULO 2 - 13º SALÁRIO | E107: Percentuais | F107: Valor
C108: A | D108: 13º Salário | E108: ='Encargos Sociais'!E31 -> 0.08333333333 | F108: =ROUND(E108*F$16,2) -> 1162.03
C109: B | D109: Encargos Sociais sobre o 13º Salário - Taxa calculada no SUBMÓDULO 2.2 | E109: =SUM($E$24:$E$32) -> 0.348 | F109: =ROUND(E109*$F$108,2) -> 404.39 | H109: * Nota 1 - Provisiona-se, mensalmente, o proporcional a 1/12 dos valores referentes a gratificação natalina e adicional de férias.
C110: C | D110: Reincidência de férias sobre o 13º Salário | E110: =E59 -> 0.09090909091 | F110: =ROUND(E110*$F$108,2) -> 105.64
C111: D | D111: BDI sobre o 13º Salário - Taxa calculada no MÓDULO 6 | E111: =E94 -> 0.2551 | F111: =ROUND(E111*($F$108+$F$109),2) -> 399.59
D113: TOTAL DO DESTAQUE DO 13º SALÁRIO | F113: =SUM(F108:F111) -> 2071.65
D115: QUADRO-RESUMO DO CUSTO MENSAL POR EMPREGADO | E115: Valor
D116: Custo total - sem o 13º Salário | E116: =E105 -> 29416.29329
D117: Destaque do 13º Salário (valor mensal) | E117: =F113 -> 2071.65
D119: TOTAL DO POSTO | E119: =E116+E117 -> 31487.94329

Sheet Dados Gerais
B3: INFORMAÇÕES DE ENTRADA
D5: 1 | E5: 2 | F5: 3 | G5: 4 | H5: 5 | I5: 6 | J5: 7 | K5: 8 | L5: 9 | M5: 10 | N5: 11 | O5: 12 | P5: 13 | Q5: 14 | R5: 15 | S5: 16 | T5: 17 | U5: 18 | V5: 19 | W5: 20 | X5: 21 | Y5: 22 | Z5: 23 | AA5: 24 | AB5: 25 | AC5: 26 | AD5: 27 | AE5: 28 | AF5: 29 | AG5: 30 | AH5: 31 | AI5: 32 | AJ5: 33 | AK5: 34 | AL5: 35 | AM5: 36 | AN5: 37 | AO5: 38 | AP5: 39 | AQ5: 40 | AR5: 41 | AS5: 42 | AT5: 43 | AU5: 44 | AV5: 45 | AW5: 46 | AX5: 47 | AY5: 48 | AZ5: 49 | BA5: 50 | BB5: 51 | BC5: 52 | BD5: 53 | BE5: 54 | BF5: 55 | BG5: 56 | BH5: 57 | BI5: 58 | BJ5: 59 | BK5: 60
D6: CARGO 1 | E6: CARGO 2 | F6: CARGO 3 | G6: CARGO 4 | H6: CARGO 5 | I6: CARGO 6 | J6: CARGO 7 | K6: CARGO 8 | L6: CARGO 9 | M6: CARGO 10 | N6: CARGO 11 | O6: CARGO 12 | P6: CARGO 13 | Q6: CARGO 14 | R6: CARGO 15 | S6: CARGO 16 | T6: CARGO 17 | U6: CARGO 18 | V6: CARGO 19 | W6: CARGO 20 | X6: CARGO 21 | Y6: CARGO 22 | Z6: CARGO 23 | AA6: CARGO 24 | AB6: CARGO 25 | AC6: CARGO 26 | AD6: CARGO 27 | AE6: CARGO 28 | AF6: CARGO 29 | AG6: CARGO 30 | AH6: CARGO 31 | AI6: CARGO 32 | AJ6: CARGO 33 | AK6: CARGO 34 | AL6: CARGO 35 | AM6: CARGO 36 | AN6: CARGO 37 | AO6: CARGO 38 | AP6: CARGO 39 | AQ6: CARGO 40 | AR6: CARGO 41 | AS6: CARGO 42 | AT6: CARGO 43 | AU6: CARGO 44 | AV6: CARGO 45 | AW6: CARGO 46 | AX6: CARGO 47 | AY6: CARGO 48 | AZ6: CARGO 49 | BA6: CARGO 50 | BB6: CARGO 51 | BC6: CARGO 52 | BD6: CARGO 53 | BE6: CARGO 54 | BF6: CARGO 55 | BG6: CARGO 56 | BH6: CARGO 57 | BI6: CARGO 58 | BJ6: CARGO 59 | BK6: CARGO 60
B7: INFORMAÇÕES BÁSICAS
B9: DESCRIÇÃO DOS POSTOS DE SERVIÇO
D10: TÉCNICO DE APOIO A OPERAÇÕES EM DATA CENTER (JORNADAS DE 7 ÀS 13H E DE 13 ÀS 19H) | E10: TÉCNICO DE APOIO A OPERAÇÕES EM DATA CENTER (JORNADA DAS 19 À 1H) | F10: TÉCNICO DE APOIO A OPERAÇÕES EM DATA CENTER (JORNADA DA 1H ÀS 7H) | G10: TÉCNICO DE APOIO AO MONITORAMENTO DA INFRAESTRUTURA (JORNADAS DE 7 ÀS 13H E DE 13 ÀS 19H) | H10: TÉCNICO DE APOIO AO MONITORAMENTO DA INFRAESTRUTURA (JORNADA DAS 19 À 1H) | I10: TÉCNICO DE APOIO AO MONITORAMENTO DA INFRAESTRUTURA (JORNADA DA 1H ÀS 7H) | J10: TÉCNICO INSTALADOR DE CABEAMENTO | K10: TÉCNICO DE MANUTENÇÃO DE INFRAESTRUTURA DE REDE | L10: ANALISTA DE INFRAESTRUTURA DE TI PLENO | M10: ANALISTA DE INFRAESTRUTURA DE TI SÊNIOR | N10: ANALISTA DE INFRAESTRUTURA DE TI MASTER | O10: SUPERVISOR TÉCNICO
B11: REMUNERAÇÕES
D12: 2627.81 | E12: 2627.81 | F12: 2627.81 | G12: 2627.81 | H12: 2627.81 | I12: 2627.81 | J12: 2314.46 | K12: 3130.93 | L12: 6192.84 | M12: 8113.11 | N12: 10366.92 | O12: 13944.34
B13: QUANTIDADE DE POSTOS
D14: 6 | E14: 3 | F14: 3 | G14: 6 | H14: 3 | I14: 3 | J14: 7 | K14: 8 | L14: 6 | M14: 26 | N14: 26 | O14: 3
B15: JORNADA
C16: HORAS | D16: 180 | E16: 180 | F16: 180 | G16: 180 | H16: 180 | I16: 180 | J16: =44*5 -> 220 | K16: 220 | L16: 220 | M16: 220 | N16: 220 | O16: 220
C17: DIAS/MÊS | D17: 26 | E17: 26 | F17: 26 | G17: 26 | H17: 26 | I17: 26 | J17: 22 | K17: 22 | L17: 22 | M17: 22 | N17: 22 | O17: 22
B18: CCT UTILIZADA
C19: SINDICATOS E REFERÊNCIA | D19: SINDPD/DF X SINDESEI/DF 2021/2022 Nº DF000608/2021 | E19: SINDPD/DF X SINDESEI/DF 2021/2022 Nº DF000608/2021 | F19: SINDPD/DF X SINDESEI/DF 2021/2022 Nº DF000608/2021 | G19: SINDPD/DF X SINDESEI/DF 2021/2022 Nº DF000608/2021 | H19: SINDPD/DF X SINDESEI/DF 2021/2022 Nº DF000608/2021 | I19: SINDPD/DF X SINDESEI/DF 2021/2022 Nº DF000608/2021 | J19: SINDPD/DF X SINDESEI/DF 2021/2022 Nº DF000608/2021 | K19: SINDPD/DF X SINDESEI/DF 2021/2022 Nº DF000608/2021 | L19: SINDPD/DF X SINDESEI/DF 2021/2022 Nº DF000608/2021 | M19: SINDPD/DF X SINDESEI/DF 2021/2022 Nº DF000608/2021 | N19: SINDPD/DF X SINDESEI/DF 2021/2022 Nº DF000608/2021 | O19: SINDPD/DF X SINDESEI/DF 2021/2022 Nº DF000608/2021
C20: DATA-BASE | D20: 2021-05-01 | E20: 2021-05-01 | F20: 2021-05-01 | G20: 2021-05-01 | H20: 2021-05-01 | I20: 2021-05-01 | J20: 2021-05-01 | K20: 2021-05-01 | L20: 2021-05-01 | M20: 2021-05-01 | N20: 2021-05-01 | O20: 2021-05-01
B22: ADICIONAIS LEGAIS E GRATIFICAÇÕES
B24: PERICULOSIDADE (PERCENTUAL)
D25: 0 | E25: 0 | F25: 0 | G25: 0 | H25: 0 | I25: 0 | J25: 0 | K25: 0 | L25: 0 | M25: 0 | N25: 0 | O25: 0
B26: BASE DE CÁLCULO DO ADICIONAL DE PERICULOSIDADE (SALÁRIO BÁSICO)
D27: =D12 -> 2627.81 | E27: =E12 -> 2627.81 | F27: =F12 -> 2627.81 | G27: 2386.75 | H27: 2386.75 | I27: 2386.75 | J27: =J12 -> 2314.46 | K27: =K12 -> 3130.93 | L27: 6192.84 | M27: 8113.11 | N27: 10366.92 | O27: 13944.34
B28: VALOR MENSAL DO ADICIONAL DE PERICULOSIDADE
D29: =ROUND(D25*D12,2) -> 0 | E29: =ROUND(E25*E12,2) -> 0 | F29: =ROUND(F25*F12,2) -> 0 | G29: 0 | H29: 0 | I29: 0 | J29: =ROUND(J25*J12,2) -> 0 | K29: =ROUND(K25*K12,2) -> 0 | L29: 0 | M29: 0 | N29: 0 | O29: 0
B30: INSALUBRIDADE (PERCENTUAL)
D31: 0 | E31: 0 | F31: 0 | G31: 0 | H31: 0 | I31: 0 | J31: 0 | K31: 0 | L31: 0 | M31: 0 | N31: 0 | O31: 0
B32: BASE DE CÁLCULO DO ADICIONAL DE INSALUBRIDADE (SALÁRIO MÍNIMO LEGAL)
D33: 1212 | E33: 1212 | F33: 1212 | G33: 1212 | H33: 1212 | I33: 1212 | J33: 1212 | K33: 1212 | L33: 1212 | M33: 1212 | N33: 1212 | O33: 1212
B34: VALOR MENSAL DO ADICIONAL DE INSALUBRIDADE
D35: =ROUND(D31*D12,2) -> 0 | E35: =ROUND(E31*E12,2) -> 0 | F35: =ROUND(F31*F12,2) -> 0 | G35: 0 | H35: 0 | I35: 0 | J35: =ROUND(J31*J12,2) -> 0 | K35: 0 | L35: 0 | M35: 0 | N35: 0 | O35: 0
B36: GRATIFICAÇÃO - VALOR MENSAL (R$)
D37: 0 | E37: 0 | F37: 0 | G37: 0 | H37: 0 | I37: 0 | J37: 0 | K37: 0 | L37: 0 | M37: 0 | N37: 0 | O37: 0
B39: ADICIONAL NOTURNO
B41: INCIDÊNCIA (PERCENTUAL)
D42: 0.2 | E42: 0.2 | F42: 0.2 | G42: 0.2 | H42: 0.2 | I42: 0.2 | J42: 0.2 | K42: 0.2 | L42: 0.2 | M42: 0.2 | N42: 0.2 | O42: 0.2
B43: HORAS REAIS POR DIA
D44: 0 | E44: 3 | F44: 5 | G44: 0 | H44: 3 | I44: 5 | J44: 0 | K44: 0 | L44: 0 | M44: 0 | N44: 0 | O44: 0
B45: HORAS FICTAS POR DIA
D46: =D44*8/8 -> 0 | E46: =E44*8/8 -> 3 | F46: =F44*8/8 -> 5 | G46: =G44*8/8 -> 0 | H46: 3 | I46: =I44*8/8 -> 5 | J46: 0 | K46: =K44*8/8 -> 0 | L46: 0 | M46: 0 | N46: 0 | O46: 0
B47: BASE DE CÁLCULO DO ADICIONAL NOTURNO (INCLUINDO ADICIONAIS E GRATIFICAÇÕES)
D48: =D12+D29+D35+D37 -> 2627.81 | E48: 2627.81 | F48: =F12+F29+F35+F37 -> 2627.81 | G48: =G12+G29+G35+G37 -> 2627.81 | H48: 2627.81 | I48: 2627.81 | J48: 2314.46 | K48: =K12+K29+K35+K37 -> 3130.93 | L48: 6192.84 | M48: 8113.11 | N48: 10366.92 | O48: =O12+O29+O35+O37 -> 13944.34
B49: VALOR MENSAL DO ADICIONAL NOTURNO (HORA NORMAL + HORA REDUZIDA) - POR POSTO
D50: =ROUND(D46*D17*D42*D48/D16,2) -> 0 | E50: 227.74 | F50: =ROUND(F46*F17*F42*F48/F16,2) -> 379.57 | G50: =ROUND(G46*G17*G42*G48/G16,2) -> 0 | H50: 227.74 | I50: 379.57 | J50: 0 | K50: =ROUND(K46*K17*K42*K48/K16,2) -> 0 | L50: 0 | M50: 0 | N50: 0 | O50: =ROUND(O46*O17*O42*O48/O16,2) -> 0
B52: ADICIONAL DE HORA EXTRA
B54: INCIDÊNCIA (PERCENTUAL 1)
D55: 0.5 | E55: 0.5 | F55: 0.5 | G55: 0.5 | H55: 0.5 | I55: 0.5 | J55: 0.5 | K55: 0.5 | L55: 0.5 | M55: 0.5 | N55: 0.5 | O55: 0.5
B56: HORAS EXTRAS POR MÊS (PERCENTUAL 1)
D57: 0 | E57: 0 | F57: 0 | G57: 0 | H57: 0 | I57: 0 | J57: 0 | K57: 0 | L57: 0 | M57: 0 | N57: 0 | O57: 0
B58: VALOR MENSAL DO ADICIONAL DE HORAS EXTRAS (PERCENTUAL 1) - POR POSTO
D59: =ROUND(D57*D55*D12/D16,2) -> 0 | E59: =ROUND(E57*E55*E12/E16,2) -> 0 | F59: =ROUND(F57*F55*F12/F16,2) -> 0 | G59: 0 | H59: 0 | I59: 0 | J59: =ROUND(J57*J55*J12/J16,2) -> 0 | K59: =ROUND(K57*K55*K12/K16,2) -> 0 | L59: 0 | M59: 0 | N59: 0 | O59: 0
B60: INCIDÊNCIA (PERCENTUAL 2)
D61: 1 | E61: 1 | F61: 1 | G61: 1 | H61: 1 | I61: 1 | J61: 1 | K61: 1 | L61: 1 | M61: 1 | N61: 1 | O61: 1
B62: HORAS EXTRAS POR MÊS (PERCENTUAL 2)
D63: 0 | E63: 0 | F63: 0 | G63: 0 | H63: 0 | I63: 0 | J63: 0 | K63: 0 | L63: 0 | M63: 0 | N63: 0 | O63: 0
B64: VALOR MENSAL DO ADICIONAL DE HORAS EXTRAS (PERCENTUAL 2) - POR POSTO
D65: =ROUND(D63*D61*D12/D16,2) -> 0 | E65: =ROUND(E63*E61*E12/E16,2) -> 0 | F65: =ROUND(F63*F61*F12/F16,2) -> 0 | G65: 0 | H65: 0 | I65: 0 | J65: =ROUND(J63*J61*J12/J16,2) -> 0 | K65: =ROUND(K63*K61*K12/K16,2) -> 0 | L65: 0 | M65: 0 | N65: 0 | O65: 0
B66: TOTAL MENSAL DOS ADICIONAIS DE HORAS EXTRAS - POR POSTO
D67: =D65+D59 -> 0 | E67: =E65+E59 -> 0 | F67: =F65+F59 -> 0 | G67: 0 | H67: 0 | I67: 0 | J67: =J65+J59 -> 0 | K67: =K65+K59 -> 0 | L67: 0 | M67: 0 | N67: 0 | O67: 0
B69: BENEFÍCIOS COMUNS - AUXÍLIO TRANSPORTE
B71: DISTRIBUIÇÃO ESTIMADA DE PROCEDÊNCIA
C72: Cidade-satélite | D72: 0.68 | E72: 0.68 | F72: 0.68 | G72: 0.68 | H72: 0.68 | I72: 0.68 | J72: 0.68 | K72: 0.68 | L72: 0.68 | M72: 0.68 | N72: 0.68 | O72: 0.68
C73: Região do entorno | D73: 0.32 | E73: 0.32 | F73: 0.32 | G73: 0.32 | H73: 0.32 | I73: 0.32 | J73: 0.32 | K73: 0.32 | L73: 0.32 | M73: 0.32 | N73: 0.32 | O73: 0.32
C74: Esplanada - apenas para os que vêm do entorno | D74: =D73 -> 0.32 | E74: =E73 -> 0.32 | F74: =F73 -> 0.32 | G74: =G73 -> 0.32 | H74: 0.32 | I74: =I73 -> 0.32 | J74: 0.32 | K74: =K73 -> 0.32 | L74: 0.32 | M74: 0.32 | N74: 0.32 | O74: 0.32
B75: VALORES DOS VALES
C76: Cidade-satélite | D76: 5.5 | E76: 5.5 | F76: 5.5 | G76: =D76 -> 5.5 | H76: 5.5 | I76: 5.5 | J76: =I76 -> 5.5 | K76: =I76 -> 5.5 | L76: =I76 -> 5.5 | M76: 5.5 | N76: =M76 -> 5.5 | O76: =N76 -> 5.5
C77: Região do entorno | D77: 7.05 | E77: 7.05 | F77: 7.05 | G77: 7.05 | H77: 7.05 | I77: 7.05 | J77: 7.05 | K77: 7.05 | L77: 7.05 | M77: 7.05 | N77: 7.05 | O77: 7.05
C78: Esplanada | D78: 2.75 | E78: 2.75 | F78: 2.75 | G78: 2.75 | H78: 2.75 | I78: 2.75 | J78: 2.75 | K78: =I78 -> 2.75 | L78: 2.75 | M78: 2.75 | N78: 2.75 | O78: 2.75
B79: VALOR MENSAL BRUTO DE PAGAMENTO - POR POSTO
D80: =ROUND((D72*D76+D73*D77+D74*D78)*2*D17,2) -> 357.55 | E80: =ROUND((E72*E76+E73*E77+E74*E78)*2*E17,2) -> 357.55 | F80: =ROUND((F72*F76+F73*F77+F74*F78)*2*F17,2) -> 357.55 | G80: =ROUND((G72*G76+G73*G77+G74*G78)*2*G17,2) -> 357.55 | H80: 357.55 | I80: =ROUND((I72*I76+I73*I77+I74*I78)*2*I17,2) -> 357.55 | J80: =ROUND((J72*J76+J73*J77+J74*J78)*2*J17,2) -> 302.54 | K80: =ROUND((K72*K76+K73*K77+K74*K78)*2*K17,2) -> 302.54 | L80: 302.54 | M80: 302.54 | N80: 302.54 | O80: 302.54
B81: PERCENTUAL DE DESCONTO
D82: 0.06 | E82: 0.06 | F82: 0.06 | G82: 0.06 | H82: 0.06 | I82: 0.06 | J82: 0.06 | K82: 0.06 | L82: 0.06 | M82: 0.06 | N82: 0.06 | O82: 0.06
B83: VALOR MENSAL DO DESCONTO - POR POSTO
D84: =ROUND(D82*D12,2) -> 157.67 | E84: 157.67 | F84: =ROUND(F82*F12,2) -> 157.67 | G84: =ROUND(G82*G12,2) -> 157.67 | H84: 157.67 | I84: 157.67 | J84: 138.87 | K84: =ROUND(K82*K12,2) -> 187.86 | L84: 371.57 | M84: 486.79 | N84: 622.02 | O84: 836.66
B85: VALOR MENSAL LÍQUIDO DO VALE TRANSPORTE - POR POSTO
D86: =IF(D80>D84,D80-D84,0) -> 199.88 | E86: 199.88 | F86: =IF(F80>F84,F80-F84,0) -> 199.88 | G86: =IF(G80>G84,G80-G84,0) -> 199.88 | H86: 199.88 | I86: 199.88 | J86: 163.67 | K86: =IF(K80>K84,K80-K84,0) -> 114.68 | L86: 0 | M86: 0 | N86: 0 | O86: =IF(O80>O84,O80-O84,0) -> 0
D87: =D86*D14 -> 1199.28 | E87: =E86*E14 -> 599.64 | F87: =F86*F14 -> 599.64 | G87: 2962.54 | H87: 2962.54 | I87: 2962.54 | J87: =J86*J14 -> 1145.69 | K87: =K86*K14 -> 917.44 | L87: =L86*L14 -> 0 | M87: =M86*M14 -> 0
B88: BENEFÍCIOS COMUNS - AUXÍLIO ALIMENTAÇÃO
C90: VALOR CCT | D90: 28.69 | E90: 28.69 | F90: 28.69 | G90: 28.69 | H90: 28.69 | I90: 28.69 | J90: 28.69 | K90: 28.69 | L90: 28.69 | M90: 28.69 | N90: 28.69 | O90: 28.69
C91: VALOR CD | D91: 35 | E91: 35 | F91: 35 | G91: 35 | H91: 35 | I91: 35 | J91: 35 | K91: 35 | L91: 35 | M91: 35 | N91: 35 | O91: 35
B92: VALOR MENSAL DO AUXÍLIO ALIMENTAÇÃO - POR POSTO
D93: =ROUND(LARGE(D90:D91,1)*D17,2) -> 910 | E93: =ROUND(LARGE(E90:E91,1)*E17,2) -> 910 | F93: =ROUND(LARGE(F90:F91,1)*F17,2) -> 910 | G93: =ROUND(LARGE(G90:G91,1)*G17,2) -> 910 | H93: 910 | I93: =ROUND(LARGE(I90:I91,1)*I17,2) -> 910 | J93: 770 | K93: =ROUND(LARGE(K90:K91,1)*K17,2) -> 770 | L93: 770 | M93: 770 | N93: 770 | O93: 770
D94: =D93*D14 -> 5460 | E94: =E93*E14 -> 2730 | F94: =F93*F14 -> 2730 | G94: 10339.56 | H94: 10339.56 | I94: 10339.56 | J94: =J93*J14 -> 5390 | K94: =K93*K14 -> 6160 | L94: =L93*L14 -> 4620 | M94: =M93*M14 -> 20020
B95: BENEFÍCIOS ESPECIAIS - ASSISTÊNCIA MÉDICA E FAMILIAR
C97: OBRIGAÇÃO DE PAGTO x % CONTR. PATRONAL | D97: SIM | E97: SIM | F97: SIM | G97: SIM | H97: SIM | I97: SIM | J97: SIM | K97: SIM | L97: SIM | M97: SIM | N97: SIM | O97: SIM
C98: VALOR CCT
C99: VALOR MERCADO | D99: =(418.82+532.86)/2*0.6 -> 285.504 | E99: =(418.82+532.86)/2*0.6 -> 285.504 | F99: 285.504 | G99: 285.504 | H99: 285.504 | I99: 285.504 | J99: 285.504 | K99: 285.504 | L99: =(418.82+532.86)/2*0.5 -> 237.92 | M99: =(418.82+532.86)/2*0.5 -> 237.92 | N99: =(418.82+532.86)/2*0.5 -> 237.92 | O99: 237.92
B100: VALOR MENSAL DO AUXÍLIO ESPECIAL - ASSISTÊNCIA MÉDICA E FAMILIAR - POR POSTO
D101: =IF(D97="SIM",ROUND(SMALL(D98:D99,1),2),0) -> 285.5 | E101: =IF(E97="SIM",ROUND(SMALL(E98:E99,1),2),0) -> 285.5 | F101: 285.5 | G101: 285.5 | H101: 285.5 | I101: 285.5 | J101: 285.5 | K101: 285.5 | L101: 237.92 | M101: 237.92 | N101: 237.92 | O101: 237.92
B103: BENEFÍCIOS ESPECIAIS - SEGURO DE VIDA E AUXÍLIO-FUNERAL, AUX ODONT, AUX CRECHE
B105: SEGURO DE VIDA E AUXÍLIO FUNERAL
C106: OBRIGAÇÃO DE PAGTO | D106: SIM | E106: SIM | F106: SIM | G106: SIM | H106: SIM | I106: SIM | J106: SIM | K106: SIM | L106: SIM | M106: SIM | N106: SIM | O106: SIM
C107: VALOR CCT
C108: VALOR MERCADO | D108: 12.36 | E108: 12.36 | F108: 12.36 | G108: 12.36 | H108: 12.36 | I108: 12.36 | J108: 12.36 | K108: 12.36 | L108: 12.36 | M108: 12.36 | N108: 12.36 | O108: 12.36
B109: VALOR MENSAL DO AUXÍLIO ESPECIAL - SEGURO DE VIDA E AUXÍLIO FUNERAL - POR POSTO
D110: =IF(D106="SIM",ROUND(SMALL(D107:D108,1),2),0) -> 12.36 | E110: =IF(E106="SIM",ROUND(SMALL(E107:E108,1),2),0) -> 12.36 | F110: =IF(F106="SIM",ROUND(SMALL(F107:F108,1),2),0) -> 12.36 | G110: =IF(G106="SIM",ROUND(SMALL(G107:G108,1),2),0) -> 12.36 | H110: 12.36 | I110: 12.36 | J110: 12.36 | K110: =IF(K106="SIM",ROUND(SMALL(K107:K108,1),2),0) -> 12.36 | L110: 12.36 | M110: 12.36 | N110: 12.36 | O110: =IF(O106="SIM",ROUND(SMALL(O107:O108,1),2),0) -> 12.36
B111: AUXÍLIO ODONTOLÓGICO
C112: OBRIGAÇÃO DE PAGTO | D112: NÃO | E112: NÃO | F112: NÃO | G112: NÃO | H112: NÃO | I112: NÃO | J112: NÃO | K112: NÃO | L112: NÃO | M112: NÃO | N112: NÃO | O112: NÃO
C113: VALOR CCT | D113: 0 | E113: 0 | F113: 0 | G113: 0 | H113: 0 | I113: 0 | J113: 0 | K113: 0 | L113: 0 | M113: 0 | N113: 0 | O113: 0
C114: VALOR MERCADO | D114: 0 | E114: 0 | F114: 0 | G114: 0 | H114: 0 | I114: 0 | J114: 0 | K114: 0 | L114: 0 | M114: 0 | N114: 0 | O114: 0
B115: VALOR MENSAL DO AUXÍLIO ESPECIAL - SEGURO DE VIDA E AUX FUNERAL - POR POSTO
D116: =IF(D112="SIM",ROUND(SMALL(D113:D114,1),2)*D17,0) -> 0 | E116: =IF(E112="SIM",ROUND(SMALL(E113:E114,1),2)*E17,0) -> 0 | F116: =IF(F112="SIM",ROUND(SMALL(F113:F114,1),2)*F17,0) -> 0 | G116: 0 | H116: 0 | I116: 0 | J116: =IF(J112="SIM",ROUND(SMALL(J113:J114,1),2)*J17,0) -> 0 | K116: =IF(K112="SIM",ROUND(SMALL(K113:K114,1),2)*K17,0) -> 0 | L116: 0 | M116: 0 | N116: 0 | O116: 0
B117: TOTAL MENSAL DOS AUXÍLIOS ESPECIAIS - POR POSTO
D118: =D116+D110 -> 12.36 | E118: 12.36 | F118: =F116+F110 -> 12.36 | G118: =G116+G110 -> 12.36 | H118: 12.36 | I118: =I116+I110 -> 12.36 | J118: 12.36 | K118: =K116+K110 -> 12.36 | L118: 12.36 | M118: 12.36 | N118: 12.36 | O118: =O116+O110 -> 12.36

Sheet Encargos Sociais
B3: ENCARGOS SOCIAIS SOBRE A MÃO DE OBRA
E4: Percentuais
B6: Referência:
C7: SINAPI OUT/2018
B9: Categorias:
C10: TODAS
B12: GRUPO A: Encargos Sociais Básicos - Previdenciários (GPS), Fundo de Garantia por Tempo de Serviço (FGTS) e Outras Contribuições | E12: =ROUND(SUM(E13:E21),4) -> 0.348
C13: A | D13: INSS (art. 22, inciso I, Lei nº 8.212/91) | E13: 0.2
C14: B | D14: Salário Educação (art. 3º, inciso I, Decreto nº 87.043/82) | E14: 0.025
C15: C | D15: SAT/RAT (art. 22, II, Lei 8.212/91 e Anexo V, Decreto 6.042/07) - Enquadramento 6209-1/00 | E15: 0.01
C16: D | D16: SESC ou SESI (art. 30, Lei nº 8.036/90 e art. 1º, Lei 8.154/90) | E16: 0.015
C17: E | D17: SENAI ou SENAC (Decreto nº 2.318/86) | E17: 0.01
C18: F | D18: SEBRAE (§ 3º, art. 8º, Lei 8.029/90, alterada pela Lei nº 8.154/90) | E18: 0.006 | G18: * Nota 1 - Os percentuais dos encargos previdenciários, do FGTS e demais contribuições são estabelecidos por legislação vigente.
C19: G | D19: INCRA (art. 1º, I, Decreto Lei 1.146/70 e Lei 7.787, de 30/06/89) | E19: 0.002 | G19: * Nota 2 - O SAT, a depender do grau de risco do serviço, irá variar entre 1%, para risco leve, de 2%, para risco médio, e de 3% para risco grave.
C20: H | D20: FGTS (Lei Complementar nº 110/01 e art. 30, Lei nº 8.036/90) | E20: 0.08 | G20: * Nota 3 - Os percentuais do Submódulo 2.2 incidem sobre o Módulo 1, o Submódulo 2.1, o Módulo 3, o Módulo 4 e o Módulo 6.
C21: I | D21: SECONCI (Convenções Coletivas de Trabalho da construção) | E21: 0
B23: GRUPO B: Encargos Sociais Relacionados ao Custo do Profissional Ausente - Ausências Legais | E23: =ROUND(SUM(E24:E32),4) -> 0.2246
C24: A | D24: Férias (Arts. 129 e 130, inc. I, da CLT) | E24: =1/11 -> 0.09090909091 | G24: * Nota 1 - As alíneas “A” a “F” referem-se ao custo que será pago pela empresa ao profissional ausente (férias e ausências legais).
C25: B | D25: Ausências Legais (Arts. 131 e 473 da CLT) | E25: =2/252 -> 0.007936507937 | G25: * Nota 2 - Adotou-se a estimativa do SINAPI de 2 dias por ano. Em 252 dias úteis por ano.
C26: C | D26: Licença-Paternidade (Art. 7º, XIX, e art. 10, §1º, do ADCT, CF/1988 e Art. 1º, II, da Lei 11.770/2008) | E26: =(5/(30*12))*0.0596 -> 0.0008277777778 | G26: * Nota 3 - Utilizada a proporção de 50% para homens, 5 dias de afastamento, e a probabilidade de um trabalhador requerer a Licença Paternidade em 5,96%, conforme SINAPI (Anuário Estatístico da Previdência Social - 2017)
C27: D | D27: Ausência por Acidente de Trabalho (Art. 131, III, da CLT) | E27: =0.0205*15/360 -> 0.0008541666667 | G27: * Nota 4 - Utilzada a estatística de 2,05% dos contribuintes beneficiados com a emissão do auxílio, conforme Anuário Estatístico da Previdência Social. Afastamento de 15 dias a cargo da empresa.
C28: E | D28: Afastamento Maternidade (Art. 71 da Lei nº 8.213/1991) | E28: =0.0508*(120/360)*(30+30*4/3)/360 -> 0.003292592593 | G28: * Nota 5 - Utilizada a estimativa de 120 dias de afastamento, e a probabilidade de uma trabalhadora requerer a Licença Maternidade em 5,08%, conforme SINAPI (citando dados do IBGE 2017) - A própria previdência paga o benefício pelos 120 dias, contudo o empregador arca com o 13º e com as férias
C29: F | D29: Auxílio Enfermidade - Doença (Art. 59 da Lei nº 8.213/1991) | E29: =((0.0376*15)+2)/360 -> 0.007122222222 | G29: * Nota 6 - Utilizada a estatística de 3,76% dos contribuintes beneficiados com o auxílio, conforme Anuário Estatístico da Previdência Social de 2016 (acrescidos de 2 dias ao ano, para os quais o trabalhador nem requer o benefício da Previdência - conforme SINAPI)
C30: G | D30: Adicional de Férias (componente do Submódulo 2.1) | E30: =1/3*1/11 -> 0.0303030303 | G30: * Nota 7 - O adicional de férias contido no Submódulo 2.1 corresponde a 1/3 da remuneração que, por sua vez, é dividida por 11 contome Nota 1.
C31: H | D31: 13º Salário (destacado na planilha de custos) | E31: =1/12 -> 0.08333333333 | G31: * Nota 8 - Provisiona-se, mensalmente, o proporcional a 1/12 dos valores referentes a gratificação natalina e adicional de férias.
C32: I | D32: Intervalo para repouso ou alimentação (componente do Submódulo 4.2) | E32: 0
B34: GRUPO C: Encargos Sociais Relacionados à Previsão para Rescisão Trabalhista | E34: =ROUND(SUM(E35:E40),4) -> 0.0634
C35: A | D35: Aviso Prévio Indenizado (Art. 7º, inciso XXI, da CF/1988 e arts. 477, 487, §1º, e 491 da CLT) | E35: =0.1*30/360 -> 0.008333333333 | G35: * Nota 1 - Considerou-se demissões de 10% por ano para substituições, a um prazo estimado de contrato de 3 anos. Aviso prévio - 1º ano 30 dias. Considerou-se os 10% demitidos sem justa causa e recebendo aviso indenizado.
C36: B | D36: Incidência do FGTS sobre o Aviso Prévio Indenizado (Súmula 305 TST) | E36: =E20*E35 -> 0.0006666666667
C37: C | D37: Multa do FGTS sobre o Aviso Prévio Indenizado (Art. 18, §1º, da Lei 8.036/1990) | E37: =(1+1/12+1/12+1/36)*0.4*E20*0.2019 -> 0.007717066667 | G37: * Nota 2 - Incide sobre a Remuneração + 13º salário (1/12) + Férias (1/12) + Adicional de Férias (1/36) x 40% multa para o empregador x 8% FGTS
C38: D | D38: Aviso Prévio Trabalhado (Art. 488, parágrafo único, CLT) | E38: =((7+2*3)*100%/360)/3 -> 0.01203703704 | G38: * Nota 3 - Considerou-se demissões de 100% ao final do contrato, com um prazo médio estimado de 3 anos. Assim, calcula-se 7 dias para o 1º ano de contrato e mais 3 dias para os 2 anos seguintes. Total 13 dias.
C39: E | D39: Incidência de GPS, FGTS e outras contribuições sobre o Aviso Prévio Trabalhado | E39: =E38*E12 -> 0.004188888889
C40: F | D40: Multa do FGTS sobre o Aviso Prévio Trabalhado | E40: =(1+1/12+1/12+1/36)*0.4*E20*(1-0.2019) -> 0.03050515556 | G40: * Nota 4 - Incide sobre a Remuneração + 13º salário (1/12) + Férias (1/12) + Adicional de Férias (1/36) x 40% multa para o empregador x 8% FGTS
B42: GRUPO D: Reincidências | E42: =ROUND(SUM(E43:E43),4) -> 0.0782
C43: A | D43: Reincidência do Grupo A sobre o Grupo B | E43: =E12*E23 -> 0.0781608
D45: SOMATÓRIO - ENCARGOS SOCIAIS SOBRE A MÃO DE OBRA | E45: =E42+E34+E23+E12 -> 0.7142

Sheet BDI
B3: COMPOSIÇÃO DA TAXA DE CUSTOS INDIRETOS, TRIBUTOS E LUCRO - BDI
B4: APLICAÇÃO: MÃO DE OBRA, 13º, MATERIAIS, EPC E EQUIPAMENTO DE REGISTRO DE FREQUÊNCIA | E4: Percentuais
B6: Custos Indiretos da Contratada | E6: =SUM(E7:E8) -> 0.0584
C7: A | D7: Administração Central (despesas de gestão da empresa, escritório e treinamento de seu pessoal, e eventuais como máscaras obrigatórias) | E7: 0.0216 | G7: * Nota 1 - O Somatório da Administração Central com o Lucro deve ser inferior a 12%
C8: B | D8: Seguros, Garantias e Riscos (o risco foi majorado considerando o modelo híbrido, com risco de redutores na fatura mensal e mais 0,2 % ) | E8: =3.48%+0.2% -> 0.0368 | G8: * Nota 2 - O risco previsto para o porte do contrato majorado em mais 0,20% devido ao não pagamento dos insumos componentes do custo do posto quando da ausência do mesmo.
B10: Lucro | E10: =SUM(E11:E11) -> 0.0334
C11: A | D11: Lucro Real sobre os Custos Administrados | E11: 0.0334
B13: Despesas Financeiras | E13: =E14 -> 0.005251960574
C14: A | D14: Cálculo Baseado no Prazo para a Restituição dos Desembolsos Realizados pelo Contratado e na Taxa de Retorno Arbitrada | E14: =(1+E16)^(E15/252)-1 -> 0.005251960574 | G14: * Nota 1 - DF = [(1+TR)^(DU/252)]/100
C15: A.1 | D15: Dias Úteis Considerados | E15: 11 | G15: * Nota 2 - Diferença de dias entre o desembolso, pelo contratado, e o pagamento, pela Câmara
C16: A.2 | D16: Taxa de Retorno | E16: 0.1275 | G16: * Nota 3 - A taxa sugerida é a meta da SELIC
B18: Impostos - Tributos Federais | E18: =SUM(E19:E21) -> 0.074
C19: A | D19: Contribuição para o Financiamento da Seguridade Social - COFINS | E19: =0.8*7.6% -> 0.0608 | G19: * Nota 1 - Redução de 20% considerando as deduções permitidas em Lei, conforme SENGE, citado pelo TCU - Acórdão 2622/2013
C20: B | D20: Programa de Integração Social - PIS | E20: =0.8*1.65% -> 0.0132 | G20: * Nota 2 - Redução de 20% considerando as deduções permitidas em Lei, conforme SENGE, citado pelo TCU - Acórdão 2622/2013
C21: C | D21: Contribuição Previdenciária sobre a Receita Bruta - CPRB | E21: 0 | G21: * Nota 3 - Lei 12.546/2011 - Verificar atualizações e setores beneficiados
B23: Impostos - Tributos Distritais | E23: =SUM(E24:E24) -> 0.05
C24: A | D24: Imposto sobre Serviço de Qualquer Natureza - ISS | E24: 0.05
D26: SOMATÓRIO - ENCARGOS SOCIAIS SOBRE A MÃO DE OBRA | E26: =ROUND((((1+E6)*(1+E10)*(1+E13)/(1-E18-E23))-1),4) -> 0.2551 | G26: * Nota 1 - [(1+AC+SGR)*(1+L)*(1+DF)/(1-CONFINS-PIS-CPRB-ISS)]-1

Sheet Uniformes
C1: CÂMARA DOS DEPUTADOS
C2: DEPARTAMENTO TÉCNICO
C3: Coordenação de Planejamento e Gestão
B6: UNIFORMES - AQUISIÇÃO | K6: 1 | M6: =K6+1 -> 2 | O6: =M6+1 -> 3 | Q6: =O6+1 -> 4 | S6: =Q6+1 -> 5 | U6: =S6+1 -> 6 | W6: =U6+1 -> 7 | Y6: =W6+1 -> 8 | AA6: =Y6+1 -> 9 | AC6: =AA6+1 -> 10 | AE6: =AC6+1 -> 11 | AG6: =AE6+1 -> 12 | AI6: =AG6+1 -> 13 | AK6: =AI6+1 -> 14 | AM6: =AK6+1 -> 15 | AO6: =AM6+1 -> 16 | AQ6: =AO6+1 -> 17 | AS6: =AQ6+1 -> 18 | AU6: =AS6+1 -> 19 | AW6: =AU6+1 -> 20 | AY6: =AW6+1 -> 21 | BA6: =AY6+1 -> 22 | BC6: =BA6+1 -> 23 | BE6: =BC6+1 -> 24 | BG6: =BE6+1 -> 25 | BI6: =BG6+1 -> 26 | BK6: =BI6+1 -> 27 | BM6: =BK6+1 -> 28 | BO6: =BM6+1 -> 29 | BQ6: =BO6+1 -> 30 | BS6: =BQ6+1 -> 31 | BU6: =BS6+1 -> 32 | BW6: =BU6+1 -> 33 | BY6: =BW6+1 -> 34 | CA6: =BY6+1 -> 35 | CC6: =CA6+1 -> 36 | CE6: =CC6+1 -> 37 | CG6: =CE6+1 -> 38 | CI6: =CG6+1 -> 39 | CK6: =CI6+1 -> 40 | CM6: =CK6+1 -> 41 | CO6: =CM6+1 -> 42 | CQ6: =CO6+1 -> 43 | CS6: =CQ6+1 -> 44 | CU6: =CS6+1 -> 45 | CW6: =CU6+1 -> 46 | CY6: =CW6+1 -> 47 | DA6: =CY6+1 -> 48 | DC6: =DA6+1 -> 49 | DE6: =DC6+1 -> 50 | DG6: =DE6+1 -> 51 | DI6: =DG6+1 -> 52 | DK6: =DI6+1 -> 53 | DM6: =DK6+1 -> 54 | DO6: =DM6+1 -> 55 | DQ6: =DO6+1 -> 56 | DS6: =DQ6+1 -> 57 | DU6: =DS6+1 -> 58 | DW6: =DU6+1 -> 59 | DY6: =DW6+1 -> 60
K8: =ROUND(SUM(L7:L191),2) -> 0 | M8: =ROUND(SUM(N7:N191),2) -> 0 | O8: =ROUND(SUM(P7:P191),2) -> 0 | Q8: =ROUND(SUM(R7:R191),2) -> 0 | S8: =ROUND(SUM(T7:T191),2) -> 0 | U8: =ROUND(SUM(V7:V191),2) -> 0 | W8: =ROUND(SUM(X7:X191),2) -> 1038 | Y8: =ROUND(SUM(Z7:Z191),2) -> 1038 | AA8: =ROUND(SUM(AB7:AB191),2) -> 0 | AC8: =ROUND(SUM(AD7:AD191),2) -> 0 | AE8: =ROUND(SUM(AF7:AF191),2) -> 0 | AG8: =ROUND(SUM(AH7:AH191),2) -> 0 | AI8: =ROUND(SUM(AJ7:AJ191),2) -> 0 | AK8: =ROUND(SUM(AL7:AL191),2) -> 0 | AM8: =ROUND(SUM(AN7:AN191),2) -> 0 | AO8: =ROUND(SUM(AP7:AP191),2) -> 0 | AQ8: =ROUND(SUM(AR7:AR191),2) -> 0 | AS8: =ROUND(SUM(AT7:AT191),2) -> 0 | AU8: =ROUND(SUM(AV7:AV191),2) -> 0 | AW8: =ROUND(SUM(AX7:AX191),2) -> 0 | AY8: =ROUND(SUM(AZ7:AZ191),2) -> 0 | BA8: =ROUND(SUM(BB7:BB191),2) -> 0 | BC8: =ROUND(SUM(BD7:BD191),2) -> 0 | BE8: =ROUND(SUM(BF7:BF191),2) -> 0 | BG8: =ROUND(SUM(BH7:BH191),2) -> 0 | BI8: =ROUND(SUM(BJ7:BJ191),2) -> 0 | BK8: =ROUND(SUM(BL7:BL191),2) -> 0 | BM8: =ROUND(SUM(BN7:BN191),2) -> 0 | BO8: =ROUND(SUM(BP7:BP191),2) -> 0 | BQ8: =ROUND(SUM(BR7:BR191),2) -> 0 | BS8: =ROUND(SUM(BT7:BT191),2) -> 0 | BU8: =ROUND(SUM(BV7:BV191),2) -> 0 | BW8: =ROUND(SUM(BX7:BX191),2) -> 0 | BY8: =ROUND(SUM(BZ7:BZ191),2) -> 0 | CA8: =ROUND(SUM(CB7:CB191),2) -> 0 | CC8: =ROUND(SUM(CD7:CD191),2) -> 0 | CE8: =ROUND(SUM(CF7:CF191),2) -> 0 | CG8: =ROUND(SUM(CH7:CH191),2) -> 0 | CI8: =ROUND(SUM(CJ7:CJ191),2) -> 0 | CK8: =ROUND(SUM(CL7:CL191),2) -> 0 | CM8: =ROUND(SUM(CN7:CN191),2) -> 0 | CO8: =ROUND(SUM(CP7:CP191),2) -> 0 | CQ8: =ROUND(SUM(CR7:CR191),2) -> 0 | CS8: =ROUND(SUM(CT7:CT191),2) -> 0 | CU8: =ROUND(SUM(CV7:CV191),2) -> 0 | CW8: =ROUND(SUM(CX7:CX191),2) -> 0 | CY8: =ROUND(SUM(CZ7:CZ191),2) -> 0 | DA8: =ROUND(SUM(DB7:DB191),2) -> 0 | DC8: =ROUND(SUM(DD7:DD191),2) -> 0 | DE8: =ROUND(SUM(DF7:DF191),2) -> 0 | DG8: =ROUND(SUM(DH7:DH191),2) -> 0 | DI8: =ROUND(SUM(DJ7:DJ191),2) -> 0 | DK8: =ROUND(SUM(DL7:DL191),2) -> 0 | DM8: =ROUND(SUM(DN7:DN191),2) -> 0 | DO8: =ROUND(SUM(DP7:DP191),2) -> 0 | DQ8: =ROUND(SUM(DR7:DR191),2) -> 0 | DS8: =ROUND(SUM(DT7:DT191),2) -> 0 | DU8: =ROUND(SUM(DV7:DV191),2) -> 0 | DW8: =ROUND(SUM(DX7:DX191),2) -> 0 | DY8: =ROUND(SUM(DZ7:DZ191),2) -> 0
C9: CATEGORIAS | H9: QUANTIDADE
C12: 7 | D12: =HLOOKUP($C12,'Dados Gerais'!$D$5:$BK$10,6) -> TÉCNICO INSTALADOR DE CABEAMENTO | H12: =HLOOKUP($C12,'Dados Gerais'!$D$5:$BK$14,10) -> 7 | K12: =IF($C12=K$6,1,0) -> 0 | M12: 0 | O12: 0 | Q12: 0 | S12: 0 | U12: 0 | W12: 1 | Y12: 0 | AA12: =IF($C12=AA$6,1,0) -> 0 | AC12: 0 | AE12: 0 | AG12: 0 | AI12: 0 | AK12: 0 | AM12: 0 | AO12: 0 | AQ12: 0 | AS12: 0 | AU12: =IF($C12=AU$6,1,0) -> 0 | AW12: =IF($C12=AW$6,1,0) -> 0 | AY12: =IF($C12=AY$6,1,0) -> 0 | BA12: =IF($C12=BA$6,1,0) -> 0 | BC12: =IF($C12=BC$6,1,0) -> 0 | BE12: =IF($C12=BE$6,1,0) -> 0 | BG12: =IF($C12=BG$6,1,0) -> 0 | BI12: =IF($C12=BI$6,1,0) -> 0 | BK12: =IF($C12=BK$6,1,0) -> 0 | BM12: =IF($C12=BM$6,1,0) -> 0 | BO12: =IF($C12=BO$6,1,0) -> 0 | BQ12: =IF($C12=BQ$6,1,0) -> 0 | BS12: =IF($C12=BS$6,1,0) -> 0 | BU12: =IF($C12=BU$6,1,0) -> 0 | BW12: =IF($C12=BW$6,1,0) -> 0 | BY12: =IF($C12=BY$6,1,0) -> 0 | CA12: =IF($C12=CA$6,1,0) -> 0 | CC12: =IF($C12=CC$6,1,0) -> 0 | CE12: =IF($C12=CE$6,1,0) -> 0 | CG12: =IF($C12=CG$6,1,0) -> 0 | CI12: =IF($C12=CI$6,1,0) -> 0 | CK12: =IF($C12=CK$6,1,0) -> 0 | CM12: =IF($C12=CM$6,1,0) -> 0 | CO12: =IF($C12=CO$6,1,0) -> 0 | CQ12: =IF($C12=CQ$6,1,0) -> 0 | CS12: =IF($C12=CS$6,1,0) -> 0 | CU12: =IF($C12=CU$6,1,0) -> 0 | CW12: =IF($C12=CW$6,1,0) -> 0 | CY12: =IF($C12=CY$6,1,0) -> 0 | DA12: =IF($C12=DA$6,1,0) -> 0 | DC12: =IF($C12=DC$6,1,0) -> 0 | DE12: =IF($C12=DE$6,1,0) -> 0 | DG12: =IF($C12=DG$6,1,0) -> 0 | DI12: =IF($C12=DI$6,1,0) -> 0 | DK12: =IF($C12=DK$6,1,0) -> 0 | DM12: =IF($C12=DM$6,1,0) -> 0 | DO12: =IF($C12=DO$6,1,0) -> 0 | DQ12: =IF($C12=DQ$6,1,0) -> 0 | DS12: =IF($C12=DS$6,1,0) -> 0 | DU12: =IF($C12=DU$6,1,0) -> 0 | DW12: =IF($C12=DW$6,1,0) -> 0 | DY12: =IF($C12=DY$6,1,0) -> 0
C13: 8 | D13: =HLOOKUP($C13,'Dados Gerais'!$D$5:$BK$10,6) -> TÉCNICO DE MANUTENÇÃO DE INFRAESTRUTURA DE REDE | H13: =HLOOKUP($C13,'Dados Gerais'!$D$5:$BK$14,10) -> 8 | K13: 0 | M13: 0 | O13: 0 | Q13: 0 | S13: 0 | U13: 0 | W13: 0 | Y13: 1 | AA13: 0 | AC13: 0 | AE13: 0 | AG13: 0 | AI13: 0 | AK13: 0 | AM13: 0 | AO13: 0 | AQ13: 0 | AS13: 0 | AU13: 0 | AW13: 0 | AY13: 0 | BA13: 0 | BC13: 0 | BE13: 0 | BG13: 0 | BI13: 0 | BK13: 0 | BM13: 0 | BO13: 0 | BQ13: 0 | BS13: 0 | BU13: 0 | BW13: 0 | BY13: 0 | CA13: 0 | CC13: 0 | CE13: 0 | CG13: 0 | CI13: 0 | CK13: 0 | CM13: 0 | CO13: 0 | CQ13: 0 | CS13: 0 | CU13: 0 | CW13: 0 | CY13: 0 | DA13: 0 | DC13: 0 | DE13: 0 | DG13: 0 | DI13: 0 | DK13: 0 | DM13: 0 | DO13: 0 | DQ13: 0 | DS13: 0 | DU13: 0 | DW13: 0 | DY13: 0
C16: ITEM | D16: DESCRIÇÃO | E16: QUANT ANUAL POR POSTO | F16: Nº DE POSTOS | G16: QUANT ANUAL TOTAL | H16: VALOR
AV17: =IF(SUM(AU$10:AU$10)>0,$E17*$H17,0) -> 0 | AX17: =IF(SUM(AW$10:AW$10)>0,$E17*$H17,0) -> 0 | AZ17: =IF(SUM(AY$10:AY$10)>0,$E17*$H17,0) -> 0 | BB17: =IF(SUM(BA$10:BA$10)>0,$E17*$H17,0) -> 0 | BD17: =IF(SUM(BC$10:BC$10)>0,$E17*$H17,0) -> 0 | BF17: =IF(SUM(BE$10:BE$10)>0,$E17*$H17,0) -> 0 | BH17: =IF(SUM(BG$10:BG$10)>0,$E17*$H17,0) -> 0 | BJ17: =IF(SUM(BI$10:BI$10)>0,$E17*$H17,0) -> 0 | BL17: =IF(SUM(BK$10:BK$10)>0,$E17*$H17,0) -> 0 | BN17: =IF(SUM(BM$10:BM$10)>0,$E17*$H17,0) -> 0 | BP17: =IF(SUM(BO$10:BO$10)>0,$E17*$H17,0) -> 0 | BR17: =IF(SUM(BQ$10:BQ$10)>0,$E17*$H17,0) -> 0 | BT17: =IF(SUM(BS$10:BS$10)>0,$E17*$H17,0) -> 0 | BV17: =IF(SUM(BU$10:BU$10)>0,$E17*$H17,0) -> 0 | BX17: =IF(SUM(BW$10:BW$10)>0,$E17*$H17,0) -> 0 | BZ17: =IF(SUM(BY$10:BY$10)>0,$E17*$H17,0) -> 0 | CB17: =IF(SUM(CA$10:CA$10)>0,$E17*$H17,0) -> 0 | CD17: =IF(SUM(CC$10:CC$10)>0,$E17*$H17,0) -> 0 | CF17: =IF(SUM(CE$10:CE$10)>0,$E17*$H17,0) -> 0 | CH17: =IF(SUM(CG$10:CG$10)>0,$E17*$H17,0) -> 0 | CJ17: =IF(SUM(CI$10:CI$10)>0,$E17*$H17,0) -> 0 | CL17: =IF(SUM(CK$10:CK$10)>0,$E17*$H17,0) -> 0 | CN17: =IF(SUM(CM$10:CM$10)>0,$E17*$H17,0) -> 0 | CP17: =IF(SUM(CO$10:CO$10)>0,$E17*$H17,0) -> 0 | CR17: =IF(SUM(CQ$10:CQ$10)>0,$E17*$H17,0) -> 0 | CT17: =IF(SUM(CS$10:CS$10)>0,$E17*$H17,0) -> 0 | CV17: =IF(SUM(CU$10:CU$10)>0,$E17*$H17,0) -> 0 | CX17: =IF(SUM(CW$10:CW$10)>0,$E17*$H17,0) -> 0 | CZ17: =IF(SUM(CY$10:CY$10)>0,$E17*$H17,0) -> 0 | DB17: =IF(SUM(DA$10:DA$10)>0,$E17*$H17,0) -> 0 | DD17: =IF(SUM(DC$10:DC$10)>0,$E17*$H17,0) -> 0 | DF17: =IF(SUM(DE$10:DE$10)>0,$E17*$H17,0) -> 0 | DH17: =IF(SUM(DG$10:DG$10)>0,$E17*$H17,0) -> 0 | DJ17: =IF(SUM(DI$10:DI$10)>0,$E17*$H17,0) -> 0 | DL17: =IF(SUM(DK$10:DK$10)>0,$E17*$H17,0) -> 0 | DN17: =IF(SUM(DM$10:DM$10)>0,$E17*$H17,0) -> 0 | DP17: =IF(SUM(DO$10:DO$10)>0,$E17*$H17,0) -> 0 | DR17: =IF(SUM(DQ$10:DQ$10)>0,$E17*$H17,0) -> 0 | DT17: =IF(SUM(DS$10:DS$10)>0,$E17*$H17,0) -> 0 | DV17: =IF(SUM(DU$10:DU$10)>0,$E17*$H17,0) -> 0 | DX17: =IF(SUM(DW$10:DW$10)>0,$E17*$H17,0) -> 0 | DZ17: =IF(SUM(DY$10:DY$10)>0,$E17*$H17,0) -> 0
D18: Camisa gola polo cor preta, 100% algodão (manga curta) | E18: 8 | F18: =H12+H13 -> 15 | G18: =F18*E18 -> 120 | H18: 58.95 | L18: =IF(SUM(K$12:K$14)>0,$E18*$H18,0) -> 0 | N18: =IF(SUM(M$12:M$14)>0,$E18*$H18,0) -> 0 | P18: =IF(SUM(O$12:O$14)>0,$E18*$H18,0) -> 0 | R18: =IF(SUM(Q$12:Q$14)>0,$E18*$H18,0) -> 0 | T18: =IF(SUM(S$12:S$14)>0,$E18*$H18,0) -> 0 | V18: =IF(SUM(U$12:U$14)>0,$E18*$H18,0) -> 0 | X18: =IF(SUM(W$12:W$14)>0,$E18*$H18,0) -> 471.6 | Z18: =IF(SUM(Y$12:Y$14)>0,$E18*$H18,0) -> 471.6 | AB18: =IF(SUM(AA$12:AA$14)>0,$E18*$H18,0) -> 0 | AD18: =IF(SUM(AC$12:AC$14)>0,$E18*$H18,0) -> 0 | AF18: =IF(SUM(AE$12:AE$14)>0,$E18*$H18,0) -> 0 | AH18: =IF(SUM(AG$12:AG$14)>0,$E18*$H18,0) -> 0 | AJ18: =IF(SUM(AI$12:AI$14)>0,$E18*$H18,0) -> 0 | AL18: =IF(SUM(AK$12:AK$14)>0,$E18*$H18,0) -> 0 | AN18: =IF(SUM(AM$12:AM$14)>0,$E18*$H18,0) -> 0 | AP18: =IF(SUM(AO$12:AO$14)>0,$E18*$H18,0) -> 0 | AR18: =IF(SUM(AQ$12:AQ$14)>0,$E18*$H18,0) -> 0 | AT18: =IF(SUM(AS$12:AS$14)>0,$E18*$H18,0) -> 0 | AV18: 0 | AX18: 0 | AZ18: 0 | BB18: 0 | BD18: 0 | BF18: 0 | BH18: 0 | BJ18: 0 | BL18: 0 | BN18: 0 | BP18: 0 | BR18: 0 | BT18: 0 | BV18: 0 | BX18: 0 | BZ18: 0 | CB18: 0 | CD18: 0 | CF18: 0 | CH18: 0 | CJ18: 0 | CL18: 0 | CN18: 0 | CP18: 0 | CR18: 0 | CT18: 0 | CV18: 0 | CX18: 0 | CZ18: 0 | DB18: 0 | DD18: 0 | DF18: 0 | DH18: 0 | DJ18: 0 | DL18: 0 | DN18: 0 | DP18: 0 | DR18: 0 | DT18: 0 | DV18: 0 | DX18: 0 | DZ18: 0
D19: Calça jeans azul escuro | E19: 4 | F19: =F18 -> 15 | G19: =F19*E19 -> 60 | H19: 85.31 | L19: 0 | N19: 0 | P19: 0 | R19: 0 | T19: 0 | V19: 0 | X19: =IF(SUM(W$12:W$14)>0,$E19*$H19,0) -> 341.24 | Z19: 341.24 | AB19: 0 | AD19: 0 | AF19: 0 | AH19: 0 | AJ19: 0 | AL19: 0 | AN19: 0 | AP19: 0 | AR19: 0 | AT19: 0 | AV19: 0 | AX19: 0 | AZ19: 0 | BB19: 0 | BD19: 0 | BF19: 0 | BH19: 0 | BJ19: 0 | BL19: 0 | BN19: 0 | BP19: 0 | BR19: 0 | BT19: 0 | BV19: 0 | BX19: 0 | BZ19: 0 | CB19: 0 | CD19: 0 | CF19: 0 | CH19: 0 | CJ19: 0 | CL19: 0 | CN19: 0 | CP19: 0 | CR19: 0 | CT19: 0 | CV19: 0 | CX19: 0 | CZ19: 0 | DB19: 0 | DD19: 0 | DF19: 0 | DH19: 0 | DJ19: 0 | DL19: 0 | DN19: 0 | DP19: 0 | DR19: 0 | DT19: 0 | DV19: 0 | DX19: 0 | DZ19: 0
D20: Meia social preta | E20: 10 | F20: =F19 -> 15 | G20: 150 | H20: 13.65 | L20: 0 | N20: 0 | P20: 0 | R20: 0 | T20: 0 | V20: 0 | X20: 136.5 | Z20: 136.5 | AB20: 0 | AD20: 0 | AF20: 0 | AH20: 0 | AJ20: 0 | AL20: 0 | AN20: 0 | AP20: 0 | AR20: 0 | AT20: 0 | AV20: 0 | AX20: 0 | AZ20: 0 | BB20: 0 | BD20: 0 | BF20: 0 | BH20: 0 | BJ20: 0 | BL20: 0 | BN20: 0 | BP20: 0 | BR20: 0 | BT20: 0 | BV20: 0 | BX20: 0 | BZ20: 0 | CB20: 0 | CD20: 0 | CF20: 0 | CH20: 0 | CJ20: 0 | CL20: 0 | CN20: 0 | CP20: 0 | CR20: 0 | CT20: 0 | CV20: 0 | CX20: 0 | CZ20: 0 | DB20: 0 | DD20: 0 | DF20: 0 | DH20: 0 | DJ20: 0 | DL20: 0 | DN20: 0 | DP20: 0 | DR20: 0 | DT20: 0 | DV20: 0 | DX20: 0 | DZ20: 0
D21: Cinto preto | E21: 2 | F21: 15 | G21: 30 | H21: 44.33 | L21: =IF(SUM(K$12:K$14)>0,$E21*$H21,0) -> 0 | N21: 0 | P21: 0 | R21: 0 | T21: 0 | V21: 0 | X21: 88.66 | Z21: 88.66 | AB21: 0 | AD21: 0 | AF21: 0 | AH21: 0 | AJ21: 0 | AL21: 0 | AN21: 0 | AP21: 0 | AR21: 0 | AT21: 0 | AV21: 0 | AX21: 0 | AZ21: 0 | BB21: 0 | BD21: 0 | BF21: 0 | BH21: 0 | BJ21: 0 | BL21: 0 | BN21: 0 | BP21: 0 | BR21: 0 | BT21: 0 | BV21: 0 | BX21: 0 | BZ21: 0 | CB21: 0 | CD21: 0 | CF21: 0 | CH21: 0 | CJ21: 0 | CL21: 0 | CN21: 0 | CP21: 0 | CR21: 0 | CT21: 0 | CV21: 0 | CX21: 0 | CZ21: 0 | DB21: 0 | DD21: 0 | DF21: 0 | DH21: 0 | DJ21: 0 | DL21: 0 | DN21: 0 | DP21: 0 | DR21: 0 | DT21: 0 | DV21: 0 | DX21: 0 | DZ21: 0
L22: =IF(SUM(K$12:K$14)>0,$E22*$H22,0) -> 0 | N22: 0 | P22: 0 | R22: 0 | T22: 0 | V22: 0 | X22: 0 | Z22: 0 | AB22: 0 | AD22: 0 | AF22: 0 | AH22: 0 | AJ22: 0 | AL22: 0 | AN22: 0 | AP22: 0 | AR22: 0 | AT22: 0 | AV22: 0 | AX22: 0 | AZ22: 0 | BB22: 0 | BD22: 0 | BF22: 0 | BH22: 0 | BJ22: 0 | BL22: 0 | BN22: 0 | BP22: 0 | BR22: 0 | BT22: 0 | BV22: 0 | BX22: 0 | BZ22: 0 | CB22: 0 | CD22: 0 | CF22: 0 | CH22: 0 | CJ22: 0 | CL22: 0 | CN22: 0 | CP22: 0 | CR22: 0 | CT22: 0 | CV22: 0 | CX22: 0 | CZ22: 0 | DB22: 0 | DD22: 0 | DF22: 0 | DH22: 0 | DJ22: 0 | DL22: 0 | DN22: 0 | DP22: 0 | DR22: 0 | DT22: 0 | DV22: 0 | DX22: 0 | DZ22: 0
C23: CATEGORIAS | H23: QUANTIDADE
D25: =HLOOKUP($C25,'Dados Gerais'!$D$5:$BK$10,6) ->  | H25: =HLOOKUP($C25,'Dados Gerais'!$D$5:$BK$14,10) ->  | K25: =IF($C25=K$6,1,0) -> 0 | M25: 0 | O25: 0 | Q25: 0 | S25: 0 | U25: 0 | W25: 0 | Y25: 0 | AA25: 0 | AC25: 0 | AE25: 0 | AG25: 0 | AI25: 0 | AK25: 0 | AM25: 0 | AO25: 0 | AQ25: 0 | AS25: 0 | AU25: 0 | AW25: 0 | AY25: 0 | BA25: 0 | BC25: 0 | BE25: 0 | BG25: 0 | BI25: 0 | BK25: 0 | BM25: 0 | BO25: 0 | BQ25: =IF($C25=BQ$6,1,0) -> 0 | BS25: =IF($C25=BS$6,1,0) -> 0 | BU25: =IF($C25=BU$6,1,0) -> 0 | BW25: =IF($C25=BW$6,1,0) -> 0 | BY25: =IF($C25=BY$6,1,0) -> 0 | CA25: =IF($C25=CA$6,1,0) -> 0 | CC25: =IF($C25=CC$6,1,0) -> 0 | CE25: =IF($C25=CE$6,1,0) -> 0 | CG25: =IF($C25=CG$6,1,0) -> 0 | CI25: =IF($C25=CI$6,1,0) -> 0 | CK25: =IF($C25=CK$6,1,0) -> 0 | CM25: =IF($C25=CM$6,1,0) -> 0 | CO25: =IF($C25=CO$6,1,0) -> 0 | CQ25: =IF($C25=CQ$6,1,0) -> 0 | CS25: =IF($C25=CS$6,1,0) -> 0 | CU25: =IF($C25=CU$6,1,0) -> 0 | CW25: =IF($C25=CW$6,1,0) -> 0 | CY25: =IF($C25=CY$6,1,0) -> 0 | DA25: =IF($C25=DA$6,1,0) -> 0 | DC25: =IF($C25=DC$6,1,0) -> 0 | DE25: =IF($C25=DE$6,1,0) -> 0 | DG25: =IF($C25=DG$6,1,0) -> 0 | DI25: =IF($C25=DI$6,1,0) -> 0 | DK25: =IF($C25=DK$6,1,0) -> 0 | DM25: =IF($C25=DM$6,1,0) -> 0 | DO25: =IF($C25=DO$6,1,0) -> 0 | DQ25: =IF($C25=DQ$6,1,0) -> 0 | DS25: =IF($C25=DS$6,1,0) -> 0 | DU25: =IF($C25=DU$6,1,0) -> 0 | DW25: =IF($C25=DW$6,1,0) -> 0 | DY25: =IF($C25=DY$6,1,0) -> 0
C28: ITEM | D28: DESCRIÇÃO | E28: QUANT ANUAL POR POSTO | F28: Nº DE POSTOS | G28: QUANT ANUAL TOTAL | H28: VALOR
BP29: =IF(SUM(BO$10:BO$10)>0,$E29*$H29,0) -> 0 | BR29: =IF(SUM(BQ$10:BQ$10)>0,$E29*$H29,0) -> 0 | BT29: =IF(SUM(BS$10:BS$10)>0,$E29*$H29,0) -> 0 | BV29: =IF(SUM(BU$10:BU$10)>0,$E29*$H29,0) -> 0 | BX29: =IF(SUM(BW$10:BW$10)>0,$E29*$H29,0) -> 0 | BZ29: =IF(SUM(BY$10:BY$10)>0,$E29*$H29,0) -> 0 | CB29: =IF(SUM(CA$10:CA$10)>0,$E29*$H29,0) -> 0 | CD29: =IF(SUM(CC$10:CC$10)>0,$E29*$H29,0) -> 0 | CF29: =IF(SUM(CE$10:CE$10)>0,$E29*$H29,0) -> 0 | CH29: =IF(SUM(CG$10:CG$10)>0,$E29*$H29,0) -> 0 | CJ29: =IF(SUM(CI$10:CI$10)>0,$E29*$H29,0) -> 0 | CL29: =IF(SUM(CK$10:CK$10)>0,$E29*$H29,0) -> 0 | CN29: =IF(SUM(CM$10:CM$10)>0,$E29*$H29,0) -> 0 | CP29: =IF(SUM(CO$10:CO$10)>0,$E29*$H29,0) -> 0 | CR29: =IF(SUM(CQ$10:CQ$10)>0,$E29*$H29,0) -> 0 | CT29: =IF(SUM(CS$10:CS$10)>0,$E29*$H29,0) -> 0 | CV29: =IF(SUM(CU$10:CU$10)>0,$E29*$H29,0) -> 0 | CX29: =IF(SUM(CW$10:CW$10)>0,$E29*$H29,0) -> 0 | CZ29: =IF(SUM(CY$10:CY$10)>0,$E29*$H29,0) -> 0 | DB29: =IF(SUM(DA$10:DA$10)>0,$E29*$H29,0) -> 0 | DD29: =IF(SUM(DC$10:DC$10)>0,$E29*$H29,0) -> 0 | DF29: =IF(SUM(DE$10:DE$10)>0,$E29*$H29,0) -> 0 | DH29: =IF(SUM(DG$10:DG$10)>0,$E29*$H29,0) -> 0 | DJ29: =IF(SUM(DI$10:DI$10)>0,$E29*$H29,0) -> 0 | DL29: =IF(SUM(DK$10:DK$10)>0,$E29*$H29,0) -> 0 | DN29: =IF(SUM(DM$10:DM$10)>0,$E29*$H29,0) -> 0 | DP29: =IF(SUM(DO$10:DO$10)>0,$E29*$H29,0) -> 0 | DR29: =IF(SUM(DQ$10:DQ$10)>0,$E29*$H29,0) -> 0 | DT29: =IF(SUM(DS$10:DS$10)>0,$E29*$H29,0) -> 0 | DV29: =IF(SUM(DU$10:DU$10)>0,$E29*$H29,0) -> 0 | DX29: =IF(SUM(DW$10:DW$10)>0,$E29*$H29,0) -> 0 | DZ29: =IF(SUM(DY$10:DY$10)>0,$E29*$H29,0) -> 0
L30: =IF(SUM(K$24:K$27)>0,$E30*$H30,0) -> 0 | N30: =IF(SUM(M$24:M$27)>0,$E30*$H30,0) -> 0 | P30: =IF(SUM(O$24:O$27)>0,$E30*$H30,0) -> 0 | R30: =IF(SUM(Q$24:Q$27)>0,$E30*$H30,0) -> 0 | T30: =IF(SUM(S$24:S$27)>0,$E30*$H30,0) -> 0 | V30: =IF(SUM(U$24:U$27)>0,$E30*$H30,0) -> 0 | X30: =IF(SUM(W$24:W$27)>0,$E30*$H30,0) -> 0 | Z30: =IF(SUM(Y$24:Y$27)>0,$E30*$H30,0) -> 0 | AB30: =IF(SUM(AA$24:AA$27)>0,$E30*$H30,0) -> 0 | AD30: =IF(SUM(AC$24:AC$27)>0,$E30*$H30,0) -> 0 | AF30: =IF(SUM(AE$24:AE$27)>0,$E30*$H30,0) -> 0 | AH30: =IF(SUM(AG$24:AG$27)>0,$E30*$H30,0) -> 0 | AJ30: =IF(SUM(AI$24:AI$27)>0,$E30*$H30,0) -> 0 | AL30: =IF(SUM(AK$24:AK$27)>0,$E30*$H30,0) -> 0 | AN30: =IF(SUM(AM$24:AM$27)>0,$E30*$H30,0) -> 0 | AP30: =IF(SUM(AO$24:AO$27)>0,$E30*$H30,0) -> 0 | AR30: =IF(SUM(AQ$24:AQ$27)>0,$E30*$H30,0) -> 0 | AT30: =IF(SUM(AS$24:AS$27)>0,$E30*$H30,0) -> 0 | AV30: =IF(SUM(AU$24:AU$27)>0,$E30*$H30,0) -> 0 | AX30: =IF(SUM(AW$24:AW$27)>0,$E30*$H30,0) -> 0 | AZ30: =IF(SUM(AY$24:AY$27)>0,$E30*$H30,0) -> 0 | BB30: =IF(SUM(BA$24:BA$27)>0,$E30*$H30,0) -> 0 | BD30: =IF(SUM(BC$24:BC$27)>0,$E30*$H30,0) -> 0 | BF30: =IF(SUM(BE$24:BE$27)>0,$E30*$H30,0) -> 0 | BH30: =IF(SUM(BG$24:BG$27)>0,$E30*$H30,0) -> 0 | BJ30: =IF(SUM(BI$24:BI$27)>0,$E30*$H30,0) -> 0 | BL30: =IF(SUM(BK$24:BK$27)>0,$E30*$H30,0) -> 0 | BN30: =IF(SUM(BM$24:BM$27)>0,$E30*$H30,0) -> 0 | BP30: 0 | BR30: 0 | BT30: 0 | BV30: 0 | BX30: 0 | BZ30: 0 | CB30: 0 | CD30: 0 | CF30: 0 | CH30: 0 | CJ30: 0 | CL30: 0 | CN30: 0 | CP30: 0 | CR30: 0 | CT30: 0 | CV30: 0 | CX30: 0 | CZ30: 0 | DB30: 0 | DD30: 0 | DF30: 0 | DH30: 0 | DJ30: 0 | DL30: 0 | DN30: 0 | DP30: 0 | DR30: 0 | DT30: 0 | DV30: 0 | DX30: 0 | DZ30: 0
L31: =IF(SUM(K$24:K$27)>0,$E31*$H31,0) -> 0 | N31: =IF(SUM(M$24:M$27)>0,$E31*$H31,0) -> 0 | P31: =IF(SUM(O$24:O$27)>0,$E31*$H31,0) -> 0 | R31: =IF(SUM(Q$24:Q$27)>0,$E31*$H31,0) -> 0 | T31: =IF(SUM(S$24:S$27)>0,$E31*$H31,0) -> 0 | V31: =IF(SUM(U$24:U$27)>0,$E31*$H31,0) -> 0 | X31: =IF(SUM(W$24:W$27)>0,$E31*$H31,0) -> 0 | Z31: =IF(SUM(Y$24:Y$27)>0,$E31*$H31,0) -> 0 | AB31: =IF(SUM(AA$24:AA$27)>0,$E31*$H31,0) -> 0 | AD31: =IF(SUM(AC$24:AC$27)>0,$E31*$H31,0) -> 0 | AF31: =IF(SUM(AE$24:AE$27)>0,$E31*$H31,0) -> 0 | AH31: =IF(SUM(AG$24:AG$27)>0,$E31*$H31,0) -> 0 | AJ31: =IF(SUM(AI$24:AI$27)>0,$E31*$H31,0) -> 0 | AL31: =IF(SUM(AK$24:AK$27)>0,$E31*$H31,0) -> 0 | AN31: =IF(SUM(AM$24:AM$27)>0,$E31*$H31,0) -> 0 | AP31: =IF(SUM(AO$24:AO$27)>0,$E31*$H31,0) -> 0 | AR31: =IF(SUM(AQ$24:AQ$27)>0,$E31*$H31,0) -> 0 | AT31: =IF(SUM(AS$24:AS$27)>0,$E31*$H31,0) -> 0 | AV31: =IF(SUM(AU$24:AU$27)>0,$E31*$H31,0) -> 0 | AX31: 0 | AZ31: 0 | BB31: 0 | BD31: 0 | BF31: 0 | BH31: 0 | BJ31: 0 | BL31: 0 | BN31: 0 | BP31: 0 | BR31: 0 | BT31: 0 | BV31: 0 | BX31: 0 | BZ31: 0 | CB31: 0 | CD31: 0 | CF31: 0 | CH31: 0 | CJ31: 0 | CL31: 0 | CN31: 0 | CP31: 0 | CR31: 0 | CT31: 0 | CV31: 0 | CX31: 0 | CZ31: 0 | DB31: 0 | DD31: 0 | DF31: 0 | DH31: 0 | DJ31: 0 | DL31: 0 | DN31: 0 | DP31: 0 | DR31: 0 | DT31: 0 | DV31: 0 | DX31: 0 | DZ31: 0
L32: 0 | N32: =IF(SUM(M$24:M$27)>0,$E32*$H32,0) -> 0 | P32: =IF(SUM(O$24:O$27)>0,$E32*$H32,0) -> 0 | R32: =IF(SUM(Q$24:Q$27)>0,$E32*$H32,0) -> 0 | T32: =IF(SUM(S$24:S$27)>0,$E32*$H32,0) -> 0 | V32: =IF(SUM(U$24:U$27)>0,$E32*$H32,0) -> 0 | X32: =IF(SUM(W$24:W$27)>0,$E32*$H32,0) -> 0 | Z32: =IF(SUM(Y$24:Y$27)>0,$E32*$H32,0) -> 0 | AB32: =IF(SUM(AA$24:AA$27)>0,$E32*$H32,0) -> 0 | AD32: =IF(SUM(AC$24:AC$27)>0,$E32*$H32,0) -> 0 | AF32: =IF(SUM(AE$24:AE$27)>0,$E32*$H32,0) -> 0 | AH32: =IF(SUM(AG$24:AG$27)>0,$E32*$H32,0) -> 0 | AJ32: =IF(SUM(AI$24:AI$27)>0,$E32*$H32,0) -> 0 | AL32: =IF(SUM(AK$24:AK$27)>0,$E32*$H32,0) -> 0 | AN32: =IF(SUM(AM$24:AM$27)>0,$E32*$H32,0) -> 0 | AP32: =IF(SUM(AO$24:AO$27)>0,$E32*$H32,0) -> 0 | AR32: =IF(SUM(AQ$24:AQ$27)>0,$E32*$H32,0) -> 0 | AT32: =IF(SUM(AS$24:AS$27)>0,$E32*$H32,0) -> 0 | AV32: =IF(SUM(AU$24:AU$27)>0,$E32*$H32,0) -> 0 | AX32: 0 | AZ32: 0 | BB32: 0 | BD32: 0 | BF32: 0 | BH32: 0 | BJ32: 0 | BL32: 0 | BN32: 0 | BP32: 0 | BR32: 0 | BT32: 0 | BV32: 0 | BX32: 0 | BZ32: 0 | CB32: 0 | CD32: 0 | CF32: 0 | CH32: 0 | CJ32: 0 | CL32: 0 | CN32: 0 | CP32: 0 | CR32: 0 | CT32: 0 | CV32: 0 | CX32: 0 | CZ32: 0 | DB32: 0 | DD32: 0 | DF32: 0 | DH32: 0 | DJ32: 0 | DL32: 0 | DN32: 0 | DP32: 0 | DR32: 0 | DT32: 0 | DV32: 0 | DX32: 0 | DZ32: 0
L33: 0 | N33: =IF(SUM(M$24:M$27)>0,$E33*$H33,0) -> 0 | P33: =IF(SUM(O$24:O$27)>0,$E33*$H33,0) -> 0 | R33: =IF(SUM(Q$24:Q$27)>0,$E33*$H33,0) -> 0 | T33: =IF(SUM(S$24:S$27)>0,$E33*$H33,0) -> 0 | V33: =IF(SUM(U$24:U$27)>0,$E33*$H33,0) -> 0 | X33: =IF(SUM(W$24:W$27)>0,$E33*$H33,0) -> 0 | Z33: =IF(SUM(Y$24:Y$27)>0,$E33*$H33,0) -> 0 | AB33: =IF(SUM(AA$24:AA$27)>0,$E33*$H33,0) -> 0 | AD33: =IF(SUM(AC$24:AC$27)>0,$E33*$H33,0) -> 0 | AF33: =IF(SUM(AE$24:AE$27)>0,$E33*$H33,0) -> 0 | AH33: =IF(SUM(AG$24:AG$27)>0,$E33*$H33,0) -> 0 | AJ33: =IF(SUM(AI$24:AI$27)>0,$E33*$H33,0) -> 0 | AL33: =IF(SUM(AK$24:AK$27)>0,$E33*$H33,0) -> 0 | AN33: =IF(SUM(AM$24:AM$27)>0,$E33*$H33,0) -> 0 | AP33: =IF(SUM(AO$24:AO$27)>0,$E33*$H33,0) -> 0 | AR33: =IF(SUM(AQ$24:AQ$27)>0,$E33*$H33,0) -> 0 | AT33: =IF(SUM(AS$24:AS$27)>0,$E33*$H33,0) -> 0 | AV33: 0 | AX33: 0 | AZ33: 0 | BB33: 0 | BD33: 0 | BF33: 0 | BH33: 0 | BJ33: 0 | BL33: 0 | BN33: 0 | BP33: 0 | BR33: 0 | BT33: 0 | BV33: 0 | BX33: 0 | BZ33: 0 | CB33: 0 | CD33: 0 | CF33: 0 | CH33: 0 | CJ33: 0 | CL33: 0 | CN33: 0 | CP33: 0 | CR33: 0 | CT33: 0 | CV33: 0 | CX33: 0 | CZ33: 0 | DB33: 0 | DD33: 0 | DF33: 0 | DH33: 0 | DJ33: 0 | DL33: 0 | DN33: 0 | DP33: 0 | DR33: 0 | DT33: 0 | DV33: 0 | DX33: 0 | DZ33: 0
L34: 0 | N34: =IF(SUM(M$24:M$27)>0,$E34*$H34,0) -> 0 | P34: =IF(SUM(O$24:O$27)>0,$E34*$H34,0) -> 0 | R34: =IF(SUM(Q$24:Q$27)>0,$E34*$H34,0) -> 0 | T34: =IF(SUM(S$24:S$27)>0,$E34*$H34,0) -> 0 | V34: =IF(SUM(U$24:U$27)>0,$E34*$H34,0) -> 0 | X34: =IF(SUM(W$24:W$27)>0,$E34*$H34,0) -> 0 | Z34: =IF(SUM(Y$24:Y$27)>0,$E34*$H34,0) -> 0 | AB34: =IF(SUM(AA$24:AA$27)>0,$E34*$H34,0) -> 0 | AD34: =IF(SUM(AC$24:AC$27)>0,$E34*$H34,0) -> 0 | AF34: =IF(SUM(AE$24:AE$27)>0,$E34*$H34,0) -> 0 | AH34: =IF(SUM(AG$24:AG$27)>0,$E34*$H34,0) -> 0 | AJ34: =IF(SUM(AI$24:AI$27)>0,$E34*$H34,0) -> 0 | AL34: =IF(SUM(AK$24:AK$27)>0,$E34*$H34,0) -> 0 | AN34: =IF(SUM(AM$24:AM$27)>0,$E34*$H34,0) -> 0 | AP34: =IF(SUM(AO$24:AO$27)>0,$E34*$H34,0) -> 0 | AR34: =IF(SUM(AQ$24:AQ$27)>0,$E34*$H34,0) -> 0 | AT34: =IF(SUM(AS$24:AS$27)>0,$E34*$H34,0) -> 0 | AV34: 0 | AX34: 0 | AZ34: 0 | BB34: 0 | BD34: 0 | BF34: 0 | BH34: 0 | BJ34: 0 | BL34: 0 | BN34: 0 | BP34: 0 | BR34: 0 | BT34: 0 | BV34: 0 | BX34: 0 | BZ34: 0 | CB34: 0 | CD34: 0 | CF34: 0 | CH34: 0 | CJ34: 0 | CL34: 0 | CN34: 0 | CP34: 0 | CR34: 0 | CT34: 0 | CV34: 0 | CX34: 0 | CZ34: 0 | DB34: 0 | DD34: 0 | DF34: 0 | DH34: 0 | DJ34: 0 | DL34: 0 | DN34: 0 | DP34: 0 | DR34: 0 | DT34: 0 | DV34: 0 | DX34: 0 | DZ34: 0
C35: CATEGORIAS | H35: QUANTIDADE
D37: =HLOOKUP($C37,'Dados Gerais'!$D$5:$BK$10,6) ->  | H37: =HLOOKUP($C37,'Dados Gerais'!$D$5:$BK$14,10) ->  | K37: =IF($C37=K$6,1,0) -> 0 | M37: 0 | O37: 0 | Q37: 0 | S37: 0 | U37: 0 | W37: 0 | Y37: 0 | AA37: 0 | AC37: 0 | AE37: 0 | AG37: 0 | AI37: 0 | AK37: 0 | AM37: 0 | AO37: 0 | AQ37: 0 | AS37: 0 | AU37: 0 | AW37: 0 | AY37: 0 | BA37: 0 | BC37: 0 | BE37: 0 | BG37: 0 | BI37: 0 | BK37: =IF($C37=BK$6,1,0) -> 0 | BM37: =IF($C37=BM$6,1,0) -> 0 | BO37: =IF($C37=BO$6,1,0) -> 0 | BQ37: =IF($C37=BQ$6,1,0) -> 0 | BS37: =IF($C37=BS$6,1,0) -> 0 | BU37: =IF($C37=BU$6,1,0) -> 0 | BW37: =IF($C37=BW$6,1,0) -> 0 | BY37: =IF($C37=BY$6,1,0) -> 0 | CA37: =IF($C37=CA$6,1,0) -> 0 | CC37: =IF($C37=CC$6,1,0) -> 0 | CE37: =IF($C37=CE$6,1,0) -> 0 | CG37: =IF($C37=CG$6,1,0) -> 0 | CI37: =IF($C37=CI$6,1,0) -> 0 | CK37: =IF($C37=CK$6,1,0) -> 0 | CM37: =IF($C37=CM$6,1,0) -> 0 | CO37: =IF($C37=CO$6,1,0) -> 0 | CQ37: =IF($C37=CQ$6,1,0) -> 0 | CS37: =IF($C37=CS$6,1,0) -> 0 | CU37: =IF($C37=CU$6,1,0) -> 0 | CW37: =IF($C37=CW$6,1,0) -> 0 | CY37: =IF($C37=CY$6,1,0) -> 0 | DA37: =IF($C37=DA$6,1,0) -> 0 | DC37: =IF($C37=DC$6,1,0) -> 0 | DE37: =IF($C37=DE$6,1,0) -> 0 | DG37: =IF($C37=DG$6,1,0) -> 0 | DI37: =IF($C37=DI$6,1,0) -> 0 | DK37: =IF($C37=DK$6,1,0) -> 0 | DM37: =IF($C37=DM$6,1,0) -> 0 | DO37: =IF($C37=DO$6,1,0) -> 0 | DQ37: =IF($C37=DQ$6,1,0) -> 0 | DS37: =IF($C37=DS$6,1,0) -> 0 | DU37: =IF($C37=DU$6,1,0) -> 0 | DW37: =IF($C37=DW$6,1,0) -> 0 | DY37: =IF($C37=DY$6,1,0) -> 0
C40: ITEM | D40: DESCRIÇÃO | E40: QUANT ANUAL POR POSTO | F40: Nº DE POSTOS | G40: QUANT ANUAL TOTAL | H40: VALOR
BJ41: =IF(SUM(BI$10:BI$10)>0,$E41*$H41,0) -> 0 | BL41: =IF(SUM(BK$10:BK$10)>0,$E41*$H41,0) -> 0 | BN41: =IF(SUM(BM$10:BM$10)>0,$E41*$H41,0) -> 0 | BP41: =IF(SUM(BO$10:BO$10)>0,$E41*$H41,0) -> 0 | BR41: =IF(SUM(BQ$10:BQ$10)>0,$E41*$H41,0) -> 0 | BT41: =IF(SUM(BS$10:BS$10)>0,$E41*$H41,0) -> 0 | BV41: =IF(SUM(BU$10:BU$10)>0,$E41*$H41,0) -> 0 | BX41: =IF(SUM(BW$10:BW$10)>0,$E41*$H41,0) -> 0 | BZ41: =IF(SUM(BY$10:BY$10)>0,$E41*$H41,0) -> 0 | CB41: =IF(SUM(CA$10:CA$10)>0,$E41*$H41,0) -> 0 | CD41: =IF(SUM(CC$10:CC$10)>0,$E41*$H41,0) -> 0 | CF41: =IF(SUM(CE$10:CE$10)>0,$E41*$H41,0) -> 0 | CH41: =IF(SUM(CG$10:CG$10)>0,$E41*$H41,0) -> 0 | CJ41: =IF(SUM(CI$10:CI$10)>0,$E41*$H41,0) -> 0 | CL41: =IF(SUM(CK$10:CK$10)>0,$E41*$H41,0) -> 0 | CN41: =IF(SUM(CM$10:CM$10)>0,$E41*$H41,0) -> 0 | CP41: =IF(SUM(CO$10:CO$10)>0,$E41*$H41,0) -> 0 | CR41: =IF(SUM(CQ$10:CQ$10)>0,$E41*$H41,0) -> 0 | CT41: =IF(SUM(CS$10:CS$10)>0,$E41*$H41,0) -> 0 | CV41: =IF(SUM(CU$10:CU$10)>0,$E41*$H41,0) -> 0 | CX41: =IF(SUM(CW$10:CW$10)>0,$E41*$H41,0) -> 0 | CZ41: =IF(SUM(CY$10:CY$10)>0,$E41*$H41,0) -> 0 | DB41: =IF(SUM(DA$10:DA$10)>0,$E41*$H41,0) -> 0 | DD41: =IF(SUM(DC$10:DC$10)>0,$E41*$H41,0) -> 0 | DF41: =IF(SUM(DE$10:DE$10)>0,$E41*$H41,0) -> 0 | DH41: =IF(SUM(DG$10:DG$10)>0,$E41*$H41,0) -> 0 | DJ41: =IF(SUM(DI$10:DI$10)>0,$E41*$H41,0) -> 0 | DL41: =IF(SUM(DK$10:DK$10)>0,$E41*$H41,0) -> 0 | DN41: =IF(SUM(DM$10:DM$10)>0,$E41*$H41,0) -> 0 | DP41: =IF(SUM(DO$10:DO$10)>0,$E41*$H41,0) -> 0 | DR41: =IF(SUM(DQ$10:DQ$10)>0,$E41*$H41,0) -> 0 | DT41: =IF(SUM(DS$10:DS$10)>0,$E41*$H41,0) -> 0 | DV41: =IF(SUM(DU$10:DU$10)>0,$E41*$H41,0) -> 0 | DX41: =IF(SUM(DW$10:DW$10)>0,$E41*$H41,0) -> 0 | DZ41: =IF(SUM(DY$10:DY$10)>0,$E41*$H41,0) -> 0
F42: =H37 ->  | G42: =F42*E42 ->  | L42: =IF(SUM(K$36:K$38)>0,$E42*$H42,0) -> 0 | N42: =IF(SUM(M$36:M$38)>0,$E42*$H42,0) -> 0 | P42: =IF(SUM(O$36:O$38)>0,$E42*$H42,0) -> 0 | R42: =IF(SUM(Q$36:Q$38)>0,$E42*$H42,0) -> 0 | T42: =IF(SUM(S$36:S$38)>0,$E42*$H42,0) -> 0 | V42: =IF(SUM(U$36:U$38)>0,$E42*$H42,0) -> 0 | X42: =IF(SUM(W$36:W$38)>0,$E42*$H42,0) -> 0 | Z42: =IF(SUM(Y$36:Y$38)>0,$E42*$H42,0) -> 0 | AB42: =IF(SUM(AA$36:AA$38)>0,$E42*$H42,0) -> 0 | AD42: =IF(SUM(AC$36:AC$38)>0,$E42*$H42,0) -> 0 | AF42: =IF(SUM(AE$36:AE$38)>0,$E42*$H42,0) -> 0 | AH42: =IF(SUM(AG$36:AG$38)>0,$E42*$H42,0) -> 0 | AJ42: =IF(SUM(AI$36:AI$38)>0,$E42*$H42,0) -> 0 | AL42: =IF(SUM(AK$36:AK$38)>0,$E42*$H42,0) -> 0 | AN42: =IF(SUM(AM$36:AM$38)>0,$E42*$H42,0) -> 0 | AP42: =IF(SUM(AO$36:AO$38)>0,$E42*$H42,0) -> 0 | AR42: =IF(SUM(AQ$36:AQ$38)>0,$E42*$H42,0) -> 0 | AT42: =IF(SUM(AS$36:AS$38)>0,$E42*$H42,0) -> 0 | AV42: =IF(SUM(AU$36:AU$38)>0,$E42*$H42,0) -> 0 | AX42: =IF(SUM(AW$36:AW$38)>0,$E42*$H42,0) -> 0 | AZ42: =IF(SUM(AY$36:AY$38)>0,$E42*$H42,0) -> 0 | BB42: =IF(SUM(BA$36:BA$38)>0,$E42*$H42,0) -> 0 | BD42: =IF(SUM(BC$36:BC$38)>0,$E42*$H42,0) -> 0 | BF42: =IF(SUM(BE$36:BE$38)>0,$E42*$H42,0) -> 0 | BH42: =IF(SUM(BG$36:BG$38)>0,$E42*$H42,0) -> 0 | BJ42: 0 | BL42: 0 | BN42: 0 | BP42: 0 | BR42: 0 | BT42: 0 | BV42: 0 | BX42: 0 | BZ42: 0 | CB42: 0 | CD42: 0 | CF42: 0 | CH42: 0 | CJ42: 0 | CL42: 0 | CN42: 0 | CP42: 0 | CR42: 0 | CT42: 0 | CV42: 0 | CX42: 0 | CZ42: 0 | DB42: 0 | DD42: 0 | DF42: 0 | DH42: 0 | DJ42: 0 | DL42: 0 | DN42: 0 | DP42: 0 | DR42: 0 | DT42: 0 | DV42: 0 | DX42: 0 | DZ42: 0
F43: =F42 ->  | L43: =IF(SUM(K$36:K$38)>0,$E43*$H43,0) -> 0 | N43: =IF(SUM(M$36:M$38)>0,$E43*$H43,0) -> 0 | P43: =IF(SUM(O$36:O$38)>0,$E43*$H43,0) -> 0 | R43: =IF(SUM(Q$36:Q$38)>0,$E43*$H43,0) -> 0 | T43: =IF(SUM(S$36:S$38)>0,$E43*$H43,0) -> 0 | V43: =IF(SUM(U$36:U$38)>0,$E43*$H43,0) -> 0 | X43: =IF(SUM(W$36:W$38)>0,$E43*$H43,0) -> 0 | Z43: =IF(SUM(Y$36:Y$38)>0,$E43*$H43,0) -> 0 | AB43: =IF(SUM(AA$36:AA$38)>0,$E43*$H43,0) -> 0 | AD43: =IF(SUM(AC$36:AC$38)>0,$E43*$H43,0) -> 0 | AF43: =IF(SUM(AE$36:AE$38)>0,$E43*$H43,0) -> 0 | AH43: =IF(SUM(AG$36:AG$38)>0,$E43*$H43,0) -> 0 | AJ43: =IF(SUM(AI$36:AI$38)>0,$E43*$H43,0) -> 0 | AL43: =IF(SUM(AK$36:AK$38)>0,$E43*$H43,0) -> 0 | AN43: =IF(SUM(AM$36:AM$38)>0,$E43*$H43,0) -> 0 | AP43: =IF(SUM(AO$36:AO$38)>0,$E43*$H43,0) -> 0 | AR43: =IF(SUM(AQ$36:AQ$38)>0,$E43*$H43,0) -> 0 | AT43: =IF(SUM(AS$36:AS$38)>0,$E43*$H43,0) -> 0 | AV43: =IF(SUM(AU$36:AU$38)>0,$E43*$H43,0) -> 0 | AX43: 0 | AZ43: 0 | BB43: 0 | BD43: 0 | BF43: 0 | BH43: 0 | BJ43: 0 | BL43: 0 | BN43: 0 | BP43: 0 | BR43: 0 | BT43: 0 | BV43: 0 | BX43: 0 | BZ43: 0 | CB43: 0 | CD43: 0 | CF43: 0 | CH43: 0 | CJ43: 0 | CL43: 0 | CN43: 0 | CP43: 0 | CR43: 0 | CT43: 0 | CV43: 0 | CX43: 0 | CZ43: 0 | DB43: 0 | DD43: 0 | DF43: 0 | DH43: 0 | DJ43: 0 | DL43: 0 | DN43: 0 | DP43: 0 | DR43: 0 | DT43: 0 | DV43: 0 | DX43: 0 | DZ43: 0
F44: =F43 ->  | L44: 0 | N44: =IF(SUM(M$36:M$38)>0,$E44*$H44,0) -> 0 | P44: =IF(SUM(O$36:O$38)>0,$E44*$H44,0) -> 0 | R44: =IF(SUM(Q$36:Q$38)>0,$E44*$H44,0) -> 0 | T44: =IF(SUM(S$36:S$38)>0,$E44*$H44,0) -> 0 | V44: =IF(SUM(U$36:U$38)>0,$E44*$H44,0) -> 0 | X44: =IF(SUM(W$36:W$38)>0,$E44*$H44,0) -> 0 | Z44: =IF(SUM(Y$36:Y$38)>0,$E44*$H44,0) -> 0 | AB44: =IF(SUM(AA$36:AA$38)>0,$E44*$H44,0) -> 0 | AD44: =IF(SUM(AC$36:AC$38)>0,$E44*$H44,0) -> 0 | AF44: =IF(SUM(AE$36:AE$38)>0,$E44*$H44,0) -> 0 | AH44: =IF(SUM(AG$36:AG$38)>0,$E44*$H44,0) -> 0 | AJ44: =IF(SUM(AI$36:AI$38)>0,$E44*$H44,0) -> 0 | AL44: =IF(SUM(AK$36:AK$38)>0,$E44*$H44,0) -> 0 | AN44: =IF(SUM(AM$36:AM$38)>0,$E44*$H44,0) -> 0 | AP44: =IF(SUM(AO$36:AO$38)>0,$E44*$H44,0) -> 0 | AR44: =IF(SUM(AQ$36:AQ$38)>0,$E44*$H44,0) -> 0 | AT44: =IF(SUM(AS$36:AS$38)>0,$E44*$H44,0) -> 0 | AV44: =IF(SUM(AU$36:AU$38)>0,$E44*$H44,0) -> 0 | AX44: 0 | AZ44: 0 | BB44: 0 | BD44: 0 | BF44: 0 | BH44: 0 | BJ44: 0 | BL44: 0 | BN44: 0 | BP44: 0 | BR44: 0 | BT44: 0 | BV44: 0 | BX44: 0 | BZ44: 0 | CB44: 0 | CD44: 0 | CF44: 0 | CH44: 0 | CJ44: 0 | CL44: 0 | CN44: 0 | CP44: 0 | CR44: 0 | CT44: 0 | CV44: 0 | CX44: 0 | CZ44: 0 | DB44: 0 | DD44: 0 | DF44: 0 | DH44: 0 | DJ44: 0 | DL44: 0 | DN44: 0 | DP44: 0 | DR44: 0 | DT44: 0 | DV44: 0 | DX44: 0 | DZ44: 0
L45: 0 | N45: =IF(SUM(M$36:M$38)>0,$E45*$H45,0) -> 0 | P45: =IF(SUM(O$36:O$38)>0,$E45*$H45,0) -> 0 | R45: =IF(SUM(Q$36:Q$38)>0,$E45*$H45,0) -> 0 | T45: =IF(SUM(S$36:S$38)>0,$E45*$H45,0) -> 0 | V45: =IF(SUM(U$36:U$38)>0,$E45*$H45,0) -> 0 | X45: =IF(SUM(W$36:W$38)>0,$E45*$H45,0) -> 0 | Z45: =IF(SUM(Y$36:Y$38)>0,$E45*$H45,0) -> 0 | AB45: =IF(SUM(AA$36:AA$38)>0,$E45*$H45,0) -> 0 | AD45: =IF(SUM(AC$36:AC$38)>0,$E45*$H45,0) -> 0 | AF45: =IF(SUM(AE$36:AE$38)>0,$E45*$H45,0) -> 0 | AH45: =IF(SUM(AG$36:AG$38)>0,$E45*$H45,0) -> 0 | AJ45: =IF(SUM(AI$36:AI$38)>0,$E45*$H45,0) -> 0 | AL45: =IF(SUM(AK$36:AK$38)>0,$E45*$H45,0) -> 0 | AN45: =IF(SUM(AM$36:AM$38)>0,$E45*$H45,0) -> 0 | AP45: =IF(SUM(AO$36:AO$38)>0,$E45*$H45,0) -> 0 | AR45: =IF(SUM(AQ$36:AQ$38)>0,$E45*$H45,0) -> 0 | AT45: =IF(SUM(AS$36:AS$38)>0,$E45*$H45,0) -> 0 | AV45: 0 | AX45: 0 | AZ45: 0 | BB45: 0 | BD45: 0 | BF45: 0 | BH45: 0 | BJ45: 0 | BL45: 0 | BN45: 0 | BP45: 0 | BR45: 0 | BT45: 0 | BV45: 0 | BX45: 0 | BZ45: 0 | CB45: 0 | CD45: 0 | CF45: 0 | CH45: 0 | CJ45: 0 | CL45: 0 | CN45: 0 | CP45: 0 | CR45: 0 | CT45: 0 | CV45: 0 | CX45: 0 | CZ45: 0 | DB45: 0 | DD45: 0 | DF45: 0 | DH45: 0 | DJ45: 0 | DL45: 0 | DN45: 0 | DP45: 0 | DR45: 0 | DT45: 0 | DV45: 0 | DX45: 0 | DZ45: 0
L46: 0 | N46: =IF(SUM(M$36:M$38)>0,$E46*$H46,0) -> 0 | P46: =IF(SUM(O$36:O$38)>0,$E46*$H46,0) -> 0 | R46: =IF(SUM(Q$36:Q$38)>0,$E46*$H46,0) -> 0 | T46: =IF(SUM(S$36:S$38)>0,$E46*$H46,0) -> 0 | V46: =IF(SUM(U$36:U$38)>0,$E46*$H46,0) -> 0 | X46: =IF(SUM(W$36:W$38)>0,$E46*$H46,0) -> 0 | Z46: =IF(SUM(Y$36:Y$38)>0,$E46*$H46,0) -> 0 | AB46: =IF(SUM(AA$36:AA$38)>0,$E46*$H46,0) -> 0 | AD46: =IF(SUM(AC$36:AC$38)>0,$E46*$H46,0) -> 0 | AF46: =IF(SUM(AE$36:AE$38)>0,$E46*$H46,0) -> 0 | AH46: =IF(SUM(AG$36:AG$38)>0,$E46*$H46,0) -> 0 | AJ46: =IF(SUM(AI$36:AI$38)>0,$E46*$H46,0) -> 0 | AL46: =IF(SUM(AK$36:AK$38)>0,$E46*$H46,0) -> 0 | AN46: =IF(SUM(AM$36:AM$38)>0,$E46*$H46,0) -> 0 | AP46: =IF(SUM(AO$36:AO$38)>0,$E46*$H46,0) -> 0 | AR46: =IF(SUM(AQ$36:AQ$38)>0,$E46*$H46,0) -> 0 | AT46: =IF(SUM(AS$36:AS$38)>0,$E46*$H46,0) -> 0 | AV46: 0 | AX46: 0 | AZ46: 0 | BB46: 0 | BD46: 0 | BF46: 0 | BH46: 0 | BJ46: 0 | BL46: 0 | BN46: 0 | BP46: 0 | BR46: 0 | BT46: 0 | BV46: 0 | BX46: 0 | BZ46: 0 | CB46: 0 | CD46: 0 | CF46: 0 | CH46: 0 | CJ46: 0 | CL46: 0 | CN46: 0 | CP46: 0 | CR46: 0 | CT46: 0 | CV46: 0 | CX46: 0 | CZ46: 0 | DB46: 0 | DD46: 0 | DF46: 0 | DH46: 0 | DJ46: 0 | DL46: 0 | DN46: 0 | DP46: 0 | DR46: 0 | DT46: 0 | DV46: 0 | DX46: 0 | DZ46: 0
L47: 0 | N47: =IF(SUM(M$36:M$38)>0,$E47*$H47,0) -> 0 | P47: =IF(SUM(O$36:O$38)>0,$E47*$H47,0) -> 0 | R47: =IF(SUM(Q$36:Q$38)>0,$E47*$H47,0) -> 0 | T47: =IF(SUM(S$36:S$38)>0,$E47*$H47,0) -> 0 | V47: =IF(SUM(U$36:U$38)>0,$E47*$H47,0) -> 0 | X47: =IF(SUM(W$36:W$38)>0,$E47*$H47,0) -> 0 | Z47: =IF(SUM(Y$36:Y$38)>0,$E47*$H47,0) -> 0 | AB47: =IF(SUM(AA$36:AA$38)>0,$E47*$H47,0) -> 0 | AD47: =IF(SUM(AC$36:AC$38)>0,$E47*$H47,0) -> 0 | AF47: =IF(SUM(AE$36:AE$38)>0,$E47*$H47,0) -> 0 | AH47: =IF(SUM(AG$36:AG$38)>0,$E47*$H47,0) -> 0 | AJ47: =IF(SUM(AI$36:AI$38)>0,$E47*$H47,0) -> 0 | AL47: =IF(SUM(AK$36:AK$38)>0,$E47*$H47,0) -> 0 | AN47: =IF(SUM(AM$36:AM$38)>0,$E47*$H47,0) -> 0 | AP47: =IF(SUM(AO$36:AO$38)>0,$E47*$H47,0) -> 0 | AR47: =IF(SUM(AQ$36:AQ$38)>0,$E47*$H47,0) -> 0 | AT47: =IF(SUM(AS$36:AS$38)>0,$E47*$H47,0) -> 0 | AV47: 0 | AX47: 0 | AZ47: 0 | BB47: 0 | BD47: 0 | BF47: 0 | BH47: 0 | BJ47: 0 | BL47: 0 | BN47: 0 | BP47: 0 | BR47: 0 | BT47: 0 | BV47: 0 | BX47: 0 | BZ47: 0 | CB47: 0 | CD47: 0 | CF47: 0 | CH47: 0 | CJ47: 0 | CL47: 0 | CN47: 0 | CP47: 0 | CR47: 0 | CT47: 0 | CV47: 0 | CX47: 0 | CZ47: 0 | DB47: 0 | DD47: 0 | DF47: 0 | DH47: 0 | DJ47: 0 | DL47: 0 | DN47: 0 | DP47: 0 | DR47: 0 | DT47: 0 | DV47: 0 | DX47: 0 | DZ47: 0
L48: 0 | N48: =IF(SUM(M$36:M$38)>0,$E48*$H48,0) -> 0 | P48: =IF(SUM(O$36:O$38)>0,$E48*$H48,0) -> 0 | R48: =IF(SUM(Q$36:Q$38)>0,$E48*$H48,0) -> 0 | T48: =IF(SUM(S$36:S$38)>0,$E48*$H48,0) -> 0 | V48: =IF(SUM(U$36:U$38)>0,$E48*$H48,0) -> 0 | X48: =IF(SUM(W$36:W$38)>0,$E48*$H48,0) -> 0 | Z48: =IF(SUM(Y$36:Y$38)>0,$E48*$H48,0) -> 0 | AB48: =IF(SUM(AA$36:AA$38)>0,$E48*$H48,0) -> 0 | AD48: =IF(SUM(AC$36:AC$38)>0,$E48*$H48,0) -> 0 | AF48: =IF(SUM(AE$36:AE$38)>0,$E48*$H48,0) -> 0 | AH48: =IF(SUM(AG$36:AG$38)>0,$E48*$H48,0) -> 0 | AJ48: =IF(SUM(AI$36:AI$38)>0,$E48*$H48,0) -> 0 | AL48: =IF(SUM(AK$36:AK$38)>0,$E48*$H48,0) -> 0 | AN48: =IF(SUM(AM$36:AM$38)>0,$E48*$H48,0) -> 0 | AP48: =IF(SUM(AO$36:AO$38)>0,$E48*$H48,0) -> 0 | AR48: =IF(SUM(AQ$36:AQ$38)>0,$E48*$H48,0) -> 0 | AT48: =IF(SUM(AS$36:AS$38)>0,$E48*$H48,0) -> 0 | AV48: 0 | AX48: 0 | AZ48: 0 | BB48: 0 | BD48: 0 | BF48: 0 | BH48: 0 | BJ48: 0 | BL48: 0 | BN48: 0 | BP48: 0 | BR48: 0 | BT48: 0 | BV48: 0 | BX48: 0 | BZ48: 0 | CB48: 0 | CD48: 0 | CF48: 0 | CH48: 0 | CJ48: 0 | CL48: 0 | CN48: 0 | CP48: 0 | CR48: 0 | CT48: 0 | CV48: 0 | CX48: 0 | CZ48: 0 | DB48: 0 | DD48: 0 | DF48: 0 | DH48: 0 | DJ48: 0 | DL48: 0 | DN48: 0 | DP48: 0 | DR48: 0 | DT48: 0 | DV48: 0 | DX48: 0 | DZ48: 0
C49: CATEGORIAS | H49: QUANTIDADE
D51: =HLOOKUP($C51,'Dados Gerais'!$D$5:$BK$10,6) ->  | H51: =HLOOKUP($C51,'Dados Gerais'!$D$5:$BK$14,10) ->  | K51: =IF($C51=K$6,1,0) -> 0 | M51: 0 | O51: 0 | Q51: 0 | S51: 0 | U51: 0 | W51: 0 | Y51: 0 | AA51: =IF($C51=AA$6,1,0) -> 0 | AC51: 0 | AE51: 0 | AG51: 0 | AI51: 0 | AK51: 0 | AM51: 0 | AO51: 0 | AQ51: 0 | AS51: 0 | AU51: =IF($C51=AU$6,1,0) -> 0 | AW51: =IF($C51=AW$6,1,0) -> 0 | AY51: =IF($C51=AY$6,1,0) -> 0 | BA51: =IF($C51=BA$6,1,0) -> 0 | BC51: =IF($C51=BC$6,1,0) -> 0 | BE51: =IF($C51=BE$6,1,0) -> 0 | BG51: =IF($C51=BG$6,1,0) -> 0 | BI51: =IF($C51=BI$6,1,0) -> 0 | BK51: =IF($C51=BK$6,1,0) -> 0 | BM51: =IF($C51=BM$6,1,0) -> 0 | BO51: =IF($C51=BO$6,1,0) -> 0 | BQ51: =IF($C51=BQ$6,1,0) -> 0 | BS51: =IF($C51=BS$6,1,0) -> 0 | BU51: =IF($C51=BU$6,1,0) -> 0 | BW51: =IF($C51=BW$6,1,0) -> 0 | BY51: =IF($C51=BY$6,1,0) -> 0 | CA51: =IF($C51=CA$6,1,0) -> 0 | CC51: =IF($C51=CC$6,1,0) -> 0 | CE51: =IF($C51=CE$6,1,0) -> 0 | CG51: =IF($C51=CG$6,1,0) -> 0 | CI51: =IF($C51=CI$6,1,0) -> 0 | CK51: =IF($C51=CK$6,1,0) -> 0 | CM51: =IF($C51=CM$6,1,0) -> 0 | CO51: =IF($C51=CO$6,1,0) -> 0 | CQ51: =IF($C51=CQ$6,1,0) -> 0 | CS51: =IF($C51=CS$6,1,0) -> 0 | CU51: =IF($C51=CU$6,1,0) -> 0 | CW51: =IF($C51=CW$6,1,0) -> 0 | CY51: =IF($C51=CY$6,1,0) -> 0 | DA51: =IF($C51=DA$6,1,0) -> 0 | DC51: =IF($C51=DC$6,1,0) -> 0 | DE51: =IF($C51=DE$6,1,0) -> 0 | DG51: =IF($C51=DG$6,1,0) -> 0 | DI51: =IF($C51=DI$6,1,0) -> 0 | DK51: =IF($C51=DK$6,1,0) -> 0 | DM51: =IF($C51=DM$6,1,0) -> 0 | DO51: =IF($C51=DO$6,1,0) -> 0 | DQ51: =IF($C51=DQ$6,1,0) -> 0 | DS51: =IF($C51=DS$6,1,0) -> 0 | DU51: =IF($C51=DU$6,1,0) -> 0 | DW51: =IF($C51=DW$6,1,0) -> 0 | DY51: =IF($C51=DY$6,1,0) -> 0
D52: =HLOOKUP($C52,'Dados Gerais'!$D$5:$BK$10,6) ->  | H52: =HLOOKUP($C52,'Dados Gerais'!$D$5:$BK$14,10) ->  | K52: 0 | M52: 0 | O52: 0 | Q52: 0 | S52: 0 | U52: 0 | W52: 0 | Y52: 0 | AA52: 0 | AC52: 0 | AE52: 0 | AG52: 0 | AI52: 0 | AK52: 0 | AM52: 0 | AO52: 0 | AQ52: 0 | AS52: 0 | AU52: 0 | AW52: 0 | AY52: 0 | BA52: 0 | BC52: 0 | BE52: 0 | BG52: 0 | BI52: 0 | BK52: 0 | BM52: 0 | BO52: 0 | BQ52: 0 | BS52: 0 | BU52: 0 | BW52: 0 | BY52: 0 | CA52: 0 | CC52: 0 | CE52: 0 | CG52: 0 | CI52: 0 | CK52: 0 | CM52: 0 | CO52: 0 | CQ52: 0 | CS52: 0 | CU52: 0 | CW52: 0 | CY52: 0 | DA52: 0 | DC52: 0 | DE52: 0 | DG52: 0 | DI52: 0 | DK52: 0 | DM52: 0 | DO52: 0 | DQ52: 0 | DS52: 0 | DU52: 0 | DW52: 0 | DY52: 0
C55: ITEM | D55: DESCRIÇÃO | E55: QUANT ANUAL POR POSTO | F55: Nº DE POSTOS | G55: QUANT ANUAL TOTAL | H55: VALOR
AV56: =IF(SUM(AU$10:AU$10)>0,$E56*$H56,0) -> 0 | AX56: =IF(SUM(AW$10:AW$10)>0,$E56*$H56,0) -> 0 | AZ56: =IF(SUM(AY$10:AY$10)>0,$E56*$H56,0) -> 0 | BB56: =IF(SUM(BA$10:BA$10)>0,$E56*$H56,0) -> 0 | BD56: =IF(SUM(BC$10:BC$10)>0,$E56*$H56,0) -> 0 | BF56: =IF(SUM(BE$10:BE$10)>0,$E56*$H56,0) -> 0 | BH56: =IF(SUM(BG$10:BG$10)>0,$E56*$H56,0) -> 0 | BJ56: =IF(SUM(BI$10:BI$10)>0,$E56*$H56,0) -> 0 | BL56: =IF(SUM(BK$10:BK$10)>0,$E56*$H56,0) -> 0 | BN56: =IF(SUM(BM$10:BM$10)>0,$E56*$H56,0) -> 0 | BP56: =IF(SUM(BO$10:BO$10)>0,$E56*$H56,0) -> 0 | BR56: =IF(SUM(BQ$10:BQ$10)>0,$E56*$H56,0) -> 0 | BT56: =IF(SUM(BS$10:BS$10)>0,$E56*$H56,0) -> 0 | BV56: =IF(SUM(BU$10:BU$10)>0,$E56*$H56,0) -> 0 | BX56: =IF(SUM(BW$10:BW$10)>0,$E56*$H56,0) -> 0 | BZ56: =IF(SUM(BY$10:BY$10)>0,$E56*$H56,0) -> 0 | CB56: =IF(SUM(CA$10:CA$10)>0,$E56*$H56,0) -> 0 | CD56: =IF(SUM(CC$10:CC$10)>0,$E56*$H56,0) -> 0 | CF56: =IF(SUM(CE$10:CE$10)>0,$E56*$H56,0) -> 0 | CH56: =IF(SUM(CG$10:CG$10)>0,$E56*$H56,0) -> 0 | CJ56: =IF(SUM(CI$10:CI$10)>0,$E56*$H56,0) -> 0 | CL56: =IF(SUM(CK$10:CK$10)>0,$E56*$H56,0) -> 0 | CN56: =IF(SUM(CM$10:CM$10)>0,$E56*$H56,0) -> 0 | CP56: =IF(SUM(CO$10:CO$10)>0,$E56*$H56,0) -> 0 | CR56: =IF(SUM(CQ$10:CQ$10)>0,$E56*$H56,0) -> 0 | CT56: =IF(SUM(CS$10:CS$10)>0,$E56*$H56,0) -> 0 | CV56: =IF(SUM(CU$10:CU$10)>0,$E56*$H56,0) -> 0 | CX56: =IF(SUM(CW$10:CW$10)>0,$E56*$H56,0) -> 0 | CZ56: =IF(SUM(CY$10:CY$10)>0,$E56*$H56,0) -> 0 | DB56: =IF(SUM(DA$10:DA$10)>0,$E56*$H56,0) -> 0 | DD56: =IF(SUM(DC$10:DC$10)>0,$E56*$H56,0) -> 0 | DF56: =IF(SUM(DE$10:DE$10)>0,$E56*$H56,0) -> 0 | DH56: =IF(SUM(DG$10:DG$10)>0,$E56*$H56,0) -> 0 | DJ56: =IF(SUM(DI$10:DI$10)>0,$E56*$H56,0) -> 0 | DL56: =IF(SUM(DK$10:DK$10)>0,$E56*$H56,0) -> 0 | DN56: =IF(SUM(DM$10:DM$10)>0,$E56*$H56,0) -> 0 | DP56: =IF(SUM(DO$10:DO$10)>0,$E56*$H56,0) -> 0 | DR56: =IF(SUM(DQ$10:DQ$10)>0,$E56*$H56,0) -> 0 | DT56: =IF(SUM(DS$10:DS$10)>0,$E56*$H56,0) -> 0 | DV56: =IF(SUM(DU$10:DU$10)>0,$E56*$H56,0) -> 0 | DX56: =IF(SUM(DW$10:DW$10)>0,$E56*$H56,0) -> 0 | DZ56: =IF(SUM(DY$10:DY$10)>0,$E56*$H56,0) -> 0
F57: =H51+H52 ->  | G57: =F57*E57 ->  | L57: =IF(SUM(K$50:K$53)>0,$E57*$H57,0) -> 0 | N57: =IF(SUM(M$50:M$53)>0,$E57*$H57,0) -> 0 | P57: =IF(SUM(O$50:O$53)>0,$E57*$H57,0) -> 0 | R57: =IF(SUM(Q$50:Q$53)>0,$E57*$H57,0) -> 0 | T57: =IF(SUM(S$50:S$53)>0,$E57*$H57,0) -> 0 | V57: =IF(SUM(U$50:U$53)>0,$E57*$H57,0) -> 0 | X57: =IF(SUM(W$50:W$53)>0,$E57*$H57,0) -> 0 | Z57: =IF(SUM(Y$50:Y$53)>0,$E57*$H57,0) -> 0 | AB57: =IF(SUM(AA$50:AA$53)>0,$E57*$H57,0) -> 0 | AD57: =IF(SUM(AC$50:AC$53)>0,$E57*$H57,0) -> 0 | AF57: =IF(SUM(AE$50:AE$53)>0,$E57*$H57,0) -> 0 | AH57: =IF(SUM(AG$50:AG$53)>0,$E57*$H57,0) -> 0 | AJ57: =IF(SUM(AI$50:AI$53)>0,$E57*$H57,0) -> 0 | AL57: =IF(SUM(AK$50:AK$53)>0,$E57*$H57,0) -> 0 | AN57: =IF(SUM(AM$50:AM$53)>0,$E57*$H57,0) -> 0 | AP57: =IF(SUM(AO$50:AO$53)>0,$E57*$H57,0) -> 0 | AR57: =IF(SUM(AQ$50:AQ$53)>0,$E57*$H57,0) -> 0 | AT57: =IF(SUM(AS$50:AS$53)>0,$E57*$H57,0) -> 0 | AV57: 0 | AX57: 0 | AZ57: 0 | BB57: 0 | BD57: 0 | BF57: 0 | BH57: 0 | BJ57: 0 | BL57: 0 | BN57: 0 | BP57: 0 | BR57: 0 | BT57: 0 | BV57: 0 | BX57: 0 | BZ57: 0 | CB57: 0 | CD57: 0 | CF57: 0 | CH57: 0 | CJ57: 0 | CL57: 0 | CN57: 0 | CP57: 0 | CR57: 0 | CT57: 0 | CV57: 0 | CX57: 0 | CZ57: 0 | DB57: 0 | DD57: 0 | DF57: 0 | DH57: 0 | DJ57: 0 | DL57: 0 | DN57: 0 | DP57: 0 | DR57: 0 | DT57: 0 | DV57: 0 | DX57: 0 | DZ57: 0
F58: =F57 ->  | L58: =IF(SUM(K$50:K$53)>0,$E58*$H58,0) -> 0 | N58: =IF(SUM(M$50:M$53)>0,$E58*$H58,0) -> 0 | P58: =IF(SUM(O$50:O$53)>0,$E58*$H58,0) -> 0 | R58: =IF(SUM(Q$50:Q$53)>0,$E58*$H58,0) -> 0 | T58: =IF(SUM(S$50:S$53)>0,$E58*$H58,0) -> 0 | V58: =IF(SUM(U$50:U$53)>0,$E58*$H58,0) -> 0 | X58: =IF(SUM(W$50:W$53)>0,$E58*$H58,0) -> 0 | Z58: =IF(SUM(Y$50:Y$53)>0,$E58*$H58,0) -> 0 | AB58: =IF(SUM(AA$50:AA$53)>0,$E58*$H58,0) -> 0 | AD58: =IF(SUM(AC$50:AC$53)>0,$E58*$H58,0) -> 0 | AF58: =IF(SUM(AE$50:AE$53)>0,$E58*$H58,0) -> 0 | AH58: =IF(SUM(AG$50:AG$53)>0,$E58*$H58,0) -> 0 | AJ58: =IF(SUM(AI$50:AI$53)>0,$E58*$H58,0) -> 0 | AL58: =IF(SUM(AK$50:AK$53)>0,$E58*$H58,0) -> 0 | AN58: =IF(SUM(AM$50:AM$53)>0,$E58*$H58,0) -> 0 | AP58: =IF(SUM(AO$50:AO$53)>0,$E58*$H58,0) -> 0 | AR58: =IF(SUM(AQ$50:AQ$53)>0,$E58*$H58,0) -> 0 | AT58: =IF(SUM(AS$50:AS$53)>0,$E58*$H58,0) -> 0 | AV58: 0 | AX58: 0 | AZ58: 0 | BB58: 0 | BD58: 0 | BF58: 0 | BH58: 0 | BJ58: 0 | BL58: 0 | BN58: 0 | BP58: 0 | BR58: 0 | BT58: 0 | BV58: 0 | BX58: 0 | BZ58: 0 | CB58: 0 | CD58: 0 | CF58: 0 | CH58: 0 | CJ58: 0 | CL58: 0 | CN58: 0 | CP58: 0 | CR58: 0 | CT58: 0 | CV58: 0 | CX58: 0 | CZ58: 0 | DB58: 0 | DD58: 0 | DF58: 0 | DH58: 0 | DJ58: 0 | DL58: 0 | DN58: 0 | DP58: 0 | DR58: 0 | DT58: 0 | DV58: 0 | DX58: 0 | DZ58: 0
F59: =F58 ->  | L59: 0 | N59: =IF(SUM(M$50:M$53)>0,$E59*$H59,0) -> 0 | P59: =IF(SUM(O$50:O$53)>0,$E59*$H59,0) -> 0 | R59: =IF(SUM(Q$50:Q$53)>0,$E59*$H59,0) -> 0 | T59: =IF(SUM(S$50:S$53)>0,$E59*$H59,0) -> 0 | V59: =IF(SUM(U$50:U$53)>0,$E59*$H59,0) -> 0 | X59: =IF(SUM(W$50:W$53)>0,$E59*$H59,0) -> 0 | Z59: =IF(SUM(Y$50:Y$53)>0,$E59*$H59,0) -> 0 | AB59: =IF(SUM(AA$50:AA$53)>0,$E59*$H59,0) -> 0 | AD59: =IF(SUM(AC$50:AC$53)>0,$E59*$H59,0) -> 0 | AF59: =IF(SUM(AE$50:AE$53)>0,$E59*$H59,0) -> 0 | AH59: =IF(SUM(AG$50:AG$53)>0,$E59*$H59,0) -> 0 | AJ59: =IF(SUM(AI$50:AI$53)>0,$E59*$H59,0) -> 0 | AL59: =IF(SUM(AK$50:AK$53)>0,$E59*$H59,0) -> 0 | AN59: =IF(SUM(AM$50:AM$53)>0,$E59*$H59,0) -> 0 | AP59: =IF(SUM(AO$50:AO$53)>0,$E59*$H59,0) -> 0 | AR59: =IF(SUM(AQ$50:AQ$53)>0,$E59*$H59,0) -> 0 | AT59: =IF(SUM(AS$50:AS$53)>0,$E59*$H59,0) -> 0 | AV59: 0 | AX59: 0 | AZ59: 0 | BB59: 0 | BD59: 0 | BF59: 0 | BH59: 0 | BJ59: 0 | BL59: 0 | BN59: 0 | BP59: 0 | BR59: 0 | BT59: 0 | BV59: 0 | BX59: 0 | BZ59: 0 | CB59: 0 | CD59: 0 | CF59: 0 | CH59: 0 | CJ59: 0 | CL59: 0 | CN59: 0 | CP59: 0 | CR59: 0 | CT59: 0 | CV59: 0 | CX59: 0 | CZ59: 0 | DB59: 0 | DD59: 0 | DF59: 0 | DH59: 0 | DJ59: 0 | DL59: 0 | DN59: 0 | DP59: 0 | DR59: 0 | DT59: 0 | DV59: 0 | DX59: 0 | DZ59: 0
L60: 0 | N60: =IF(SUM(M$50:M$53)>0,$E60*$H60,0) -> 0 | P60: =IF(SUM(O$50:O$53)>0,$E60*$H60,0) -> 0 | R60: =IF(SUM(Q$50:Q$53)>0,$E60*$H60,0) -> 0 | T60: =IF(SUM(S$50:S$53)>0,$E60*$H60,0) -> 0 | V60: =IF(SUM(U$50:U$53)>0,$E60*$H60,0) -> 0 | X60: =IF(SUM(W$50:W$53)>0,$E60*$H60,0) -> 0 | Z60: =IF(SUM(Y$50:Y$53)>0,$E60*$H60,0) -> 0 | AB60: =IF(SUM(AA$50:AA$53)>0,$E60*$H60,0) -> 0 | AD60: =IF(SUM(AC$50:AC$53)>0,$E60*$H60,0) -> 0 | AF60: =IF(SUM(AE$50:AE$53)>0,$E60*$H60,0) -> 0 | AH60: =IF(SUM(AG$50:AG$53)>0,$E60*$H60,0) -> 0 | AJ60: =IF(SUM(AI$50:AI$53)>0,$E60*$H60,0) -> 0 | AL60: =IF(SUM(AK$50:AK$53)>0,$E60*$H60,0) -> 0 | AN60: =IF(SUM(AM$50:AM$53)>0,$E60*$H60,0) -> 0 | AP60: =IF(SUM(AO$50:AO$53)>0,$E60*$H60,0) -> 0 | AR60: =IF(SUM(AQ$50:AQ$53)>0,$E60*$H60,0) -> 0 | AT60: =IF(SUM(AS$50:AS$53)>0,$E60*$H60,0) -> 0 | AV60: 0 | AX60: 0 | AZ60: 0 | BB60: 0 | BD60: 0 | BF60: 0 | BH60: 0 | BJ60: 0 | BL60: 0 | BN60: 0 | BP60: 0 | BR60: 0 | BT60: 0 | BV60: 0 | BX60: 0 | BZ60: 0 | CB60: 0 | CD60: 0 | CF60: 0 | CH60: 0 | CJ60: 0 | CL60: 0 | CN60: 0 | CP60: 0 | CR60: 0 | CT60: 0 | CV60: 0 | CX60: 0 | CZ60: 0 | DB60: 0 | DD60: 0 | DF60: 0 | DH60: 0 | DJ60: 0 | DL60: 0 | DN60: 0 | DP60: 0 | DR60: 0 | DT60: 0 | DV60: 0 | DX60: 0 | DZ60: 0
L61: 0 | N61: =IF(SUM(M$50:M$53)>0,$E61*$H61,0) -> 0 | P61: =IF(SUM(O$50:O$53)>0,$E61*$H61,0) -> 0 | R61: =IF(SUM(Q$50:Q$53)>0,$E61*$H61,0) -> 0 | T61: =IF(SUM(S$50:S$53)>0,$E61*$H61,0) -> 0 | V61: =IF(SUM(U$50:U$53)>0,$E61*$H61,0) -> 0 | X61: =IF(SUM(W$50:W$53)>0,$E61*$H61,0) -> 0 | Z61: =IF(SUM(Y$50:Y$53)>0,$E61*$H61,0) -> 0 | AB61: =IF(SUM(AA$50:AA$53)>0,$E61*$H61,0) -> 0 | AD61: =IF(SUM(AC$50:AC$53)>0,$E61*$H61,0) -> 0 | AF61: =IF(SUM(AE$50:AE$53)>0,$E61*$H61,0) -> 0 | AH61: =IF(SUM(AG$50:AG$53)>0,$E61*$H61,0) -> 0 | AJ61: =IF(SUM(AI$50:AI$53)>0,$E61*$H61,0) -> 0 | AL61: =IF(SUM(AK$50:AK$53)>0,$E61*$H61,0) -> 0 | AN61: =IF(SUM(AM$50:AM$53)>0,$E61*$H61,0) -> 0 | AP61: =IF(SUM(AO$50:AO$53)>0,$E61*$H61,0) -> 0 | AR61: =IF(SUM(AQ$50:AQ$53)>0,$E61*$H61,0) -> 0 | AT61: =IF(SUM(AS$50:AS$53)>0,$E61*$H61,0) -> 0 | AV61: 0 | AX61: 0 | AZ61: 0 | BB61: 0 | BD61: 0 | BF61: 0 | BH61: 0 | BJ61: 0 | BL61: 0 | BN61: 0 | BP61: 0 | BR61: 0 | BT61: 0 | BV61: 0 | BX61: 0 | BZ61: 0 | CB61: 0 | CD61: 0 | CF61: 0 | CH61: 0 | CJ61: 0 | CL61: 0 | CN61: 0 | CP61: 0 | CR61: 0 | CT61: 0 | CV61: 0 | CX61: 0 | CZ61: 0 | DB61: 0 | DD61: 0 | DF61: 0 | DH61: 0 | DJ61: 0 | DL61: 0 | DN61: 0 | DP61: 0 | DR61: 0 | DT61: 0 | DV61: 0 | DX61: 0 | DZ61: 0
L62: 0 | N62: =IF(SUM(M$50:M$53)>0,$E62*$H62,0) -> 0 | P62: =IF(SUM(O$50:O$53)>0,$E62*$H62,0) -> 0 | R62: =IF(SUM(Q$50:Q$53)>0,$E62*$H62,0) -> 0 | T62: =IF(SUM(S$50:S$53)>0,$E62*$H62,0) -> 0 | V62: =IF(SUM(U$50:U$53)>0,$E62*$H62,0) -> 0 | X62: =IF(SUM(W$50:W$53)>0,$E62*$H62,0) -> 0 | Z62: =IF(SUM(Y$50:Y$53)>0,$E62*$H62,0) -> 0 | AB62: =IF(SUM(AA$50:AA$53)>0,$E62*$H62,0) -> 0 | AD62: =IF(SUM(AC$50:AC$53)>0,$E62*$H62,0) -> 0 | AF62: =IF(SUM(AE$50:AE$53)>0,$E62*$H62,0) -> 0 | AH62: =IF(SUM(AG$50:AG$53)>0,$E62*$H62,0) -> 0 | AJ62: =IF(SUM(AI$50:AI$53)>0,$E62*$H62,0) -> 0 | AL62: =IF(SUM(AK$50:AK$53)>0,$E62*$H62,0) -> 0 | AN62: =IF(SUM(AM$50:AM$53)>0,$E62*$H62,0) -> 0 | AP62: =IF(SUM(AO$50:AO$53)>0,$E62*$H62,0) -> 0 | AR62: =IF(SUM(AQ$50:AQ$53)>0,$E62*$H62,0) -> 0 | AT62: =IF(SUM(AS$50:AS$53)>0,$E62*$H62,0) -> 0 | AV62: 0 | AX62: 0 | AZ62: 0 | BB62: 0 | BD62: 0 | BF62: 0 | BH62: 0 | BJ62: 0 | BL62: 0 | BN62: 0 | BP62: 0 | BR62: 0 | BT62: 0 | BV62: 0 | BX62: 0 | BZ62: 0 | CB62: 0 | CD62: 0 | CF62: 0 | CH62: 0 | CJ62: 0 | CL62: 0 | CN62: 0 | CP62: 0 | CR62: 0 | CT62: 0 | CV62: 0 | CX62: 0 | CZ62: 0 | DB62: 0 | DD62: 0 | DF62: 0 | DH62: 0 | DJ62: 0 | DL62: 0 | DN62: 0 | DP62: 0 | DR62: 0 | DT62: 0 | DV62: 0 | DX62: 0 | DZ62: 0
C63: CATEGORIAS | H63: QUANTIDADE
D65: =HLOOKUP($C65,'Dados Gerais'!$D$5:$BK$10,6) ->  | H65: =HLOOKUP($C65,'Dados Gerais'!$D$5:$BK$14,10) ->  | K65: =IF($C65=K$6,1,0) -> 0 | M65: 0 | O65: 0 | Q65: 0 | S65: 0 | U65: 0 | W65: 0 | Y65: 0 | AA65: 0 | AC65: 0 | AE65: 0 | AG65: 0 | AI65: 0 | AK65: 0 | AM65: 0 | AO65: 0 | AQ65: 0 | AS65: 0 | AU65: 0 | AW65: =IF($C65=AW$6,1,0) -> 0 | AY65: =IF($C65=AY$6,1,0) -> 0 | BA65: =IF($C65=BA$6,1,0) -> 0 | BC65: =IF($C65=BC$6,1,0) -> 0 | BE65: =IF($C65=BE$6,1,0) -> 0 | BG65: =IF($C65=BG$6,1,0) -> 0 | BI65: =IF($C65=BI$6,1,0) -> 0 | BK65: =IF($C65=BK$6,1,0) -> 0 | BM65: =IF($C65=BM$6,1,0) -> 0 | BO65: =IF($C65=BO$6,1,0) -> 0 | BQ65: =IF($C65=BQ$6,1,0) -> 0 | BS65: =IF($C65=BS$6,1,0) -> 0 | BU65: =IF($C65=BU$6,1,0) -> 0 | BW65: =IF($C65=BW$6,1,0) -> 0 | BY65: =IF($C65=BY$6,1,0) -> 0 | CA65: =IF($C65=CA$6,1,0) -> 0 | CC65: =IF($C65=CC$6,1,0) -> 0 | CE65: =IF($C65=CE$6,1,0) -> 0 | CG65: =IF($C65=CG$6,1,0) -> 0 | CI65: =IF($C65=CI$6,1,0) -> 0 | CK65: =IF($C65=CK$6,1,0) -> 0 | CM65: =IF($C65=CM$6,1,0) -> 0 | CO65: =IF($C65=CO$6,1,0) -> 0 | CQ65: =IF($C65=CQ$6,1,0) -> 0 | CS65: =IF($C65=CS$6,1,0) -> 0 | CU65: =IF($C65=CU$6,1,0) -> 0 | CW65: =IF($C65=CW$6,1,0) -> 0 | CY65: =IF($C65=CY$6,1,0) -> 0 | DA65: =IF($C65=DA$6,1,0) -> 0 | DC65: =IF($C65=DC$6,1,0) -> 0 | DE65: =IF($C65=DE$6,1,0) -> 0 | DG65: =IF($C65=DG$6,1,0) -> 0 | DI65: =IF($C65=DI$6,1,0) -> 0 | DK65: =IF($C65=DK$6,1,0) -> 0 | DM65: =IF($C65=DM$6,1,0) -> 0 | DO65: =IF($C65=DO$6,1,0) -> 0 | DQ65: =IF($C65=DQ$6,1,0) -> 0 | DS65: =IF($C65=DS$6,1,0) -> 0 | DU65: =IF($C65=DU$6,1,0) -> 0 | DW65: =IF($C65=DW$6,1,0) -> 0 | DY65: =IF($C65=DY$6,1,0) -> 0
C68: ITEM | D68: DESCRIÇÃO | E68: QUANT ANUAL POR POSTO | F68: Nº DE POSTOS | G68: QUANT ANUAL TOTAL | H68: VALOR
AV69: =IF(SUM(AU$10:AU$10)>0,$E69*$H69,0) -> 0 | AX69: =IF(SUM(AW$10:AW$10)>0,$E69*$H69,0) -> 0 | AZ69: =IF(SUM(AY$10:AY$10)>0,$E69*$H69,0) -> 0 | BB69: =IF(SUM(BA$10:BA$10)>0,$E69*$H69,0) -> 0 | BD69: =IF(SUM(BC$10:BC$10)>0,$E69*$H69,0) -> 0 | BF69: =IF(SUM(BE$10:BE$10)>0,$E69*$H69,0) -> 0 | BH69: =IF(SUM(BG$10:BG$10)>0,$E69*$H69,0) -> 0 | BJ69: =IF(SUM(BI$10:BI$10)>0,$E69*$H69,0) -> 0 | BL69: =IF(SUM(BK$10:BK$10)>0,$E69*$H69,0) -> 0 | BN69: =IF(SUM(BM$10:BM$10)>0,$E69*$H69,0) -> 0 | BP69: =IF(SUM(BO$10:BO$10)>0,$E69*$H69,0) -> 0 | BR69: =IF(SUM(BQ$10:BQ$10)>0,$E69*$H69,0) -> 0 | BT69: =IF(SUM(BS$10:BS$10)>0,$E69*$H69,0) -> 0 | BV69: =IF(SUM(BU$10:BU$10)>0,$E69*$H69,0) -> 0 | BX69: =IF(SUM(BW$10:BW$10)>0,$E69*$H69,0) -> 0 | BZ69: =IF(SUM(BY$10:BY$10)>0,$E69*$H69,0) -> 0 | CB69: =IF(SUM(CA$10:CA$10)>0,$E69*$H69,0) -> 0 | CD69: =IF(SUM(CC$10:CC$10)>0,$E69*$H69,0) -> 0 | CF69: =IF(SUM(CE$10:CE$10)>0,$E69*$H69,0) -> 0 | CH69: =IF(SUM(CG$10:CG$10)>0,$E69*$H69,0) -> 0 | CJ69: =IF(SUM(CI$10:CI$10)>0,$E69*$H69,0) -> 0 | CL69: =IF(SUM(CK$10:CK$10)>0,$E69*$H69,0) -> 0 | CN69: =IF(SUM(CM$10:CM$10)>0,$E69*$H69,0) -> 0 | CP69: =IF(SUM(CO$10:CO$10)>0,$E69*$H69,0) -> 0 | CR69: =IF(SUM(CQ$10:CQ$10)>0,$E69*$H69,0) -> 0 | CT69: =IF(SUM(CS$10:CS$10)>0,$E69*$H69,0) -> 0 | CV69: =IF(SUM(CU$10:CU$10)>0,$E69*$H69,0) -> 0 | CX69: =IF(SUM(CW$10:CW$10)>0,$E69*$H69,0) -> 0 | CZ69: =IF(SUM(CY$10:CY$10)>0,$E69*$H69,0) -> 0 | DB69: =IF(SUM(DA$10:DA$10)>0,$E69*$H69,0) -> 0 | DD69: =IF(SUM(DC$10:DC$10)>0,$E69*$H69,0) -> 0 | DF69: =IF(SUM(DE$10:DE$10)>0,$E69*$H69,0) -> 0 | DH69: =IF(SUM(DG$10:DG$10)>0,$E69*$H69,0) -> 0 | DJ69: =IF(SUM(DI$10:DI$10)>0,$E69*$H69,0) -> 0 | DL69: =IF(SUM(DK$10:DK$10)>0,$E69*$H69,0) -> 0 | DN69: =IF(SUM(DM$10:DM$10)>0,$E69*$H69,0) -> 0 | DP69: =IF(SUM(DO$10:DO$10)>0,$E69*$H69,0) -> 0 | DR69: =IF(SUM(DQ$10:DQ$10)>0,$E69*$H69,0) -> 0 | DT69: =IF(SUM(DS$10:DS$10)>0,$E69*$H69,0) -> 0 | DV69: =IF(SUM(DU$10:DU$10)>0,$E69*$H69,0) -> 0 | DX69: =IF(SUM(DW$10:DW$10)>0,$E69*$H69,0) -> 0 | DZ69: =IF(SUM(DY$10:DY$10)>0,$E69*$H69,0) -> 0
F70: =H65 ->  | G70: =F70*E70 ->  | L70: =IF(SUM(K$64:K$66)>0,$E70*$H70,0) -> 0 | N70: =IF(SUM(M$64:M$66)>0,$E70*$H70,0) -> 0 | P70: =IF(SUM(O$64:O$66)>0,$E70*$H70,0) -> 0 | R70: =IF(SUM(Q$64:Q$66)>0,$E70*$H70,0) -> 0 | T70: =IF(SUM(S$64:S$66)>0,$E70*$H70,0) -> 0 | V70: =IF(SUM(U$64:U$66)>0,$E70*$H70,0) -> 0 | X70: =IF(SUM(W$64:W$66)>0,$E70*$H70,0) -> 0 | Z70: =IF(SUM(Y$64:Y$66)>0,$E70*$H70,0) -> 0 | AB70: =IF(SUM(AA$64:AA$66)>0,$E70*$H70,0) -> 0 | AD70: =IF(SUM(AC$64:AC$66)>0,$E70*$H70,0) -> 0 | AF70: =IF(SUM(AE$64:AE$66)>0,$E70*$H70,0) -> 0 | AH70: =IF(SUM(AG$64:AG$66)>0,$E70*$H70,0) -> 0 | AJ70: =IF(SUM(AI$64:AI$66)>0,$E70*$H70,0) -> 0 | AL70: =IF(SUM(AK$64:AK$66)>0,$E70*$H70,0) -> 0 | AN70: =IF(SUM(AM$64:AM$66)>0,$E70*$H70,0) -> 0 | AP70: =IF(SUM(AO$64:AO$66)>0,$E70*$H70,0) -> 0 | AR70: =IF(SUM(AQ$64:AQ$66)>0,$E70*$H70,0) -> 0 | AT70: =IF(SUM(AS$64:AS$66)>0,$E70*$H70,0) -> 0 | AV70: 0 | AX70: 0 | AZ70: 0 | BB70: 0 | BD70: 0 | BF70: 0 | BH70: 0 | BJ70: 0 | BL70: 0 | BN70: 0 | BP70: 0 | BR70: 0 | BT70: 0 | BV70: 0 | BX70: 0 | BZ70: 0 | CB70: 0 | CD70: 0 | CF70: 0 | CH70: 0 | CJ70: 0 | CL70: 0 | CN70: 0 | CP70: 0 | CR70: 0 | CT70: 0 | CV70: 0 | CX70: 0 | CZ70: 0 | DB70: 0 | DD70: 0 | DF70: 0 | DH70: 0 | DJ70: 0 | DL70: 0 | DN70: 0 | DP70: 0 | DR70: 0 | DT70: 0 | DV70: 0 | DX70: 0 | DZ70: 0
F71: =F70 ->  | L71: =IF(SUM(K$64:K$66)>0,$E71*$H71,0) -> 0 | N71: =IF(SUM(M$64:M$66)>0,$E71*$H71,0) -> 0 | P71: =IF(SUM(O$64:O$66)>0,$E71*$H71,0) -> 0 | R71: =IF(SUM(Q$64:Q$66)>0,$E71*$H71,0) -> 0 | T71: =IF(SUM(S$64:S$66)>0,$E71*$H71,0) -> 0 | V71: =IF(SUM(U$64:U$66)>0,$E71*$H71,0) -> 0 | X71: =IF(SUM(W$64:W$66)>0,$E71*$H71,0) -> 0 | Z71: =IF(SUM(Y$64:Y$66)>0,$E71*$H71,0) -> 0 | AB71: =IF(SUM(AA$64:AA$66)>0,$E71*$H71,0) -> 0 | AD71: =IF(SUM(AC$64:AC$66)>0,$E71*$H71,0) -> 0 | AF71: =IF(SUM(AE$64:AE$66)>0,$E71*$H71,0) -> 0 | AH71: =IF(SUM(AG$64:AG$66)>0,$E71*$H71,0) -> 0 | AJ71: =IF(SUM(AI$64:AI$66)>0,$E71*$H71,0) -> 0 | AL71: =IF(SUM(AK$64:AK$66)>0,$E71*$H71,0) -> 0 | AN71: =IF(SUM(AM$64:AM$66)>0,$E71*$H71,0) -> 0 | AP71: =IF(SUM(AO$64:AO$66)>0,$E71*$H71,0) -> 0 | AR71: =IF(SUM(AQ$64:AQ$66)>0,$E71*$H71,0) -> 0 | AT71: =IF(SUM(AS$64:AS$66)>0,$E71*$H71,0) -> 0 | AV71: 0 | AX71: 0 | AZ71: 0 | BB71: 0 | BD71: 0 | BF71: 0 | BH71: 0 | BJ71: 0 | BL71: 0 | BN71: 0 | BP71: 0 | BR71: 0 | BT71: 0 | BV71: 0 | BX71: 0 | BZ71: 0 | CB71: 0 | CD71: 0 | CF71: 0 | CH71: 0 | CJ71: 0 | CL71: 0 | CN71: 0 | CP71: 0 | CR71: 0 | CT71: 0 | CV71: 0 | CX71: 0 | CZ71: 0 | DB71: 0 | DD71: 0 | DF71: 0 | DH71: 0 | DJ71: 0 | DL71: 0 | DN71: 0 | DP71: 0 | DR71: 0 | DT71: 0 | DV71: 0 | DX71: 0 | DZ71: 0
F72: =F71 ->  | L72: 0 | N72: =IF(SUM(M$64:M$66)>0,$E72*$H72,0) -> 0 | P72: =IF(SUM(O$64:O$66)>0,$E72*$H72,0) -> 0 | R72: =IF(SUM(Q$64:Q$66)>0,$E72*$H72,0) -> 0 | T72: =IF(SUM(S$64:S$66)>0,$E72*$H72,0) -> 0 | V72: =IF(SUM(U$64:U$66)>0,$E72*$H72,0) -> 0 | X72: =IF(SUM(W$64:W$66)>0,$E72*$H72,0) -> 0 | Z72: =IF(SUM(Y$64:Y$66)>0,$E72*$H72,0) -> 0 | AB72: =IF(SUM(AA$64:AA$66)>0,$E72*$H72,0) -> 0 | AD72: =IF(SUM(AC$64:AC$66)>0,$E72*$H72,0) -> 0 | AF72: =IF(SUM(AE$64:AE$66)>0,$E72*$H72,0) -> 0 | AH72: =IF(SUM(AG$64:AG$66)>0,$E72*$H72,0) -> 0 | AJ72: =IF(SUM(AI$64:AI$66)>0,$E72*$H72,0) -> 0 | AL72: =IF(SUM(AK$64:AK$66)>0,$E72*$H72,0) -> 0 | AN72: =IF(SUM(AM$64:AM$66)>0,$E72*$H72,0) -> 0 | AP72: =IF(SUM(AO$64:AO$66)>0,$E72*$H72,0) -> 0 | AR72: =IF(SUM(AQ$64:AQ$66)>0,$E72*$H72,0) -> 0 | AT72: =IF(SUM(AS$64:AS$66)>0,$E72*$H72,0) -> 0 | AV72: 0 | AX72: 0 | AZ72: 0 | BB72: 0 | BD72: 0 | BF72: 0 | BH72: 0 | BJ72: 0 | BL72: 0 | BN72: 0 | BP72: 0 | BR72: 0 | BT72: 0 | BV72: 0 | BX72: 0 | BZ72: 0 | CB72: 0 | CD72: 0 | CF72: 0 | CH72: 0 | CJ72: 0 | CL72: 0 | CN72: 0 | CP72: 0 | CR72: 0 | CT72: 0 | CV72: 0 | CX72: 0 | CZ72: 0 | DB72: 0 | DD72: 0 | DF72: 0 | DH72: 0 | DJ72: 0 | DL72: 0 | DN72: 0 | DP72: 0 | DR72: 0 | DT72: 0 | DV72: 0 | DX72: 0 | DZ72: 0
F73: =F71 ->  | G73: =F73*E73 ->  | L73: 0 | N73: =IF(SUM(M$64:M$66)>0,$E73*$H73,0) -> 0 | P73: =IF(SUM(O$64:O$66)>0,$E73*$H73,0) -> 0 | R73: =IF(SUM(Q$64:Q$66)>0,$E73*$H73,0) -> 0 | T73: =IF(SUM(S$64:S$66)>0,$E73*$H73,0) -> 0 | V73: =IF(SUM(U$64:U$66)>0,$E73*$H73,0) -> 0 | X73: =IF(SUM(W$64:W$66)>0,$E73*$H73,0) -> 0 | Z73: =IF(SUM(Y$64:Y$66)>0,$E73*$H73,0) -> 0 | AB73: =IF(SUM(AA$64:AA$66)>0,$E73*$H73,0) -> 0 | AD73: =IF(SUM(AC$64:AC$66)>0,$E73*$H73,0) -> 0 | AF73: =IF(SUM(AE$64:AE$66)>0,$E73*$H73,0) -> 0 | AH73: =IF(SUM(AG$64:AG$66)>0,$E73*$H73,0) -> 0 | AJ73: =IF(SUM(AI$64:AI$66)>0,$E73*$H73,0) -> 0 | AL73: =IF(SUM(AK$64:AK$66)>0,$E73*$H73,0) -> 0 | AN73: =IF(SUM(AM$64:AM$66)>0,$E73*$H73,0) -> 0 | AP73: =IF(SUM(AO$64:AO$66)>0,$E73*$H73,0) -> 0 | AR73: =IF(SUM(AQ$64:AQ$66)>0,$E73*$H73,0) -> 0 | AT73: =IF(SUM(AS$64:AS$66)>0,$E73*$H73,0) -> 0 | AV73: 0 | AX73: 0 | AZ73: 0 | BB73: 0 | BD73: 0 | BF73: 0 | BH73: 0 | BJ73: 0 | BL73: 0 | BN73: 0 | BP73: 0 | BR73: 0 | BT73: 0 | BV73: 0 | BX73: 0 | BZ73: 0 | CB73: 0 | CD73: 0 | CF73: 0 | CH73: 0 | CJ73: 0 | CL73: 0 | CN73: 0 | CP73: 0 | CR73: 0 | CT73: 0 | CV73: 0 | CX73: 0 | CZ73: 0 | DB73: 0 | DD73: 0 | DF73: 0 | DH73: 0 | DJ73: 0 | DL73: 0 | DN73: 0 | DP73: 0 | DR73: 0 | DT73: 0 | DV73: 0 | DX73: 0 | DZ73: 0
F74: =F72 ->  | L74: 0 | N74: =IF(SUM(M$64:M$66)>0,$E74*$H74,0) -> 0 | P74: =IF(SUM(O$64:O$66)>0,$E74*$H74,0) -> 0 | R74: =IF(SUM(Q$64:Q$66)>0,$E74*$H74,0) -> 0 | T74: =IF(SUM(S$64:S$66)>0,$E74*$H74,0) -> 0 | V74: =IF(SUM(U$64:U$66)>0,$E74*$H74,0) -> 0 | X74: =IF(SUM(W$64:W$66)>0,$E74*$H74,0) -> 0 | Z74: =IF(SUM(Y$64:Y$66)>0,$E74*$H74,0) -> 0 | AB74: =IF(SUM(AA$64:AA$66)>0,$E74*$H74,0) -> 0 | AD74: =IF(SUM(AC$64:AC$66)>0,$E74*$H74,0) -> 0 | AF74: =IF(SUM(AE$64:AE$66)>0,$E74*$H74,0) -> 0 | AH74: =IF(SUM(AG$64:AG$66)>0,$E74*$H74,0) -> 0 | AJ74: =IF(SUM(AI$64:AI$66)>0,$E74*$H74,0) -> 0 | AL74: =IF(SUM(AK$64:AK$66)>0,$E74*$H74,0) -> 0 | AN74: =IF(SUM(AM$64:AM$66)>0,$E74*$H74,0) -> 0 | AP74: =IF(SUM(AO$64:AO$66)>0,$E74*$H74,0) -> 0 | AR74: =IF(SUM(AQ$64:AQ$66)>0,$E74*$H74,0) -> 0 | AT74: =IF(SUM(AS$64:AS$66)>0,$E74*$H74,0) -> 0 | AV74: 0 | AX74: 0 | AZ74: 0 | BB74: 0 | BD74: 0 | BF74: 0 | BH74: 0 | BJ74: 0 | BL74: 0 | BN74: 0 | BP74: 0 | BR74: 0 | BT74: 0 | BV74: 0 | BX74: 0 | BZ74: 0 | CB74: 0 | CD74: 0 | CF74: 0 | CH74: 0 | CJ74: 0 | CL74: 0 | CN74: 0 | CP74: 0 | CR74: 0 | CT74: 0 | CV74: 0 | CX74: 0 | CZ74: 0 | DB74: 0 | DD74: 0 | DF74: 0 | DH74: 0 | DJ74: 0 | DL74: 0 | DN74: 0 | DP74: 0 | DR74: 0 | DT74: 0 | DV74: 0 | DX74: 0 | DZ74: 0
L75: 0 | N75: =IF(SUM(M$64:M$66)>0,$E75*$H75,0) -> 0 | P75: =IF(SUM(O$64:O$66)>0,$E75*$H75,0) -> 0 | R75: =IF(SUM(Q$64:Q$66)>0,$E75*$H75,0) -> 0 | T75: =IF(SUM(S$64:S$66)>0,$E75*$H75,0) -> 0 | V75: =IF(SUM(U$64:U$66)>0,$E75*$H75,0) -> 0 | X75: =IF(SUM(W$64:W$66)>0,$E75*$H75,0) -> 0 | Z75: =IF(SUM(Y$64:Y$66)>0,$E75*$H75,0) -> 0 | AB75: =IF(SUM(AA$64:AA$66)>0,$E75*$H75,0) -> 0 | AD75: =IF(SUM(AC$64:AC$66)>0,$E75*$H75,0) -> 0 | AF75: =IF(SUM(AE$64:AE$66)>0,$E75*$H75,0) -> 0 | AH75: =IF(SUM(AG$64:AG$66)>0,$E75*$H75,0) -> 0 | AJ75: =IF(SUM(AI$64:AI$66)>0,$E75*$H75,0) -> 0 | AL75: =IF(SUM(AK$64:AK$66)>0,$E75*$H75,0) -> 0 | AN75: =IF(SUM(AM$64:AM$66)>0,$E75*$H75,0) -> 0 | AP75: =IF(SUM(AO$64:AO$66)>0,$E75*$H75,0) -> 0 | AR75: =IF(SUM(AQ$64:AQ$66)>0,$E75*$H75,0) -> 0 | AT75: =IF(SUM(AS$64:AS$66)>0,$E75*$H75,0) -> 0 | AV75: 0 | AX75: 0 | AZ75: 0 | BB75: 0 | BD75: 0 | BF75: 0 | BH75: 0 | BJ75: 0 | BL75: 0 | BN75: 0 | BP75: 0 | BR75: 0 | BT75: 0 | BV75: 0 | BX75: 0 | BZ75: 0 | CB75: 0 | CD75: 0 | CF75: 0 | CH75: 0 | CJ75: 0 | CL75: 0 | CN75: 0 | CP75: 0 | CR75: 0 | CT75: 0 | CV75: 0 | CX75: 0 | CZ75: 0 | DB75: 0 | DD75: 0 | DF75: 0 | DH75: 0 | DJ75: 0 | DL75: 0 | DN75: 0 | DP75: 0 | DR75: 0 | DT75: 0 | DV75: 0 | DX75: 0 | DZ75: 0
C76: CATEGORIAS | H76: QUANTIDADE
D78: =HLOOKUP($C78,'Dados Gerais'!$D$5:$BK$10,6) ->  | H78: =HLOOKUP($C78,'Dados Gerais'!$D$5:$BK$14,10) ->  | K78: =IF($C78=K$6,1,0) -> 0 | M78: 0 | O78: 0 | Q78: 0 | S78: 0 | U78: 0 | W78: 0 | Y78: 0 | AA78: 0 | AC78: 0 | AE78: 0 | AG78: 0 | AI78: 0 | AK78: 0 | AM78: 0 | AO78: 0 | AQ78: 0 | AS78: 0 | AU78: =IF($C78=AU$6,1,0) -> 0 | AW78: =IF($C78=AW$6,1,0) -> 0 | AY78: =IF($C78=AY$6,1,0) -> 0 | BA78: =IF($C78=BA$6,1,0) -> 0 | BC78: =IF($C78=BC$6,1,0) -> 0 | BE78: =IF($C78=BE$6,1,0) -> 0 | BG78: =IF($C78=BG$6,1,0) -> 0 | BI78: =IF($C78=BI$6,1,0) -> 0 | BK78: =IF($C78=BK$6,1,0) -> 0 | BM78: =IF($C78=BM$6,1,0) -> 0 | BO78: =IF($C78=BO$6,1,0) -> 0 | BQ78: =IF($C78=BQ$6,1,0) -> 0 | BS78: =IF($C78=BS$6,1,0) -> 0 | BU78: =IF($C78=BU$6,1,0) -> 0 | BW78: =IF($C78=BW$6,1,0) -> 0 | BY78: =IF($C78=BY$6,1,0) -> 0 | CA78: =IF($C78=CA$6,1,0) -> 0 | CC78: =IF($C78=CC$6,1,0) -> 0 | CE78: =IF($C78=CE$6,1,0) -> 0 | CG78: =IF($C78=CG$6,1,0) -> 0 | CI78: =IF($C78=CI$6,1,0) -> 0 | CK78: =IF($C78=CK$6,1,0) -> 0 | CM78: =IF($C78=CM$6,1,0) -> 0 | CO78: =IF($C78=CO$6,1,0) -> 0 | CQ78: =IF($C78=CQ$6,1,0) -> 0 | CS78: =IF($C78=CS$6,1,0) -> 0 | CU78: =IF($C78=CU$6,1,0) -> 0 | CW78: =IF($C78=CW$6,1,0) -> 0 | CY78: =IF($C78=CY$6,1,0) -> 0 | DA78: =IF($C78=DA$6,1,0) -> 0 | DC78: =IF($C78=DC$6,1,0) -> 0 | DE78: =IF($C78=DE$6,1,0) -> 0 | DG78: =IF($C78=DG$6,1,0) -> 0 | DI78: =IF($C78=DI$6,1,0) -> 0 | DK78: =IF($C78=DK$6,1,0) -> 0 | DM78: =IF($C78=DM$6,1,0) -> 0 | DO78: =IF($C78=DO$6,1,0) -> 0 | DQ78: =IF($C78=DQ$6,1,0) -> 0 | DS78: =IF($C78=DS$6,1,0) -> 0 | DU78: =IF($C78=DU$6,1,0) -> 0 | DW78: =IF($C78=DW$6,1,0) -> 0 | DY78: =IF($C78=DY$6,1,0) -> 0
C81: ITEM | D81: DESCRIÇÃO | E81: QUANT ANUAL POR POSTO | F81: Nº DE POSTOS | G81: QUANT ANUAL TOTAL | H81: VALOR
AV82: =IF(SUM(AU$10:AU$10)>0,$E82*$H82,0) -> 0 | AX82: =IF(SUM(AW$10:AW$10)>0,$E82*$H82,0) -> 0 | AZ82: =IF(SUM(AY$10:AY$10)>0,$E82*$H82,0) -> 0 | BB82: =IF(SUM(BA$10:BA$10)>0,$E82*$H82,0) -> 0 | BD82: =IF(SUM(BC$10:BC$10)>0,$E82*$H82,0) -> 0 | BF82: =IF(SUM(BE$10:BE$10)>0,$E82*$H82,0) -> 0 | BH82: =IF(SUM(BG$10:BG$10)>0,$E82*$H82,0) -> 0 | BJ82: =IF(SUM(BI$10:BI$10)>0,$E82*$H82,0) -> 0 | BL82: =IF(SUM(BK$10:BK$10)>0,$E82*$H82,0) -> 0 | BN82: =IF(SUM(BM$10:BM$10)>0,$E82*$H82,0) -> 0 | BP82: =IF(SUM(BO$10:BO$10)>0,$E82*$H82,0) -> 0 | BR82: =IF(SUM(BQ$10:BQ$10)>0,$E82*$H82,0) -> 0 | BT82: =IF(SUM(BS$10:BS$10)>0,$E82*$H82,0) -> 0 | BV82: =IF(SUM(BU$10:BU$10)>0,$E82*$H82,0) -> 0 | BX82: =IF(SUM(BW$10:BW$10)>0,$E82*$H82,0) -> 0 | BZ82: =IF(SUM(BY$10:BY$10)>0,$E82*$H82,0) -> 0 | CB82: =IF(SUM(CA$10:CA$10)>0,$E82*$H82,0) -> 0 | CD82: =IF(SUM(CC$10:CC$10)>0,$E82*$H82,0) -> 0 | CF82: =IF(SUM(CE$10:CE$10)>0,$E82*$H82,0) -> 0 | CH82: =IF(SUM(CG$10:CG$10)>0,$E82*$H82,0) -> 0 | CJ82: =IF(SUM(CI$10:CI$10)>0,$E82*$H82,0) -> 0 | CL82: =IF(SUM(CK$10:CK$10)>0,$E82*$H82,0) -> 0 | CN82: =IF(SUM(CM$10:CM$10)>0,$E82*$H82,0) -> 0 | CP82: =IF(SUM(CO$10:CO$10)>0,$E82*$H82,0) -> 0 | CR82: =IF(SUM(CQ$10:CQ$10)>0,$E82*$H82,0) -> 0 | CT82: =IF(SUM(CS$10:CS$10)>0,$E82*$H82,0) -> 0 | CV82: =IF(SUM(CU$10:CU$10)>0,$E82*$H82,0) -> 0 | CX82: =IF(SUM(CW$10:CW$10)>0,$E82*$H82,0) -> 0 | CZ82: =IF(SUM(CY$10:CY$10)>0,$E82*$H82,0) -> 0 | DB82: =IF(SUM(DA$10:DA$10)>0,$E82*$H82,0) -> 0 | DD82: =IF(SUM(DC$10:DC$10)>0,$E82*$H82,0) -> 0 | DF82: =IF(SUM(DE$10:DE$10)>0,$E82*$H82,0) -> 0 | DH82: =IF(SUM(DG$10:DG$10)>0,$E82*$H82,0) -> 0 | DJ82: =IF(SUM(DI$10:DI$10)>0,$E82*$H82,0) -> 0 | DL82: =IF(SUM(DK$10:DK$10)>0,$E82*$H82,0) -> 0 | DN82: =IF(SUM(DM$10:DM$10)>0,$E82*$H82,0) -> 0 | DP82: =IF(SUM(DO$10:DO$10)>0,$E82*$H82,0) -> 0 | DR82: =IF(SUM(DQ$10:DQ$10)>0,$E82*$H82,0) -> 0 | DT82: =IF(SUM(DS$10:DS$10)>0,$E82*$H82,0) -> 0 | DV82: =IF(SUM(DU$10:DU$10)>0,$E82*$H82,0) -> 0 | DX82: =IF(SUM(DW$10:DW$10)>0,$E82*$H82,0) -> 0 | DZ82: =IF(SUM(DY$10:DY$10)>0,$E82*$H82,0) -> 0
F83: =H78 ->  | G83: =F83*E83 ->  | L83: =IF(SUM(K$77:K$79)>0,$E83*$H83,0) -> 0 | N83: =IF(SUM(M$77:M$79)>0,$E83*$H83,0) -> 0 | P83: =IF(SUM(O$77:O$79)>0,$E83*$H83,0) -> 0 | R83: =IF(SUM(Q$77:Q$79)>0,$E83*$H83,0) -> 0 | T83: =IF(SUM(S$77:S$79)>0,$E83*$H83,0) -> 0 | V83: =IF(SUM(U$77:U$79)>0,$E83*$H83,0) -> 0 | X83: =IF(SUM(W$77:W$79)>0,$E83*$H83,0) -> 0 | Z83: =IF(SUM(Y$77:Y$79)>0,$E83*$H83,0) -> 0 | AB83: =IF(SUM(AA$77:AA$79)>0,$E83*$H83,0) -> 0 | AD83: =IF(SUM(AC$77:AC$79)>0,$E83*$H83,0) -> 0 | AF83: =IF(SUM(AE$77:AE$79)>0,$E83*$H83,0) -> 0 | AH83: =IF(SUM(AG$77:AG$79)>0,$E83*$H83,0) -> 0 | AJ83: =IF(SUM(AI$77:AI$79)>0,$E83*$H83,0) -> 0 | AL83: =IF(SUM(AK$77:AK$79)>0,$E83*$H83,0) -> 0 | AN83: =IF(SUM(AM$77:AM$79)>0,$E83*$H83,0) -> 0 | AP83: =IF(SUM(AO$77:AO$79)>0,$E83*$H83,0) -> 0 | AR83: =IF(SUM(AQ$77:AQ$79)>0,$E83*$H83,0) -> 0 | AT83: =IF(SUM(AS$77:AS$79)>0,$E83*$H83,0) -> 0 | AV83: 0 | AX83: 0 | AZ83: 0 | BB83: 0 | BD83: 0 | BF83: 0 | BH83: 0 | BJ83: 0 | BL83: 0 | BN83: 0 | BP83: 0 | BR83: 0 | BT83: 0 | BV83: 0 | BX83: 0 | BZ83: 0 | CB83: 0 | CD83: 0 | CF83: 0 | CH83: 0 | CJ83: 0 | CL83: 0 | CN83: 0 | CP83: 0 | CR83: 0 | CT83: 0 | CV83: 0 | CX83: 0 | CZ83: 0 | DB83: 0 | DD83: 0 | DF83: 0 | DH83: 0 | DJ83: 0 | DL83: 0 | DN83: 0 | DP83: 0 | DR83: 0 | DT83: 0 | DV83: 0 | DX83: 0 | DZ83: 0
F84: =F83 ->  | L84: =IF(SUM(K$77:K$79)>0,$E84*$H84,0) -> 0 | N84: 0 | P84: 0 | R84: 0 | T84: 0 | V84: 0 | X84: 0 | Z84: 0 | AB84: 0 | AD84: 0 | AF84: 0 | AH84: 0 | AJ84: 0 | AL84: 0 | AN84: 0 | AP84: 0 | AR84: 0 | AT84: 0 | AV84: 0 | AX84: 0 | AZ84: 0 | BB84: 0 | BD84: 0 | BF84: 0 | BH84: 0 | BJ84: 0 | BL84: 0 | BN84: 0 | BP84: 0 | BR84: 0 | BT84: 0 | BV84: 0 | BX84: 0 | BZ84: 0 | CB84: 0 | CD84: 0 | CF84: 0 | CH84: 0 | CJ84: 0 | CL84: 0 | CN84: 0 | CP84: 0 | CR84: 0 | CT84: 0 | CV84: 0 | CX84: 0 | CZ84: 0 | DB84: 0 | DD84: 0 | DF84: 0 | DH84: 0 | DJ84: 0 | DL84: 0 | DN84: 0 | DP84: 0 | DR84: 0 | DT84: 0 | DV84: 0 | DX84: 0 | DZ84: 0
F85: =F84 ->  | L85: 0 | N85: =IF(SUM(M$77:M$79)>0,$E85*$H85,0) -> 0 | P85: 0 | R85: 0 | T85: 0 | V85: 0 | X85: 0 | Z85: 0 | AB85: 0 | AD85: 0 | AF85: 0 | AH85: 0 | AJ85: 0 | AL85: 0 | AN85: 0 | AP85: 0 | AR85: 0 | AT85: 0 | AV85: 0 | AX85: 0 | AZ85: 0 | BB85: 0 | BD85: 0 | BF85: 0 | BH85: 0 | BJ85: 0 | BL85: 0 | BN85: 0 | BP85: 0 | BR85: 0 | BT85: 0 | BV85: 0 | BX85: 0 | BZ85: 0 | CB85: 0 | CD85: 0 | CF85: 0 | CH85: 0 | CJ85: 0 | CL85: 0 | CN85: 0 | CP85: 0 | CR85: 0 | CT85: 0 | CV85: 0 | CX85: 0 | CZ85: 0 | DB85: 0 | DD85: 0 | DF85: 0 | DH85: 0 | DJ85: 0 | DL85: 0 | DN85: 0 | DP85: 0 | DR85: 0 | DT85: 0 | DV85: 0 | DX85: 0 | DZ85: 0
L86: 0 | N86: 0 | P86: 0 | R86: 0 | T86: 0 | V86: 0 | X86: 0 | Z86: 0 | AB86: 0 | AD86: 0 | AF86: 0 | AH86: 0 | AJ86: 0 | AL86: 0 | AN86: 0 | AP86: 0 | AR86: 0 | AT86: 0 | AV86: 0 | AX86: 0 | AZ86: 0 | BB86: 0 | BD86: 0 | BF86: 0 | BH86: 0 | BJ86: 0 | BL86: 0 | BN86: 0 | BP86: 0 | BR86: 0 | BT86: 0 | BV86: 0 | BX86: 0 | BZ86: 0 | CB86: 0 | CD86: 0 | CF86: 0 | CH86: 0 | CJ86: 0 | CL86: 0 | CN86: 0 | CP86: 0 | CR86: 0 | CT86: 0 | CV86: 0 | CX86: 0 | CZ86: 0 | DB86: 0 | DD86: 0 | DF86: 0 | DH86: 0 | DJ86: 0 | DL86: 0 | DN86: 0 | DP86: 0 | DR86: 0 | DT86: 0 | DV86: 0 | DX86: 0 | DZ86: 0
L87: 0 | N87: 0 | P87: 0 | R87: 0 | T87: 0 | V87: 0 | X87: 0 | Z87: 0 | AB87: 0 | AD87: 0 | AF87: 0 | AH87: 0 | AJ87: 0 | AL87: 0 | AN87: 0 | AP87: 0 | AR87: 0 | AT87: 0 | AV87: 0 | AX87: 0 | AZ87: 0 | BB87: 0 | BD87: 0 | BF87: 0 | BH87: 0 | BJ87: 0 | BL87: 0 | BN87: 0 | BP87: 0 | BR87: 0 | BT87: 0 | BV87: 0 | BX87: 0 | BZ87: 0 | CB87: 0 | CD87: 0 | CF87: 0 | CH87: 0 | CJ87: 0 | CL87: 0 | CN87: 0 | CP87: 0 | CR87: 0 | CT87: 0 | CV87: 0 | CX87: 0 | CZ87: 0 | DB87: 0 | DD87: 0 | DF87: 0 | DH87: 0 | DJ87: 0 | DL87: 0 | DN87: 0 | DP87: 0 | DR87: 0 | DT87: 0 | DV87: 0 | DX87: 0 | DZ87: 0
L88: 0 | N88: 0 | P88: 0 | R88: 0 | T88: 0 | V88: 0 | X88: 0 | Z88: 0 | AB88: 0 | AD88: 0 | AF88: 0 | AH88: 0 | AJ88: 0 | AL88: 0 | AN88: 0 | AP88: 0 | AR88: 0 | AT88: 0 | AV88: 0 | AX88: 0 | AZ88: 0 | BB88: 0 | BD88: 0 | BF88: 0 | BH88: 0 | BJ88: 0 | BL88: 0 | BN88: 0 | BP88: 0 | BR88: 0 | BT88: 0 | BV88: 0 | BX88: 0 | BZ88: 0 | CB88: 0 | CD88: 0 | CF88: 0 | CH88: 0 | CJ88: 0 | CL88: 0 | CN88: 0 | CP88: 0 | CR88: 0 | CT88: 0 | CV88: 0 | CX88: 0 | CZ88: 0 | DB88: 0 | DD88: 0 | DF88: 0 | DH88: 0 | DJ88: 0 | DL88: 0 | DN88: 0 | DP88: 0 | DR88: 0 | DT88: 0 | DV88: 0 | DX88: 0 | DZ88: 0
C89: CATEGORIAS | H89: QUANTIDADE
D91: =HLOOKUP($C91,'Dados Gerais'!$D$5:$BK$10,6) ->  | H91: =HLOOKUP($C91,'Dados Gerais'!$D$5:$BK$14,10) ->  | K91: =IF($C91=K$6,1,0) -> 0 | M91: 0 | O91: 0 | Q91: 0 | S91: 0 | U91: 0 | W91: 0 | Y91: 0 | AA91: 0 | AC91: 0 | AE91: 0 | AG91: 0 | AI91: 0 | AK91: 0 | AM91: 0 | AO91: 0 | AQ91: 0 | AS91: 0 | AU91: =IF($C91=AU$6,1,0) -> 0 | AW91: =IF($C91=AW$6,1,0) -> 0 | AY91: =IF($C91=AY$6,1,0) -> 0 | BA91: =IF($C91=BA$6,1,0) -> 0 | BC91: =IF($C91=BC$6,1,0) -> 0 | BE91: =IF($C91=BE$6,1,0) -> 0 | BG91: =IF($C91=BG$6,1,0) -> 0 | BI91: =IF($C91=BI$6,1,0) -> 0 | BK91: =IF($C91=BK$6,1,0) -> 0 | BM91: =IF($C91=BM$6,1,0) -> 0 | BO91: =IF($C91=BO$6,1,0) -> 0 | BQ91: =IF($C91=BQ$6,1,0) -> 0 | BS91: =IF($C91=BS$6,1,0) -> 0 | BU91: =IF($C91=BU$6,1,0) -> 0 | BW91: =IF($C91=BW$6,1,0) -> 0 | BY91: =IF($C91=BY$6,1,0) -> 0 | CA91: =IF($C91=CA$6,1,0) -> 0 | CC91: =IF($C91=CC$6,1,0) -> 0 | CE91: =IF($C91=CE$6,1,0) -> 0 | CG91: =IF($C91=CG$6,1,0) -> 0 | CI91: =IF($C91=CI$6,1,0) -> 0 | CK91: =IF($C91=CK$6,1,0) -> 0 | CM91: =IF($C91=CM$6,1,0) -> 0 | CO91: =IF($C91=CO$6,1,0) -> 0 | CQ91: =IF($C91=CQ$6,1,0) -> 0 | CS91: =IF($C91=CS$6,1,0) -> 0 | CU91: =IF($C91=CU$6,1,0) -> 0 | CW91: =IF($C91=CW$6,1,0) -> 0 | CY91: =IF($C91=CY$6,1,0) -> 0 | DA91: =IF($C91=DA$6,1,0) -> 0 | DC91: =IF($C91=DC$6,1,0) -> 0 | DE91: =IF($C91=DE$6,1,0) -> 0 | DG91: =IF($C91=DG$6,1,0) -> 0 | DI91: =IF($C91=DI$6,1,0) -> 0 | DK91: =IF($C91=DK$6,1,0) -> 0 | DM91: =IF($C91=DM$6,1,0) -> 0 | DO91: =IF($C91=DO$6,1,0) -> 0 | DQ91: =IF($C91=DQ$6,1,0) -> 0 | DS91: =IF($C91=DS$6,1,0) -> 0 | DU91: =IF($C91=DU$6,1,0) -> 0 | DW91: =IF($C91=DW$6,1,0) -> 0 | DY91: =IF($C91=DY$6,1,0) -> 0
C94: ITEM | D94: DESCRIÇÃO | E94: QUANT ANUAL POR POSTO | F94: Nº DE POSTOS | G94: QUANT ANUAL TOTAL | H94: VALOR
AV95: =IF(SUM(AU$10:AU$10)>0,$E95*$H95,0) -> 0 | AX95: =IF(SUM(AW$10:AW$10)>0,$E95*$H95,0) -> 0 | AZ95: =IF(SUM(AY$10:AY$10)>0,$E95*$H95,0) -> 0 | BB95: =IF(SUM(BA$10:BA$10)>0,$E95*$H95,0) -> 0 | BD95: =IF(SUM(BC$10:BC$10)>0,$E95*$H95,0) -> 0 | BF95: =IF(SUM(BE$10:BE$10)>0,$E95*$H95,0) -> 0 | BH95: =IF(SUM(BG$10:BG$10)>0,$E95*$H95,0) -> 0 | BJ95: =IF(SUM(BI$10:BI$10)>0,$E95*$H95,0) -> 0 | BL95: =IF(SUM(BK$10:BK$10)>0,$E95*$H95,0) -> 0 | BN95: =IF(SUM(BM$10:BM$10)>0,$E95*$H95,0) -> 0 | BP95: =IF(SUM(BO$10:BO$10)>0,$E95*$H95,0) -> 0 | BR95: =IF(SUM(BQ$10:BQ$10)>0,$E95*$H95,0) -> 0 | BT95: =IF(SUM(BS$10:BS$10)>0,$E95*$H95,0) -> 0 | BV95: =IF(SUM(BU$10:BU$10)>0,$E95*$H95,0) -> 0 | BX95: =IF(SUM(BW$10:BW$10)>0,$E95*$H95,0) -> 0 | BZ95: =IF(SUM(BY$10:BY$10)>0,$E95*$H95,0) -> 0 | CB95: =IF(SUM(CA$10:CA$10)>0,$E95*$H95,0) -> 0 | CD95: =IF(SUM(CC$10:CC$10)>0,$E95*$H95,0) -> 0 | CF95: =IF(SUM(CE$10:CE$10)>0,$E95*$H95,0) -> 0 | CH95: =IF(SUM(CG$10:CG$10)>0,$E95*$H95,0) -> 0 | CJ95: =IF(SUM(CI$10:CI$10)>0,$E95*$H95,0) -> 0 | CL95: =IF(SUM(CK$10:CK$10)>0,$E95*$H95,0) -> 0 | CN95: =IF(SUM(CM$10:CM$10)>0,$E95*$H95,0) -> 0 | CP95: =IF(SUM(CO$10:CO$10)>0,$E95*$H95,0) -> 0 | CR95: =IF(SUM(CQ$10:CQ$10)>0,$E95*$H95,0) -> 0 | CT95: =IF(SUM(CS$10:CS$10)>0,$E95*$H95,0) -> 0 | CV95: =IF(SUM(CU$10:CU$10)>0,$E95*$H95,0) -> 0 | CX95: =IF(SUM(CW$10:CW$10)>0,$E95*$H95,0) -> 0 | CZ95: =IF(SUM(CY$10:CY$10)>0,$E95*$H95,0) -> 0 | DB95: =IF(SUM(DA$10:DA$10)>0,$E95*$H95,0) -> 0 | DD95: =IF(SUM(DC$10:DC$10)>0,$E95*$H95,0) -> 0 | DF95: =IF(SUM(DE$10:DE$10)>0,$E95*$H95,0) -> 0 | DH95: =IF(SUM(DG$10:DG$10)>0,$E95*$H95,0) -> 0 | DJ95: =IF(SUM(DI$10:DI$10)>0,$E95*$H95,0) -> 0 | DL95: =IF(SUM(DK$10:DK$10)>0,$E95*$H95,0) -> 0 | DN95: =IF(SUM(DM$10:DM$10)>0,$E95*$H95,0) -> 0 | DP95: =IF(SUM(DO$10:DO$10)>0,$E95*$H95,0) -> 0 | DR95: =IF(SUM(DQ$10:DQ$10)>0,$E95*$H95,0) -> 0 | DT95: =IF(SUM(DS$10:DS$10)>0,$E95*$H95,0) -> 0 | DV95: =IF(SUM(DU$10:DU$10)>0,$E95*$H95,0) -> 0 | DX95: =IF(SUM(DW$10:DW$10)>0,$E95*$H95,0) -> 0 | DZ95: =IF(SUM(DY$10:DY$10)>0,$E95*$H95,0) -> 0
F96: =H91 ->  | G96: =F96*E96 ->  | L96: =IF(SUM(K$90:K$92)>0,$E96*$H96,0) -> 0 | N96: =IF(SUM(M$90:M$92)>0,$E96*$H96,0) -> 0 | P96: =IF(SUM(O$90:O$92)>0,$E96*$H96,0) -> 0 | R96: =IF(SUM(Q$90:Q$92)>0,$E96*$H96,0) -> 0 | T96: =IF(SUM(S$90:S$92)>0,$E96*$H96,0) -> 0 | V96: =IF(SUM(U$90:U$92)>0,$E96*$H96,0) -> 0 | X96: =IF(SUM(W$90:W$92)>0,$E96*$H96,0) -> 0 | Z96: =IF(SUM(Y$90:Y$92)>0,$E96*$H96,0) -> 0 | AB96: =IF(SUM(AA$90:AA$92)>0,$E96*$H96,0) -> 0 | AD96: =IF(SUM(AC$90:AC$92)>0,$E96*$H96,0) -> 0 | AF96: =IF(SUM(AE$90:AE$92)>0,$E96*$H96,0) -> 0 | AH96: =IF(SUM(AG$90:AG$92)>0,$E96*$H96,0) -> 0 | AJ96: =IF(SUM(AI$90:AI$92)>0,$E96*$H96,0) -> 0 | AL96: =IF(SUM(AK$90:AK$92)>0,$E96*$H96,0) -> 0 | AN96: =IF(SUM(AM$90:AM$92)>0,$E96*$H96,0) -> 0 | AP96: =IF(SUM(AO$90:AO$92)>0,$E96*$H96,0) -> 0 | AR96: =IF(SUM(AQ$90:AQ$92)>0,$E96*$H96,0) -> 0 | AT96: =IF(SUM(AS$90:AS$92)>0,$E96*$H96,0) -> 0 | AV96: 0 | AX96: 0 | AZ96: 0 | BB96: 0 | BD96: 0 | BF96: 0 | BH96: 0 | BJ96: 0 | BL96: 0 | BN96: 0 | BP96: 0 | BR96: 0 | BT96: 0 | BV96: 0 | BX96: 0 | BZ96: 0 | CB96: 0 | CD96: 0 | CF96: 0 | CH96: 0 | CJ96: 0 | CL96: 0 | CN96: 0 | CP96: 0 | CR96: 0 | CT96: 0 | CV96: 0 | CX96: 0 | CZ96: 0 | DB96: 0 | DD96: 0 | DF96: 0 | DH96: 0 | DJ96: 0 | DL96: 0 | DN96: 0 | DP96: 0 | DR96: 0 | DT96: 0 | DV96: 0 | DX96: 0 | DZ96: 0
F97: =F96 ->  | L97: =IF(SUM(K$90:K$92)>0,$E97*$H97,0) -> 0 | N97: 0 | P97: 0 | R97: 0 | T97: 0 | V97: 0 | X97: 0 | Z97: 0 | AB97: 0 | AD97: 0 | AF97: 0 | AH97: 0 | AJ97: 0 | AL97: 0 | AN97: 0 | AP97: 0 | AR97: 0 | AT97: 0 | AV97: 0 | AX97: 0 | AZ97: 0 | BB97: 0 | BD97: 0 | BF97: 0 | BH97: 0 | BJ97: 0 | BL97: 0 | BN97: 0 | BP97: 0 | BR97: 0 | BT97: 0 | BV97: 0 | BX97: 0 | BZ97: 0 | CB97: 0 | CD97: 0 | CF97: 0 | CH97: 0 | CJ97: 0 | CL97: 0 | CN97: 0 | CP97: 0 | CR97: 0 | CT97: 0 | CV97: 0 | CX97: 0 | CZ97: 0 | DB97: 0 | DD97: 0 | DF97: 0 | DH97: 0 | DJ97: 0 | DL97: 0 | DN97: 0 | DP97: 0 | DR97: 0 | DT97: 0 | DV97: 0 | DX97: 0 | DZ97: 0
F98: =F97 ->  | L98: 0 | N98: =IF(SUM(M$90:M$92)>0,$E98*$H98,0) -> 0 | P98: 0 | R98: 0 | T98: 0 | V98: 0 | X98: 0 | Z98: 0 | AB98: 0 | AD98: 0 | AF98: 0 | AH98: 0 | AJ98: 0 | AL98: 0 | AN98: 0 | AP98: 0 | AR98: 0 | AT98: 0 | AV98: 0 | AX98: 0 | AZ98: 0 | BB98: 0 | BD98: 0 | BF98: 0 | BH98: 0 | BJ98: 0 | BL98: 0 | BN98: 0 | BP98: 0 | BR98: 0 | BT98: 0 | BV98: 0 | BX98: 0 | BZ98: 0 | CB98: 0 | CD98: 0 | CF98: 0 | CH98: 0 | CJ98: 0 | CL98: 0 | CN98: 0 | CP98: 0 | CR98: 0 | CT98: 0 | CV98: 0 | CX98: 0 | CZ98: 0 | DB98: 0 | DD98: 0 | DF98: 0 | DH98: 0 | DJ98: 0 | DL98: 0 | DN98: 0 | DP98: 0 | DR98: 0 | DT98: 0 | DV98: 0 | DX98: 0 | DZ98: 0
L99: 0 | N99: 0 | P99: 0 | R99: 0 | T99: 0 | V99: 0 | X99: 0 | Z99: 0 | AB99: 0 | AD99: 0 | AF99: 0 | AH99: 0 | AJ99: 0 | AL99: 0 | AN99: 0 | AP99: 0 | AR99: 0 | AT99: 0 | AV99: 0 | AX99: 0 | AZ99: 0 | BB99: 0 | BD99: 0 | BF99: 0 | BH99: 0 | BJ99: 0 | BL99: 0 | BN99: 0 | BP99: 0 | BR99: 0 | BT99: 0 | BV99: 0 | BX99: 0 | BZ99: 0 | CB99: 0 | CD99: 0 | CF99: 0 | CH99: 0 | CJ99: 0 | CL99: 0 | CN99: 0 | CP99: 0 | CR99: 0 | CT99: 0 | CV99: 0 | CX99: 0 | CZ99: 0 | DB99: 0 | DD99: 0 | DF99: 0 | DH99: 0 | DJ99: 0 | DL99: 0 | DN99: 0 | DP99: 0 | DR99: 0 | DT99: 0 | DV99: 0 | DX99: 0 | DZ99: 0
L100: 0 | N100: 0 | P100: 0 | R100: 0 | T100: 0 | V100: 0 | X100: 0 | Z100: 0 | AB100: 0 | AD100: 0 | AF100: 0 | AH100: 0 | AJ100: 0 | AL100: 0 | AN100: 0 | AP100: 0 | AR100: 0 | AT100: 0 | AV100: 0 | AX100: 0 | AZ100: 0 | BB100: 0 | BD100: 0 | BF100: 0 | BH100: 0 | BJ100: 0 | BL100: 0 | BN100: 0 | BP100: 0 | BR100: 0 | BT100: 0 | BV100: 0 | BX100: 0 | BZ100: 0 | CB100: 0 | CD100: 0 | CF100: 0 | CH100: 0 | CJ100: 0 | CL100: 0 | CN100: 0 | CP100: 0 | CR100: 0 | CT100: 0 | CV100: 0 | CX100: 0 | CZ100: 0 | DB100: 0 | DD100: 0 | DF100: 0 | DH100: 0 | DJ100: 0 | DL100: 0 | DN100: 0 | DP100: 0 | DR100: 0 | DT100: 0 | DV100: 0 | DX100: 0 | DZ100: 0
F101: =F100 ->  | L101: 0 | N101: 0 | P101: 0 | R101: 0 | T101: 0 | V101: 0 | X101: 0 | Z101: 0 | AB101: 0 | AD101: 0 | AF101: 0 | AH101: 0 | AJ101: 0 | AL101: 0 | AN101: 0 | AP101: 0 | AR101: 0 | AT101: 0 | AV101: 0 | AX101: 0 | AZ101: 0 | BB101: 0 | BD101: 0 | BF101: 0 | BH101: 0 | BJ101: 0 | BL101: 0 | BN101: 0 | BP101: 0 | BR101: 0 | BT101: 0 | BV101: 0 | BX101: 0 | BZ101: 0 | CB101: 0 | CD101: 0 | CF101: 0 | CH101: 0 | CJ101: 0 | CL101: 0 | CN101: 0 | CP101: 0 | CR101: 0 | CT101: 0 | CV101: 0 | CX101: 0 | CZ101: 0 | DB101: 0 | DD101: 0 | DF101: 0 | DH101: 0 | DJ101: 0 | DL101: 0 | DN101: 0 | DP101: 0 | DR101: 0 | DT101: 0 | DV101: 0 | DX101: 0 | DZ101: 0
L102: 0 | N102: 0 | P102: 0 | R102: 0 | T102: 0 | V102: 0 | X102: 0 | Z102: 0 | AB102: 0 | AD102: 0 | AF102: 0 | AH102: 0 | AJ102: 0 | AL102: 0 | AN102: 0 | AP102: 0 | AR102: 0 | AT102: 0 | AV102: 0 | AX102: 0 | AZ102: 0 | BB102: 0 | BD102: 0 | BF102: 0 | BH102: 0 | BJ102: 0 | BL102: 0 | BN102: 0 | BP102: 0 | BR102: 0 | BT102: 0 | BV102: 0 | BX102: 0 | BZ102: 0 | CB102: 0 | CD102: 0 | CF102: 0 | CH102: 0 | CJ102: 0 | CL102: 0 | CN102: 0 | CP102: 0 | CR102: 0 | CT102: 0 | CV102: 0 | CX102: 0 | CZ102: 0 | DB102: 0 | DD102: 0 | DF102: 0 | DH102: 0 | DJ102: 0 | DL102: 0 | DN102: 0 | DP102: 0 | DR102: 0 | DT102: 0 | DV102: 0 | DX102: 0 | DZ102: 0
C103: CATEGORIAS | H103: QUANTIDADE
D105: =HLOOKUP($C105,'Dados Gerais'!$D$5:$BK$10,6) ->  | H105: =HLOOKUP($C105,'Dados Gerais'!$D$5:$BK$14,10) ->  | K105: =IF($C105=K$6,1,0) -> 0 | M105: 0 | O105: 0 | Q105: 0 | S105: 0 | U105: 0 | W105: 0 | Y105: 0 | AA105: 0 | AC105: 0 | AE105: 0 | AG105: 0 | AI105: 0 | AK105: 0 | AM105: 0 | AO105: 0 | AQ105: 0 | AS105: 0 | AU105: =IF($C105=AU$6,1,0) -> 0 | AW105: =IF($C105=AW$6,1,0) -> 0 | AY105: =IF($C105=AY$6,1,0) -> 0 | BA105: =IF($C105=BA$6,1,0) -> 0 | BC105: =IF($C105=BC$6,1,0) -> 0 | BE105: =IF($C105=BE$6,1,0) -> 0 | BG105: =IF($C105=BG$6,1,0) -> 0 | BI105: =IF($C105=BI$6,1,0) -> 0 | BK105: =IF($C105=BK$6,1,0) -> 0 | BM105: =IF($C105=BM$6,1,0) -> 0 | BO105: =IF($C105=BO$6,1,0) -> 0 | BQ105: =IF($C105=BQ$6,1,0) -> 0 | BS105: =IF($C105=BS$6,1,0) -> 0 | BU105: =IF($C105=BU$6,1,0) -> 0 | BW105: =IF($C105=BW$6,1,0) -> 0 | BY105: =IF($C105=BY$6,1,0) -> 0 | CA105: =IF($C105=CA$6,1,0) -> 0 | CC105: =IF($C105=CC$6,1,0) -> 0 | CE105: =IF($C105=CE$6,1,0) -> 0 | CG105: =IF($C105=CG$6,1,0) -> 0 | CI105: =IF($C105=CI$6,1,0) -> 0 | CK105: =IF($C105=CK$6,1,0) -> 0 | CM105: =IF($C105=CM$6,1,0) -> 0 | CO105: =IF($C105=CO$6,1,0) -> 0 | CQ105: =IF($C105=CQ$6,1,0) -> 0 | CS105: =IF($C105=CS$6,1,0) -> 0 | CU105: =IF($C105=CU$6,1,0) -> 0 | CW105: =IF($C105=CW$6,1,0) -> 0 | CY105: =IF($C105=CY$6,1,0) -> 0 | DA105: =IF($C105=DA$6,1,0) -> 0 | DC105: =IF($C105=DC$6,1,0) -> 0 | DE105: =IF($C105=DE$6,1,0) -> 0 | DG105: =IF($C105=DG$6,1,0) -> 0 | DI105: =IF($C105=DI$6,1,0) -> 0 | DK105: =IF($C105=DK$6,1,0) -> 0 | DM105: =IF($C105=DM$6,1,0) -> 0 | DO105: =IF($C105=DO$6,1,0) -> 0 | DQ105: =IF($C105=DQ$6,1,0) -> 0 | DS105: =IF($C105=DS$6,1,0) -> 0 | DU105: =IF($C105=DU$6,1,0) -> 0 | DW105: =IF($C105=DW$6,1,0) -> 0 | DY105: =IF($C105=DY$6,1,0) -> 0
C108: ITEM | D108: DESCRIÇÃO | E108: QUANT ANUAL POR POSTO | F108: Nº DE POSTOS | G108: QUANT ANUAL TOTAL | H108: VALOR
AV109: =IF(SUM(AU$10:AU$10)>0,$E109*$H109,0) -> 0 | AX109: =IF(SUM(AW$10:AW$10)>0,$E109*$H109,0) -> 0 | AZ109: =IF(SUM(AY$10:AY$10)>0,$E109*$H109,0) -> 0 | BB109: =IF(SUM(BA$10:BA$10)>0,$E109*$H109,0) -> 0 | BD109: =IF(SUM(BC$10:BC$10)>0,$E109*$H109,0) -> 0 | BF109: =IF(SUM(BE$10:BE$10)>0,$E109*$H109,0) -> 0 | BH109: =IF(SUM(BG$10:BG$10)>0,$E109*$H109,0) -> 0 | BJ109: =IF(SUM(BI$10:BI$10)>0,$E109*$H109,0) -> 0 | BL109: =IF(SUM(BK$10:BK$10)>0,$E109*$H109,0) -> 0 | BN109: =IF(SUM(BM$10:BM$10)>0,$E109*$H109,0) -> 0 | BP109: =IF(SUM(BO$10:BO$10)>0,$E109*$H109,0) -> 0 | BR109: =IF(SUM(BQ$10:BQ$10)>0,$E109*$H109,0) -> 0 | BT109: =IF(SUM(BS$10:BS$10)>0,$E109*$H109,0) -> 0 | BV109: =IF(SUM(BU$10:BU$10)>0,$E109*$H109,0) -> 0 | BX109: =IF(SUM(BW$10:BW$10)>0,$E109*$H109,0) -> 0 | BZ109: =IF(SUM(BY$10:BY$10)>0,$E109*$H109,0) -> 0 | CB109: =IF(SUM(CA$10:CA$10)>0,$E109*$H109,0) -> 0 | CD109: =IF(SUM(CC$10:CC$10)>0,$E109*$H109,0) -> 0 | CF109: =IF(SUM(CE$10:CE$10)>0,$E109*$H109,0) -> 0 | CH109: =IF(SUM(CG$10:CG$10)>0,$E109*$H109,0) -> 0 | CJ109: =IF(SUM(CI$10:CI$10)>0,$E109*$H109,0) -> 0 | CL109: =IF(SUM(CK$10:CK$10)>0,$E109*$H109,0) -> 0 | CN109: =IF(SUM(CM$10:CM$10)>0,$E109*$H109,0) -> 0 | CP109: =IF(SUM(CO$10:CO$10)>0,$E109*$H109,0) -> 0 | CR109: =IF(SUM(CQ$10:CQ$10)>0,$E109*$H109,0) -> 0 | CT109: =IF(SUM(CS$10:CS$10)>0,$E109*$H109,0) -> 0 | CV109: =IF(SUM(CU$10:CU$10)>0,$E109*$H109,0) -> 0 | CX109: =IF(SUM(CW$10:CW$10)>0,$E109*$H109,0) -> 0 | CZ109: =IF(SUM(CY$10:CY$10)>0,$E109*$H109,0) -> 0 | DB109: =IF(SUM(DA$10:DA$10)>0,$E109*$H109,0) -> 0 | DD109: =IF(SUM(DC$10:DC$10)>0,$E109*$H109,0) -> 0 | DF109: =IF(SUM(DE$10:DE$10)>0,$E109*$H109,0) -> 0 | DH109: =IF(SUM(DG$10:DG$10)>0,$E109*$H109,0) -> 0 | DJ109: =IF(SUM(DI$10:DI$10)>0,$E109*$H109,0) -> 0 | DL109: =IF(SUM(DK$10:DK$10)>0,$E109*$H109,0) -> 0 | DN109: =IF(SUM(DM$10:DM$10)>0,$E109*$H109,0) -> 0 | DP109: =IF(SUM(DO$10:DO$10)>0,$E109*$H109,0) -> 0 | DR109: =IF(SUM(DQ$10:DQ$10)>0,$E109*$H109,0) -> 0 | DT109: =IF(SUM(DS$10:DS$10)>0,$E109*$H109,0) -> 0 | DV109: =IF(SUM(DU$10:DU$10)>0,$E109*$H109,0) -> 0 | DX109: =IF(SUM(DW$10:DW$10)>0,$E109*$H109,0) -> 0 | DZ109: =IF(SUM(DY$10:DY$10)>0,$E109*$H109,0) -> 0
F110: =H105 ->  | G110: =F110*E110 ->  | L110: =IF(SUM(K$104:K$106)>0,$E110*$H110,0) -> 0 | N110: =IF(SUM(M$104:M$106)>0,$E110*$H110,0) -> 0 | P110: =IF(SUM(O$104:O$106)>0,$E110*$H110,0) -> 0 | R110: =IF(SUM(Q$104:Q$106)>0,$E110*$H110,0) -> 0 | T110: =IF(SUM(S$104:S$106)>0,$E110*$H110,0) -> 0 | V110: =IF(SUM(U$104:U$106)>0,$E110*$H110,0) -> 0 | X110: =IF(SUM(W$104:W$106)>0,$E110*$H110,0) -> 0 | Z110: =IF(SUM(Y$104:Y$106)>0,$E110*$H110,0) -> 0 | AB110: =IF(SUM(AA$104:AA$106)>0,$E110*$H110,0) -> 0 | AD110: =IF(SUM(AC$104:AC$106)>0,$E110*$H110,0) -> 0 | AF110: =IF(SUM(AE$104:AE$106)>0,$E110*$H110,0) -> 0 | AH110: =IF(SUM(AG$104:AG$106)>0,$E110*$H110,0) -> 0 | AJ110: =IF(SUM(AI$104:AI$106)>0,$E110*$H110,0) -> 0 | AL110: =IF(SUM(AK$104:AK$106)>0,$E110*$H110,0) -> 0 | AN110: =IF(SUM(AM$104:AM$106)>0,$E110*$H110,0) -> 0 | AP110: =IF(SUM(AO$104:AO$106)>0,$E110*$H110,0) -> 0 | AR110: =IF(SUM(AQ$104:AQ$106)>0,$E110*$H110,0) -> 0 | AT110: =IF(SUM(AS$104:AS$106)>0,$E110*$H110,0) -> 0 | AV110: 0 | AX110: 0 | AZ110: 0 | BB110: 0 | BD110: 0 | BF110: 0 | BH110: 0 | BJ110: 0 | BL110: 0 | BN110: 0 | BP110: 0 | BR110: 0 | BT110: 0 | BV110: 0 | BX110: 0 | BZ110: 0 | CB110: 0 | CD110: 0 | CF110: 0 | CH110: 0 | CJ110: 0 | CL110: 0 | CN110: 0 | CP110: 0 | CR110: 0 | CT110: 0 | CV110: 0 | CX110: 0 | CZ110: 0 | DB110: 0 | DD110: 0 | DF110: 0 | DH110: 0 | DJ110: 0 | DL110: 0 | DN110: 0 | DP110: 0 | DR110: 0 | DT110: 0 | DV110: 0 | DX110: 0 | DZ110: 0
F111: =F110 ->  | L111: =IF(SUM(K$104:K$106)>0,$E111*$H111,0) -> 0 | N111: 0 | P111: 0 | R111: 0 | T111: 0 | V111: 0 | X111: 0 | Z111: 0 | AB111: 0 | AD111: 0 | AF111: 0 | AH111: 0 | AJ111: 0 | AL111: 0 | AN111: 0 | AP111: 0 | AR111: 0 | AT111: 0 | AV111: 0 | AX111: 0 | AZ111: 0 | BB111: 0 | BD111: 0 | BF111: 0 | BH111: 0 | BJ111: 0 | BL111: 0 | BN111: 0 | BP111: 0 | BR111: 0 | BT111: 0 | BV111: 0 | BX111: 0 | BZ111: 0 | CB111: 0 | CD111: 0 | CF111: 0 | CH111: 0 | CJ111: 0 | CL111: 0 | CN111: 0 | CP111: 0 | CR111: 0 | CT111: 0 | CV111: 0 | CX111: 0 | CZ111: 0 | DB111: 0 | DD111: 0 | DF111: 0 | DH111: 0 | DJ111: 0 | DL111: 0 | DN111: 0 | DP111: 0 | DR111: 0 | DT111: 0 | DV111: 0 | DX111: 0 | DZ111: 0
F112: =F111 ->  | L112: 0 | N112: =IF(SUM(M$104:M$106)>0,$E112*$H112,0) -> 0 | P112: 0 | R112: 0 | T112: 0 | V112: 0 | X112: 0 | Z112: 0 | AB112: 0 | AD112: 0 | AF112: 0 | AH112: 0 | AJ112: 0 | AL112: 0 | AN112: 0 | AP112: 0 | AR112: 0 | AT112: 0 | AV112: 0 | AX112: 0 | AZ112: 0 | BB112: 0 | BD112: 0 | BF112: 0 | BH112: 0 | BJ112: 0 | BL112: 0 | BN112: 0 | BP112: 0 | BR112: 0 | BT112: 0 | BV112: 0 | BX112: 0 | BZ112: 0 | CB112: 0 | CD112: 0 | CF112: 0 | CH112: 0 | CJ112: 0 | CL112: 0 | CN112: 0 | CP112: 0 | CR112: 0 | CT112: 0 | CV112: 0 | CX112: 0 | CZ112: 0 | DB112: 0 | DD112: 0 | DF112: 0 | DH112: 0 | DJ112: 0 | DL112: 0 | DN112: 0 | DP112: 0 | DR112: 0 | DT112: 0 | DV112: 0 | DX112: 0 | DZ112: 0
L113: 0 | N113: 0 | P113: 0 | R113: 0 | T113: 0 | V113: 0 | X113: 0 | Z113: 0 | AB113: 0 | AD113: 0 | AF113: 0 | AH113: 0 | AJ113: 0 | AL113: 0 | AN113: 0 | AP113: 0 | AR113: 0 | AT113: 0 | AV113: 0 | AX113: 0 | AZ113: 0 | BB113: 0 | BD113: 0 | BF113: 0 | BH113: 0 | BJ113: 0 | BL113: 0 | BN113: 0 | BP113: 0 | BR113: 0 | BT113: 0 | BV113: 0 | BX113: 0 | BZ113: 0 | CB113: 0 | CD113: 0 | CF113: 0 | CH113: 0 | CJ113: 0 | CL113: 0 | CN113: 0 | CP113: 0 | CR113: 0 | CT113: 0 | CV113: 0 | CX113: 0 | CZ113: 0 | DB113: 0 | DD113: 0 | DF113: 0 | DH113: 0 | DJ113: 0 | DL113: 0 | DN113: 0 | DP113: 0 | DR113: 0 | DT113: 0 | DV113: 0 | DX113: 0 | DZ113: 0
L114: 0 | N114: 0 | P114: 0 | R114: 0 | T114: 0 | V114: 0 | X114: 0 | Z114: 0 | AB114: 0 | AD114: 0 | AF114: 0 | AH114: 0 | AJ114: 0 | AL114: 0 | AN114: 0 | AP114: 0 | AR114: 0 | AT114: 0 | AV114: 0 | AX114: 0 | AZ114: 0 | BB114: 0 | BD114: 0 | BF114: 0 | BH114: 0 | BJ114: 0 | BL114: 0 | BN114: 0 | BP114: 0 | BR114: 0 | BT114: 0 | BV114: 0 | BX114: 0 | BZ114: 0 | CB114: 0 | CD114: 0 | CF114: 0 | CH114: 0 | CJ114: 0 | CL114: 0 | CN114: 0 | CP114: 0 | CR114: 0 | CT114: 0 | CV114: 0 | CX114: 0 | CZ114: 0 | DB114: 0 | DD114: 0 | DF114: 0 | DH114: 0 | DJ114: 0 | DL114: 0 | DN114: 0 | DP114: 0 | DR114: 0 | DT114: 0 | DV114: 0 | DX114: 0 | DZ114: 0
F115: =F114 ->  | L115: 0 | N115: 0 | P115: 0 | R115: 0 | T115: 0 | V115: 0 | X115: 0 | Z115: 0 | AB115: 0 | AD115: 0 | AF115: 0 | AH115: 0 | AJ115: 0 | AL115: 0 | AN115: 0 | AP115: 0 | AR115: 0 | AT115: 0 | AV115: 0 | AX115: 0 | AZ115: 0 | BB115: 0 | BD115: 0 | BF115: 0 | BH115: 0 | BJ115: 0 | BL115: 0 | BN115: 0 | BP115: 0 | BR115: 0 | BT115: 0 | BV115: 0 | BX115: 0 | BZ115: 0 | CB115: 0 | CD115: 0 | CF115: 0 | CH115: 0 | CJ115: 0 | CL115: 0 | CN115: 0 | CP115: 0 | CR115: 0 | CT115: 0 | CV115: 0 | CX115: 0 | CZ115: 0 | DB115: 0 | DD115: 0 | DF115: 0 | DH115: 0 | DJ115: 0 | DL115: 0 | DN115: 0 | DP115: 0 | DR115: 0 | DT115: 0 | DV115: 0 | DX115: 0 | DZ115: 0
L116: 0 | N116: 0 | P116: 0 | R116: 0 | T116: 0 | V116: 0 | X116: 0 | Z116: 0 | AB116: 0 | AD116: 0 | AF116: 0 | AH116: 0 | AJ116: 0 | AL116: 0 | AN116: 0 | AP116: 0 | AR116: 0 | AT116: 0 | AV116: 0 | AX116: 0 | AZ116: 0 | BB116: 0 | BD116: 0 | BF116: 0 | BH116: 0 | BJ116: 0 | BL116: 0 | BN116: 0 | BP116: 0 | BR116: 0 | BT116: 0 | BV116: 0 | BX116: 0 | BZ116: 0 | CB116: 0 | CD116: 0 | CF116: 0 | CH116: 0 | CJ116: 0 | CL116: 0 | CN116: 0 | CP116: 0 | CR116: 0 | CT116: 0 | CV116: 0 | CX116: 0 | CZ116: 0 | DB116: 0 | DD116: 0 | DF116: 0 | DH116: 0 | DJ116: 0 | DL116: 0 | DN116: 0 | DP116: 0 | DR116: 0 | DT116: 0 | DV116: 0 | DX116: 0 | DZ116: 0
C117: CATEGORIAS | H117: QUANTIDADE
D119: =HLOOKUP($C119,'Dados Gerais'!$D$5:$BK$10,6) ->  | H119: =HLOOKUP($C119,'Dados Gerais'!$D$5:$BK$14,10) ->  | K119: =IF($C119=K$6,1,0) -> 0 | M119: 0 | O119: 0 | Q119: 0 | S119: 0 | U119: 0 | W119: 0 | Y119: 0 | AA119: =IF($C119=AA$6,1,0) -> 0 | AC119: 0 | AE119: 0 | AG119: 0 | AI119: 0 | AK119: 0 | AM119: 0 | AO119: 0 | AQ119: 0 | AS119: 0 | AU119: =IF($C119=AU$6,1,0) -> 0 | AW119: =IF($C119=AW$6,1,0) -> 0 | AY119: =IF($C119=AY$6,1,0) -> 0 | BA119: =IF($C119=BA$6,1,0) -> 0 | BC119: =IF($C119=BC$6,1,0) -> 0 | BE119: =IF($C119=BE$6,1,0) -> 0 | BG119: =IF($C119=BG$6,1,0) -> 0 | BI119: =IF($C119=BI$6,1,0) -> 0 | BK119: =IF($C119=BK$6,1,0) -> 0 | BM119: =IF($C119=BM$6,1,0) -> 0 | BO119: =IF($C119=BO$6,1,0) -> 0 | BQ119: =IF($C119=BQ$6,1,0) -> 0 | BS119: =IF($C119=BS$6,1,0) -> 0 | BU119: =IF($C119=BU$6,1,0) -> 0 | BW119: =IF($C119=BW$6,1,0) -> 0 | BY119: =IF($C119=BY$6,1,0) -> 0 | CA119: =IF($C119=CA$6,1,0) -> 0 | CC119: =IF($C119=CC$6,1,0) -> 0 | CE119: =IF($C119=CE$6,1,0) -> 0 | CG119: =IF($C119=CG$6,1,0) -> 0 | CI119: =IF($C119=CI$6,1,0) -> 0 | CK119: =IF($C119=CK$6,1,0) -> 0 | CM119: =IF($C119=CM$6,1,0) -> 0 | CO119: =IF($C119=CO$6,1,0) -> 0 | CQ119: =IF($C119=CQ$6,1,0) -> 0 | CS119: =IF($C119=CS$6,1,0) -> 0 | CU119: =IF($C119=CU$6,1,0) -> 0 | CW119: =IF($C119=CW$6,1,0) -> 0 | CY119: =IF($C119=CY$6,1,0) -> 0 | DA119: =IF($C119=DA$6,1,0) -> 0 | DC119: =IF($C119=DC$6,1,0) -> 0 | DE119: =IF($C119=DE$6,1,0) -> 0 | DG119: =IF($C119=DG$6,1,0) -> 0 | DI119: =IF($C119=DI$6,1,0) -> 0 | DK119: =IF($C119=DK$6,1,0) -> 0 | DM119: =IF($C119=DM$6,1,0) -> 0 | DO119: =IF($C119=DO$6,1,0) -> 0 | DQ119: =IF($C119=DQ$6,1,0) -> 0 | DS119: =IF($C119=DS$6,1,0) -> 0 | DU119: =IF($C119=DU$6,1,0) -> 0 | DW119: =IF($C119=DW$6,1,0) -> 0 | DY119: =IF($C119=DY$6,1,0) -> 0
D120: =HLOOKUP($C120,'Dados Gerais'!$D$5:$BK$10,6) ->  | H120: =HLOOKUP($C120,'Dados Gerais'!$D$5:$BK$14,10) ->  | K120: 0 | M120: 0 | O120: 0 | Q120: 0 | S120: 0 | U120: 0 | W120: 0 | Y120: 0 | AA120: 0 | AC120: 0 | AE120: 0 | AG120: 0 | AI120: 0 | AK120: 0 | AM120: 0 | AO120: 0 | AQ120: 0 | AS120: 0 | AU120: 0 | AW120: 0 | AY120: 0 | BA120: 0 | BC120: 0 | BE120: 0 | BG120: 0 | BI120: 0 | BK120: 0 | BM120: 0 | BO120: 0 | BQ120: 0 | BS120: 0 | BU120: 0 | BW120: 0 | BY120: 0 | CA120: 0 | CC120: 0 | CE120: 0 | CG120: 0 | CI120: 0 | CK120: 0 | CM120: 0 | CO120: 0 | CQ120: 0 | CS120: 0 | CU120: 0 | CW120: 0 | CY120: 0 | DA120: 0 | DC120: 0 | DE120: 0 | DG120: 0 | DI120: 0 | DK120: 0 | DM120: 0 | DO120: 0 | DQ120: 0 | DS120: 0 | DU120: 0 | DW120: 0 | DY120: 0
C123: ITEM | D123: DESCRIÇÃO | E123: QUANT ANUAL POR POSTO | F123: Nº DE POSTOS | G123: QUANT ANUAL TOTAL | H123: VALOR
AV124: =IF(SUM(AU$10:AU$10)>0,$E124*$H124,0) -> 0 | AX124: =IF(SUM(AW$10:AW$10)>0,$E124*$H124,0) -> 0 | AZ124: =IF(SUM(AY$10:AY$10)>0,$E124*$H124,0) -> 0 | BB124: =IF(SUM(BA$10:BA$10)>0,$E124*$H124,0) -> 0 | BD124: =IF(SUM(BC$10:BC$10)>0,$E124*$H124,0) -> 0 | BF124: =IF(SUM(BE$10:BE$10)>0,$E124*$H124,0) -> 0 | BH124: =IF(SUM(BG$10:BG$10)>0,$E124*$H124,0) -> 0 | BJ124: =IF(SUM(BI$10:BI$10)>0,$E124*$H124,0) -> 0 | BL124: =IF(SUM(BK$10:BK$10)>0,$E124*$H124,0) -> 0 | BN124: =IF(SUM(BM$10:BM$10)>0,$E124*$H124,0) -> 0 | BP124: =IF(SUM(BO$10:BO$10)>0,$E124*$H124,0) -> 0 | BR124: =IF(SUM(BQ$10:BQ$10)>0,$E124*$H124,0) -> 0 | BT124: =IF(SUM(BS$10:BS$10)>0,$E124*$H124,0) -> 0 | BV124: =IF(SUM(BU$10:BU$10)>0,$E124*$H124,0) -> 0 | BX124: =IF(SUM(BW$10:BW$10)>0,$E124*$H124,0) -> 0 | BZ124: =IF(SUM(BY$10:BY$10)>0,$E124*$H124,0) -> 0 | CB124: =IF(SUM(CA$10:CA$10)>0,$E124*$H124,0) -> 0 | CD124: =IF(SUM(CC$10:CC$10)>0,$E124*$H124,0) -> 0 | CF124: =IF(SUM(CE$10:CE$10)>0,$E124*$H124,0) -> 0 | CH124: =IF(SUM(CG$10:CG$10)>0,$E124*$H124,0) -> 0 | CJ124: =IF(SUM(CI$10:CI$10)>0,$E124*$H124,0) -> 0 | CL124: =IF(SUM(CK$10:CK$10)>0,$E124*$H124,0) -> 0 | CN124: =IF(SUM(CM$10:CM$10)>0,$E124*$H124,0) -> 0 | CP124: =IF(SUM(CO$10:CO$10)>0,$E124*$H124,0) -> 0 | CR124: =IF(SUM(CQ$10:CQ$10)>0,$E124*$H124,0) -> 0 | CT124: =IF(SUM(CS$10:CS$10)>0,$E124*$H124,0) -> 0 | CV124: =IF(SUM(CU$10:CU$10)>0,$E124*$H124,0) -> 0 | CX124: =IF(SUM(CW$10:CW$10)>0,$E124*$H124,0) -> 0 | CZ124: =IF(SUM(CY$10:CY$10)>0,$E124*$H124,0) -> 0 | DB124: =IF(SUM(DA$10:DA$10)>0,$E124*$H124,0) -> 0 | DD124: =IF(SUM(DC$10:DC$10)>0,$E124*$H124,0) -> 0 | DF124: =IF(SUM(DE$10:DE$10)>0,$E124*$H124,0) -> 0 | DH124: =IF(SUM(DG$10:DG$10)>0,$E124*$H124,0) -> 0 | DJ124: =IF(SUM(DI$10:DI$10)>0,$E124*$H124,0) -> 0 | DL124: =IF(SUM(DK$10:DK$10)>0,$E124*$H124,0) -> 0 | DN124: =IF(SUM(DM$10:DM$10)>0,$E124*$H124,0) -> 0 | DP124: =IF(SUM(DO$10:DO$10)>0,$E124*$H124,0) -> 0 | DR124: =IF(SUM(DQ$10:DQ$10)>0,$E124*$H124,0) -> 0 | DT124: =IF(SUM(DS$10:DS$10)>0,$E124*$H124,0) -> 0 | DV124: =IF(SUM(DU$10:DU$10)>0,$E124*$H124,0) -> 0 | DX124: =IF(SUM(DW$10:DW$10)>0,$E124*$H124,0) -> 0 | DZ124: =IF(SUM(DY$10:DY$10)>0,$E124*$H124,0) -> 0
F125: =H119+H120 ->  | G125: =F125*E125 ->  | L125: =IF(SUM(K$118:K$121)>0,$E125*$H125,0) -> 0 | N125: =IF(SUM(M$118:M$121)>0,$E125*$H125,0) -> 0 | P125: =IF(SUM(O$118:O$121)>0,$E125*$H125,0) -> 0 | R125: =IF(SUM(Q$118:Q$121)>0,$E125*$H125,0) -> 0 | T125: =IF(SUM(S$118:S$121)>0,$E125*$H125,0) -> 0 | V125: =IF(SUM(U$118:U$121)>0,$E125*$H125,0) -> 0 | X125: =IF(SUM(W$118:W$121)>0,$E125*$H125,0) -> 0 | Z125: =IF(SUM(Y$118:Y$121)>0,$E125*$H125,0) -> 0 | AB125: =IF(SUM(AA$118:AA$121)>0,$E125*$H125,0) -> 0 | AD125: =IF(SUM(AC$118:AC$121)>0,$E125*$H125,0) -> 0 | AF125: =IF(SUM(AE$118:AE$121)>0,$E125*$H125,0) -> 0 | AH125: =IF(SUM(AG$118:AG$121)>0,$E125*$H125,0) -> 0 | AJ125: =IF(SUM(AI$118:AI$121)>0,$E125*$H125,0) -> 0 | AL125: =IF(SUM(AK$118:AK$121)>0,$E125*$H125,0) -> 0 | AN125: =IF(SUM(AM$118:AM$121)>0,$E125*$H125,0) -> 0 | AP125: =IF(SUM(AO$118:AO$121)>0,$E125*$H125,0) -> 0 | AR125: =IF(SUM(AQ$118:AQ$121)>0,$E125*$H125,0) -> 0 | AT125: =IF(SUM(AS$118:AS$121)>0,$E125*$H125,0) -> 0 | AV125: 0 | AX125: 0 | AZ125: 0 | BB125: 0 | BD125: 0 | BF125: 0 | BH125: 0 | BJ125: 0 | BL125: 0 | BN125: 0 | BP125: 0 | BR125: 0 | BT125: 0 | BV125: 0 | BX125: 0 | BZ125: 0 | CB125: 0 | CD125: 0 | CF125: 0 | CH125: 0 | CJ125: 0 | CL125: 0 | CN125: 0 | CP125: 0 | CR125: 0 | CT125: 0 | CV125: 0 | CX125: 0 | CZ125: 0 | DB125: 0 | DD125: 0 | DF125: 0 | DH125: 0 | DJ125: 0 | DL125: 0 | DN125: 0 | DP125: 0 | DR125: 0 | DT125: 0 | DV125: 0 | DX125: 0 | DZ125: 0
A126: =F125 ->  | F126: =F125 ->  | L126: =IF(SUM(K$118:K$121)>0,$E126*$H126,0) -> 0 | N126: 0 | P126: 0 | R126: 0 | T126: 0 | V126: 0 | X126: 0 | Z126: 0 | AB126: 0 | AD126: 0 | AF126: 0 | AH126: 0 | AJ126: 0 | AL126: 0 | AN126: 0 | AP126: 0 | AR126: 0 | AT126: 0 | AV126: 0 | AX126: 0 | AZ126: 0 | BB126: 0 | BD126: 0 | BF126: 0 | BH126: 0 | BJ126: 0 | BL126: 0 | BN126: 0 | BP126: 0 | BR126: 0 | BT126: 0 | BV126: 0 | BX126: 0 | BZ126: 0 | CB126: 0 | CD126: 0 | CF126: 0 | CH126: 0 | CJ126: 0 | CL126: 0 | CN126: 0 | CP126: 0 | CR126: 0 | CT126: 0 | CV126: 0 | CX126: 0 | CZ126: 0 | DB126: 0 | DD126: 0 | DF126: 0 | DH126: 0 | DJ126: 0 | DL126: 0 | DN126: 0 | DP126: 0 | DR126: 0 | DT126: 0 | DV126: 0 | DX126: 0 | DZ126: 0
F127: =F126 ->  | L127: 0 | N127: =IF(SUM(M$118:M$121)>0,$E127*$H127,0) -> 0 | P127: 0 | R127: 0 | T127: 0 | V127: 0 | X127: 0 | Z127: 0 | AB127: 0 | AD127: 0 | AF127: 0 | AH127: 0 | AJ127: 0 | AL127: 0 | AN127: 0 | AP127: 0 | AR127: 0 | AT127: 0 | AV127: 0 | AX127: 0 | AZ127: 0 | BB127: 0 | BD127: 0 | BF127: 0 | BH127: 0 | BJ127: 0 | BL127: 0 | BN127: 0 | BP127: 0 | BR127: 0 | BT127: 0 | BV127: 0 | BX127: 0 | BZ127: 0 | CB127: 0 | CD127: 0 | CF127: 0 | CH127: 0 | CJ127: 0 | CL127: 0 | CN127: 0 | CP127: 0 | CR127: 0 | CT127: 0 | CV127: 0 | CX127: 0 | CZ127: 0 | DB127: 0 | DD127: 0 | DF127: 0 | DH127: 0 | DJ127: 0 | DL127: 0 | DN127: 0 | DP127: 0 | DR127: 0 | DT127: 0 | DV127: 0 | DX127: 0 | DZ127: 0
